Workbook

Sheet Introduction
C4: Joint Monitoring Programme for Water Supply, Sanitation and Hygiene
C6: Estimates on household water, sanitation and hygiene by wealth quintile and sub-national region in
C7: =+Water!B5 -> Turkey
C9: Updated May 2021
C11: Follow the links below to find the following information:
C13: JMP Estimates
C14: WASH status and trends by wealth quintile (customized quintiles made without water and sanitation assets)
C15: Water
C16: Sanitation
C17: Hygiene
C19: Data inputs
C20: customized wealth quintiles and subnational data:
C21: =IF(INDIRECT(CONCATENATE("Water","!B105"))=0,"",INDIRECT(CONCATENATE("Water","!B105"))) -> DHS03
C22: =IF(INDIRECT(CONCATENATE("Water","!B106"))=0,"",INDIRECT(CONCATENATE("Water","!B106"))) -> DHS08
C23: =IF(INDIRECT(CONCATENATE("Water","!B107"))=0,"",INDIRECT(CONCATENATE("Water","!B107"))) -> DHS13
C24: =IF(INDIRECT(CONCATENATE("Water","!B108"))=0,"",INDIRECT(CONCATENATE("Water","!B108"))) -> 
C25: =IF(INDIRECT(CONCATENATE("Water","!B109"))=0,"",INDIRECT(CONCATENATE("Water","!B109"))) -> 
C26: =IF(INDIRECT(CONCATENATE("Water","!B110"))=0,"",INDIRECT(CONCATENATE("Water","!B110"))) -> 
C27: =IF(INDIRECT(CONCATENATE("Water","!B111"))=0,"",INDIRECT(CONCATENATE("Water","!B111"))) -> 
C28: =IF(INDIRECT(CONCATENATE("Water","!B112"))=0,"",INDIRECT(CONCATENATE("Water","!B112"))) -> 
C29: =IF(INDIRECT(CONCATENATE("Water","!B113"))=0,"",INDIRECT(CONCATENATE("Water","!B113"))) -> 
C30: =IF(INDIRECT(CONCATENATE("Water","!B114"))=0,"",INDIRECT(CONCATENATE("Water","!B114"))) -> 
C31: =IF(INDIRECT(CONCATENATE("Water","!B115"))=0,"",INDIRECT(CONCATENATE("Water","!B115"))) -> 
C32: =IF(INDIRECT(CONCATENATE("Water","!B116"))=0,"",INDIRECT(CONCATENATE("Water","!B116"))) -> 
L55: =+IF(ISNUMBER(M48), "", "Insufficient data to estimate safely managed sanitation services at national level") -> Insufficient data to estimate safely managed sanitation services at national level

Sheet Water
A1: BGD
B4: Summary of trends in use of drinking water by wealth quintile (%)
B5: =IF(ISERROR(INDIRECT(CONCATENATE($B105,"!A2"))),"",INDIRECT(CONCATENATE($B105,"!A2"))) -> Turkey
B7: =B118 -> National use of drinking water sources, 2000–2019 | J7: =B218 -> Urban use of drinking water sources, 2000–2019 | R7: =B318 -> Rural use of drinking water sources, 2000–2019
B31: =IF(ISERROR(INDIRECT(CONCATENATE($B105,"!A2"))),"",INDIRECT(CONCATENATE($B105,"!A2"))) -> Turkey | F31: Poorest | J31: Poor | N31: Middle | R31: Rich | V31: Richest
F32: Basic | G32: Limited | H32: Unimproved | I32: Surface water | J32: Basic | K32: Limited | L32: Unimproved | M32: Surface water | N32: Basic | O32: Limited | P32: Unimproved | Q32: Surface water | R32: Basic | S32: Limited | T32: Unimproved | U32: Surface water | V32: Basic | W32: Limited | X32: Unimproved | Y32: Surface water
B33: NATIONAL | D33: Estimate | E33: =C99 -> 2000 | F33: =E99 -> 95.51357508 | G33: =F99 -> 1.436501928 | H33: 2.948950113 | I33: 0.1009728819 | J33: =J99 -> 97.11543662 | K33: =K99 -> 1.026326515 | L33: 1.538087289 | M33: 0.3201495755 | N33: =O99 -> 97.38902808 | O33: =P99 -> 1.389401765 | P33: 1.126739912 | Q33: 0.09483024047 | R33: =T99 -> 97.25353772 | S33: =U99 -> 1.73261655 | T33: 0.9591097689 | U33: 0.05473596097 | V33: =Y99 -> 98.28457116 | W33: =Z99 -> 0.5322767727 | X33: 0.9495419197 | Y33: 0.2336101432
E34: =C100 -> 2019 | F34: =E100 -> 96.08355191 | G34: 1.445074247 | H34: 2.004403638 | I34: 0.4669702061 | J34: =J100 -> 96.87325959 | K34: 1.023767162 | L34: 1.847985401 | M34: 0.2549878424 | N34: =O100 -> 97.32300581 | O34: 1.388459857 | P34: 1.200985818 | Q34: 0.08754851105 | R34: =T100 -> 97.02374754 | S34: 1.728522732 | T34: 0.9996757856 | U34: 0.2480539424 | V34: =Y100 -> 98.87594779 | W34: 0.5354794732 | X34: 0.5411672349 | Y34: 0.04740549808
B36: URBAN | D36: Estimate | E36: =C199 -> 2000 | F36: =E199 -> 98.10190027 | G36: =F199 -> 0.8327449444 | H36: 0.9185328798 | I36: 0.1468219051 | J36: =J199 -> 98.43363602 | K36: =K199 -> 1.113699086 | L36: 0.4498843419 | M36: 0.00278055751 | N36: =O199 -> 98.25277836 | O36: =P199 -> 0.9614739967 | P36: 0.6404271156 | Q36: 0.1453205297 | R36: =T199 -> 97.29036488 | S36: =U199 -> 1.68380779 | T36: 0.8344326837 | U36: 0.1913946479 | V36: =Y199 -> 98.68216103 | W36: =Z199 -> 0.3360828266 | X36: 0.8296824411 | Y36: 0.1520736976
E37: =C200 -> 2019 | F37: =E200 -> 98.49566112 | G37: 0.8360874113 | H37: 0.5240106786 | I37: 0.1442407943 | J37: =J200 -> 97.85582195 | K37: 1.107161574 | L37: 0.8008455184 | M37: 0.2361709599 | N37: =O200 -> 98.2382699 | O37: 0.9613320211 | P37: 0.655077548 | Q37: 0.1453205297 | R37: =T200 -> 97.17625937 | S37: 1.681832962 | T37: 0.8438332001 | U37: 0.2980744631 | V37: =Y200 -> 99.32720904 | W37: 0.3382796731 | X37: 0.334511287 | Y37: 0
B39: RURAL | D39: Estimate | E39: =C299 -> 2000 | F39: =E299 -> 91.36998278 | G39: =F299 -> 2.654575083 | H39: 5.97544214 | I39: 0 | J39: =J299 -> 93.87352695 | K39: =K299 -> 1.864879832 | L39: 3.754898449 | M39: 0.506694769 | N39: =O299 -> 96.67227443 | O39: =P299 -> 1.05635465 | P39: 1.905758179 | Q39: 0.3656127442 | R39: =T299 -> 94.63544625 | S39: =U299 -> 2.838782246 | T39: 2.340307542 | U39: 0.1854639572 | V39: =Y299 -> 95.41816975 | W39: =Z299 -> 1.914033265 | X39: 2.635668966 | Y39: 0.03212801667
E40: =C300 -> 2019 | F40: =E300 -> 90.88382637 | G40: 2.640450765 | H40: 5.434771691 | I40: 1.040951173 | J40: =J300 -> 93.97639592 | K40: 1.866923414 | L40: 3.21273755 | M40: 0.9439431137 | N40: =O300 -> 96.3679562 | O40: 1.053029312 | P40: 2.579014485 | Q40: 0 | R40: =T300 -> 92.36545592 | S40: 2.77068928 | T40: 4.827589335 | U40: 0.03626546867 | V40: =Y300 -> 95.3955258 | W40: 1.91357904 | X40: 2.490058448 | Y40: 0.2008367116
A97: NATIONAL | D97: Poorest | I97: Poor | N97: Middle | S97: Rich | X97: Richest
D98: Improved | E98: Basic | F98: Limited | G98: Unimproved | H98: Surface water | I98: Improved | J98: Basic | K98: Limited | L98: Unimproved | M98: Surface water | N98: Improved | O98: Basic | P98: Limited | Q98: Unimproved | R98: Surface water | S98: Improved | T98: Basic | U98: Limited | V98: Unimproved | W98: Surface water | X98: Improved | Y98: Basic | Z98: Limited | AA98: Unimproved | AB98: Surface water
A99: Forecast period: | C99: 2000 | D99: =IF((D101+H101)>100,D101*100/(D101+H101),D101) -> 96.95007701 | E99: =D99*AVERAGEIF(E105:E116,">0")/100 -> 95.51357508 | F99: =D99*(100-AVERAGEIF(E105:E116,">0"))/100 -> 1.436501928 | G99: =100-(E99+F99+H99) -> 2.948950113 | H99: =IF((D101+H101)>100,H101*100/(D101+H101),H101) -> 0.1009728819 | I99: =IF((I101+M101)>100,I101*100/(I101+M101),I101) -> 98.14176314 | J99: =I99*AVERAGEIF(J105:J116,">0")/100 -> 97.11543662 | K99: =I99*(100-AVERAGEIF(J105:J116,">0"))/100 -> 1.026326515 | L99: =100-(J99+K99+M99) -> 1.538087289 | M99: =IF((I101+M101)>100,M101*100/(I101+M101),M101) -> 0.3201495755 | N99: =IF((N101+R101)>100,N101*100/(N101+R101),N101) -> 98.77842985 | O99: =N99*AVERAGEIF(O105:O116,">0")/100 -> 97.38902808 | P99: =N99*(100-AVERAGEIF(O105:O116,">0"))/100 -> 1.389401765 | Q99: =100-(O99+P99+R99) -> 1.126739912 | R99: =IF((N101+R101)>100,R101*100/(N101+R101),R101) -> 0.09483024047 | S99: =IF((S101+W101)>100,S101*100/(S101+W101),S101) -> 98.98615427 | T99: =S99*AVERAGEIF(T105:T116,">0")/100 -> 97.25353772 | U99: =S99*(100-AVERAGEIF(T105:T116,">0"))/100 -> 1.73261655 | V99: =100-(T99+U99+W99) -> 0.9591097689 | W99: =IF((S101+W101)>100,W101*100/(S101+W101),W101) -> 0.05473596097 | X99: =IF((X101+AB101)>100,X101*100/(X101+AB101),X101) -> 98.81684794 | Y99: =X99*AVERAGEIF(Y105:Y116,">0")/100 -> 98.28457116 | Z99: =X99*(100-AVERAGEIF(Y105:Y116,">0"))/100 -> 0.5322767727 | AA99: =100-(Y99+Z99+AB99) -> 0.9495419197 | AB99: =IF((X101+AB101)>100,AB101*100/(X101+AB101),AB101) -> 0.2336101432
C100: 2019 | D100: =IF((D102+H102)>100,D102*100/(D102+H102),D102) -> 97.52862616 | E100: =D100*AVERAGEIF(E105:E116,">0")/100 -> 96.08355191 | F100: =D100*(100-AVERAGEIF(E105:E116,">0"))/100 -> 1.445074247 | G100: =100-(E100+F100+H100) -> 2.004403638 | H100: =IF((D102+H102)>100,H102*100/(D102+H102),H102) -> 0.4669702061 | I100: =IF((I102+M102)>100,I102*100/(I102+M102),I102) -> 97.89702676 | J100: =I100*AVERAGEIF(J105:J116,">0")/100 -> 96.87325959 | K100: =I100*(100-AVERAGEIF(J105:J116,">0"))/100 -> 1.023767162 | L100: =100-(J100+K100+M100) -> 1.847985401 | M100: =IF((I102+M102)>100,M102*100/(I102+M102),M102) -> 0.2549878424 | N100: =IF((N102+R102)>100,N102*100/(N102+R102),N102) -> 98.71146567 | O100: =N100*AVERAGEIF(O105:O116,">0")/100 -> 97.32300581 | P100: =N100*(100-AVERAGEIF(O105:O116,">0"))/100 -> 1.388459857 | Q100: =100-(O100+P100+R100) -> 1.200985818 | R100: =IF((N102+R102)>100,R102*100/(N102+R102),R102) -> 0.08754851105 | S100: =IF((S102+W102)>100,S102*100/(S102+W102),S102) -> 98.75227027 | T100: =S100*AVERAGEIF(T105:T116,">0")/100 -> 97.02374754 | U100: =S100*(100-AVERAGEIF(T105:T116,">0"))/100 -> 1.728522732 | V100: =100-(T100+U100+W100) -> 0.9996757856 | W100: =IF((S102+W102)>100,W102*100/(S102+W102),W102) -> 0.2480539424 | X100: =IF((X102+AB102)>100,X102*100/(X102+AB102),X102) -> 99.41142727 | Y100: =X100*AVERAGEIF(Y105:Y116,">0")/100 -> 98.87594779 | Z100: =X100*(100-AVERAGEIF(Y105:Y116,">0"))/100 -> 0.5354794732 | AA100: =100-(Y100+Z100+AB100) -> 0.5411672349 | AB100: =IF((X102+AB102)>100,AB102*100/(X102+AB102),AB102) -> 0.04740549808
A101: Regression period: | C101: =MinRegYear(C99,C105:C116) -> 2001 | D101: =IF(MAX(C105:C116)-MIN(C105:C116)<5,AVERAGEIF(C105:C116,">0",D105:D116), IF(FORECAST($C101,D$105:D$116,$C$105:$C$116)<0,0, IF(FORECAST($C101,D$105:D$116,$C$105:$C$116)>100,100, FORECAST($C101,D$105:D$116,$C$105:$C$116)))) -> 96.95007701 | H101: =IF(MAX(C105:C116)-MIN(C105:C116)<5,AVERAGEIF(C105:C116,">0",H105:H116), IF(FORECAST($C101,H$105:H$116,$C$105:$C$116)<0,0, IF(FORECAST($C101,H$105:H$116,$C$105:$C$116)>100,100, FORECAST($C101,H$105:H$116,$C$105:$C$116)))) -> 0.1009728819 | I101: =IF(MAX(C105:C116)-MIN(C105:C116)<5,AVERAGEIF(C105:C116,">0",I105:I116), IF(FORECAST($C101,I$105:I$116,$C$105:$C$116)<0,0, IF(FORECAST($C101,I$105:I$116,$C$105:$C$116)>100,100, FORECAST($C101,I$105:I$116,$C$105:$C$116)))) -> 98.14176314 | M101: =IF(MAX(C105:C116)-MIN(C105:C116)<5,AVERAGEIF(C105:C116,">0",M105:M116), IF(FORECAST($C101,M$105:M$116,$C$105:$C$116)<0,0, IF(FORECAST($C101,M$105:M$116,$C$105:$C$116)>100,100, FORECAST($C101,M$105:M$116,$C$105:$C$116)))) -> 0.3201495755 | N101: =IF(MAX(C105:C116)-MIN(C105:C116)<5,AVERAGEIF(C105:C116,">0",N105:N116), IF(FORECAST($C101,N$105:N$116,$C$105:$C$116)<0,0, IF(FORECAST($C101,N$105:N$116,$C$105:$C$116)>100,100, FORECAST($C101,N$105:N$116,$C$105:$C$116)))) -> 98.77842985 | R101: =IF(MAX(C105:C116)-MIN(C105:C116)<5,AVERAGEIF(C105:C116,">0",R105:R116), IF(FORECAST($C101,R$105:R$116,$C$105:$C$116)<0,0, IF(FORECAST($C101,R$105:R$116,$C$105:$C$116)>100,100, FORECAST($C101,R$105:R$116,$C$105:$C$116)))) -> 0.09483024047 | S101: =IF(MAX(C105:C116)-MIN(C105:C116)<5,AVERAGEIF(C105:C116,">0",S105:S116), IF(FORECAST($C101,S$105:S$116,$C$105:$C$116)<0,0, IF(FORECAST($C101,S$105:S$116,$C$105:$C$116)>100,100, FORECAST($C101,S$105:S$116,$C$105:$C$116)))) -> 98.98615427 | W101: =IF(MAX(C105:C116)-MIN(C105:C116)<5,AVERAGEIF(C105:C116,">0",W105:W116), IF(FORECAST($C101,W$105:W$116,$C$105:$C$116)<0,0, IF(FORECAST($C101,W$105:W$116,$C$105:$C$116)>100,100, FORECAST($C101,W$105:W$116,$C$105:$C$116)))) -> 0.05473596097 | X101: =IF(MAX(C105:C116)-MIN(C105:C116)<5,AVERAGEIF(C105:C116,">0",X105:X116), IF(FORECAST($C101,X$105:X$116,$C$105:$C$116)<0,0, IF(FORECAST($C101,X$105:X$116,$C$105:$C$116)>100,100, FORECAST($C101,X$105:X$116,$C$105:$C$116)))) -> 98.81684794 | AB101: =IF(MAX(C105:C116)-MIN(C105:C116)<5,AVERAGEIF(C105:C116,">0",AB105:AB116), IF(FORECAST($C101,AB$105:AB$116,$C$105:$C$116)<0,0, IF(FORECAST($C101,AB$105:AB$116,$C$105:$C$116)>100,100, FORECAST($C101,AB$105:AB$116,$C$105:$C$116)))) -> 0.2336101432
C102: =MaxRegYear(C100,C105:C116) -> 2015 | D102: =IF(MAX(C105:C116)-MIN(C105:C116)<5,AVERAGEIF(C105:C116,">0",D105:D116), IF(FORECAST($C102,D$105:D$116,$C$105:$C$116)<0,0, IF(FORECAST($C102,D$105:D$116,$C$105:$C$116)>100,100, FORECAST($C102,D$105:D$116,$C$105:$C$116)))) -> 97.52862616 | H102: =IF(MAX(C105:C116)-MIN(C105:C116)<5,AVERAGEIF(C105:C116,">0",H105:H116), IF(FORECAST($C102,H$105:H$116,$C$105:$C$116)<0,0, IF(FORECAST($C102,H$105:H$116,$C$105:$C$116)>100,100, FORECAST($C102,H$105:H$116,$C$105:$C$116)))) -> 0.4669702061 | I102: =IF(MAX(C105:C116)-MIN(C105:C116)<5,AVERAGEIF(C105:C116,">0",I105:I116), IF(FORECAST($C102,I$105:I$116,$C$105:$C$116)<0,0, IF(FORECAST($C102,I$105:I$116,$C$105:$C$116)>100,100, FORECAST($C102,I$105:I$116,$C$105:$C$116)))) -> 97.89702676 | M102: =IF(MAX(C105:C116)-MIN(C105:C116)<5,AVERAGEIF(C105:C116,">0",M105:M116), IF(FORECAST($C102,M$105:M$116,$C$105:$C$116)<0,0, IF(FORECAST($C102,M$105:M$116,$C$105:$C$116)>100,100, FORECAST($C102,M$105:M$116,$C$105:$C$116)))) -> 0.2549878424 | N102: =IF(MAX(C105:C116)-MIN(C105:C116)<5,AVERAGEIF(C105:C116,">0",N105:N116), IF(FORECAST($C102,N$105:N$116,$C$105:$C$116)<0,0, IF(FORECAST($C102,N$105:N$116,$C$105:$C$116)>100,100, FORECAST($C102,N$105:N$116,$C$105:$C$116)))) -> 98.71146567 | R102: =IF(MAX(C105:C116)-MIN(C105:C116)<5,AVERAGEIF(C105:C116,">0",R105:R116), IF(FORECAST($C102,R$105:R$116,$C$105:$C$116)<0,0, IF(FORECAST($C102,R$105:R$116,$C$105:$C$116)>100,100, FORECAST($C102,R$105:R$116,$C$105:$C$116)))) -> 0.08754851105 | S102: =IF(MAX(C105:C116)-MIN(C105:C116)<5,AVERAGEIF(C105:C116,">0",S105:S116), IF(FORECAST($C102,S$105:S$116,$C$105:$C$116)<0,0, IF(FORECAST($C102,S$105:S$116,$C$105:$C$116)>100,100, FORECAST($C102,S$105:S$116,$C$105:$C$116)))) -> 98.75227027 | W102: =IF(MAX(C105:C116)-MIN(C105:C116)<5,AVERAGEIF(C105:C116,">0",W105:W116), IF(FORECAST($C102,W$105:W$116,$C$105:$C$116)<0,0, IF(FORECAST($C102,W$105:W$116,$C$105:$C$116)>100,100, FORECAST($C102,W$105:W$116,$C$105:$C$116)))) -> 0.2480539424 | X102: =IF(MAX(C105:C116)-MIN(C105:C116)<5,AVERAGEIF(C105:C116,">0",X105:X116), IF(FORECAST($C102,X$105:X$116,$C$105:$C$116)<0,0, IF(FORECAST($C102,X$105:X$116,$C$105:$C$116)>100,100, FORECAST($C102,X$105:X$116,$C$105:$C$116)))) -> 99.41142727 | AB102: =IF(MAX(C105:C116)-MIN(C105:C116)<5,AVERAGEIF(C105:C116,">0",AB105:AB116), IF(FORECAST($C102,AB$105:AB$116,$C$105:$C$116)<0,0, IF(FORECAST($C102,AB$105:AB$116,$C$105:$C$116)>100,100, FORECAST($C102,AB$105:AB$116,$C$105:$C$116)))) -> 0.04740549808
B104: Survey | C104: Year | D104: Improved | E104: % Improved < = 30min | H104: Surface water | I104: Improved | J104: % Improved < = 30min | M104: Surface water | N104: Improved | O104: % Improved < = 30min | R104: Surface water | S104: Improved | T104: % Improved < = 30min | W104: Surface water | X104: Improved | Y104: % Improved < = 30min | AB104: Surface water
B105: DHS03 | C105: 2003 | D105: =IF(ISERROR(INDIRECT(CONCATENATE($B105,"!C16"))),"",INDIRECT(CONCATENATE($B105,"!C16"))) -> 97.55562955 | E105: =IF(ISERROR(INDIRECT(CONCATENATE($B105,"!C23"))),"",INDIRECT(CONCATENATE($B105,"!C23"))) -> N/A | H105: =IF(ISERROR(INDIRECT(CONCATENATE($B105,"!C21"))),"",INDIRECT(CONCATENATE($B105,"!C21"))) -> 0.08207174398 | I105: =IF(ISERROR(INDIRECT(CONCATENATE($B105,"!D16"))),"",INDIRECT(CONCATENATE($B105,"!D16"))) -> 98.80811867 | J105: =IF(ISERROR(INDIRECT(CONCATENATE($B105,"!D23"))),"",INDIRECT(CONCATENATE($B105,"!D23"))) -> N/A | M105: =IF(ISERROR(INDIRECT(CONCATENATE($B105,"!D21"))),"",INDIRECT(CONCATENATE($B105,"!D21"))) -> 0.1466140627 | N105: =IF(ISERROR(INDIRECT(CONCATENATE($B105,"!E16"))),"",INDIRECT(CONCATENATE($B105,"!E16"))) -> 99.46323584 | O105: =IF(ISERROR(INDIRECT(CONCATENATE($B105,"!E23"))),"",INDIRECT(CONCATENATE($B105,"!E23"))) -> N/A | R105: =IF(ISERROR(INDIRECT(CONCATENATE($B105,"!E21"))),"",INDIRECT(CONCATENATE($B105,"!E21"))) -> 0.03464205564 | S105: =IF(ISERROR(INDIRECT(CONCATENATE($B105,"!F16"))),"",INDIRECT(CONCATENATE($B105,"!F16"))) -> 99.66571082 | T105: =IF(ISERROR(INDIRECT(CONCATENATE($B105,"!F23"))),"",INDIRECT(CONCATENATE($B105,"!F23"))) -> N/A | W105: =IF(ISERROR(INDIRECT(CONCATENATE($B105,"!F21"))),"",INDIRECT(CONCATENATE($B105,"!F21"))) -> 0 | X105: =IF(ISERROR(INDIRECT(CONCATENATE($B105,"!G16"))),"",INDIRECT(CONCATENATE($B105,"!G16"))) -> 99.38309364 | Y105: =IF(ISERROR(INDIRECT(CONCATENATE($B105,"!G23"))),"",INDIRECT(CONCATENATE($B105,"!G23"))) -> N/A | AB105: =IF(ISERROR(INDIRECT(CONCATENATE($B105,"!G221"))),"",INDIRECT(CONCATENATE($B105,"!G21"))) -> 0.1330033179
B106: DHS08 | C106: 2008 | D106: 96.19354624 | E106: N/A | H106: 0.4263444838 | I106: 96.61675919 | J106: N/A | M106: 0.6160220966 | N106: 97.35620315 | O106: N/A | R106: 0.2094852513 | S106: 97.44327517 | T106: N/A | W106: 0.3161005826 | X106: 98.15152601 | Y106: N/A | AB106: 0.2885201439
B107: DHS13 | C107: 2013 | D107: 97.96887895 | E107: 98.51830759 | H107: 0.3434984041 | I107: 98.63330698 | J107: 98.9542408 | M107: 0.1000699676 | N107: 99.41540429 | O107: 98.59341582 | R107: 0.02944082034 | S107: 99.49865082 | T107: 98.24963747 | W107: 0.1380842725 | X107: 99.80779316 | Y107: 99.46135018 | AB107: 0
D111: =IF(ISERROR(INDIRECT(CONCATENATE($B111,"!C16"))),"",INDIRECT(CONCATENATE($B111,"!C16"))) ->  | E111: =IF(ISERROR(INDIRECT(CONCATENATE($B111,"!C23"))),"",INDIRECT(CONCATENATE($B111,"!C23"))) ->  | H111: =IF(ISERROR(INDIRECT(CONCATENATE($B111,"!C21"))),"",INDIRECT(CONCATENATE($B111,"!C21"))) ->  | I111: =IF(ISERROR(INDIRECT(CONCATENATE($B111,"!D16"))),"",INDIRECT(CONCATENATE($B111,"!D16"))) ->  | J111: =IF(ISERROR(INDIRECT(CONCATENATE($B111,"!D23"))),"",INDIRECT(CONCATENATE($B111,"!D23"))) ->  | M111: =IF(ISERROR(INDIRECT(CONCATENATE($B111,"!D21"))),"",INDIRECT(CONCATENATE($B111,"!D21"))) ->  | N111: =IF(ISERROR(INDIRECT(CONCATENATE($B111,"!E16"))),"",INDIRECT(CONCATENATE($B111,"!E16"))) ->  | O111: =IF(ISERROR(INDIRECT(CONCATENATE($B111,"!E23"))),"",INDIRECT(CONCATENATE($B111,"!E23"))) ->  | R111: =IF(ISERROR(INDIRECT(CONCATENATE($B111,"!E21"))),"",INDIRECT(CONCATENATE($B111,"!E21"))) ->  | S111: =IF(ISERROR(INDIRECT(CONCATENATE($B111,"!F16"))),"",INDIRECT(CONCATENATE($B111,"!F16"))) ->  | T111: =IF(ISERROR(INDIRECT(CONCATENATE($B111,"!F23"))),"",INDIRECT(CONCATENATE($B111,"!F23"))) ->  | W111: =IF(ISERROR(INDIRECT(CONCATENATE($B111,"!F21"))),"",INDIRECT(CONCATENATE($B111,"!F21"))) ->  | X111: =IF(ISERROR(INDIRECT(CONCATENATE($B111,"!G16"))),"",INDIRECT(CONCATENATE($B111,"!G16"))) ->  | Y111: =IF(ISERROR(INDIRECT(CONCATENATE($B111,"!G23"))),"",INDIRECT(CONCATENATE($B111,"!G23"))) ->  | AB111: =IF(ISERROR(INDIRECT(CONCATENATE($B111,"!G221"))),"",INDIRECT(CONCATENATE($B111,"!G21"))) -> 
D112: =IF(ISERROR(INDIRECT(CONCATENATE($B112,"!C16"))),"",INDIRECT(CONCATENATE($B112,"!C16"))) ->  | E112: =IF(ISERROR(INDIRECT(CONCATENATE($B112,"!C23"))),"",INDIRECT(CONCATENATE($B112,"!C23"))) ->  | H112: =IF(ISERROR(INDIRECT(CONCATENATE($B112,"!C21"))),"",INDIRECT(CONCATENATE($B112,"!C21"))) ->  | I112: =IF(ISERROR(INDIRECT(CONCATENATE($B112,"!D16"))),"",INDIRECT(CONCATENATE($B112,"!D16"))) ->  | J112: =IF(ISERROR(INDIRECT(CONCATENATE($B112,"!D23"))),"",INDIRECT(CONCATENATE($B112,"!D23"))) ->  | M112: =IF(ISERROR(INDIRECT(CONCATENATE($B112,"!D21"))),"",INDIRECT(CONCATENATE($B112,"!D21"))) ->  | N112: =IF(ISERROR(INDIRECT(CONCATENATE($B112,"!E16"))),"",INDIRECT(CONCATENATE($B112,"!E16"))) ->  | O112: =IF(ISERROR(INDIRECT(CONCATENATE($B112,"!E23"))),"",INDIRECT(CONCATENATE($B112,"!E23"))) ->  | R112: =IF(ISERROR(INDIRECT(CONCATENATE($B112,"!E21"))),"",INDIRECT(CONCATENATE($B112,"!E21"))) ->  | S112: =IF(ISERROR(INDIRECT(CONCATENATE($B112,"!F16"))),"",INDIRECT(CONCATENATE($B112,"!F16"))) ->  | T112: =IF(ISERROR(INDIRECT(CONCATENATE($B112,"!F23"))),"",INDIRECT(CONCATENATE($B112,"!F23"))) ->  | W112: =IF(ISERROR(INDIRECT(CONCATENATE($B112,"!F21"))),"",INDIRECT(CONCATENATE($B112,"!F21"))) ->  | X112: =IF(ISERROR(INDIRECT(CONCATENATE($B112,"!G16"))),"",INDIRECT(CONCATENATE($B112,"!G16"))) ->  | Y112: =IF(ISERROR(INDIRECT(CONCATENATE($B112,"!G23"))),"",INDIRECT(CONCATENATE($B112,"!G23"))) ->  | AB112: =IF(ISERROR(INDIRECT(CONCATENATE($B112,"!G221"))),"",INDIRECT(CONCATENATE($B112,"!G21"))) -> 
B118: =CONCATENATE("National use of drinking water sources, ",C99,"–",C100) -> National use of drinking water sources, 2000–2019 | S118: Data points used for regression
E153: =IF(ISERROR(INDIRECT(CONCATENATE($B153,"!M18"))),"",INDIRECT(CONCATENATE($B153,"!M18"))) ->  | F153: =IF(ISERROR(INDIRECT(CONCATENATE($B153,"!M19"))),"",INDIRECT(CONCATENATE($B153,"!M19"))) ->  | G153: =IF(ISERROR(INDIRECT(CONCATENATE($B153,"!M20"))),"",INDIRECT(CONCATENATE($B153,"!M20"))) ->  | H153: =IF(ISERROR(INDIRECT(CONCATENATE($B153,"!M21"))),"",INDIRECT(CONCATENATE($B153,"!M21"))) ->  | J153: =IF(ISERROR(INDIRECT(CONCATENATE($B153,"!N18"))),"",INDIRECT(CONCATENATE($B153,"!N18"))) ->  | K153: =IF(ISERROR(INDIRECT(CONCATENATE($B153,"!N19"))),"",INDIRECT(CONCATENATE($B153,"!N19"))) ->  | L153: =IF(ISERROR(INDIRECT(CONCATENATE($B153,"!N20"))),"",INDIRECT(CONCATENATE($B153,"!N20"))) ->  | M153: =IF(ISERROR(INDIRECT(CONCATENATE($B153,"!N21"))),"",INDIRECT(CONCATENATE($B153,"!N21"))) ->  | O153: =IF(ISERROR(INDIRECT(CONCATENATE($B153,"!O18"))),"",INDIRECT(CONCATENATE($B153,"!O18"))) ->  | P153: =IF(ISERROR(INDIRECT(CONCATENATE($B153,"!O19"))),"",INDIRECT(CONCATENATE($B153,"!O19"))) ->  | Q153: =IF(ISERROR(INDIRECT(CONCATENATE($B153,"!O20"))),"",INDIRECT(CONCATENATE($B153,"!O20"))) ->  | R153: =IF(ISERROR(INDIRECT(CONCATENATE($B153,"!O21"))),"",INDIRECT(CONCATENATE($B153,"!O21"))) ->  | T153: =IF(ISERROR(INDIRECT(CONCATENATE($B153,"!P18"))),"",INDIRECT(CONCATENATE($B153,"!P18"))) ->  | U153: =IF(ISERROR(INDIRECT(CONCATENATE($B153,"!P19"))),"",INDIRECT(CONCATENATE($B153,"!P19"))) ->  | V153: =IF(ISERROR(INDIRECT(CONCATENATE($B153,"!P20"))),"",INDIRECT(CONCATENATE($B153,"!P20"))) ->  | W153: =IF(ISERROR(INDIRECT(CONCATENATE($B153,"!P21"))),"",INDIRECT(CONCATENATE($B153,"!P21"))) ->  | Y153: =IF(ISERROR(INDIRECT(CONCATENATE($B153,"!Q18"))),"",INDIRECT(CONCATENATE($B153,"!Q18"))) ->  | Z153: =IF(ISERROR(INDIRECT(CONCATENATE($B153,"!Q19"))),"",INDIRECT(CONCATENATE($B153,"!Q19"))) ->  | AA153: =IF(ISERROR(INDIRECT(CONCATENATE($B153,"!Q20"))),"",INDIRECT(CONCATENATE($B153,"!Q20"))) ->  | AB153: =IF(ISERROR(INDIRECT(CONCATENATE($B153,"!Q21"))),"",INDIRECT(CONCATENATE($B153,"!Q1"))) -> 
A197: URBAN | D197: Poorest | I197: Poor | N197: Middle | S197: Rich | X197: Richest
D198: Improved | E198: Basic | F198: Limited | G198: Unimproved | H198: Surface water | I198: Improved | J198: Basic | K198: Limited | L198: Unimproved | M198: Surface water | N198: Improved | O198: Basic | P198: Limited | Q198: Unimproved | R198: Surface water | S198: Improved | T198: Basic | U198: Limited | V198: Unimproved | W198: Surface water | X198: Improved | Y198: Basic | Z198: Limited | AA198: Unimproved | AB198: Surface water
A199: Forecast period: | C199: 2000 | D199: =IF((D201+H201)>100,D201*100/(D201+H201),D201) -> 98.93464522 | E199: =D199*AVERAGEIF(E205:E216,">0")/100 -> 98.10190027 | F199: =D199*(100-AVERAGEIF(E205:E216,">0"))/100 -> 0.8327449444 | G199: =100-(E199+F199+H199) -> 0.9185328798 | H199: =IF((D201+H201)>100,H201*100/(D201+H201),H201) -> 0.1468219051 | I199: =IF((I201+M201)>100,I201*100/(I201+M201),I201) -> 99.5473351 | J199: =I199*AVERAGEIF(J205:J216,">0")/100 -> 98.43363602 | K199: =I199*(100-AVERAGEIF(J205:J216,">0"))/100 -> 1.113699086 | L199: =100-(J199+K199+M199) -> 0.4498843419 | M199: =IF((I201+M201)>100,M201*100/(I201+M201),M201) -> 0.00278055751 | N199: =IF((N201+R201)>100,N201*100/(N201+R201),N201) -> 99.21425235 | O199: =N199*AVERAGEIF(O205:O216,">0")/100 -> 98.25277836 | P199: =N199*(100-AVERAGEIF(O205:O216,">0"))/100 -> 0.9614739967 | Q199: =100-(O199+P199+R199) -> 0.6404271156 | R199: =IF((N201+R201)>100,R201*100/(N201+R201),R201) -> 0.1453205297 | S199: =IF((S201+W201)>100,S201*100/(S201+W201),S201) -> 98.97417267 | T199: =S199*AVERAGEIF(T205:T216,">0")/100 -> 97.29036488 | U199: =S199*(100-AVERAGEIF(T205:T216,">0"))/100 -> 1.68380779 | V199: =100-(T199+U199+W199) -> 0.8344326837 | W199: =IF((S201+W201)>100,W201*100/(S201+W201),W201) -> 0.1913946479 | X199: =IF((X201+AB201)>100,X201*100/(X201+AB201),X201) -> 99.01824386 | Y199: =X199*AVERAGEIF(Y205:Y216,">0")/100 -> 98.68216103 | Z199: =X199*(100-AVERAGEIF(Y205:Y216,">0"))/100 -> 0.3360828266 | AA199: =100-(Y199+Z199+AB199) -> 0.8296824411 | AB199: =IF((X201+AB201)>100,AB201*100/(X201+AB201),AB201) -> 0.1520736976
C200: 2019 | D200: =IF((D202+H202)>100,D202*100/(D202+H202),D202) -> 99.33174853 | E200: =D200*AVERAGEIF(E205:E216,">0")/100 -> 98.49566112 | F200: =D200*(100-AVERAGEIF(E205:E216,">0"))/100 -> 0.8360874113 | G200: =100-(E200+F200+H200) -> 0.5240106786 | H200: =IF((D202+H202)>100,H202*100/(D202+H202),H202) -> 0.1442407943 | I200: =IF((I202+M202)>100,I202*100/(I202+M202),I202) -> 98.96298352 | J200: =I200*AVERAGEIF(J205:J216,">0")/100 -> 97.85582195 | K200: =I200*(100-AVERAGEIF(J205:J216,">0"))/100 -> 1.107161574 | L200: =100-(J200+K200+M200) -> 0.8008455184 | M200: =IF((I202+M202)>100,M202*100/(I202+M202),M202) -> 0.2361709599 | N200: =IF((N202+R202)>100,N202*100/(N202+R202),N202) -> 99.19960192 | O200: =N200*AVERAGEIF(O205:O216,">0")/100 -> 98.2382699 | P200: =N200*(100-AVERAGEIF(O205:O216,">0"))/100 -> 0.9613320211 | Q200: =100-(O200+P200+R200) -> 0.655077548 | R200: =IF((N202+R202)>100,R202*100/(N202+R202),R202) -> 0.1453205297 | S200: =IF((S202+W202)>100,S202*100/(S202+W202),S202) -> 98.85809234 | T200: =S200*AVERAGEIF(T205:T216,">0")/100 -> 97.17625937 | U200: =S200*(100-AVERAGEIF(T205:T216,">0"))/100 -> 1.681832962 | V200: =100-(T200+U200+W200) -> 0.8438332001 | W200: =IF((S202+W202)>100,W202*100/(S202+W202),W202) -> 0.2980744631 | X200: =IF((X202+AB202)>100,X202*100/(X202+AB202),X202) -> 99.66548871 | Y200: =X200*AVERAGEIF(Y205:Y216,">0")/100 -> 99.32720904 | Z200: =X200*(100-AVERAGEIF(Y205:Y216,">0"))/100 -> 0.3382796731 | AA200: =100-(Y200+Z200+AB200) -> 0.334511287 | AB200: =IF((X202+AB202)>100,AB202*100/(X202+AB202),AB202) -> 0
A201: Regression period: | C201: =MinRegYear(C199,C205:C216) -> 2001 | D201: =IF(MAX(C205:C216)-MIN(C205:C216)<5,AVERAGEIF(C205:C216,">0",D205:D216), IF(FORECAST($C201,D$205:D$216,$C$205:$C$216)<0,0, IF(FORECAST($C201,D$205:D$216,$C$205:$C$216)>100,100, FORECAST($C201,D$205:D$216,$C$205:$C$216)))) -> 98.93464522 | H201: =IF(MAX(C205:C216)-MIN(C205:C216)<5,AVERAGEIF(C205:C216,">0",H205:H216), IF(FORECAST($C201,H$205:H$216,$C$205:$C$216)<0,0, IF(FORECAST($C201,H$205:H$216,$C$205:$C$216)>100,100, FORECAST($C201,H$205:H$216,$C$205:$C$216)))) -> 0.1468219051 | I201: =IF(MAX(C205:C216)-MIN(C205:C216)<5,AVERAGEIF(C205:C216,">0",I205:I216), IF(FORECAST($C201,I$205:I$216,$C$205:$C$216)<0,0, IF(FORECAST($C201,I$205:I$216,$C$205:$C$216)>100,100, FORECAST($C201,I$205:I$216,$C$205:$C$216)))) -> 99.5473351 | M201: =IF(MAX(C205:C216)-MIN(C205:C216)<5,AVERAGEIF(C205:C216,">0",M205:M216), IF(FORECAST($C201,M$205:M$216,$C$205:$C$216)<0,0, IF(FORECAST($C201,M$205:M$216,$C$205:$C$216)>100,100, FORECAST($C201,M$205:M$216,$C$205:$C$216)))) -> 0.00278055751 | N201: =IF(MAX(C205:C216)-MIN(C205:C216)<5,AVERAGEIF(C205:C216,">0",N205:N216), IF(FORECAST($C201,N$205:N$216,$C$205:$C$216)<0,0, IF(FORECAST($C201,N$205:N$216,$C$205:$C$216)>100,100, FORECAST($C201,N$205:N$216,$C$205:$C$216)))) -> 99.21425235 | R201: =IF(MAX(C205:C216)-MIN(C205:C216)<5,AVERAGEIF(C205:C216,">0",R205:R216), IF(FORECAST($C201,R$205:R$216,$C$205:$C$216)<0,0, IF(FORECAST($C201,R$205:R$216,$C$205:$C$216)>100,100, FORECAST($C201,R$205:R$216,$C$205:$C$216)))) -> 0.1453205297 | S201: =IF(MAX(C205:C216)-MIN(C205:C216)<5,AVERAGEIF(C205:C216,">0",S205:S216), IF(FORECAST($C201,S$205:S$216,$C$205:$C$216)<0,0, IF(FORECAST($C201,S$205:S$216,$C$205:$C$216)>100,100, FORECAST($C201,S$205:S$216,$C$205:$C$216)))) -> 98.97417267 | W201: =IF(MAX(C205:C216)-MIN(C205:C216)<5,AVERAGEIF(C205:C216,">0",W205:W216), IF(FORECAST($C201,W$205:W$216,$C$205:$C$216)<0,0, IF(FORECAST($C201,W$205:W$216,$C$205:$C$216)>100,100, FORECAST($C201,W$205:W$216,$C$205:$C$216)))) -> 0.1913946479 | X201: =IF(MAX(C205:C216)-MIN(C205:C216)<5,AVERAGEIF(C205:C216,">0",X205:X216), IF(FORECAST($C201,X$205:X$216,$C$205:$C$216)<0,0, IF(FORECAST($C201,X$205:X$216,$C$205:$C$216)>100,100, FORECAST($C201,X$205:X$216,$C$205:$C$216)))) -> 99.01824386 | AB201: =IF(MAX(C205:C216)-MIN(C205:C216)<5,AVERAGEIF(C205:C216,">0",AB205:AB216), IF(FORECAST($C201,AB$205:AB$216,$C$205:$C$216)<0,0, IF(FORECAST($C201,AB$205:AB$216,$C$205:$C$216)>100,100, FORECAST($C201,AB$205:AB$216,$C$205:$C$216)))) -> 0.1520736976
C202: =MaxRegYear(C200,C205:C216) -> 2015 | D202: =IF(MAX(C205:C216)-MIN(C205:C216)<5,AVERAGEIF(C205:C216,">0",D205:D216), IF(FORECAST($C202,D$205:D$216,$C$205:$C$216)<0,0, IF(FORECAST($C202,D$205:D$216,$C$205:$C$216)>100,100, FORECAST($C202,D$205:D$216,$C$205:$C$216)))) -> 99.33174853 | H202: =IF(MAX(C205:C216)-MIN(C205:C216)<5,AVERAGEIF(C205:C216,">0",H205:H216), IF(FORECAST($C202,H$205:H$216,$C$205:$C$216)<0,0, IF(FORECAST($C202,H$205:H$216,$C$205:$C$216)>100,100, FORECAST($C202,H$205:H$216,$C$205:$C$216)))) -> 0.1442407943 | I202: =IF(MAX(C205:C216)-MIN(C205:C216)<5,AVERAGEIF(C205:C216,">0",I205:I216), IF(FORECAST($C202,I$205:I$216,$C$205:$C$216)<0,0, IF(FORECAST($C202,I$205:I$216,$C$205:$C$216)>100,100, FORECAST($C202,I$205:I$216,$C$205:$C$216)))) -> 98.96298352 | M202: =IF(MAX(C205:C216)-MIN(C205:C216)<5,AVERAGEIF(C205:C216,">0",M205:M216), IF(FORECAST($C202,M$205:M$216,$C$205:$C$216)<0,0, IF(FORECAST($C202,M$205:M$216,$C$205:$C$216)>100,100, FORECAST($C202,M$205:M$216,$C$205:$C$216)))) -> 0.2361709599 | N202: =IF(MAX(C205:C216)-MIN(C205:C216)<5,AVERAGEIF(C205:C216,">0",N205:N216), IF(FORECAST($C202,N$205:N$216,$C$205:$C$216)<0,0, IF(FORECAST($C202,N$205:N$216,$C$205:$C$216)>100,100, FORECAST($C202,N$205:N$216,$C$205:$C$216)))) -> 99.19960192 | R202: =IF(MAX(C205:C216)-MIN(C205:C216)<5,AVERAGEIF(C205:C216,">0",R205:R216), IF(FORECAST($C202,R$205:R$216,$C$205:$C$216)<0,0, IF(FORECAST($C202,R$205:R$216,$C$205:$C$216)>100,100, FORECAST($C202,R$205:R$216,$C$205:$C$216)))) -> 0.1453205297 | S202: =IF(MAX(C205:C216)-MIN(C205:C216)<5,AVERAGEIF(C205:C216,">0",S205:S216), IF(FORECAST($C202,S$205:S$216,$C$205:$C$216)<0,0, IF(FORECAST($C202,S$205:S$216,$C$205:$C$216)>100,100, FORECAST($C202,S$205:S$216,$C$205:$C$216)))) -> 98.85809234 | W202: =IF(MAX(C205:C216)-MIN(C205:C216)<5,AVERAGEIF(C205:C216,">0",W205:W216), IF(FORECAST($C202,W$205:W$216,$C$205:$C$216)<0,0, IF(FORECAST($C202,W$205:W$216,$C$205:$C$216)>100,100, FORECAST($C202,W$205:W$216,$C$205:$C$216)))) -> 0.2980744631 | X202: =IF(MAX(C205:C216)-MIN(C205:C216)<5,AVERAGEIF(C205:C216,">0",X205:X216), IF(FORECAST($C202,X$205:X$216,$C$205:$C$216)<0,0, IF(FORECAST($C202,X$205:X$216,$C$205:$C$216)>100,100, FORECAST($C202,X$205:X$216,$C$205:$C$216)))) -> 99.66548871 | AB202: =IF(MAX(C205:C216)-MIN(C205:C216)<5,AVERAGEIF(C205:C216,">0",AB205:AB216), IF(FORECAST($C202,AB$205:AB$216,$C$205:$C$216)<0,0, IF(FORECAST($C202,AB$205:AB$216,$C$205:$C$216)>100,100, FORECAST($C202,AB$205:AB$216,$C$205:$C$216)))) -> 0
B204: Survey | C204: Year | D204: Improved | E204: % Improved < = 30min | H204: Surface water | I204: Improved | J204: % Improved < = 30min | M204: Surface water | N204: Improved | O204: % Improved < = 30min | R204: Surface water | S204: Improved | T204: % Improved < = 30min | W204: Surface water | X204: Improved | Y204: % Improved < = 30min | AB204: Surface water
B205: DHS03 | C205: 2003 | D205: =IF(ISERROR(INDIRECT(CONCATENATE($B205,"!H16"))),"",INDIRECT(CONCATENATE($B205,"!H16"))) -> 99.3446191 | E205: =IF(ISERROR(INDIRECT(CONCATENATE($B205,"!H23"))),"",INDIRECT(CONCATENATE($B205,"!H23"))) -> N/A | H205: =IF(ISERROR(INDIRECT(CONCATENATE($B205,"!H21"))),"",INDIRECT(CONCATENATE($B205,"!H21"))) -> 0.02651101953 | I205: =IF(ISERROR(INDIRECT(CONCATENATE($B205,"!I16"))),"",INDIRECT(CONCATENATE($B205,"!I16"))) -> 99.82417024 | J205: =IF(ISERROR(INDIRECT(CONCATENATE($B205,"!I23"))),"",INDIRECT(CONCATENATE($B205,"!I23"))) -> N/A | M205: =IF(ISERROR(INDIRECT(CONCATENATE($B205,"!I21"))),"",INDIRECT(CONCATENATE($B205,"!I21"))) -> 0 | N205: =IF(ISERROR(INDIRECT(CONCATENATE($B205,"!J16"))),"",INDIRECT(CONCATENATE($B205,"!J16"))) -> 99.76050778 | O205: =IF(ISERROR(INDIRECT(CONCATENATE($B205,"!J23"))),"",INDIRECT(CONCATENATE($B205,"!J23"))) -> N/A | R205: =IF(ISERROR(INDIRECT(CONCATENATE($B205,"!J21"))),"",INDIRECT(CONCATENATE($B205,"!J21"))) -> 0 | S205: =IF(ISERROR(INDIRECT(CONCATENATE($B205,"!K16"))),"",INDIRECT(CONCATENATE($B205,"!K16"))) -> 99.48918843 | T205: =IF(ISERROR(INDIRECT(CONCATENATE($B205,"!K23"))),"",INDIRECT(CONCATENATE($B205,"!K23"))) -> N/A | W205: =IF(ISERROR(INDIRECT(CONCATENATE($B205,"!K21"))),"",INDIRECT(CONCATENATE($B205,"!K21"))) -> 0.06718395301 | X205: =IF(ISERROR(INDIRECT(CONCATENATE($B205,"!L16"))),"",INDIRECT(CONCATENATE($B205,"!L16"))) -> 99.45259872 | Y205: =IF(ISERROR(INDIRECT(CONCATENATE($B205,"!L23"))),"",INDIRECT(CONCATENATE($B205,"!L23"))) -> N/A | AB205: =IF(ISERROR(INDIRECT(CONCATENATE($B205,"!L221"))),"",INDIRECT(CONCATENATE($B205,"!L21"))) -> 0.1297833579
B206: DHS08 | C206: 2008 | D206: 98.42670719 | E206: N/A | H206: 0.3854156607 | I206: 98.53453144 | J206: N/A | M206: 0.1917198459 | N206: 98.11023045 | O206: N/A | R206: 0.4359615891 | S206: 97.85293517 | T206: N/A | W206: 0.5236358925 | X206: 98.65808368 | Y206: N/A | AB206: 0.05389268329
B207: DHS13 | C207: 2013 | D207: 99.62826432 | E207: 99.15828783 | H207: 0.02466736893 | I207: 99.40677625 | J207: 98.88123667 | M207: 0.1667074303 | N207: 99.75004319 | O207: 99.03091141 | R207: 0 | S207: 99.40627391 | T207: 98.29874022 | W207: 0.143383821 | X207: 99.91491647 | Y207: 99.66058495 | AB207: 0
B218: =CONCATENATE("Urban use of drinking water sources, ",C199,"–",C200) -> Urban use of drinking water sources, 2000–2019 | S218: Data points used for regression
E253: =IF(ISERROR(INDIRECT(CONCATENATE($B253,"!M18"))),"",INDIRECT(CONCATENATE($B253,"!M18"))) ->  | F253: =IF(ISERROR(INDIRECT(CONCATENATE($B253,"!M19"))),"",INDIRECT(CONCATENATE($B253,"!M19"))) ->  | G253: =IF(ISERROR(INDIRECT(CONCATENATE($B253,"!M20"))),"",INDIRECT(CONCATENATE($B253,"!M20"))) ->  | H253: =IF(ISERROR(INDIRECT(CONCATENATE($B253,"!M21"))),"",INDIRECT(CONCATENATE($B253,"!M21"))) ->  | J253: =IF(ISERROR(INDIRECT(CONCATENATE($B253,"!N18"))),"",INDIRECT(CONCATENATE($B253,"!N18"))) ->  | K253: =IF(ISERROR(INDIRECT(CONCATENATE($B253,"!N19"))),"",INDIRECT(CONCATENATE($B253,"!N19"))) ->  | L253: =IF(ISERROR(INDIRECT(CONCATENATE($B253,"!N20"))),"",INDIRECT(CONCATENATE($B253,"!N20"))) ->  | M253: =IF(ISERROR(INDIRECT(CONCATENATE($B253,"!N21"))),"",INDIRECT(CONCATENATE($B253,"!N21"))) ->  | O253: =IF(ISERROR(INDIRECT(CONCATENATE($B253,"!O18"))),"",INDIRECT(CONCATENATE($B253,"!O18"))) ->  | P253: =IF(ISERROR(INDIRECT(CONCATENATE($B253,"!O19"))),"",INDIRECT(CONCATENATE($B253,"!O19"))) ->  | Q253: =IF(ISERROR(INDIRECT(CONCATENATE($B253,"!O20"))),"",INDIRECT(CONCATENATE($B253,"!O20"))) ->  | R253: =IF(ISERROR(INDIRECT(CONCATENATE($B253,"!O21"))),"",INDIRECT(CONCATENATE($B253,"!O21"))) ->  | T253: =IF(ISERROR(INDIRECT(CONCATENATE($B253,"!P18"))),"",INDIRECT(CONCATENATE($B253,"!P18"))) ->  | U253: =IF(ISERROR(INDIRECT(CONCATENATE($B253,"!P19"))),"",INDIRECT(CONCATENATE($B253,"!P19"))) ->  | V253: =IF(ISERROR(INDIRECT(CONCATENATE($B253,"!P20"))),"",INDIRECT(CONCATENATE($B253,"!P20"))) ->  | W253: =IF(ISERROR(INDIRECT(CONCATENATE($B253,"!P21"))),"",INDIRECT(CONCATENATE($B253,"!P21"))) ->  | Y253: =IF(ISERROR(INDIRECT(CONCATENATE($B253,"!Q18"))),"",INDIRECT(CONCATENATE($B253,"!Q18"))) ->  | Z253: =IF(ISERROR(INDIRECT(CONCATENATE($B253,"!Q19"))),"",INDIRECT(CONCATENATE($B253,"!Q19"))) ->  | AA253: =IF(ISERROR(INDIRECT(CONCATENATE($B253,"!Q20"))),"",INDIRECT(CONCATENATE($B253,"!Q20"))) ->  | AB253: =IF(ISERROR(INDIRECT(CONCATENATE($B253,"!Q21"))),"",INDIRECT(CONCATENATE($B253,"!Q1"))) -> 
E254: =IF(ISERROR(INDIRECT(CONCATENATE($B254,"!M18"))),"",INDIRECT(CONCATENATE($B254,"!M18"))) ->  | F254: =IF(ISERROR(INDIRECT(CONCATENATE($B254,"!M19"))),"",INDIRECT(CONCATENATE($B254,"!M19"))) ->  | G254: =IF(ISERROR(INDIRECT(CONCATENATE($B254,"!M20"))),"",INDIRECT(CONCATENATE($B254,"!M20"))) ->  | H254: =IF(ISERROR(INDIRECT(CONCATENATE($B254,"!M21"))),"",INDIRECT(CONCATENATE($B254,"!M21"))) ->  | J254: =IF(ISERROR(INDIRECT(CONCATENATE($B254,"!N18"))),"",INDIRECT(CONCATENATE($B254,"!N18"))) ->  | K254: =IF(ISERROR(INDIRECT(CONCATENATE($B254,"!N19"))),"",INDIRECT(CONCATENATE($B254,"!N19"))) ->  | L254: =IF(ISERROR(INDIRECT(CONCATENATE($B254,"!N20"))),"",INDIRECT(CONCATENATE($B254,"!N20"))) ->  | M254: =IF(ISERROR(INDIRECT(CONCATENATE($B254,"!N21"))),"",INDIRECT(CONCATENATE($B254,"!N21"))) ->  | O254: =IF(ISERROR(INDIRECT(CONCATENATE($B254,"!O18"))),"",INDIRECT(CONCATENATE($B254,"!O18"))) ->  | P254: =IF(ISERROR(INDIRECT(CONCATENATE($B254,"!O19"))),"",INDIRECT(CONCATENATE($B254,"!O19"))) ->  | Q254: =IF(ISERROR(INDIRECT(CONCATENATE($B254,"!O20"))),"",INDIRECT(CONCATENATE($B254,"!O20"))) ->  | R254: =IF(ISERROR(INDIRECT(CONCATENATE($B254,"!O21"))),"",INDIRECT(CONCATENATE($B254,"!O21"))) ->  | T254: =IF(ISERROR(INDIRECT(CONCATENATE($B254,"!P18"))),"",INDIRECT(CONCATENATE($B254,"!P18"))) ->  | U254: =IF(ISERROR(INDIRECT(CONCATENATE($B254,"!P19"))),"",INDIRECT(CONCATENATE($B254,"!P19"))) ->  | V254: =IF(ISERROR(INDIRECT(CONCATENATE($B254,"!P20"))),"",INDIRECT(CONCATENATE($B254,"!P20"))) ->  | W254: =IF(ISERROR(INDIRECT(CONCATENATE($B254,"!P21"))),"",INDIRECT(CONCATENATE($B254,"!P21"))) ->  | Y254: =IF(ISERROR(INDIRECT(CONCATENATE($B254,"!Q18"))),"",INDIRECT(CONCATENATE($B254,"!Q18"))) ->  | Z254: =IF(ISERROR(INDIRECT(CONCATENATE($B254,"!Q19"))),"",INDIRECT(CONCATENATE($B254,"!Q19"))) ->  | AA254: =IF(ISERROR(INDIRECT(CONCATENATE($B254,"!Q20"))),"",INDIRECT(CONCATENATE($B254,"!Q20"))) ->  | AB254: =IF(ISERROR(INDIRECT(CONCATENATE($B254,"!Q21"))),"",INDIRECT(CONCATENATE($B254,"!Q1"))) -> 
E255: =IF(ISERROR(INDIRECT(CONCATENATE($B255,"!M18"))),"",INDIRECT(CONCATENATE($B255,"!M18"))) ->  | F255: =IF(ISERROR(INDIRECT(CONCATENATE($B255,"!M19"))),"",INDIRECT(CONCATENATE($B255,"!M19"))) ->  | G255: =IF(ISERROR(INDIRECT(CONCATENATE($B255,"!M20"))),"",INDIRECT(CONCATENATE($B255,"!M20"))) ->  | H255: =IF(ISERROR(INDIRECT(CONCATENATE($B255,"!M21"))),"",INDIRECT(CONCATENATE($B255,"!M21"))) ->  | J255: =IF(ISERROR(INDIRECT(CONCATENATE($B255,"!N18"))),"",INDIRECT(CONCATENATE($B255,"!N18"))) ->  | K255: =IF(ISERROR(INDIRECT(CONCATENATE($B255,"!N19"))),"",INDIRECT(CONCATENATE($B255,"!N19"))) ->  | L255: =IF(ISERROR(INDIRECT(CONCATENATE($B255,"!N20"))),"",INDIRECT(CONCATENATE($B255,"!N20"))) ->  | M255: =IF(ISERROR(INDIRECT(CONCATENATE($B255,"!N21"))),"",INDIRECT(CONCATENATE($B255,"!N21"))) ->  | O255: =IF(ISERROR(INDIRECT(CONCATENATE($B255,"!O18"))),"",INDIRECT(CONCATENATE($B255,"!O18"))) ->  | P255: =IF(ISERROR(INDIRECT(CONCATENATE($B255,"!O19"))),"",INDIRECT(CONCATENATE($B255,"!O19"))) ->  | Q255: =IF(ISERROR(INDIRECT(CONCATENATE($B255,"!O20"))),"",INDIRECT(CONCATENATE($B255,"!O20"))) ->  | R255: =IF(ISERROR(INDIRECT(CONCATENATE($B255,"!O21"))),"",INDIRECT(CONCATENATE($B255,"!O21"))) ->  | T255: =IF(ISERROR(INDIRECT(CONCATENATE($B255,"!P18"))),"",INDIRECT(CONCATENATE($B255,"!P18"))) ->  | U255: =IF(ISERROR(INDIRECT(CONCATENATE($B255,"!P19"))),"",INDIRECT(CONCATENATE($B255,"!P19"))) ->  | V255: =IF(ISERROR(INDIRECT(CONCATENATE($B255,"!P20"))),"",INDIRECT(CONCATENATE($B255,"!P20"))) ->  | W255: =IF(ISERROR(INDIRECT(CONCATENATE($B255,"!P21"))),"",INDIRECT(CONCATENATE($B255,"!P21"))) ->  | Y255: =IF(ISERROR(INDIRECT(CONCATENATE($B255,"!Q18"))),"",INDIRECT(CONCATENATE($B255,"!Q18"))) ->  | Z255: =IF(ISERROR(INDIRECT(CONCATENATE($B255,"!Q19"))),"",INDIRECT(CONCATENATE($B255,"!Q19"))) ->  | AA255: =IF(ISERROR(INDIRECT(CONCATENATE($B255,"!Q20"))),"",INDIRECT(CONCATENATE($B255,"!Q20"))) ->  | AB255: =IF(ISERROR(INDIRECT(CONCATENATE($B255,"!Q21"))),"",INDIRECT(CONCATENATE($B255,"!Q1"))) -> 
E256: =IF(ISERROR(INDIRECT(CONCATENATE($B256,"!M18"))),"",INDIRECT(CONCATENATE($B256,"!M18"))) ->  | F256: =IF(ISERROR(INDIRECT(CONCATENATE($B256,"!M19"))),"",INDIRECT(CONCATENATE($B256,"!M19"))) ->  | G256: =IF(ISERROR(INDIRECT(CONCATENATE($B256,"!M20"))),"",INDIRECT(CONCATENATE($B256,"!M20"))) ->  | H256: =IF(ISERROR(INDIRECT(CONCATENATE($B256,"!M21"))),"",INDIRECT(CONCATENATE($B256,"!M21"))) ->  | J256: =IF(ISERROR(INDIRECT(CONCATENATE($B256,"!N18"))),"",INDIRECT(CONCATENATE($B256,"!N18"))) ->  | K256: =IF(ISERROR(INDIRECT(CONCATENATE($B256,"!N19"))),"",INDIRECT(CONCATENATE($B256,"!N19"))) ->  | L256: =IF(ISERROR(INDIRECT(CONCATENATE($B256,"!N20"))),"",INDIRECT(CONCATENATE($B256,"!N20"))) ->  | M256: =IF(ISERROR(INDIRECT(CONCATENATE($B256,"!N21"))),"",INDIRECT(CONCATENATE($B256,"!N21"))) ->  | O256: =IF(ISERROR(INDIRECT(CONCATENATE($B256,"!O18"))),"",INDIRECT(CONCATENATE($B256,"!O18"))) ->  | P256: =IF(ISERROR(INDIRECT(CONCATENATE($B256,"!O19"))),"",INDIRECT(CONCATENATE($B256,"!O19"))) ->  | Q256: =IF(ISERROR(INDIRECT(CONCATENATE($B256,"!O20"))),"",INDIRECT(CONCATENATE($B256,"!O20"))) ->  | R256: =IF(ISERROR(INDIRECT(CONCATENATE($B256,"!O21"))),"",INDIRECT(CONCATENATE($B256,"!O21"))) ->  | T256: =IF(ISERROR(INDIRECT(CONCATENATE($B256,"!P18"))),"",INDIRECT(CONCATENATE($B256,"!P18"))) ->  | U256: =IF(ISERROR(INDIRECT(CONCATENATE($B256,"!P19"))),"",INDIRECT(CONCATENATE($B256,"!P19"))) ->  | V256: =IF(ISERROR(INDIRECT(CONCATENATE($B256,"!P20"))),"",INDIRECT(CONCATENATE($B256,"!P20"))) ->  | W256: =IF(ISERROR(INDIRECT(CONCATENATE($B256,"!P21"))),"",INDIRECT(CONCATENATE($B256,"!P21"))) ->  | Y256: =IF(ISERROR(INDIRECT(CONCATENATE($B256,"!Q18"))),"",INDIRECT(CONCATENATE($B256,"!Q18"))) ->  | Z256: =IF(ISERROR(INDIRECT(CONCATENATE($B256,"!Q19"))),"",INDIRECT(CONCATENATE($B256,"!Q19"))) ->  | AA256: =IF(ISERROR(INDIRECT(CONCATENATE($B256,"!Q20"))),"",INDIRECT(CONCATENATE($B256,"!Q20"))) ->  | AB256: =IF(ISERROR(INDIRECT(CONCATENATE($B256,"!Q21"))),"",INDIRECT(CONCATENATE($B256,"!Q1"))) -> 
E257: =IF(ISERROR(INDIRECT(CONCATENATE($B257,"!M18"))),"",INDIRECT(CONCATENATE($B257,"!M18"))) ->  | F257: =IF(ISERROR(INDIRECT(CONCATENATE($B257,"!M19"))),"",INDIRECT(CONCATENATE($B257,"!M19"))) ->  | G257: =IF(ISERROR(INDIRECT(CONCATENATE($B257,"!M20"))),"",INDIRECT(CONCATENATE($B257,"!M20"))) ->  | H257: =IF(ISERROR(INDIRECT(CONCATENATE($B257,"!M21"))),"",INDIRECT(CONCATENATE($B257,"!M21"))) ->  | J257: =IF(ISERROR(INDIRECT(CONCATENATE($B257,"!N18"))),"",INDIRECT(CONCATENATE($B257,"!N18"))) ->  | K257: =IF(ISERROR(INDIRECT(CONCATENATE($B257,"!N19"))),"",INDIRECT(CONCATENATE($B257,"!N19"))) ->  | L257: =IF(ISERROR(INDIRECT(CONCATENATE($B257,"!N20"))),"",INDIRECT(CONCATENATE($B257,"!N20"))) ->  | M257: =IF(ISERROR(INDIRECT(CONCATENATE($B257,"!N21"))),"",INDIRECT(CONCATENATE($B257,"!N21"))) ->  | O257: =IF(ISERROR(INDIRECT(CONCATENATE($B257,"!O18"))),"",INDIRECT(CONCATENATE($B257,"!O18"))) ->  | P257: =IF(ISERROR(INDIRECT(CONCATENATE($B257,"!O19"))),"",INDIRECT(CONCATENATE($B257,"!O19"))) ->  | Q257: =IF(ISERROR(INDIRECT(CONCATENATE($B257,"!O20"))),"",INDIRECT(CONCATENATE($B257,"!O20"))) ->  | R257: =IF(ISERROR(INDIRECT(CONCATENATE($B257,"!O21"))),"",INDIRECT(CONCATENATE($B257,"!O21"))) ->  | T257: =IF(ISERROR(INDIRECT(CONCATENATE($B257,"!P18"))),"",INDIRECT(CONCATENATE($B257,"!P18"))) ->  | U257: =IF(ISERROR(INDIRECT(CONCATENATE($B257,"!P19"))),"",INDIRECT(CONCATENATE($B257,"!P19"))) ->  | V257: =IF(ISERROR(INDIRECT(CONCATENATE($B257,"!P20"))),"",INDIRECT(CONCATENATE($B257,"!P20"))) ->  | W257: =IF(ISERROR(INDIRECT(CONCATENATE($B257,"!P21"))),"",INDIRECT(CONCATENATE($B257,"!P21"))) ->  | Y257: =IF(ISERROR(INDIRECT(CONCATENATE($B257,"!Q18"))),"",INDIRECT(CONCATENATE($B257,"!Q18"))) ->  | Z257: =IF(ISERROR(INDIRECT(CONCATENATE($B257,"!Q19"))),"",INDIRECT(CONCATENATE($B257,"!Q19"))) ->  | AA257: =IF(ISERROR(INDIRECT(CONCATENATE($B257,"!Q20"))),"",INDIRECT(CONCATENATE($B257,"!Q20"))) ->  | AB257: =IF(ISERROR(INDIRECT(CONCATENATE($B257,"!Q21"))),"",INDIRECT(CONCATENATE($B257,"!Q1"))) -> 
A297: RURAL | D297: Poorest | I297: Poor | N297: Middle | S297: Rich | X297: Richest
D298: Improved | E298: Basic | F298: Limited | G298: Unimproved | H298: Surface water | I298: Improved | J298: Basic | K298: Limited | L298: Unimproved | M298: Surface water | N298: Improved | O298: Basic | P298: Limited | Q298: Unimproved | R298: Surface water | S298: Improved | T298: Basic | U298: Limited | V298: Unimproved | W298: Surface water | X298: Improved | Y298: Basic | Z298: Limited | AA298: Unimproved | AB298: Surface water
A299: Forecast period: | C299: 2000 | D299: =IF((D301+H301)>100,D301*100/(D301+H301),D301) -> 94.02455786 | E299: =D299*AVERAGEIF(E305:E316,">0")/100 -> 91.36998278 | F299: =D299*(100-AVERAGEIF(E305:E316,">0"))/100 -> 2.654575083 | G299: =100-(E299+F299+H299) -> 5.97544214 | H299: =IF((D301+H301)>100,H301*100/(D301+H301),H301) -> 0 | I299: =IF((I301+M301)>100,I301*100/(I301+M301),I301) -> 95.73840678 | J299: =I299*AVERAGEIF(J305:J316,">0")/100 -> 93.87352695 | K299: =I299*(100-AVERAGEIF(J305:J316,">0"))/100 -> 1.864879832 | L299: =100-(J299+K299+M299) -> 3.754898449 | M299: =IF((I301+M301)>100,M301*100/(I301+M301),M301) -> 0.506694769 | N299: =IF((N301+R301)>100,N301*100/(N301+R301),N301) -> 97.72862908 | O299: =N299*AVERAGEIF(O305:O316,">0")/100 -> 96.67227443 | P299: =N299*(100-AVERAGEIF(O305:O316,">0"))/100 -> 1.05635465 | Q299: =100-(O299+P299+R299) -> 1.905758179 | R299: =IF((N301+R301)>100,R301*100/(N301+R301),R301) -> 0.3656127442 | S299: =IF((S301+W301)>100,S301*100/(S301+W301),S301) -> 97.4742285 | T299: =S299*AVERAGEIF(T305:T316,">0")/100 -> 94.63544625 | U299: =S299*(100-AVERAGEIF(T305:T316,">0"))/100 -> 2.838782246 | V299: =100-(T299+U299+W299) -> 2.340307542 | W299: =IF((S301+W301)>100,W301*100/(S301+W301),W301) -> 0.1854639572 | X299: =IF((X301+AB301)>100,X301*100/(X301+AB301),X301) -> 97.33220302 | Y299: =X299*AVERAGEIF(Y305:Y316,">0")/100 -> 95.41816975 | Z299: =X299*(100-AVERAGEIF(Y305:Y316,">0"))/100 -> 1.914033265 | AA299: =100-(Y299+Z299+AB299) -> 2.635668966 | AB299: =IF((X301+AB301)>100,AB301*100/(X301+AB301),AB301) -> 0.03212801667
C300: 2019 | D300: =IF((D302+H302)>100,D302*100/(D302+H302),D302) -> 93.52427714 | E300: =D300*AVERAGEIF(E305:E316,">0")/100 -> 90.88382637 | F300: =D300*(100-AVERAGEIF(E305:E316,">0"))/100 -> 2.640450765 | G300: =100-(E300+F300+H300) -> 5.434771691 | H300: =IF((D302+H302)>100,H302*100/(D302+H302),H302) -> 1.040951173 | I300: =IF((I302+M302)>100,I302*100/(I302+M302),I302) -> 95.84331934 | J300: =I300*AVERAGEIF(J305:J316,">0")/100 -> 93.97639592 | K300: =I300*(100-AVERAGEIF(J305:J316,">0"))/100 -> 1.866923414 | L300: =100-(J300+K300+M300) -> 3.21273755 | M300: =IF((I302+M302)>100,M302*100/(I302+M302),M302) -> 0.9439431137 | N300: =IF((N302+R302)>100,N302*100/(N302+R302),N302) -> 97.42098552 | O300: =N300*AVERAGEIF(O305:O316,">0")/100 -> 96.3679562 | P300: =N300*(100-AVERAGEIF(O305:O316,">0"))/100 -> 1.053029312 | Q300: =100-(O300+P300+R300) -> 2.579014485 | R300: =IF((N302+R302)>100,R302*100/(N302+R302),R302) -> 0 | S300: =IF((S302+W302)>100,S302*100/(S302+W302),S302) -> 95.1361452 | T300: =S300*AVERAGEIF(T305:T316,">0")/100 -> 92.36545592 | U300: =S300*(100-AVERAGEIF(T305:T316,">0"))/100 -> 2.77068928 | V300: =100-(T300+U300+W300) -> 4.827589335 | W300: =IF((S302+W302)>100,W302*100/(S302+W302),W302) -> 0.03626546867 | X300: =IF((X302+AB302)>100,X302*100/(X302+AB302),X302) -> 97.30910484 | Y300: =X300*AVERAGEIF(Y305:Y316,">0")/100 -> 95.3955258 | Z300: =X300*(100-AVERAGEIF(Y305:Y316,">0"))/100 -> 1.91357904 | AA300: =100-(Y300+Z300+AB300) -> 2.490058448 | AB300: =IF((X302+AB302)>100,AB302*100/(X302+AB302),AB302) -> 0.2008367116
A301: Regression period: | C301: =MinRegYear(C299,C305:C316) -> 2001 | D301: =IF(MAX(C305:C316)-MIN(C305:C316)<5,AVERAGEIF(C305:C316,">0",D305:D316), IF(FORECAST($C301,D$305:D$316,$C$305:$C$316)<0,0, IF(FORECAST($C301,D$305:D$316,$C$305:$C$316)>100,100, FORECAST($C301,D$305:D$316,$C$305:$C$316)))) -> 94.02455786 | H301: =IF(MAX(C305:C316)-MIN(C305:C316)<5,AVERAGEIF(C305:C316,">0",H305:H316), IF(FORECAST($C301,H$305:H$316,$C$305:$C$316)<0,0, IF(FORECAST($C301,H$305:H$316,$C$305:$C$316)>100,100, FORECAST($C301,H$305:H$316,$C$305:$C$316)))) -> 0 | I301: =IF(MAX(C305:C316)-MIN(C305:C316)<5,AVERAGEIF(C305:C316,">0",I305:I316), IF(FORECAST($C301,I$305:I$316,$C$305:$C$316)<0,0, IF(FORECAST($C301,I$305:I$316,$C$305:$C$316)>100,100, FORECAST($C301,I$305:I$316,$C$305:$C$316)))) -> 95.73840678 | M301: =IF(MAX(C305:C316)-MIN(C305:C316)<5,AVERAGEIF(C305:C316,">0",M305:M316), IF(FORECAST($C301,M$305:M$316,$C$305:$C$316)<0,0, IF(FORECAST($C301,M$305:M$316,$C$305:$C$316)>100,100, FORECAST($C301,M$305:M$316,$C$305:$C$316)))) -> 0.506694769 | N301: =IF(MAX(C305:C316)-MIN(C305:C316)<5,AVERAGEIF(C305:C316,">0",N305:N316), IF(FORECAST($C301,N$305:N$316,$C$305:$C$316)<0,0, IF(FORECAST($C301,N$305:N$316,$C$305:$C$316)>100,100, FORECAST($C301,N$305:N$316,$C$305:$C$316)))) -> 97.72862908 | R301: =IF(MAX(C305:C316)-MIN(C305:C316)<5,AVERAGEIF(C305:C316,">0",R305:R316), IF(FORECAST($C301,R$305:R$316,$C$305:$C$316)<0,0, IF(FORECAST($C301,R$305:R$316,$C$305:$C$316)>100,100, FORECAST($C301,R$305:R$316,$C$305:$C$316)))) -> 0.3656127442 | S301: =IF(MAX(C305:C316)-MIN(C305:C316)<5,AVERAGEIF(C305:C316,">0",S305:S316), IF(FORECAST($C301,S$305:S$316,$C$305:$C$316)<0,0, IF(FORECAST($C301,S$305:S$316,$C$305:$C$316)>100,100, FORECAST($C301,S$305:S$316,$C$305:$C$316)))) -> 97.4742285 | W301: =IF(MAX(C305:C316)-MIN(C305:C316)<5,AVERAGEIF(C305:C316,">0",W305:W316), IF(FORECAST($C301,W$305:W$316,$C$305:$C$316)<0,0, IF(FORECAST($C301,W$305:W$316,$C$305:$C$316)>100,100, FORECAST($C301,W$305:W$316,$C$305:$C$316)))) -> 0.1854639572 | X301: =IF(MAX(C305:C316)-MIN(C305:C316)<5,AVERAGEIF(C305:C316,">0",X305:X316), IF(FORECAST($C301,X$305:X$316,$C$305:$C$316)<0,0, IF(FORECAST($C301,X$305:X$316,$C$305:$C$316)>100,100, FORECAST($C301,X$305:X$316,$C$305:$C$316)))) -> 97.33220302 | AB301: =IF(MAX(C305:C316)-MIN(C305:C316)<5,AVERAGEIF(C305:C316,">0",AB305:AB316), IF(FORECAST($C301,AB$305:AB$316,$C$305:$C$316)<0,0, IF(FORECAST($C301,AB$305:AB$316,$C$305:$C$316)>100,100, FORECAST($C301,AB$305:AB$316,$C$305:$C$316)))) -> 0.03212801667
C302: =MaxRegYear(C300,C305:C316) -> 2015 | D302: =IF(MAX(C305:C316)-MIN(C305:C316)<5,AVERAGEIF(C305:C316,">0",D305:D316), IF(FORECAST($C302,D$305:D$316,$C$305:$C$316)<0,0, IF(FORECAST($C302,D$305:D$316,$C$305:$C$316)>100,100, FORECAST($C302,D$305:D$316,$C$305:$C$316)))) -> 93.52427714 | H302: =IF(MAX(C305:C316)-MIN(C305:C316)<5,AVERAGEIF(C305:C316,">0",H305:H316), IF(FORECAST($C302,H$305:H$316,$C$305:$C$316)<0,0, IF(FORECAST($C302,H$305:H$316,$C$305:$C$316)>100,100, FORECAST($C302,H$305:H$316,$C$305:$C$316)))) -> 1.040951173 | I302: =IF(MAX(C305:C316)-MIN(C305:C316)<5,AVERAGEIF(C305:C316,">0",I305:I316), IF(FORECAST($C302,I$305:I$316,$C$305:$C$316)<0,0, IF(FORECAST($C302,I$305:I$316,$C$305:$C$316)>100,100, FORECAST($C302,I$305:I$316,$C$305:$C$316)))) -> 95.84331934 | M302: =IF(MAX(C305:C316)-MIN(C305:C316)<5,AVERAGEIF(C305:C316,">0",M305:M316), IF(FORECAST($C302,M$305:M$316,$C$305:$C$316)<0,0, IF(FORECAST($C302,M$305:M$316,$C$305:$C$316)>100,100, FORECAST($C302,M$305:M$316,$C$305:$C$316)))) -> 0.9439431137 | N302: =IF(MAX(C305:C316)-MIN(C305:C316)<5,AVERAGEIF(C305:C316,">0",N305:N316), IF(FORECAST($C302,N$305:N$316,$C$305:$C$316)<0,0, IF(FORECAST($C302,N$305:N$316,$C$305:$C$316)>100,100, FORECAST($C302,N$305:N$316,$C$305:$C$316)))) -> 97.42098552 | R302: =IF(MAX(C305:C316)-MIN(C305:C316)<5,AVERAGEIF(C305:C316,">0",R305:R316), IF(FORECAST($C302,R$305:R$316,$C$305:$C$316)<0,0, IF(FORECAST($C302,R$305:R$316,$C$305:$C$316)>100,100, FORECAST($C302,R$305:R$316,$C$305:$C$316)))) -> 0 | S302: =IF(MAX(C305:C316)-MIN(C305:C316)<5,AVERAGEIF(C305:C316,">0",S305:S316), IF(FORECAST($C302,S$305:S$316,$C$305:$C$316)<0,0, IF(FORECAST($C302,S$305:S$316,$C$305:$C$316)>100,100, FORECAST($C302,S$305:S$316,$C$305:$C$316)))) -> 95.1361452 | W302: =IF(MAX(C305:C316)-MIN(C305:C316)<5,AVERAGEIF(C305:C316,">0",W305:W316), IF(FORECAST($C302,W$305:W$316,$C$305:$C$316)<0,0, IF(FORECAST($C302,W$305:W$316,$C$305:$C$316)>100,100, FORECAST($C302,W$305:W$316,$C$305:$C$316)))) -> 0.03626546867 | X302: =IF(MAX(C305:C316)-MIN(C305:C316)<5,AVERAGEIF(C305:C316,">0",X305:X316), IF(FORECAST($C302,X$305:X$316,$C$305:$C$316)<0,0, IF(FORECAST($C302,X$305:X$316,$C$305:$C$316)>100,100, FORECAST($C302,X$305:X$316,$C$305:$C$316)))) -> 97.30910484 | AB302: =IF(MAX(C305:C316)-MIN(C305:C316)<5,AVERAGEIF(C305:C316,">0",AB305:AB316), IF(FORECAST($C302,AB$305:AB$316,$C$305:$C$316)<0,0, IF(FORECAST($C302,AB$305:AB$316,$C$305:$C$316)>100,100, FORECAST($C302,AB$305:AB$316,$C$305:$C$316)))) -> 0.2008367116
B304: Survey | C304: Year | D304: Improved | E304: % Improved < = 30min | H304: Surface water | I304: Improved | J304: % Improved < = 30min | M304: Surface water | N304: Improved | O304: % Improved < = 30min | R304: Surface water | S304: Improved | T304: % Improved < = 30min | W304: Surface water | X304: Improved | Y304: % Improved < = 30min | AB304: Surface water
B305: DHS03 | C305: 2003 | D305: =IF(ISERROR(INDIRECT(CONCATENATE($B305,"!M16"))),"",INDIRECT(CONCATENATE($B305,"!M16"))) -> 94.62116528 | E305: =IF(ISERROR(INDIRECT(CONCATENATE($B305,"!M23"))),"",INDIRECT(CONCATENATE($B305,"!M23"))) -> N/A | H305: =IF(ISERROR(INDIRECT(CONCATENATE($B305,"!M21"))),"",INDIRECT(CONCATENATE($B305,"!M21"))) -> 0.07488018955 | I305: =IF(ISERROR(INDIRECT(CONCATENATE($B305,"!N16"))),"",INDIRECT(CONCATENATE($B305,"!N16"))) -> 97.14674062 | J305: =IF(ISERROR(INDIRECT(CONCATENATE($B305,"!N23"))),"",INDIRECT(CONCATENATE($B305,"!N23"))) -> N/A | M305: =IF(ISERROR(INDIRECT(CONCATENATE($B305,"!N21"))),"",INDIRECT(CONCATENATE($B305,"!N21"))) -> 0.1776380378 | N305: =IF(ISERROR(INDIRECT(CONCATENATE($B305,"!O16"))),"",INDIRECT(CONCATENATE($B305,"!O16"))) -> 98.47090003 | O305: =IF(ISERROR(INDIRECT(CONCATENATE($B305,"!O23"))),"",INDIRECT(CONCATENATE($B305,"!O23"))) -> N/A | R305: =IF(ISERROR(INDIRECT(CONCATENATE($B305,"!O21"))),"",INDIRECT(CONCATENATE($B305,"!O21"))) -> 0.3966343263 | S305: =IF(ISERROR(INDIRECT(CONCATENATE($B305,"!P16"))),"",INDIRECT(CONCATENATE($B305,"!P16"))) -> 98.41935697 | T305: =IF(ISERROR(INDIRECT(CONCATENATE($B305,"!P23"))),"",INDIRECT(CONCATENATE($B305,"!P23"))) -> N/A | W305: =IF(ISERROR(INDIRECT(CONCATENATE($B305,"!P21"))),"",INDIRECT(CONCATENATE($B305,"!P21"))) -> 0.106570349 | X305: =IF(ISERROR(INDIRECT(CONCATENATE($B305,"!Q16"))),"",INDIRECT(CONCATENATE($B305,"!Q16"))) -> 99.27318423 | Y305: =IF(ISERROR(INDIRECT(CONCATENATE($B305,"!Q23"))),"",INDIRECT(CONCATENATE($B305,"!Q23"))) -> N/A | AB305: =IF(ISERROR(INDIRECT(CONCATENATE($B305,"!Q221"))),"",INDIRECT(CONCATENATE($B305,"!Q21"))) -> 0
B306: DHS08 | C306: 2008 | D306: 92.43826531 | E306: N/A | H306: 0.5997625868 | I306: 93.00417041 | J306: N/A | M306: 1.508360502 | N306: 96.00236723 | O306: N/A | R306: 0 | S306: 93.74690612 | T306: N/A | W306: 0.2260237899 | X306: 93.43209202 | Y306: N/A | AB306: 0.2289408817
B307: DHS13 | C307: 2013 | D307: 94.2638219 | E307: 97.17672155 | H307: 0.8404706905 | I307: 97.22167815 | J307: 98.05210898 | M307: 0.489958284 | N307: 98.25115463 | O307: 98.91909396 | R307: 0.1206619809 | S307: 96.74929746 | T307: 97.08765867 | W307: 0 | X307: 99.25668553 | Y307: 98.03350463 | AB307: 0.1205062106
B318: =CONCATENATE("Rural use of drinking water sources, ",C299,"–",C300) -> Rural use of drinking water sources, 2000–2019 | S318: Data points used for regression

Sheet Sanitation
B4: Summary of trends in use of sanitation facilities by wealth quintile (%)
B5: =IF(ISERROR(INDIRECT(CONCATENATE($B105,"!A2"))),"",INDIRECT(CONCATENATE($B105,"!A2"))) -> Turkey
B7: =B118 -> National use of sanitation facilities, 2000–2019 | J7: =B218 -> Urban use of sanitation facilities, 2000–2019 | R7: =B318 -> Rural use of sanitation facilities, 2000–2019
B31: =IF(ISERROR(INDIRECT(CONCATENATE($B105,"!A2"))),"",INDIRECT(CONCATENATE($B105,"!A2"))) -> Turkey | F31: Poorest | J31: Poor | N31: Middle | R31: Rich | V31: Richest
F32: Basic | G32: Limited | H32: Unimproved | I32: Open defecation | J32: Basic | K32: Limited | L32: Unimproved | M32: Open defecation | N32: Basic | O32: Limited | P32: Unimproved | Q32: Open defecation | R32: Basic | S32: Limited | T32: Unimproved | U32: Open defecation | V32: Basic | W32: Limited | X32: Unimproved | Y32: Open defecation
B33: NATIONAL | D33: Estimate | E33: =C99 -> 2000 | F33: =E99 -> 55.14959192 | G33: =F99 -> 2.761791474 | H33: 39.341706 | I33: 2.74691061 | J33: =J99 -> 82.82363651 | K33: =K99 -> 1.446923743 | L33: 15.40168827 | M33: 0.327751484 | N33: =O99 -> 93.43453274 | O33: =P99 -> 0.7696480317 | P33: 5.597179283 | Q33: 0.1986399459 | R33: =T99 -> 95.93351002 | S33: =U99 -> 0.2711681998 | T33: 3.459972686 | U33: 0.3353490897 | V33: =Y99 -> 98.8791195 | W33: =Z99 -> 0.08968804737 | X33: 1.024512716 | Y33: 0.006679741287
E34: =C100 -> 2019 | F34: =E100 -> 92.32040875 | G34: 4.623238521 | H34: 3.056352725 | I34: 0 | J34: =J100 -> 96.08812682 | K34: 1.678653558 | L34: 2.203543194 | M34: 0.02967642917 | N34: =O100 -> 98.37502344 | O34: 0.8103443228 | P34: 0.8146322403 | Q34: 0 | R34: =T100 -> 99.71813408 | S34: 0.2818659184 | T34: 0 | U34: 0 | V34: =Y100 -> 99.70946713 | W34: 0.09044121203 | X34: 0.1934119183 | Y34: 0.006679741287
B36: URBAN | D36: Estimate | E36: =C199 -> 2000 | F36: =E199 -> 88.21986789 | G36: =F199 -> 2.500546367 | H36: 9.069545295 | I36: 0.2100404436 | J36: =J199 -> 95.94307143 | K36: =K199 -> 0.9036410114 | L36: 2.919414725 | M36: 0.2338728375 | N36: =O199 -> 97.59606757 | O36: =P199 -> 0.1799845104 | P36: 1.901791672 | Q36: 0.322156246 | R36: =T199 -> 98.5242872 | S36: =U199 -> 0.1307474053 | T36: 1.103324808 | U36: 0.2416405891 | V36: =Y199 -> 99.63596855 | W36: =Z199 -> 0.04740367864 | X36: 0.3074354804 | Y36: 0.009192290844
E37: =C200 -> 2019 | F37: =E200 -> 97.2413381 | G37: 2.756255257 | H37: 0 | I37: 0.002406646778 | J37: =J200 -> 98.2911534 | K37: 0.9257564507 | L37: 0.7830901455 | M37: 0 | N37: =O200 -> 99.81592168 | O37: 0.1840783163 | P37: 0 | Q37: 0 | R37: =T200 -> 99.86747011 | S37: 0.1325298865 | T37: 0 | U37: 0 | V37: =Y200 -> 99.91525263 | W37: 0.04753655328 | X37: 0.02801853053 | Y37: 0.009192290844
B39: RURAL | D39: Estimate | E39: =C299 -> 2000 | F39: =E299 -> 33.05002848 | G39: =F299 -> 2.768990734 | H39: 57.24962457 | I39: 6.931356225 | J39: =J299 -> 49.65114718 | K39: =K299 -> 1.661801273 | L39: 47.11993019 | M39: 1.567121359 | N39: =O299 -> 64.71343645 | O39: =P299 -> 2.335951963 | P39: 32.11411984 | Q39: 0.8364917452 | R39: =T299 -> 80.15009367 | S39: =U299 -> 1.371526025 | T39: 18.47838031 | U39: 0 | V39: =Y299 -> 88.36620037 | W39: =Z299 -> 0.8626654682 | X39: 10.77113416 | Y39: 0
E40: =C300 -> 2019 | F40: =E300 -> 77.84373731 | G40: 6.521888095 | H40: 15.6343746 | I40: 0 | J40: =J300 -> 86.38379806 | K40: 2.891226361 | L40: 10.72497558 | M40: 0 | N40: =O300 -> 88.24385176 | O40: 3.185326109 | P40: 8.483260325 | Q40: 0.08756180959 | R40: =T300 -> 90.842438 | S40: 1.554493104 | T40: 7.6030689 | U40: 0 | V40: =Y300 -> 97.50455539 | W40: 0.9518776702 | X40: 1.543566937 | Y40: 0
A97: NATIONAL | D97: Poorest | I97: Poor | N97: Middle | S97: Rich | X97: Richest
D98: Improved | E98: Basic | F98: Limited | G98: Unimproved | H98: Open defecation | I98: Improved | J98: Basic | K98: Limited | L98: Unimproved | M98: Open defecation | N98: Improved | O98: Basic | P98: Limited | Q98: Unimproved | R98: Open defecation | S98: Improved | T98: Basic | U98: Limited | V98: Unimproved | W98: Open defecation | X98: Improved | Y98: Basic | Z98: Limited | AA98: Unimproved | AB98: Open defecation
A99: Forecast period: | C99: 2000 | D99: =IF((D101+H101)>100,D101*100/(D101+H101),D101) -> 57.91138339 | E99: =D99*AVERAGEIF(E105:E116,">0")/100 -> 55.14959192 | F99: =D99*(100-AVERAGEIF(E105:E116,">0"))/100 -> 2.761791474 | G99: =100-(E99+F99+H99) -> 39.341706 | H99: =IF((D101+H101)>100,H101*100/(D101+H101),H101) -> 2.74691061 | I99: =IF((I101+M101)>100,I101*100/(I101+M101),I101) -> 84.27056025 | J99: =I99*AVERAGEIF(J105:J116,">0")/100 -> 82.82363651 | K99: =I99*(100-AVERAGEIF(J105:J116,">0"))/100 -> 1.446923743 | L99: =100-(J99+K99+M99) -> 15.40168827 | M99: =IF((I101+M101)>100,M101*100/(I101+M101),M101) -> 0.327751484 | N99: =IF((N101+R101)>100,N101*100/(N101+R101),N101) -> 94.20418077 | O99: =N99*AVERAGEIF(O105:O116,">0")/100 -> 93.43453274 | P99: =N99*(100-AVERAGEIF(O105:O116,">0"))/100 -> 0.7696480317 | Q99: =100-(O99+P99+R99) -> 5.597179283 | R99: =IF((N101+R101)>100,R101*100/(N101+R101),R101) -> 0.1986399459 | S99: =IF((S101+W101)>100,S101*100/(S101+W101),S101) -> 96.20467822 | T99: =S99*AVERAGEIF(T105:T116,">0")/100 -> 95.93351002 | U99: =S99*(100-AVERAGEIF(T105:T116,">0"))/100 -> 0.2711681998 | V99: =100-(T99+U99+W99) -> 3.459972686 | W99: =IF((S101+W101)>100,W101*100/(S101+W101),W101) -> 0.3353490897 | X99: =IF((X101+AB101)>100,X101*100/(X101+AB101),X101) -> 98.96880754 | Y99: =X99*AVERAGEIF(Y105:Y116,">0")/100 -> 98.8791195 | Z99: =X99*(100-AVERAGEIF(Y105:Y116,">0"))/100 -> 0.08968804737 | AA99: =100-(Y99+Z99+AB99) -> 1.024512716 | AB99: =IF((X101+AB101)>100,AB101*100/(X101+AB101),AB101) -> 0.006679741287
C100: 2019 | D100: =IF((D102+H102)>100,D102*100/(D102+H102),D102) -> 96.94364727 | E100: =D100*AVERAGEIF(E105:E116,">0")/100 -> 92.32040875 | F100: =D100*(100-AVERAGEIF(E105:E116,">0"))/100 -> 4.623238521 | G100: =100-(E100+F100+H100) -> 3.056352725 | H100: =IF((D102+H102)>100,H102*100/(D102+H102),H102) -> 0 | I100: =IF((I102+M102)>100,I102*100/(I102+M102),I102) -> 97.76678038 | J100: =I100*AVERAGEIF(J105:J116,">0")/100 -> 96.08812682 | K100: =I100*(100-AVERAGEIF(J105:J116,">0"))/100 -> 1.678653558 | L100: =100-(J100+K100+M100) -> 2.203543194 | M100: =IF((I102+M102)>100,M102*100/(I102+M102),M102) -> 0.02967642917 | N100: =IF((N102+R102)>100,N102*100/(N102+R102),N102) -> 99.18536776 | O100: =N100*AVERAGEIF(O105:O116,">0")/100 -> 98.37502344 | P100: =N100*(100-AVERAGEIF(O105:O116,">0"))/100 -> 0.8103443228 | Q100: =100-(O100+P100+R100) -> 0.8146322403 | R100: =IF((N102+R102)>100,R102*100/(N102+R102),R102) -> 0 | S100: =IF((S102+W102)>100,S102*100/(S102+W102),S102) -> 100 | T100: =S100*AVERAGEIF(T105:T116,">0")/100 -> 99.71813408 | U100: =S100*(100-AVERAGEIF(T105:T116,">0"))/100 -> 0.2818659184 | V100: =100-(T100+U100+W100) -> 0 | W100: =IF((S102+W102)>100,W102*100/(S102+W102),W102) -> 0 | X100: =IF((X102+AB102)>100,X102*100/(X102+AB102),X102) -> 99.79990834 | Y100: =X100*AVERAGEIF(Y105:Y116,">0")/100 -> 99.70946713 | Z100: =X100*(100-AVERAGEIF(Y105:Y116,">0"))/100 -> 0.09044121203 | AA100: =100-(Y100+Z100+AB100) -> 0.1934119183 | AB100: =IF((X102+AB102)>100,AB102*100/(X102+AB102),AB102) -> 0.006679741287
A101: Regression period: | C101: =MinRegYear(C99,C105:C116) -> 2001 | D101: =IF(MAX(C105:C116)-MIN(C105:C116)<5,AVERAGEIF(C105:C116,">0",D105:D116), IF(FORECAST($C101,D$105:D$116,$C$105:$C$116)<0,0, IF(FORECAST($C101,D$105:D$116,$C$105:$C$116)>100,100, FORECAST($C101,D$105:D$116,$C$105:$C$116)))) -> 57.91138339 | H101: =IF(MAX(C105:C116)-MIN(C105:C116)<5,AVERAGEIF(C105:C116,">0",H105:H116), IF(FORECAST($C101,H$105:H$116,$C$105:$C$116)<0,0, IF(FORECAST($C101,H$105:H$116,$C$105:$C$116)>100,100, FORECAST($C101,H$105:H$116,$C$105:$C$116)))) -> 2.74691061 | I101: =IF(MAX(C105:C116)-MIN(C105:C116)<5,AVERAGEIF(C105:C116,">0",I105:I116), IF(FORECAST($C101,I$105:I$116,$C$105:$C$116)<0,0, IF(FORECAST($C101,I$105:I$116,$C$105:$C$116)>100,100, FORECAST($C101,I$105:I$116,$C$105:$C$116)))) -> 84.27056025 | M101: =IF(MAX(C105:C116)-MIN(C105:C116)<5,AVERAGEIF(C105:C116,">0",M105:M116), IF(FORECAST($C101,M$105:M$116,$C$105:$C$116)<0,0, IF(FORECAST($C101,M$105:M$116,$C$105:$C$116)>100,100, FORECAST($C101,M$105:M$116,$C$105:$C$116)))) -> 0.327751484 | N101: =IF(MAX(C105:C116)-MIN(C105:C116)<5,AVERAGEIF(C105:C116,">0",N105:N116), IF(FORECAST($C101,N$105:N$116,$C$105:$C$116)<0,0, IF(FORECAST($C101,N$105:N$116,$C$105:$C$116)>100,100, FORECAST($C101,N$105:N$116,$C$105:$C$116)))) -> 94.20418077 | R101: =IF(MAX(C105:C116)-MIN(C105:C116)<5,AVERAGEIF(C105:C116,">0",R105:R116), IF(FORECAST($C101,R$105:R$116,$C$105:$C$116)<0,0, IF(FORECAST($C101,R$105:R$116,$C$105:$C$116)>100,100, FORECAST($C101,R$105:R$116,$C$105:$C$116)))) -> 0.1986399459 | S101: =IF(MAX(C105:C116)-MIN(C105:C116)<5,AVERAGEIF(C105:C116,">0",S105:S116), IF(FORECAST($C101,S$105:S$116,$C$105:$C$116)<0,0, IF(FORECAST($C101,S$105:S$116,$C$105:$C$116)>100,100, FORECAST($C101,S$105:S$116,$C$105:$C$116)))) -> 96.20467822 | W101: =IF(MAX(C105:C116)-MIN(C105:C116)<5,AVERAGEIF(C105:C116,">0",W105:W116), IF(FORECAST($C101,W$105:W$116,$C$105:$C$116)<0,0, IF(FORECAST($C101,W$105:W$116,$C$105:$C$116)>100,100, FORECAST($C101,W$105:W$116,$C$105:$C$116)))) -> 0.3353490897 | X101: =IF(MAX(C105:C116)-MIN(C105:C116)<5,AVERAGEIF(C105:C116,">0",X105:X116), IF(FORECAST($C101,X$105:X$116,$C$105:$C$116)<0,0, IF(FORECAST($C101,X$105:X$116,$C$105:$C$116)>100,100, FORECAST($C101,X$105:X$116,$C$105:$C$116)))) -> 98.96880754 | AB101: =IF(MAX(C105:C116)-MIN(C105:C116)<5,AVERAGEIF(C105:C116,">0",AB105:AB116), IF(FORECAST($C101,AB$105:AB$116,$C$105:$C$116)<0,0, IF(FORECAST($C101,AB$105:AB$116,$C$105:$C$116)>100,100, FORECAST($C101,AB$105:AB$116,$C$105:$C$116)))) -> 0.006679741287
C102: =MaxRegYear(C100,C105:C116) -> 2015 | D102: =IF(MAX(C105:C116)-MIN(C105:C116)<5,AVERAGEIF(C105:C116,">0",D105:D116), IF(FORECAST($C102,D$105:D$116,$C$105:$C$116)<0,0, IF(FORECAST($C102,D$105:D$116,$C$105:$C$116)>100,100, FORECAST($C102,D$105:D$116,$C$105:$C$116)))) -> 96.94364727 | H102: =IF(MAX(C105:C116)-MIN(C105:C116)<5,AVERAGEIF(C105:C116,">0",H105:H116), IF(FORECAST($C102,H$105:H$116,$C$105:$C$116)<0,0, IF(FORECAST($C102,H$105:H$116,$C$105:$C$116)>100,100, FORECAST($C102,H$105:H$116,$C$105:$C$116)))) -> 0 | I102: =IF(MAX(C105:C116)-MIN(C105:C116)<5,AVERAGEIF(C105:C116,">0",I105:I116), IF(FORECAST($C102,I$105:I$116,$C$105:$C$116)<0,0, IF(FORECAST($C102,I$105:I$116,$C$105:$C$116)>100,100, FORECAST($C102,I$105:I$116,$C$105:$C$116)))) -> 97.76678038 | M102: =IF(MAX(C105:C116)-MIN(C105:C116)<5,AVERAGEIF(C105:C116,">0",M105:M116), IF(FORECAST($C102,M$105:M$116,$C$105:$C$116)<0,0, IF(FORECAST($C102,M$105:M$116,$C$105:$C$116)>100,100, FORECAST($C102,M$105:M$116,$C$105:$C$116)))) -> 0.02967642917 | N102: =IF(MAX(C105:C116)-MIN(C105:C116)<5,AVERAGEIF(C105:C116,">0",N105:N116), IF(FORECAST($C102,N$105:N$116,$C$105:$C$116)<0,0, IF(FORECAST($C102,N$105:N$116,$C$105:$C$116)>100,100, FORECAST($C102,N$105:N$116,$C$105:$C$116)))) -> 99.18536776 | R102: =IF(MAX(C105:C116)-MIN(C105:C116)<5,AVERAGEIF(C105:C116,">0",R105:R116), IF(FORECAST($C102,R$105:R$116,$C$105:$C$116)<0,0, IF(FORECAST($C102,R$105:R$116,$C$105:$C$116)>100,100, FORECAST($C102,R$105:R$116,$C$105:$C$116)))) -> 0 | S102: =IF(MAX(C105:C116)-MIN(C105:C116)<5,AVERAGEIF(C105:C116,">0",S105:S116), IF(FORECAST($C102,S$105:S$116,$C$105:$C$116)<0,0, IF(FORECAST($C102,S$105:S$116,$C$105:$C$116)>100,100, FORECAST($C102,S$105:S$116,$C$105:$C$116)))) -> 100 | W102: =IF(MAX(C105:C116)-MIN(C105:C116)<5,AVERAGEIF(C105:C116,">0",W105:W116), IF(FORECAST($C102,W$105:W$116,$C$105:$C$116)<0,0, IF(FORECAST($C102,W$105:W$116,$C$105:$C$116)>100,100, FORECAST($C102,W$105:W$116,$C$105:$C$116)))) -> 0 | X102: =IF(MAX(C105:C116)-MIN(C105:C116)<5,AVERAGEIF(C105:C116,">0",X105:X116), IF(FORECAST($C102,X$105:X$116,$C$105:$C$116)<0,0, IF(FORECAST($C102,X$105:X$116,$C$105:$C$116)>100,100, FORECAST($C102,X$105:X$116,$C$105:$C$116)))) -> 99.79990834 | AB102: =IF(MAX(C105:C116)-MIN(C105:C116)<5,AVERAGEIF(C105:C116,">0",AB105:AB116), IF(FORECAST($C102,AB$105:AB$116,$C$105:$C$116)<0,0, IF(FORECAST($C102,AB$105:AB$116,$C$105:$C$116)>100,100, FORECAST($C102,AB$105:AB$116,$C$105:$C$116)))) -> 0.006679741287
B104: Survey | C104: Year | D104: Improved | E104: Not shared | H104: Open defecation | I104: Improved | J104: Not shared | M104: Open defecation | N104: Improved | O104: Not shared | R104: Open defecation | S104: Improved | T104: Not shared | W104: Open defecation | X104: Improved | Y104: Not shared | AB104: Open defecation
B105: DHS03 | C105: 2003 | D105: =IF(ISERROR(INDIRECT(CONCATENATE($B105,"!C122"))),"",INDIRECT(CONCATENATE($B105,"!C122"))) -> 60.76787699 | E105: =IF(ISERROR(INDIRECT(CONCATENATE($B105,"!C129"))),"",INDIRECT(CONCATENATE($B105,"!C129"))) -> 92.075274 | H105: =IF(ISERROR(INDIRECT(CONCATENATE($B105,"!C127"))),"",INDIRECT(CONCATENATE($B105,"!C127"))) -> 2.164421799 | I105: =IF(ISERROR(INDIRECT(CONCATENATE($B105,"!D122"))),"",INDIRECT(CONCATENATE($B105,"!D122"))) -> 87.28831631 | J105: =IF(ISERROR(INDIRECT(CONCATENATE($B105,"!D129"))),"",INDIRECT(CONCATENATE($B105,"!D129"))) -> 97.9546967 | M105: =IF(ISERROR(INDIRECT(CONCATENATE($B105,"!D127"))),"",INDIRECT(CONCATENATE($B105,"!D127"))) -> 0.2129107534 | N105: =IF(ISERROR(INDIRECT(CONCATENATE($B105,"!E122"))),"",INDIRECT(CONCATENATE($B105,"!E122"))) -> 94.7664183 | O105: =IF(ISERROR(INDIRECT(CONCATENATE($B105,"!E129"))),"",INDIRECT(CONCATENATE($B105,"!E129"))) -> 98.34014011 | R105: =IF(ISERROR(INDIRECT(CONCATENATE($B105,"!E127"))),"",INDIRECT(CONCATENATE($B105,"!E127"))) -> 0.1903335702 | S105: =IF(ISERROR(INDIRECT(CONCATENATE($B105,"!F122"))),"",INDIRECT(CONCATENATE($B105,"!F122"))) -> 96.3221841 | T105: =IF(ISERROR(INDIRECT(CONCATENATE($B105,"!F129"))),"",INDIRECT(CONCATENATE($B105,"!F129"))) -> 99.72489105 | W105: =IF(ISERROR(INDIRECT(CONCATENATE($B105,"!F127"))),"",INDIRECT(CONCATENATE($B105,"!F127"))) -> 0.3185096388 | X105: =IF(ISERROR(INDIRECT(CONCATENATE($B105,"!G122"))),"",INDIRECT(CONCATENATE($B105,"!G122"))) -> 98.89808094 | Y105: =IF(ISERROR(INDIRECT(CONCATENATE($B105,"!G129"))),"",INDIRECT(CONCATENATE($B105,"!G129"))) -> 99.81589346 | AB105: =IF(ISERROR(INDIRECT(CONCATENATE($B105,"!G2127"))),"",INDIRECT(CONCATENATE($B105,"!G127"))) -> 0
B106: DHS08 | C106: 2008 | D106: 82.86660352 | E106: 96.75478134 | H106: 1.531024255 | I106: 88.83922107 | J106: 97.50405244 | M106: 0.3232311163 | N106: 96.99349549 | O106: 99.35418681 | R106: 0.005885770138 | S106: 99.69415019 | T106: 99.53631577 | W106: 0.01866738891 | X106: 99.76326851 | Y106: 99.96401016 | AB106: 0.02003922386
B107: DHS13 | C107: 2013 | D107: 88.64806548 | E107: 96.86295709 | H107: 0 | I107: 96.92847355 | J107: 99.39025718 | M107: 0 | N107: 98.32440901 | O107: 99.85467347 | R107: 0 | S107: 99.70807837 | T107: 99.89319543 | W107: 0 | X107: 99.49172437 | Y107: 99.94822876 | AB107: 0
B118: =CONCATENATE("National use of sanitation facilities, ",C99,"–",C100) -> National use of sanitation facilities, 2000–2019 | S118: Data points used for regression
A197: URBAN | D197: Poorest | I197: Poor | N197: Middle | S197: Rich | X197: Richest
D198: Improved | E198: Basic | F198: Limited | G198: Unimproved | H198: Open defecation | I198: Improved | J198: Basic | K198: Limited | L198: Unimproved | M198: Open defecation | N198: Improved | O198: Basic | P198: Limited | Q198: Unimproved | R198: Open defecation | S198: Improved | T198: Basic | U198: Limited | V198: Unimproved | W198: Open defecation | X198: Improved | Y198: Basic | Z198: Limited | AA198: Unimproved | AB198: Open defecation
A199: Forecast period: | C199: 2000 | D199: =IF((D201+H201)>100,D201*100/(D201+H201),D201) -> 90.72041426 | E199: =D199*AVERAGEIF(E205:E216,">0")/100 -> 88.21986789 | F199: =D199*(100-AVERAGEIF(E205:E216,">0"))/100 -> 2.500546367 | G199: =100-(E199+F199+H199) -> 9.069545295 | H199: =IF((D201+H201)>100,H201*100/(D201+H201),H201) -> 0.2100404436 | I199: =IF((I201+M201)>100,I201*100/(I201+M201),I201) -> 96.84671244 | J199: =I199*AVERAGEIF(J205:J216,">0")/100 -> 95.94307143 | K199: =I199*(100-AVERAGEIF(J205:J216,">0"))/100 -> 0.9036410114 | L199: =100-(J199+K199+M199) -> 2.919414725 | M199: =IF((I201+M201)>100,M201*100/(I201+M201),M201) -> 0.2338728375 | N199: =IF((N201+R201)>100,N201*100/(N201+R201),N201) -> 97.77605208 | O199: =N199*AVERAGEIF(O205:O216,">0")/100 -> 97.59606757 | P199: =N199*(100-AVERAGEIF(O205:O216,">0"))/100 -> 0.1799845104 | Q199: =100-(O199+P199+R199) -> 1.901791672 | R199: =IF((N201+R201)>100,R201*100/(N201+R201),R201) -> 0.322156246 | S199: =IF((S201+W201)>100,S201*100/(S201+W201),S201) -> 98.6550346 | T199: =S199*AVERAGEIF(T205:T216,">0")/100 -> 98.5242872 | U199: =S199*(100-AVERAGEIF(T205:T216,">0"))/100 -> 0.1307474053 | V199: =100-(T199+U199+W199) -> 1.103324808 | W199: =IF((S201+W201)>100,W201*100/(S201+W201),W201) -> 0.2416405891 | X199: =IF((X201+AB201)>100,X201*100/(X201+AB201),X201) -> 99.68337223 | Y199: =X199*AVERAGEIF(Y205:Y216,">0")/100 -> 99.63596855 | Z199: =X199*(100-AVERAGEIF(Y205:Y216,">0"))/100 -> 0.04740367864 | AA199: =100-(Y199+Z199+AB199) -> 0.3074354804 | AB199: =IF((X201+AB201)>100,AB201*100/(X201+AB201),AB201) -> 0.009192290844
C200: 2019 | D200: =IF((D202+H202)>100,D202*100/(D202+H202),D202) -> 99.99759335 | E200: =D200*AVERAGEIF(E205:E216,">0")/100 -> 97.2413381 | F200: =D200*(100-AVERAGEIF(E205:E216,">0"))/100 -> 2.756255257 | G200: =100-(E200+F200+H200) -> 0 | H200: =IF((D202+H202)>100,H202*100/(D202+H202),H202) -> 0.002406646778 | I200: =IF((I202+M202)>100,I202*100/(I202+M202),I202) -> 99.21690985 | J200: =I200*AVERAGEIF(J205:J216,">0")/100 -> 98.2911534 | K200: =I200*(100-AVERAGEIF(J205:J216,">0"))/100 -> 0.9257564507 | L200: =100-(J200+K200+M200) -> 0.7830901455 | M200: =IF((I202+M202)>100,M202*100/(I202+M202),M202) -> 0 | N200: =IF((N202+R202)>100,N202*100/(N202+R202),N202) -> 100 | O200: =N200*AVERAGEIF(O205:O216,">0")/100 -> 99.81592168 | P200: =N200*(100-AVERAGEIF(O205:O216,">0"))/100 -> 0.1840783163 | Q200: =100-(O200+P200+R200) -> 0 | R200: =IF((N202+R202)>100,R202*100/(N202+R202),R202) -> 0 | S200: =IF((S202+W202)>100,S202*100/(S202+W202),S202) -> 100 | T200: =S200*AVERAGEIF(T205:T216,">0")/100 -> 99.86747011 | U200: =S200*(100-AVERAGEIF(T205:T216,">0"))/100 -> 0.1325298865 | V200: =100-(T200+U200+W200) -> 0 | W200: =IF((S202+W202)>100,W202*100/(S202+W202),W202) -> 0 | X200: =IF((X202+AB202)>100,X202*100/(X202+AB202),X202) -> 99.96278918 | Y200: =X200*AVERAGEIF(Y205:Y216,">0")/100 -> 99.91525263 | Z200: =X200*(100-AVERAGEIF(Y205:Y216,">0"))/100 -> 0.04753655328 | AA200: =100-(Y200+Z200+AB200) -> 0.02801853053 | AB200: =IF((X202+AB202)>100,AB202*100/(X202+AB202),AB202) -> 0.009192290844
A201: Regression period: | C201: =MinRegYear(C199,C205:C216) -> 2001 | D201: =IF(MAX(C205:C216)-MIN(C205:C216)<5,AVERAGEIF(C205:C216,">0",D205:D216), IF(FORECAST($C201,D$205:D$216,$C$205:$C$216)<0,0, IF(FORECAST($C201,D$205:D$216,$C$205:$C$216)>100,100, FORECAST($C201,D$205:D$216,$C$205:$C$216)))) -> 90.72041426 | H201: =IF(MAX(C205:C216)-MIN(C205:C216)<5,AVERAGEIF(C205:C216,">0",H205:H216), IF(FORECAST($C201,H$205:H$216,$C$205:$C$216)<0,0, IF(FORECAST($C201,H$205:H$216,$C$205:$C$216)>100,100, FORECAST($C201,H$205:H$216,$C$205:$C$216)))) -> 0.2100404436 | I201: =IF(MAX(C205:C216)-MIN(C205:C216)<5,AVERAGEIF(C205:C216,">0",I205:I216), IF(FORECAST($C201,I$205:I$216,$C$205:$C$216)<0,0, IF(FORECAST($C201,I$205:I$216,$C$205:$C$216)>100,100, FORECAST($C201,I$205:I$216,$C$205:$C$216)))) -> 96.84671244 | M201: =IF(MAX(C205:C216)-MIN(C205:C216)<5,AVERAGEIF(C205:C216,">0",M205:M216), IF(FORECAST($C201,M$205:M$216,$C$205:$C$216)<0,0, IF(FORECAST($C201,M$205:M$216,$C$205:$C$216)>100,100, FORECAST($C201,M$205:M$216,$C$205:$C$216)))) -> 0.2338728375 | N201: =IF(MAX(C205:C216)-MIN(C205:C216)<5,AVERAGEIF(C205:C216,">0",N205:N216), IF(FORECAST($C201,N$205:N$216,$C$205:$C$216)<0,0, IF(FORECAST($C201,N$205:N$216,$C$205:$C$216)>100,100, FORECAST($C201,N$205:N$216,$C$205:$C$216)))) -> 97.77605208 | R201: =IF(MAX(C205:C216)-MIN(C205:C216)<5,AVERAGEIF(C205:C216,">0",R205:R216), IF(FORECAST($C201,R$205:R$216,$C$205:$C$216)<0,0, IF(FORECAST($C201,R$205:R$216,$C$205:$C$216)>100,100, FORECAST($C201,R$205:R$216,$C$205:$C$216)))) -> 0.322156246 | S201: =IF(MAX(C205:C216)-MIN(C205:C216)<5,AVERAGEIF(C205:C216,">0",S205:S216), IF(FORECAST($C201,S$205:S$216,$C$205:$C$216)<0,0, IF(FORECAST($C201,S$205:S$216,$C$205:$C$216)>100,100, FORECAST($C201,S$205:S$216,$C$205:$C$216)))) -> 98.6550346 | W201: =IF(MAX(C205:C216)-MIN(C205:C216)<5,AVERAGEIF(C205:C216,">0",W205:W216), IF(FORECAST($C201,W$205:W$216,$C$205:$C$216)<0,0, IF(FORECAST($C201,W$205:W$216,$C$205:$C$216)>100,100, FORECAST($C201,W$205:W$216,$C$205:$C$216)))) -> 0.2416405891 | X201: =IF(MAX(C205:C216)-MIN(C205:C216)<5,AVERAGEIF(C205:C216,">0",X205:X216), IF(FORECAST($C201,X$205:X$216,$C$205:$C$216)<0,0, IF(FORECAST($C201,X$205:X$216,$C$205:$C$216)>100,100, FORECAST($C201,X$205:X$216,$C$205:$C$216)))) -> 99.68337223 | AB201: =IF(MAX(C205:C216)-MIN(C205:C216)<5,AVERAGEIF(C205:C216,">0",AB205:AB216), IF(FORECAST($C201,AB$205:AB$216,$C$205:$C$216)<0,0, IF(FORECAST($C201,AB$205:AB$216,$C$205:$C$216)>100,100, FORECAST($C201,AB$205:AB$216,$C$205:$C$216)))) -> 0.009192290844
C202: =MaxRegYear(C200,C205:C216) -> 2015 | D202: =IF(MAX(C205:C216)-MIN(C205:C216)<5,AVERAGEIF(C205:C216,">0",D205:D216), IF(FORECAST($C202,D$205:D$216,$C$205:$C$216)<0,0, IF(FORECAST($C202,D$205:D$216,$C$205:$C$216)>100,100, FORECAST($C202,D$205:D$216,$C$205:$C$216)))) -> 100 | H202: =IF(MAX(C205:C216)-MIN(C205:C216)<5,AVERAGEIF(C205:C216,">0",H205:H216), IF(FORECAST($C202,H$205:H$216,$C$205:$C$216)<0,0, IF(FORECAST($C202,H$205:H$216,$C$205:$C$216)>100,100, FORECAST($C202,H$205:H$216,$C$205:$C$216)))) -> 0.002406704699 | I202: =IF(MAX(C205:C216)-MIN(C205:C216)<5,AVERAGEIF(C205:C216,">0",I205:I216), IF(FORECAST($C202,I$205:I$216,$C$205:$C$216)<0,0, IF(FORECAST($C202,I$205:I$216,$C$205:$C$216)>100,100, FORECAST($C202,I$205:I$216,$C$205:$C$216)))) -> 99.21690985 | M202: =IF(MAX(C205:C216)-MIN(C205:C216)<5,AVERAGEIF(C205:C216,">0",M205:M216), IF(FORECAST($C202,M$205:M$216,$C$205:$C$216)<0,0, IF(FORECAST($C202,M$205:M$216,$C$205:$C$216)>100,100, FORECAST($C202,M$205:M$216,$C$205:$C$216)))) -> 0 | N202: =IF(MAX(C205:C216)-MIN(C205:C216)<5,AVERAGEIF(C205:C216,">0",N205:N216), IF(FORECAST($C202,N$205:N$216,$C$205:$C$216)<0,0, IF(FORECAST($C202,N$205:N$216,$C$205:$C$216)>100,100, FORECAST($C202,N$205:N$216,$C$205:$C$216)))) -> 100 | R202: =IF(MAX(C205:C216)-MIN(C205:C216)<5,AVERAGEIF(C205:C216,">0",R205:R216), IF(FORECAST($C202,R$205:R$216,$C$205:$C$216)<0,0, IF(FORECAST($C202,R$205:R$216,$C$205:$C$216)>100,100, FORECAST($C202,R$205:R$216,$C$205:$C$216)))) -> 0 | S202: =IF(MAX(C205:C216)-MIN(C205:C216)<5,AVERAGEIF(C205:C216,">0",S205:S216), IF(FORECAST($C202,S$205:S$216,$C$205:$C$216)<0,0, IF(FORECAST($C202,S$205:S$216,$C$205:$C$216)>100,100, FORECAST($C202,S$205:S$216,$C$205:$C$216)))) -> 100 | W202: =IF(MAX(C205:C216)-MIN(C205:C216)<5,AVERAGEIF(C205:C216,">0",W205:W216), IF(FORECAST($C202,W$205:W$216,$C$205:$C$216)<0,0, IF(FORECAST($C202,W$205:W$216,$C$205:$C$216)>100,100, FORECAST($C202,W$205:W$216,$C$205:$C$216)))) -> 0 | X202: =IF(MAX(C205:C216)-MIN(C205:C216)<5,AVERAGEIF(C205:C216,">0",X205:X216), IF(FORECAST($C202,X$205:X$216,$C$205:$C$216)<0,0, IF(FORECAST($C202,X$205:X$216,$C$205:$C$216)>100,100, FORECAST($C202,X$205:X$216,$C$205:$C$216)))) -> 99.96278918 | AB202: =IF(MAX(C205:C216)-MIN(C205:C216)<5,AVERAGEIF(C205:C216,">0",AB205:AB216), IF(FORECAST($C202,AB$205:AB$216,$C$205:$C$216)<0,0, IF(FORECAST($C202,AB$205:AB$216,$C$205:$C$216)>100,100, FORECAST($C202,AB$205:AB$216,$C$205:$C$216)))) -> 0.009192290844
B204: Survey | C204: Year | D204: Improved | E204: Not shared | H204: Open defecation | I204: Improved | J204: Not shared | M204: Open defecation | N204: Improved | O204: Not shared | R204: Open defecation | S204: Improved | T204: Not shared | W204: Open defecation | X204: Improved | Y204: Not shared | AB204: Open defecation
B205: DHS03 | C205: 2003 | D205: =IF(ISERROR(INDIRECT(CONCATENATE($B205,"!H122"))),"",INDIRECT(CONCATENATE($B205,"!H122"))) -> 91.52670404 | E205: =IF(ISERROR(INDIRECT(CONCATENATE($B205,"!H129"))),"",INDIRECT(CONCATENATE($B205,"!H129"))) -> 94.91425952 | H205: =IF(ISERROR(INDIRECT(CONCATENATE($B205,"!H127"))),"",INDIRECT(CONCATENATE($B205,"!H127"))) -> 0.1483098135 | I205: =IF(ISERROR(INDIRECT(CONCATENATE($B205,"!I122"))),"",INDIRECT(CONCATENATE($B205,"!I122"))) -> 96.79109428 | J205: =IF(ISERROR(INDIRECT(CONCATENATE($B205,"!I129"))),"",INDIRECT(CONCATENATE($B205,"!I129"))) -> 97.96460238 | M205: =IF(ISERROR(INDIRECT(CONCATENATE($B205,"!I127"))),"",INDIRECT(CONCATENATE($B205,"!I127"))) -> 0.2167857689 | N205: =IF(ISERROR(INDIRECT(CONCATENATE($B205,"!J122"))),"",INDIRECT(CONCATENATE($B205,"!J122"))) -> 97.98401916 | O205: =IF(ISERROR(INDIRECT(CONCATENATE($B205,"!J129"))),"",INDIRECT(CONCATENATE($B205,"!J129"))) -> 99.70209768 | R205: =IF(ISERROR(INDIRECT(CONCATENATE($B205,"!J127"))),"",INDIRECT(CONCATENATE($B205,"!J127"))) -> 0.3034943049 | S205: =IF(ISERROR(INDIRECT(CONCATENATE($B205,"!K122"))),"",INDIRECT(CONCATENATE($B205,"!K122"))) -> 98.63432633 | T205: =IF(ISERROR(INDIRECT(CONCATENATE($B205,"!K129"))),"",INDIRECT(CONCATENATE($B205,"!K129"))) -> 99.725399 | W205: =IF(ISERROR(INDIRECT(CONCATENATE($B205,"!K127"))),"",INDIRECT(CONCATENATE($B205,"!K127"))) -> 0.2338457314 | X205: =IF(ISERROR(INDIRECT(CONCATENATE($B205,"!L122"))),"",INDIRECT(CONCATENATE($B205,"!L122"))) -> 99.67582859 | Y205: =IF(ISERROR(INDIRECT(CONCATENATE($B205,"!L129"))),"",INDIRECT(CONCATENATE($B205,"!L129"))) -> 99.97356976 | AB205: =IF(ISERROR(INDIRECT(CONCATENATE($B205,"!L2127"))),"",INDIRECT(CONCATENATE($B205,"!L127"))) -> 0
B206: DHS08 | C206: 2008 | D206: 97.35773631 | E206: 98.36774503 | H206: 0.170360909 | I206: 98.82024673 | J206: 99.59350392 | M206: 0.02958262904 | N206: 99.487952 | O206: 99.74566737 | R206: 0.02563639265 | S206: 99.97800576 | T206: 99.92593581 | W206: 0 | X206: 99.9180014 | Y206: 99.95044854 | AB206: 0.02757687253
B207: DHS13 | C207: 2013 | D207: 99.02661458 | E207: 98.44903068 | H207: 0 | I207: 98.48409243 | J207: 99.64270417 | M207: 0 | N207: 99.91841378 | O207: 100 | R207: 0 | S207: 99.79937597 | T207: 99.95107553 | W207: 0 | X207: 99.87541212 | Y207: 99.93331895 | AB207: 0
B218: =CONCATENATE("Urban use of sanitation facilities, ",C199,"–",C200) -> Urban use of sanitation facilities, 2000–2019 | S218: Data points used for regression
A297: RURAL | D297: Poorest | I297: Poor | N297: Middle | S297: Rich | X297: Richest
D298: Improved | E298: Basic | F298: Limited | G298: Unimproved | H298: Open defecation | I298: Improved | J298: Basic | K298: Limited | L298: Unimproved | M298: Open defecation | N298: Improved | O298: Basic | P298: Limited | Q298: Unimproved | R298: Open defecation | S298: Improved | T298: Basic | U298: Limited | V298: Unimproved | W298: Open defecation | X298: Improved | Y298: Basic | Z298: Limited | AA298: Unimproved | AB298: Open defecation
A299: Forecast period: | C299: 2000 | D299: =IF((D301+H301)>100,D301*100/(D301+H301),D301) -> 35.81901921 | E299: =D299*AVERAGEIF(E305:E316,">0")/100 -> 33.05002848 | F299: =D299*(100-AVERAGEIF(E305:E316,">0"))/100 -> 2.768990734 | G299: =100-(E299+F299+H299) -> 57.24962457 | H299: =IF((D301+H301)>100,H301*100/(D301+H301),H301) -> 6.931356225 | I299: =IF((I301+M301)>100,I301*100/(I301+M301),I301) -> 51.31294845 | J299: =I299*AVERAGEIF(J305:J316,">0")/100 -> 49.65114718 | K299: =I299*(100-AVERAGEIF(J305:J316,">0"))/100 -> 1.661801273 | L299: =100-(J299+K299+M299) -> 47.11993019 | M299: =IF((I301+M301)>100,M301*100/(I301+M301),M301) -> 1.567121359 | N299: =IF((N301+R301)>100,N301*100/(N301+R301),N301) -> 67.04938842 | O299: =N299*AVERAGEIF(O305:O316,">0")/100 -> 64.71343645 | P299: =N299*(100-AVERAGEIF(O305:O316,">0"))/100 -> 2.335951963 | Q299: =100-(O299+P299+R299) -> 32.11411984 | R299: =IF((N301+R301)>100,R301*100/(N301+R301),R301) -> 0.8364917452 | S299: =IF((S301+W301)>100,S301*100/(S301+W301),S301) -> 81.52161969 | T299: =S299*AVERAGEIF(T305:T316,">0")/100 -> 80.15009367 | U299: =S299*(100-AVERAGEIF(T305:T316,">0"))/100 -> 1.371526025 | V299: =100-(T299+U299+W299) -> 18.47838031 | W299: =IF((S301+W301)>100,W301*100/(S301+W301),W301) -> 0 | X299: =IF((X301+AB301)>100,X301*100/(X301+AB301),X301) -> 89.22886584 | Y299: =X299*AVERAGEIF(Y305:Y316,">0")/100 -> 88.36620037 | Z299: =X299*(100-AVERAGEIF(Y305:Y316,">0"))/100 -> 0.8626654682 | AA299: =100-(Y299+Z299+AB299) -> 10.77113416 | AB299: =IF((X301+AB301)>100,AB301*100/(X301+AB301),AB301) -> 0
C300: 2019 | D300: =IF((D302+H302)>100,D302*100/(D302+H302),D302) -> 84.3656254 | E300: =D300*AVERAGEIF(E305:E316,">0")/100 -> 77.84373731 | F300: =D300*(100-AVERAGEIF(E305:E316,">0"))/100 -> 6.521888095 | G300: =100-(E300+F300+H300) -> 15.6343746 | H300: =IF((D302+H302)>100,H302*100/(D302+H302),H302) -> 0 | I300: =IF((I302+M302)>100,I302*100/(I302+M302),I302) -> 89.27502442 | J300: =I300*AVERAGEIF(J305:J316,">0")/100 -> 86.38379806 | K300: =I300*(100-AVERAGEIF(J305:J316,">0"))/100 -> 2.891226361 | L300: =100-(J300+K300+M300) -> 10.72497558 | M300: =IF((I302+M302)>100,M302*100/(I302+M302),M302) -> 0 | N300: =IF((N302+R302)>100,N302*100/(N302+R302),N302) -> 91.42917787 | O300: =N300*AVERAGEIF(O305:O316,">0")/100 -> 88.24385176 | P300: =N300*(100-AVERAGEIF(O305:O316,">0"))/100 -> 3.185326109 | Q300: =100-(O300+P300+R300) -> 8.483260325 | R300: =IF((N302+R302)>100,R302*100/(N302+R302),R302) -> 0.08756180959 | S300: =IF((S302+W302)>100,S302*100/(S302+W302),S302) -> 92.3969311 | T300: =S300*AVERAGEIF(T305:T316,">0")/100 -> 90.842438 | U300: =S300*(100-AVERAGEIF(T305:T316,">0"))/100 -> 1.554493104 | V300: =100-(T300+U300+W300) -> 7.6030689 | W300: =IF((S302+W302)>100,W302*100/(S302+W302),W302) -> 0 | X300: =IF((X302+AB302)>100,X302*100/(X302+AB302),X302) -> 98.45643306 | Y300: =X300*AVERAGEIF(Y305:Y316,">0")/100 -> 97.50455539 | Z300: =X300*(100-AVERAGEIF(Y305:Y316,">0"))/100 -> 0.9518776702 | AA300: =100-(Y300+Z300+AB300) -> 1.543566937 | AB300: =IF((X302+AB302)>100,AB302*100/(X302+AB302),AB302) -> 0
A301: Regression period: | C301: =MinRegYear(C299,C305:C316) -> 2001 | D301: =IF(MAX(C305:C316)-MIN(C305:C316)<5,AVERAGEIF(C305:C316,">0",D305:D316), IF(FORECAST($C301,D$305:D$316,$C$305:$C$316)<0,0, IF(FORECAST($C301,D$305:D$316,$C$305:$C$316)>100,100, FORECAST($C301,D$305:D$316,$C$305:$C$316)))) -> 35.81901921 | H301: =IF(MAX(C305:C316)-MIN(C305:C316)<5,AVERAGEIF(C305:C316,">0",H305:H316), IF(FORECAST($C301,H$305:H$316,$C$305:$C$316)<0,0, IF(FORECAST($C301,H$305:H$316,$C$305:$C$316)>100,100, FORECAST($C301,H$305:H$316,$C$305:$C$316)))) -> 6.931356225 | I301: =IF(MAX(C305:C316)-MIN(C305:C316)<5,AVERAGEIF(C305:C316,">0",I305:I316), IF(FORECAST($C301,I$305:I$316,$C$305:$C$316)<0,0, IF(FORECAST($C301,I$305:I$316,$C$305:$C$316)>100,100, FORECAST($C301,I$305:I$316,$C$305:$C$316)))) -> 51.31294845 | M301: =IF(MAX(C305:C316)-MIN(C305:C316)<5,AVERAGEIF(C305:C316,">0",M305:M316), IF(FORECAST($C301,M$305:M$316,$C$305:$C$316)<0,0, IF(FORECAST($C301,M$305:M$316,$C$305:$C$316)>100,100, FORECAST($C301,M$305:M$316,$C$305:$C$316)))) -> 1.567121359 | N301: =IF(MAX(C305:C316)-MIN(C305:C316)<5,AVERAGEIF(C305:C316,">0",N305:N316), IF(FORECAST($C301,N$305:N$316,$C$305:$C$316)<0,0, IF(FORECAST($C301,N$305:N$316,$C$305:$C$316)>100,100, FORECAST($C301,N$305:N$316,$C$305:$C$316)))) -> 67.04938842 | R301: =IF(MAX(C305:C316)-MIN(C305:C316)<5,AVERAGEIF(C305:C316,">0",R305:R316), IF(FORECAST($C301,R$305:R$316,$C$305:$C$316)<0,0, IF(FORECAST($C301,R$305:R$316,$C$305:$C$316)>100,100, FORECAST($C301,R$305:R$316,$C$305:$C$316)))) -> 0.8364917452 | S301: =IF(MAX(C305:C316)-MIN(C305:C316)<5,AVERAGEIF(C305:C316,">0",S305:S316), IF(FORECAST($C301,S$305:S$316,$C$305:$C$316)<0,0, IF(FORECAST($C301,S$305:S$316,$C$305:$C$316)>100,100, FORECAST($C301,S$305:S$316,$C$305:$C$316)))) -> 81.52161969 | W301: =IF(MAX(C305:C316)-MIN(C305:C316)<5,AVERAGEIF(C305:C316,">0",W305:W316), IF(FORECAST($C301,W$305:W$316,$C$305:$C$316)<0,0, IF(FORECAST($C301,W$305:W$316,$C$305:$C$316)>100,100, FORECAST($C301,W$305:W$316,$C$305:$C$316)))) -> 0 | X301: =IF(MAX(C305:C316)-MIN(C305:C316)<5,AVERAGEIF(C305:C316,">0",X305:X316), IF(FORECAST($C301,X$305:X$316,$C$305:$C$316)<0,0, IF(FORECAST($C301,X$305:X$316,$C$305:$C$316)>100,100, FORECAST($C301,X$305:X$316,$C$305:$C$316)))) -> 89.22886584 | AB301: =IF(MAX(C305:C316)-MIN(C305:C316)<5,AVERAGEIF(C305:C316,">0",AB305:AB316), IF(FORECAST($C301,AB$305:AB$316,$C$305:$C$316)<0,0, IF(FORECAST($C301,AB$305:AB$316,$C$305:$C$316)>100,100, FORECAST($C301,AB$305:AB$316,$C$305:$C$316)))) -> 0
C302: =MaxRegYear(C300,C305:C316) -> 2015 | D302: =IF(MAX(C305:C316)-MIN(C305:C316)<5,AVERAGEIF(C305:C316,">0",D305:D316), IF(FORECAST($C302,D$305:D$316,$C$305:$C$316)<0,0, IF(FORECAST($C302,D$305:D$316,$C$305:$C$316)>100,100, FORECAST($C302,D$305:D$316,$C$305:$C$316)))) -> 84.3656254 | H302: =IF(MAX(C305:C316)-MIN(C305:C316)<5,AVERAGEIF(C305:C316,">0",H305:H316), IF(FORECAST($C302,H$305:H$316,$C$305:$C$316)<0,0, IF(FORECAST($C302,H$305:H$316,$C$305:$C$316)>100,100, FORECAST($C302,H$305:H$316,$C$305:$C$316)))) -> 0 | I302: =IF(MAX(C305:C316)-MIN(C305:C316)<5,AVERAGEIF(C305:C316,">0",I305:I316), IF(FORECAST($C302,I$305:I$316,$C$305:$C$316)<0,0, IF(FORECAST($C302,I$305:I$316,$C$305:$C$316)>100,100, FORECAST($C302,I$305:I$316,$C$305:$C$316)))) -> 89.27502442 | M302: =IF(MAX(C305:C316)-MIN(C305:C316)<5,AVERAGEIF(C305:C316,">0",M305:M316), IF(FORECAST($C302,M$305:M$316,$C$305:$C$316)<0,0, IF(FORECAST($C302,M$305:M$316,$C$305:$C$316)>100,100, FORECAST($C302,M$305:M$316,$C$305:$C$316)))) -> 0 | N302: =IF(MAX(C305:C316)-MIN(C305:C316)<5,AVERAGEIF(C305:C316,">0",N305:N316), IF(FORECAST($C302,N$305:N$316,$C$305:$C$316)<0,0, IF(FORECAST($C302,N$305:N$316,$C$305:$C$316)>100,100, FORECAST($C302,N$305:N$316,$C$305:$C$316)))) -> 91.42917787 | R302: =IF(MAX(C305:C316)-MIN(C305:C316)<5,AVERAGEIF(C305:C316,">0",R305:R316), IF(FORECAST($C302,R$305:R$316,$C$305:$C$316)<0,0, IF(FORECAST($C302,R$305:R$316,$C$305:$C$316)>100,100, FORECAST($C302,R$305:R$316,$C$305:$C$316)))) -> 0.08756180959 | S302: =IF(MAX(C305:C316)-MIN(C305:C316)<5,AVERAGEIF(C305:C316,">0",S305:S316), IF(FORECAST($C302,S$305:S$316,$C$305:$C$316)<0,0, IF(FORECAST($C302,S$305:S$316,$C$305:$C$316)>100,100, FORECAST($C302,S$305:S$316,$C$305:$C$316)))) -> 92.3969311 | W302: =IF(MAX(C305:C316)-MIN(C305:C316)<5,AVERAGEIF(C305:C316,">0",W305:W316), IF(FORECAST($C302,W$305:W$316,$C$305:$C$316)<0,0, IF(FORECAST($C302,W$305:W$316,$C$305:$C$316)>100,100, FORECAST($C302,W$305:W$316,$C$305:$C$316)))) -> 0 | X302: =IF(MAX(C305:C316)-MIN(C305:C316)<5,AVERAGEIF(C305:C316,">0",X305:X316), IF(FORECAST($C302,X$305:X$316,$C$305:$C$316)<0,0, IF(FORECAST($C302,X$305:X$316,$C$305:$C$316)>100,100, FORECAST($C302,X$305:X$316,$C$305:$C$316)))) -> 98.45643306 | AB302: =IF(MAX(C305:C316)-MIN(C305:C316)<5,AVERAGEIF(C305:C316,">0",AB305:AB316), IF(FORECAST($C302,AB$305:AB$316,$C$305:$C$316)<0,0, IF(FORECAST($C302,AB$305:AB$316,$C$305:$C$316)>100,100, FORECAST($C302,AB$305:AB$316,$C$305:$C$316)))) -> 0
B304: Survey | C304: Year | D304: Improved | E304: Not shared | H304: Open defecation | I304: Improved | J304: Not shared | M304: Open defecation | N304: Improved | O304: Not shared | R304: Open defecation | S304: Improved | T304: Not shared | W304: Open defecation | X304: Improved | Y304: Not shared | AB304: Open defecation
B305: DHS03 | C305: 2003 | D305: =IF(ISERROR(INDIRECT(CONCATENATE($B305,"!M122"))),"",INDIRECT(CONCATENATE($B305,"!M122"))) -> 41.64858651 | E305: =IF(ISERROR(INDIRECT(CONCATENATE($B305,"!M129"))),"",INDIRECT(CONCATENATE($B305,"!M129"))) -> 89.85569331 | H305: =IF(ISERROR(INDIRECT(CONCATENATE($B305,"!M127"))),"",INDIRECT(CONCATENATE($B305,"!M127"))) -> 5.011259273 | I305: =IF(ISERROR(INDIRECT(CONCATENATE($B305,"!N122"))),"",INDIRECT(CONCATENATE($B305,"!N122"))) -> 53.27798857 | J305: =IF(ISERROR(INDIRECT(CONCATENATE($B305,"!N129"))),"",INDIRECT(CONCATENATE($B305,"!N129"))) -> 96.51846475 | M305: =IF(ISERROR(INDIRECT(CONCATENATE($B305,"!N127"))),"",INDIRECT(CONCATENATE($B305,"!N127"))) -> 1.462105441 | N305: =IF(ISERROR(INDIRECT(CONCATENATE($B305,"!O122"))),"",INDIRECT(CONCATENATE($B305,"!O122"))) -> 72.82549375 | O305: =IF(ISERROR(INDIRECT(CONCATENATE($B305,"!O129"))),"",INDIRECT(CONCATENATE($B305,"!O129"))) -> 96.99210219 | R305: =IF(ISERROR(INDIRECT(CONCATENATE($B305,"!O127"))),"",INDIRECT(CONCATENATE($B305,"!O127"))) -> 0.534949954 | S305: =IF(ISERROR(INDIRECT(CONCATENATE($B305,"!P122"))),"",INDIRECT(CONCATENATE($B305,"!P122"))) -> 83.52641209 | T305: =IF(ISERROR(INDIRECT(CONCATENATE($B305,"!P129"))),"",INDIRECT(CONCATENATE($B305,"!P129"))) -> 97.30088079 | W305: =IF(ISERROR(INDIRECT(CONCATENATE($B305,"!P127"))),"",INDIRECT(CONCATENATE($B305,"!P127"))) -> 0 | X305: =IF(ISERROR(INDIRECT(CONCATENATE($B305,"!Q122"))),"",INDIRECT(CONCATENATE($B305,"!Q122"))) -> 90.0135966 | Y305: =IF(ISERROR(INDIRECT(CONCATENATE($B305,"!Q129"))),"",INDIRECT(CONCATENATE($B305,"!Q129"))) -> 98.86715646 | AB305: =IF(ISERROR(INDIRECT(CONCATENATE($B305,"!Q2127"))),"",INDIRECT(CONCATENATE($B305,"!Q127"))) -> 0
B306: DHS08 | C306: 2008 | D306: 62.30364661 | E306: 93.13960985 | H306: 5.259164929 | I306: 77.21021362 | J306: 97.17724201 | M306: 0.16883721 | N306: 74.65272659 | O306: 93.15963382 | R306: 0.8511303782 | S306: 86.05692243 | T306: 98.73041017 | W306: 0 | X306: 94.90963572 | Y306: 98.65743094 | AB306: 0
B307: DHS13 | C307: 2013 | D307: 76.32473379 | E307: 93.81318466 | H307: 0 | I307: 80.39375712 | J307: 96.58860945 | M307: 0 | N307: 90.23962908 | O307: 99.39648202 | R307: 0 | S307: 91.29449167 | T307: 98.92148587 | W307: 0 | X307: 96.60471604 | Y307: 99.57500994 | AB307: 0
B318: =CONCATENATE("Rural use of sanitation facilities, ",C299,"–",C300) -> Rural use of sanitation facilities, 2000–2019 | S318: Data points used for regression

Sheet Hygiene
B4: Access to hygiene facilities by wealth quintile (%)
B5: =IF(ISERROR(INDIRECT(CONCATENATE($E$32,"!A2"))),"",INDIRECT(CONCATENATE($E$32,"!A2"))) -> Turkey
B7: =CONCATENATE("National ",IF(ISERROR(INDIRECT(CONCATENATE($E$32,"!A2"))),"",INDIRECT(CONCATENATE($E$32,"!A210")))) -> National Access to hygiene facilities | K7: =CONCATENATE("Urban ",IF(ISERROR(INDIRECT(CONCATENATE($E$32,"!A2"))),"",INDIRECT(CONCATENATE($E$32,"!A210")))) -> Urban Access to hygiene facilities | S7: =CONCATENATE("Rural ",IF(ISERROR(INDIRECT(CONCATENATE($E$32,"!A2"))),"",INDIRECT(CONCATENATE($E$32,"!A210")))) -> Rural Access to hygiene facilities
E32: =INDEX(B88:B100,A88) -> DHS13 | G32: =IF(ISERROR(INDIRECT(CONCATENATE($E$32,"!A2"))),"",INDIRECT(CONCATENATE($E$32,"!A2"))) -> Turkey | K32: Poorest | N32: Poor | Q32: Middle | T32: Rich | W32: Richest
K33: Basic | L33: Limited | M33: No facility | N33: Basic | O33: Limited | P33: No facility | Q33: Basic | R33: Limited | S33: No facility | T33: Basic | U33: Limited | V33: No facility | W33: Basic | X33: Limited | Y33: No facility
B34: >>> Select Survey : | G34: NATIONAL | J34: =IF(ISERROR(INDIRECT(CONCATENATE(#REF!,"!A2"))),"",INDIRECT(CONCATENATE(#REF!,"!A210"))) ->  | K34: =IF(ISERROR(INDIRECT(CONCATENATE($E$32,"!C222"))),"",INDIRECT(CONCATENATE($E$32,"!C222"))) -> N/A | L34: =IF(ISERROR(INDIRECT(CONCATENATE($E$32,"!C223"))),"",INDIRECT(CONCATENATE($E$32,"!C223"))) -> N/A | M34: =IF(ISERROR(INDIRECT(CONCATENATE($E$32,"!C224"))),"",INDIRECT(CONCATENATE($E$32,"!C224"))) -> N/A | N34: =IF(ISERROR(INDIRECT(CONCATENATE($E$32,"!D222"))),"",INDIRECT(CONCATENATE($E$32,"!D222"))) -> N/A | O34: =IF(ISERROR(INDIRECT(CONCATENATE($E$32,"!D223"))),"",INDIRECT(CONCATENATE($E$32,"!D223"))) -> N/A | P34: =IF(ISERROR(INDIRECT(CONCATENATE($E$32,"!D224"))),"",INDIRECT(CONCATENATE($E$32,"!D224"))) -> N/A | Q34: =IF(ISERROR(INDIRECT(CONCATENATE($E$32,"!E222"))),"",INDIRECT(CONCATENATE($E$32,"!E222"))) -> N/A | R34: =IF(ISERROR(INDIRECT(CONCATENATE($E$32,"!E223"))),"",INDIRECT(CONCATENATE($E$32,"!E223"))) -> N/A | S34: =IF(ISERROR(INDIRECT(CONCATENATE($E$32,"!E224"))),"",INDIRECT(CONCATENATE($E$32,"!E224"))) -> N/A | T34: =IF(ISERROR(INDIRECT(CONCATENATE($E$32,"!F222"))),"",INDIRECT(CONCATENATE($E$32,"!F222"))) -> N/A | U34: =IF(ISERROR(INDIRECT(CONCATENATE($E$32,"!F223"))),"",INDIRECT(CONCATENATE($E$32,"!F223"))) -> N/A | V34: =IF(ISERROR(INDIRECT(CONCATENATE($E$32,"!F224"))),"",INDIRECT(CONCATENATE($E$32,"!F224"))) -> N/A | W34: =IF(ISERROR(INDIRECT(CONCATENATE($E$32,"!G222"))),"",INDIRECT(CONCATENATE($E$32,"!G222"))) -> N/A | X34: =IF(ISERROR(INDIRECT(CONCATENATE($E$32,"!G223"))),"",INDIRECT(CONCATENATE($E$32,"!G223"))) -> N/A | Y34: =IF(ISERROR(INDIRECT(CONCATENATE($E$32,"!G224"))),"",INDIRECT(CONCATENATE($E$32,"!G224"))) -> N/A
G37: URBAN | J37: =IF(ISERROR(INDIRECT(CONCATENATE(#REF!,"!A2"))),"",INDIRECT(CONCATENATE(#REF!,"!A210"))) ->  | K37: =IF(ISERROR(INDIRECT(CONCATENATE($E$32,"!H222"))),"",INDIRECT(CONCATENATE($E$32,"!H222"))) -> N/A | L37: =IF(ISERROR(INDIRECT(CONCATENATE($E$32,"!H223"))),"",INDIRECT(CONCATENATE($E$32,"!H223"))) -> N/A | M37: =IF(ISERROR(INDIRECT(CONCATENATE($E$32,"!H224"))),"",INDIRECT(CONCATENATE($E$32,"!H224"))) -> N/A | N37: =IF(ISERROR(INDIRECT(CONCATENATE($E$32,"!I222"))),"",INDIRECT(CONCATENATE($E$32,"!I222"))) -> N/A | O37: =IF(ISERROR(INDIRECT(CONCATENATE($E$32,"!I223"))),"",INDIRECT(CONCATENATE($E$32,"!I223"))) -> N/A | P37: =IF(ISERROR(INDIRECT(CONCATENATE($E$32,"!I224"))),"",INDIRECT(CONCATENATE($E$32,"!I224"))) -> N/A | Q37: =IF(ISERROR(INDIRECT(CONCATENATE($E$32,"!J222"))),"",INDIRECT(CONCATENATE($E$32,"!J222"))) -> N/A | R37: =IF(ISERROR(INDIRECT(CONCATENATE($E$32,"!J223"))),"",INDIRECT(CONCATENATE($E$32,"!J223"))) -> N/A | S37: =IF(ISERROR(INDIRECT(CONCATENATE($E$32,"!J224"))),"",INDIRECT(CONCATENATE($E$32,"!J224"))) -> N/A | T37: =IF(ISERROR(INDIRECT(CONCATENATE($E$32,"!K222"))),"",INDIRECT(CONCATENATE($E$32,"!K222"))) -> N/A | U37: =IF(ISERROR(INDIRECT(CONCATENATE($E$32,"!K223"))),"",INDIRECT(CONCATENATE($E$32,"!K223"))) -> N/A | V37: =IF(ISERROR(INDIRECT(CONCATENATE($E$32,"!K224"))),"",INDIRECT(CONCATENATE($E$32,"!K224"))) -> N/A | W37: =IF(ISERROR(INDIRECT(CONCATENATE($E$32,"!L222"))),"",INDIRECT(CONCATENATE($E$32,"!L222"))) -> N/A | X37: =IF(ISERROR(INDIRECT(CONCATENATE($E$32,"!L223"))),"",INDIRECT(CONCATENATE($E$32,"!L223"))) -> N/A | Y37: =IF(ISERROR(INDIRECT(CONCATENATE($E$32,"!L224"))),"",INDIRECT(CONCATENATE($E$32,"!L224"))) -> N/A
G40: RURAL | J40: =IF(ISERROR(INDIRECT(CONCATENATE(#REF!,"!A2"))),"",INDIRECT(CONCATENATE(#REF!,"!A210"))) ->  | K40: =IF(ISERROR(INDIRECT(CONCATENATE($E$32,"!M222"))),"",INDIRECT(CONCATENATE($E$32,"!M222"))) -> N/A | L40: =IF(ISERROR(INDIRECT(CONCATENATE($E$32,"!M223"))),"",INDIRECT(CONCATENATE($E$32,"!M223"))) -> N/A | M40: =IF(ISERROR(INDIRECT(CONCATENATE($E$32,"!M224"))),"",INDIRECT(CONCATENATE($E$32,"!M224"))) -> N/A | N40: =IF(ISERROR(INDIRECT(CONCATENATE($E$32,"!N222"))),"",INDIRECT(CONCATENATE($E$32,"!N222"))) -> N/A | O40: =IF(ISERROR(INDIRECT(CONCATENATE($E$32,"!N223"))),"",INDIRECT(CONCATENATE($E$32,"!N223"))) -> N/A | P40: =IF(ISERROR(INDIRECT(CONCATENATE($E$32,"!N224"))),"",INDIRECT(CONCATENATE($E$32,"!N224"))) -> N/A | Q40: =IF(ISERROR(INDIRECT(CONCATENATE($E$32,"!O222"))),"",INDIRECT(CONCATENATE($E$32,"!O222"))) -> N/A | R40: =IF(ISERROR(INDIRECT(CONCATENATE($E$32,"!O223"))),"",INDIRECT(CONCATENATE($E$32,"!O223"))) -> N/A | S40: =IF(ISERROR(INDIRECT(CONCATENATE($E$32,"!O224"))),"",INDIRECT(CONCATENATE($E$32,"!O224"))) -> N/A | T40: =IF(ISERROR(INDIRECT(CONCATENATE($E$32,"!P222"))),"",INDIRECT(CONCATENATE($E$32,"!P222"))) -> N/A | U40: =IF(ISERROR(INDIRECT(CONCATENATE($E$32,"!P223"))),"",INDIRECT(CONCATENATE($E$32,"!P223"))) -> N/A | V40: =IF(ISERROR(INDIRECT(CONCATENATE($E$32,"!P224"))),"",INDIRECT(CONCATENATE($E$32,"!P224"))) -> N/A | W40: =IF(ISERROR(INDIRECT(CONCATENATE($E$32,"!Q222"))),"",INDIRECT(CONCATENATE($E$32,"!Q222"))) -> N/A | X40: =IF(ISERROR(INDIRECT(CONCATENATE($E$32,"!Q223"))),"",INDIRECT(CONCATENATE($E$32,"!Q223"))) -> N/A | Y40: =IF(ISERROR(INDIRECT(CONCATENATE($E$32,"!Q224"))),"",INDIRECT(CONCATENATE($E$32,"!Q224"))) -> N/A
A88: 3 | B88: DHS03
B89: DHS08
B90: DHS13
B91: Template

Sheet DHS03
A2: =A1026 -> Turkey
A3: =A1034 -> 2003
A4: Use of drinking water sources
A5: by wealth quintile and sub-national region
A6: Notes:
A7: WHO/UNICEF JMP customised wealth index excludes water,
A8: sanitation and hygiene assets.
A9: Survey used for analysis: | B9: =A1025 -> DHS03
A10: Improved wells + springs based on : | B10: DHS13
A11: =B1027 -> 
A14: Use of drinking water sources | C14: NATIONAL wealth index quintile | H14: URBAN wealth index quintile | M14: RURAL wealth index quintile | R14: SUB-REGIONS: | BA14: Raw numbers of respondents: | BB14: Use of drinking water sources | BC14: NATIONAL wealth index quintile | BH14: URBAN wealth index quintile | BM14: RURAL wealth index quintile | BR14: SUB-REGIONS:
A15: Weighted percentage (used in graphs) | C15: Poorest | D15: Poor | E15: Middle | F15: Rich | G15: Richest | H15: Poorest | I15: Poor | J15: Middle | K15: Rich | L15: Richest | M15: Poorest | N15: Poor | O15: Middle | P15: Rich | Q15: Richest | R15: Central | S15: East | T15: North | U15: South | V15: West | BA15: Water data, raw numbers (weighted) | BC15: Poorest | BD15: Poor | BE15: Middle | BF15: Rich | BG15: Richest | BH15: Poorest | BI15: Poor | BJ15: Middle | BK15: Rich | BL15: Richest | BM15: Poorest | BN15: Poor | BO15: Middle | BP15: Rich | BQ15: Richest | BR15: Central | BS15: East | BT15: North | BU15: South | BV15: West
A16: Water | B16: Improved | C16: =C58+C59+C62+C65+C66+C67+C68+C63*'DHS13'!C25/100+('DHS03'!C60+'DHS03'!C61)*'DHS13'!C24/100 -> 97.55562955 | D16: =D58+D59+D62+D65+D66+D67+D68+D63*'DHS13'!D25/100+('DHS03'!D60+'DHS03'!D61)*'DHS13'!D24/100 -> 98.80811867 | E16: =E58+E59+E62+E65+E66+E67+E68+E63*'DHS13'!E25/100+('DHS03'!E60+'DHS03'!E61)*'DHS13'!E24/100 -> 99.46323584 | F16: =F58+F59+F62+F65+F66+F67+F68+F63*'DHS13'!F25/100+('DHS03'!F60+'DHS03'!F61)*'DHS13'!F24/100 -> 99.66571082 | G16: =G58+G59+G62+G65+G66+G67+G68+G63*'DHS13'!G25/100+('DHS03'!G60+'DHS03'!G61)*'DHS13'!G24/100 -> 99.38309364 | H16: =H58+H59+H62+H65+H66+H67+H68+H63*'DHS13'!H25/100+('DHS03'!H60+'DHS03'!H61)*'DHS13'!H24/100 -> 99.3446191 | I16: =I58+I59+I62+I65+I66+I67+I68+I63*'DHS13'!I25/100+('DHS03'!I60+'DHS03'!I61)*'DHS13'!I24/100 -> 99.82417024 | J16: =J58+J59+J62+J65+J66+J67+J68+J63*'DHS13'!J25/100+('DHS03'!J60+'DHS03'!J61)*'DHS13'!J24/100 -> 99.76050778 | K16: =K58+K59+K62+K65+K66+K67+K68+K63*'DHS13'!K25/100+('DHS03'!K60+'DHS03'!K61)*'DHS13'!K24/100 -> 99.48918843 | L16: =L58+L59+L62+L65+L66+L67+L68+L63*'DHS13'!L25/100+('DHS03'!L60+'DHS03'!L61)*'DHS13'!L24/100 -> 99.45259872 | M16: =M58+M59+M62+M65+M66+M67+M68+M63*'DHS13'!M25/100+('DHS03'!M60+'DHS03'!M61)*'DHS13'!M24/100 -> 94.62116528 | N16: =N58+N59+N62+N65+N66+N67+N68+N63*'DHS13'!N25/100+('DHS03'!N60+'DHS03'!N61)*'DHS13'!N24/100 -> 97.14674062 | O16: =O58+O59+O62+O65+O66+O67+O68+O63*'DHS13'!O25/100+('DHS03'!O60+'DHS03'!O61)*'DHS13'!O24/100 -> 98.47090003 | P16: =P58+P59+P62+P65+P66+P67+P68+P63*'DHS13'!P25/100+('DHS03'!P60+'DHS03'!P61)*'DHS13'!P24/100 -> 98.41935697 | Q16: =Q58+Q59+Q62+Q65+Q66+Q67+Q68+Q63*'DHS13'!Q25/100+('DHS03'!Q60+'DHS03'!Q61)*'DHS13'!Q24/100 -> 99.27318423 | R16: =R58+R59+R62+R65+R66+R67+R68+R63*'DHS13'!R25/100+('DHS03'!R60+'DHS03'!R61)*'DHS13'!R24/100 -> 99.36341561 | S16: =S58+S59+S62+S65+S66+S67+S68+S63*'DHS13'!S25/100+('DHS03'!S60+'DHS03'!S61)*'DHS13'!S24/100 -> 97.97557125 | T16: =T58+T59+T62+T65+T66+T67+T68+T63*'DHS13'!T25/100+('DHS03'!T60+'DHS03'!T61)*'DHS13'!T24/100 -> 99.26516484 | U16: =U58+U59+U62+U65+U66+U67+U68+U63*'DHS13'!U25/100+('DHS03'!U60+'DHS03'!U61)*'DHS13'!U24/100 -> 97.85087982 | V16: =V58+V59+V62+V65+V66+V67+V68+V63*'DHS13'!V25/100+('DHS03'!V60+'DHS03'!V61)*'DHS13'!V24/100 -> 99.40554376 | BA16: Water | BB16: Improved | BC16: N/A | BD16: N/A | BE16: N/A | BF16: N/A | BG16: N/A | BH16: N/A | BI16: N/A | BJ16: N/A | BK16: N/A | BL16: N/A | BM16: N/A | BN16: N/A | BO16: N/A | BP16: N/A | BQ16: N/A | BR16: N/A | BS16: N/A | BT16: N/A | BU16: N/A | BV16: N/A
B17: Not Improved | C17: =100-C16 -> 2.444370445 | D17: =100-D16 -> 1.191881325 | E17: 0.5367641582 | F17: 0.3342891776 | G17: 0.6169063635 | H17: 0.6553808985 | I17: 0.1758297631 | J17: 0.2394922176 | K17: 0.5108115709 | L17: 0.5474012837 | M17: 5.378834723 | N17: 2.853259384 | O17: 1.52909997 | P17: 1.580643035 | Q17: 0.7268157685 | R17: 0.6365843856 | S17: 2.024428755 | T17: 0.7348351631 | U17: 2.149120181 | V17: 0.594456242 | BB17: Not Improved | BC17: N/A | BD17: N/A | BE17: N/A | BF17: N/A | BG17: N/A | BH17: N/A | BI17: N/A | BJ17: N/A | BK17: N/A | BL17: N/A | BM17: N/A | BN17: N/A | BO17: N/A | BP17: N/A | BQ17: N/A | BR17: N/A | BS17: N/A | BT17: N/A | BU17: N/A | BV17: N/A
A18: Water ladder | B18: Basic | C18: =C16*'DHS13'!C23/100 -> 96.1101552 | D18: =D16*'DHS13'!D23/100 -> 97.77482368 | E18: =E16*'DHS13'!E23/100 -> 98.0642017 | F18: =F16*'DHS13'!F23/100 -> 97.92119957 | G18: =G16*'DHS13'!G23/100 -> 98.84776678 | H18: =H16*'DHS13'!H23/100 -> 98.50842336 | I18: =I16*'DHS13'!I23/100 -> 98.70737402 | J18: =J16*'DHS13'!J23/100 -> 98.79374009 | K18: =K16*'DHS13'!K23/100 -> 97.79661888 | L18: =L16*'DHS13'!L23/100 -> 99.11504162 | M18: =M16*'DHS13'!M23/100 -> 91.9497463 | N18: =N16*'DHS13'!N23/100 -> 95.25442798 | O18: =O16*'DHS13'!O23/100 -> 97.40652213 | P18: =P16*'DHS13'!P23/100 -> 95.55304935 | Q18: =Q16*'DHS13'!Q23/100 -> 97.32098166 | R18: =R16*'DHS13'!R23/100 -> 97.40418073 | S18: =S16*'DHS13'!S23/100 -> 96.92958697 | T18: =T16*'DHS13'!T23/100 -> 97.26899694 | U18: =U16*'DHS13'!U23/100 -> 97.37475196 | V18: =V16*'DHS13'!V23/100 -> 98.3494364 | BA18: Water ladder | BB18: Basic | BC18: N/A | BD18: N/A | BE18: N/A | BF18: N/A | BG18: N/A | BH18: N/A | BI18: N/A | BJ18: N/A | BK18: N/A | BL18: N/A | BM18: N/A | BN18: N/A | BO18: N/A | BP18: N/A | BQ18: N/A | BR18: N/A | BS18: N/A | BT18: N/A | BU18: N/A | BV18: N/A
B19: Limited | C19: =C16*'DHS13'!C22/100 -> 1.445474354 | D19: =D16*'DHS13'!D22/100 -> 1.03329499 | E19: =E16*'DHS13'!E22/100 -> 1.399034138 | F19: =F16*'DHS13'!F22/100 -> 1.744511253 | G19: =G16*'DHS13'!G22/100 -> 0.5353268542 | H19: =H16*'DHS13'!H22/100 -> 0.8361957444 | I19: =I16*'DHS13'!I22/100 -> 1.116796216 | J19: =J16*'DHS13'!J22/100 -> 0.9667676957 | K19: =K16*'DHS13'!K22/100 -> 1.692569546 | L19: =L16*'DHS13'!L22/100 -> 0.3375570924 | M19: =M16*'DHS13'!M22/100 -> 2.671418972 | N19: =N16*'DHS13'!N22/100 -> 1.89231264 | O19: =O16*'DHS13'!O22/100 -> 1.064377902 | P19: =P16*'DHS13'!P22/100 -> 2.866307613 | Q19: =Q16*'DHS13'!Q22/100 -> 1.95220257 | R19: =R16*'DHS13'!R22/100 -> 1.959234885 | S19: =S16*'DHS13'!S22/100 -> 1.045984272 | T19: =T16*'DHS13'!T22/100 -> 1.996167895 | U19: =U16*'DHS13'!U22/100 -> 0.4761278589 | V19: =V16*'DHS13'!V22/100 -> 1.056107357 | BB19: Limited | BC19: N/A | BD19: N/A | BE19: N/A | BF19: N/A | BG19: N/A | BH19: N/A | BI19: N/A | BJ19: N/A | BK19: N/A | BL19: N/A | BM19: N/A | BN19: N/A | BO19: N/A | BP19: N/A | BQ19: N/A | BR19: N/A | BS19: N/A | BT19: N/A | BU19: N/A | BV19: N/A
B20: Unimproved | C20: =100-C18-C19-C21 -> 2.362298701 | D20: =100-D18-D19-D21 -> 1.045267263 | E20: 0.5021221026 | F20: 0.3342891776 | G20: 0.4839030456 | H20: 0.628869879 | I20: 0.1758297631 | J20: 0.2394922176 | K20: 0.4436276179 | L20: 0.4176179259 | M20: 5.303954534 | N20: 2.675621347 | O20: 1.132465643 | P20: 1.474072686 | Q20: 0.7268157685 | R20: 0.6201724332 | S20: 1.967787058 | T20: 0.4819180618 | U20: 2.009379208 | V20: 0.5238344358 | BB20: Unimproved | BC20: N/A | BD20: N/A | BE20: N/A | BF20: N/A | BG20: N/A | BH20: N/A | BI20: N/A | BJ20: N/A | BK20: N/A | BL20: N/A | BM20: N/A | BN20: N/A | BO20: N/A | BP20: N/A | BQ20: N/A | BR20: N/A | BS20: N/A | BT20: N/A | BU20: N/A | BV20: N/A
B21: Surface water | C21: =C64 -> 0.08207174398 | D21: 0.1466140627 | E21: 0.03464205564 | F21: 0 | G21: 0.1330033179 | H21: 0.02651101953 | I21: 0 | J21: 0 | K21: 0.06718395301 | L21: 0.1297833579 | M21: 0.07488018955 | N21: 0.1776380378 | O21: 0.3966343263 | P21: 0.106570349 | Q21: 0 | R21: 0.01641195241 | S21: 0.05664169676 | T21: 0.2529171013 | U21: 0.1397409731 | V21: 0.07062180617 | BB21: Surface water | BC21: N/A | BD21: N/A | BE21: N/A | BF21: N/A | BG21: N/A | BH21: N/A | BI21: N/A | BJ21: N/A | BK21: N/A | BL21: N/A | BM21: N/A | BN21: N/A | BO21: N/A | BP21: N/A | BQ21: N/A | BR21: N/A | BS21: N/A | BT21: N/A | BU21: N/A | BV21: N/A
A22: Improved water point at more than 30 minutes | B22: Yes | C22: N/A | D22: N/A | E22: N/A | F22: N/A | G22: N/A | H22: N/A | I22: N/A | J22: N/A | K22: N/A | L22: N/A | M22: N/A | N22: N/A | O22: N/A | P22: N/A | Q22: N/A | R22: N/A | S22: N/A | T22: N/A | U22: N/A | V22: N/A | BA22: Improved water point at more than 30 minutes | BB22: Yes | BC22: N/A | BD22: N/A | BE22: N/A | BF22: N/A | BG22: N/A | BH22: N/A | BI22: N/A | BJ22: N/A | BK22: N/A | BL22: N/A | BM22: N/A | BN22: N/A | BO22: N/A | BP22: N/A | BQ22: N/A | BR22: N/A | BS22: N/A | BT22: N/A | BU22: N/A | BV22: N/A
B23: No | C23: N/A | D23: N/A | E23: N/A | F23: N/A | G23: N/A | H23: N/A | I23: N/A | J23: N/A | K23: N/A | L23: N/A | M23: N/A | N23: N/A | O23: N/A | P23: N/A | Q23: N/A | R23: N/A | S23: N/A | T23: N/A | U23: N/A | V23: N/A | BB23: No | BC23: N/A | BD23: N/A | BE23: N/A | BF23: N/A | BG23: N/A | BH23: N/A | BI23: N/A | BJ23: N/A | BK23: N/A | BL23: N/A | BM23: N/A | BN23: N/A | BO23: N/A | BP23: N/A | BQ23: N/A | BR23: N/A | BS23: N/A | BT23: N/A | BU23: N/A | BV23: N/A
A24: Manually calculated ratios | B24: Improved wells
B25: Improved springs
B26: Other
C27: NATIONAL wealth index quintile | H27: URBAN wealth index quintile | M27: RURAL wealth index quintile | R27: SUB-REGIONS: | BA27: Raw numbers of respondents: | BB27: Use of drinking water sources | BC27: NATIONAL wealth index quintile | BH27: URBAN wealth index quintile | BM27: RURAL wealth index quintile | BR27: SUB-REGIONS:
A28: Percentage based on weighted population | C28: Poorest | D28: Poor | E28: Middle | F28: Rich | G28: Richest | H28: Poorest | I28: Poor | J28: Middle | K28: Rich | L28: Richest | M28: Poorest | N28: Poor | O28: Middle | P28: Rich | Q28: Richest | R28: Central | S28: East | T28: North | U28: South | V28: West | BA28: Water data, raw numbers (weighted) | BC28: Poorest | BD28: Poor | BE28: Middle | BF28: Rich | BG28: Richest | BH28: Poorest | BI28: Poor | BJ28: Middle | BK28: Rich | BL28: Richest | BM28: Poorest | BN28: Poor | BO28: Middle | BP28: Rich | BQ28: Richest | BR28: Central | BS28: East | BT28: North | BU28: South | BV28: West
A29: Piped water | B29: Yes | C29: 33.6362146 | D29: 56.70645713 | E29: 73.80117169 | F29: 81.41556176 | G29: 84.71381136 | H29: 89.3126098 | I29: 90.35264691 | J29: 90.38091292 | K29: 90.41963539 | L29: 89.77085797 | M29: 6.53303812 | N29: 8.487432907 | O29: 12.9859111 | P29: 18.39547374 | Q29: 34.59824912 | R29: 58.93984003 | S29: 55.01901508 | T29: 50.0361256 | U29: 72.05980049 | V29: 77.09730148 | BA29: Piped water | BB29: Yes | BC29: N/A | BD29: N/A | BE29: N/A | BF29: N/A | BG29: N/A | BH29: N/A | BI29: N/A | BJ29: N/A | BK29: N/A | BL29: N/A | BM29: N/A | BN29: N/A | BO29: N/A | BP29: N/A | BQ29: N/A | BR29: N/A | BS29: N/A | BT29: N/A | BU29: N/A | BV29: N/A
B30: No | C30: 66.3637854 | D30: 43.29354287 | E30: 26.19882831 | F30: 18.58443824 | G30: 15.28618864 | H30: 10.6873902 | I30: 9.647353088 | J30: 9.619087078 | K30: 9.580364612 | L30: 10.22914203 | M30: 93.46696188 | N30: 91.51256709 | O30: 87.0140889 | P30: 81.60452626 | Q30: 65.40175088 | R30: 41.06015997 | S30: 44.98098492 | T30: 49.9638744 | U30: 27.94019951 | V30: 22.90269852 | BB30: No | BC30: N/A | BD30: N/A | BE30: N/A | BF30: N/A | BG30: N/A | BH30: N/A | BI30: N/A | BJ30: N/A | BK30: N/A | BL30: N/A | BM30: N/A | BN30: N/A | BO30: N/A | BP30: N/A | BQ30: N/A | BR30: N/A | BS30: N/A | BT30: N/A | BU30: N/A | BV30: N/A
A31: Piped water on premises | B31: Yes | C31: 33.03470126 | D31: 56.55162668 | E31: 73.39199662 | F31: 81.19360191 | G31: 84.15430985 | H31: 88.40167165 | I31: 89.92999412 | J31: 89.98418223 | K31: 90.26841867 | L31: 89.0705986 | M31: 6.260642586 | N31: 8.487432907 | O31: 12.9859111 | P31: 18.39547374 | Q31: 34.24266064 | R31: 58.81634945 | S31: 54.64112925 | T31: 50.00515217 | U31: 71.9122011 | V31: 76.38924934 | BA31: Piped water on premises | BB31: Yes | BC31: N/A | BD31: N/A | BE31: N/A | BF31: N/A | BG31: N/A | BH31: N/A | BI31: N/A | BJ31: N/A | BK31: N/A | BL31: N/A | BM31: N/A | BN31: N/A | BO31: N/A | BP31: N/A | BQ31: N/A | BR31: N/A | BS31: N/A | BT31: N/A | BU31: N/A | BV31: N/A
B32: No | C32: 66.96529874 | D32: 43.44837332 | E32: 26.60800338 | F32: 18.80639809 | G32: 15.84569015 | H32: 11.59832835 | I32: 10.07000588 | J32: 10.01581777 | K32: 9.731581334 | L32: 10.9294014 | M32: 93.73935741 | N32: 91.51256709 | O32: 87.0140889 | P32: 81.60452626 | Q32: 65.75733936 | R32: 41.18365055 | S32: 45.35887075 | T32: 49.99484783 | U32: 28.0877989 | V32: 23.61075066 | BB32: No | BC32: N/A | BD32: N/A | BE32: N/A | BF32: N/A | BG32: N/A | BH32: N/A | BI32: N/A | BJ32: N/A | BK32: N/A | BL32: N/A | BM32: N/A | BN32: N/A | BO32: N/A | BP32: N/A | BQ32: N/A | BR32: N/A | BS32: N/A | BT32: N/A | BU32: N/A | BV32: N/A
A33: Piped water into dwelling | B33: Yes | C33: N/A | D33: N/A | E33: N/A | F33: N/A | G33: N/A | H33: N/A | I33: N/A | J33: N/A | K33: N/A | L33: N/A | M33: N/A | N33: N/A | O33: N/A | P33: N/A | Q33: N/A | R33: N/A | S33: N/A | T33: N/A | U33: N/A | V33: N/A | BA33: Piped water into dwelling | BB33: Yes | BC33: N/A | BD33: N/A | BE33: N/A | BF33: N/A | BG33: N/A | BH33: N/A | BI33: N/A | BJ33: N/A | BK33: N/A | BL33: N/A | BM33: N/A | BN33: N/A | BO33: N/A | BP33: N/A | BQ33: N/A | BR33: N/A | BS33: N/A | BT33: N/A | BU33: N/A | BV33: N/A
B34: No | C34: N/A | D34: N/A | E34: N/A | F34: N/A | G34: N/A | H34: N/A | I34: N/A | J34: N/A | K34: N/A | L34: N/A | M34: N/A | N34: N/A | O34: N/A | P34: N/A | Q34: N/A | R34: N/A | S34: N/A | T34: N/A | U34: N/A | V34: N/A | BB34: No | BC34: N/A | BD34: N/A | BE34: N/A | BF34: N/A | BG34: N/A | BH34: N/A | BI34: N/A | BJ34: N/A | BK34: N/A | BL34: N/A | BM34: N/A | BN34: N/A | BO34: N/A | BP34: N/A | BQ34: N/A | BR34: N/A | BS34: N/A | BT34: N/A | BU34: N/A | BV34: N/A
A35: Water source on premises | B35: Yes | C35: 33.40696143 | D35: 56.86460254 | E35: 73.50652828 | F35: 81.19360191 | G35: 84.20460478 | H35: 88.70921105 | I35: 89.98757986 | J35: 89.98418223 | K35: 90.26841867 | L35: 89.14506197 | M35: 7.025426987 | N35: 8.52347071 | O35: 13.53505855 | P35: 18.74827585 | Q35: 34.24266064 | R35: 58.87312118 | S35: 55.07173701 | T35: 50.60186824 | U35: 72.06198127 | V35: 76.40914687 | BA35: Water source on premises | BB35: Yes | BC35: N/A | BD35: N/A | BE35: N/A | BF35: N/A | BG35: N/A | BH35: N/A | BI35: N/A | BJ35: N/A | BK35: N/A | BL35: N/A | BM35: N/A | BN35: N/A | BO35: N/A | BP35: N/A | BQ35: N/A | BR35: N/A | BS35: N/A | BT35: N/A | BU35: N/A | BV35: N/A
B36: No | C36: 66.59303857 | D36: 43.13539746 | E36: 26.49347172 | F36: 18.80639809 | G36: 15.79539522 | H36: 11.29078895 | I36: 10.01242014 | J36: 10.01581777 | K36: 9.731581334 | L36: 10.85493803 | M36: 92.97457301 | N36: 91.47652929 | O36: 86.46494145 | P36: 81.25172415 | Q36: 65.75733936 | R36: 41.12687882 | S36: 44.92826299 | T36: 49.39813176 | U36: 27.93801873 | V36: 23.59085313 | BB36: No | BC36: N/A | BD36: N/A | BE36: N/A | BF36: N/A | BG36: N/A | BH36: N/A | BI36: N/A | BJ36: N/A | BK36: N/A | BL36: N/A | BM36: N/A | BN36: N/A | BO36: N/A | BP36: N/A | BQ36: N/A | BR36: N/A | BS36: N/A | BT36: N/A | BU36: N/A | BV36: N/A
A37: Improved Water source on premises | B37: Yes | C37: N/A | D37: N/A | E37: N/A | F37: N/A | G37: N/A | H37: N/A | I37: N/A | J37: N/A | K37: N/A | L37: N/A | M37: N/A | N37: N/A | O37: N/A | P37: N/A | Q37: N/A | R37: N/A | S37: N/A | T37: N/A | U37: N/A | V37: N/A | BA37: Improved water source on premises | BB37: Yes | BC37: N/A | BD37: N/A | BE37: N/A | BF37: N/A | BG37: N/A | BH37: N/A | BI37: N/A | BJ37: N/A | BK37: N/A | BL37: N/A | BM37: N/A | BN37: N/A | BO37: N/A | BP37: N/A | BQ37: N/A | BR37: N/A | BS37: N/A | BT37: N/A | BU37: N/A | BV37: N/A
B38: No | C38: N/A | D38: N/A | E38: N/A | F38: N/A | G38: N/A | H38: N/A | I38: N/A | J38: N/A | K38: N/A | L38: N/A | M38: N/A | N38: N/A | O38: N/A | P38: N/A | Q38: N/A | R38: N/A | S38: N/A | T38: N/A | U38: N/A | V38: N/A | BB38: No | BC38: N/A | BD38: N/A | BE38: N/A | BF38: N/A | BG38: N/A | BH38: N/A | BI38: N/A | BJ38: N/A | BK38: N/A | BL38: N/A | BM38: N/A | BN38: N/A | BO38: N/A | BP38: N/A | BQ38: N/A | BR38: N/A | BS38: N/A | BT38: N/A | BU38: N/A | BV38: N/A
A39: Piped water on premises available when needed | B39: Yes | C39: N/A | D39: N/A | E39: N/A | F39: N/A | G39: N/A | H39: N/A | I39: N/A | J39: N/A | K39: N/A | L39: N/A | M39: N/A | N39: N/A | O39: N/A | P39: N/A | Q39: N/A | R39: N/A | S39: N/A | T39: N/A | U39: N/A | V39: N/A | BA39: Piped water on premises available when needed | BB39: Yes | BC39: N/A | BD39: N/A | BE39: N/A | BF39: N/A | BG39: N/A | BH39: N/A | BI39: N/A | BJ39: N/A | BK39: N/A | BL39: N/A | BM39: N/A | BN39: N/A | BO39: N/A | BP39: N/A | BQ39: N/A | BR39: N/A | BS39: N/A | BT39: N/A | BU39: N/A | BV39: N/A
B40: No | C40: N/A | D40: N/A | E40: N/A | F40: N/A | G40: N/A | H40: N/A | I40: N/A | J40: N/A | K40: N/A | L40: N/A | M40: N/A | N40: N/A | O40: N/A | P40: N/A | Q40: N/A | R40: N/A | S40: N/A | T40: N/A | U40: N/A | V40: N/A | BB40: No | BC40: N/A | BD40: N/A | BE40: N/A | BF40: N/A | BG40: N/A | BH40: N/A | BI40: N/A | BJ40: N/A | BK40: N/A | BL40: N/A | BM40: N/A | BN40: N/A | BO40: N/A | BP40: N/A | BQ40: N/A | BR40: N/A | BS40: N/A | BT40: N/A | BU40: N/A | BV40: N/A
A41: Water point at more than 30 minutes | B41: Yes | C41: 4.745846939 | D41: 2.044837315 | E41: 2.083858895 | F41: 1.970005341 | G41: 1.851439891 | H41: 1.161484481 | I41: 1.507419951 | J41: 2.016385393 | K41: 2.082601134 | L41: 1.75106683 | M41: 11.95297342 | N41: 9.979661052 | O41: 3.787089491 | P41: 7.648983855 | Q41: 1.786476846 | R41: 1.314702309 | S41: 2.741077696 | T41: 2.304860717 | U41: 2.673386274 | V41: 2.558157032 | BA41: Water point at more than 30 minutes | BB41: Yes | BC41: N/A | BD41: N/A | BE41: N/A | BF41: N/A | BG41: N/A | BH41: N/A | BI41: N/A | BJ41: N/A | BK41: N/A | BL41: N/A | BM41: N/A | BN41: N/A | BO41: N/A | BP41: N/A | BQ41: N/A | BR41: N/A | BS41: N/A | BT41: N/A | BU41: N/A | BV41: N/A
B42: No | C42: 95.25415306 | D42: 97.95516269 | E42: 97.9161411 | F42: 98.02999466 | G42: 98.14856011 | H42: 98.83851552 | I42: 98.49258005 | J42: 97.98361461 | K42: 97.91739887 | L42: 98.24893317 | M42: 88.04702658 | N42: 90.02033895 | O42: 96.21291051 | P42: 92.35101615 | Q42: 98.21352315 | R42: 98.68529769 | S42: 97.2589223 | T42: 97.69513928 | U42: 97.32661373 | V42: 97.44184297 | BB42: No | BC42: N/A | BD42: N/A | BE42: N/A | BF42: N/A | BG42: N/A | BH42: N/A | BI42: N/A | BJ42: N/A | BK42: N/A | BL42: N/A | BM42: N/A | BN42: N/A | BO42: N/A | BP42: N/A | BQ42: N/A | BR42: N/A | BS42: N/A | BT42: N/A | BU42: N/A | BV42: N/A
A43: Water source available when needed | B43: Yes | C43: 88.45567047 | D43: 94.28844253 | E43: 96.62359238 | F43: 98.15850004 | G43: 98.97600157 | H43: 91.96723881 | I43: 96.43180938 | J43: 98.09634785 | K43: 98.13342241 | L43: 99.2675587 | M43: 87.72247198 | N43: 87.85972838 | O43: 93.93093977 | P43: 94.6608288 | Q43: 97.28286472 | R43: 96.43207465 | S43: 87.41161468 | T43: 96.02923708 | U43: 94.32038894 | V43: 98.92295921 | BA43: Water source available when needed | BB43: Yes | BC43: N/A | BD43: N/A | BE43: N/A | BF43: N/A | BG43: N/A | BH43: N/A | BI43: N/A | BJ43: N/A | BK43: N/A | BL43: N/A | BM43: N/A | BN43: N/A | BO43: N/A | BP43: N/A | BQ43: N/A | BR43: N/A | BS43: N/A | BT43: N/A | BU43: N/A | BV43: N/A
B44: No | C44: 11.54432953 | D44: 5.711557466 | E44: 3.376407623 | F44: 1.841499964 | G44: 1.02399843 | H44: 8.032761188 | I44: 3.568190618 | J44: 1.903652146 | K44: 1.866577595 | L44: 0.7324412969 | M44: 12.27752802 | N44: 12.14027162 | O44: 6.069060233 | P44: 5.339171198 | Q44: 2.717135282 | R44: 3.567925349 | S44: 12.58838532 | T44: 3.970762921 | U44: 5.679611059 | V44: 1.07704079 | BB44: No | BC44: N/A | BD44: N/A | BE44: N/A | BF44: N/A | BG44: N/A | BH44: N/A | BI44: N/A | BJ44: N/A | BK44: N/A | BL44: N/A | BM44: N/A | BN44: N/A | BO44: N/A | BP44: N/A | BQ44: N/A | BR44: N/A | BS44: N/A | BT44: N/A | BU44: N/A | BV44: N/A
A45: Improved water source available when needed | B45: Yes | C45: N/A | D45: N/A | E45: N/A | F45: N/A | G45: N/A | H45: N/A | I45: N/A | J45: N/A | K45: N/A | L45: N/A | M45: N/A | N45: N/A | O45: N/A | P45: N/A | Q45: N/A | R45: N/A | S45: N/A | T45: N/A | U45: N/A | V45: N/A | BA45: Improved water source available when needed | BB45: Yes | BC45: N/A | BD45: N/A | BE45: N/A | BF45: N/A | BG45: N/A | BH45: N/A | BI45: N/A | BJ45: N/A | BK45: N/A | BL45: N/A | BM45: N/A | BN45: N/A | BO45: N/A | BP45: N/A | BQ45: N/A | BR45: N/A | BS45: N/A | BT45: N/A | BU45: N/A | BV45: N/A
B46: No | C46: N/A | D46: N/A | E46: N/A | F46: N/A | G46: N/A | H46: N/A | I46: N/A | J46: N/A | K46: N/A | L46: N/A | M46: N/A | N46: N/A | O46: N/A | P46: N/A | Q46: N/A | R46: N/A | S46: N/A | T46: N/A | U46: N/A | V46: N/A | BB46: No | BC46: N/A | BD46: N/A | BE46: N/A | BF46: N/A | BG46: N/A | BH46: N/A | BI46: N/A | BJ46: N/A | BK46: N/A | BL46: N/A | BM46: N/A | BN46: N/A | BO46: N/A | BP46: N/A | BQ46: N/A | BR46: N/A | BS46: N/A | BT46: N/A | BU46: N/A | BV46: N/A
A47: Microbiological quality at point of collection | B47: Not contaminated (No E. coli in 100 mL) | C47: N/A | D47: N/A | E47: N/A | F47: N/A | G47: N/A | H47: N/A | I47: N/A | J47: N/A | K47: N/A | L47: N/A | M47: N/A | N47: N/A | O47: N/A | P47: N/A | Q47: N/A | R47: N/A | S47: N/A | T47: N/A | U47: N/A | V47: N/A | BA47: Microbiological quality at point of collection | BB47: Not contaminated (No E. coli in 100 mL) | BC47: N/A | BD47: N/A | BE47: N/A | BF47: N/A | BG47: N/A | BH47: N/A | BI47: N/A | BJ47: N/A | BK47: N/A | BL47: N/A | BM47: N/A | BN47: N/A | BO47: N/A | BP47: N/A | BQ47: N/A | BR47: N/A | BS47: N/A | BT47: N/A | BU47: N/A | BV47: N/A
B48: Contaminated (E. coli detected in 100 mL) | C48: N/A | D48: N/A | E48: N/A | F48: N/A | G48: N/A | H48: N/A | I48: N/A | J48: N/A | K48: N/A | L48: N/A | M48: N/A | N48: N/A | O48: N/A | P48: N/A | Q48: N/A | R48: N/A | S48: N/A | T48: N/A | U48: N/A | V48: N/A | BB48: Contaminated (E. coli detected in 100 mL) | BC48: N/A | BD48: N/A | BE48: N/A | BF48: N/A | BG48: N/A | BH48: N/A | BI48: N/A | BJ48: N/A | BK48: N/A | BL48: N/A | BM48: N/A | BN48: N/A | BO48: N/A | BP48: N/A | BQ48: N/A | BR48: N/A | BS48: N/A | BT48: N/A | BU48: N/A | BV48: N/A
B49: Highly contaminated (>100 CFU/100 mL) | C49: N/A | D49: N/A | E49: N/A | F49: N/A | G49: N/A | H49: N/A | I49: N/A | J49: N/A | K49: N/A | L49: N/A | M49: N/A | N49: N/A | O49: N/A | P49: N/A | Q49: N/A | R49: N/A | S49: N/A | T49: N/A | U49: N/A | V49: N/A | BB49: Highly contaminated (>100 CFU/100 mL) | BC49: N/A | BD49: N/A | BE49: N/A | BF49: N/A | BG49: N/A | BH49: N/A | BI49: N/A | BJ49: N/A | BK49: N/A | BL49: N/A | BM49: N/A | BN49: N/A | BO49: N/A | BP49: N/A | BQ49: N/A | BR49: N/A | BS49: N/A | BT49: N/A | BU49: N/A | BV49: N/A
A50: Microbiological quality of improved water sources at point of collection | B50: Not contaminated (No E. coli in 100 mL) | C50: N/A | D50: N/A | E50: N/A | F50: N/A | G50: N/A | H50: N/A | I50: N/A | J50: N/A | K50: N/A | L50: N/A | M50: N/A | N50: N/A | O50: N/A | P50: N/A | Q50: N/A | R50: N/A | S50: N/A | T50: N/A | U50: N/A | V50: N/A | BA50: Microbiological quality of improved water sources at point of collection | BB50: Not contaminated (No E. coli in 100 mL) | BC50: N/A | BD50: N/A | BE50: N/A | BF50: N/A | BG50: N/A | BH50: N/A | BI50: N/A | BJ50: N/A | BK50: N/A | BL50: N/A | BM50: N/A | BN50: N/A | BO50: N/A | BP50: N/A | BQ50: N/A | BR50: N/A | BS50: N/A | BT50: N/A | BU50: N/A | BV50: N/A
B51: Contaminated (E. coli detected in 100 mL) | C51: N/A | D51: N/A | E51: N/A | F51: N/A | G51: N/A | H51: N/A | I51: N/A | J51: N/A | K51: N/A | L51: N/A | M51: N/A | N51: N/A | O51: N/A | P51: N/A | Q51: N/A | R51: N/A | S51: N/A | T51: N/A | U51: N/A | V51: N/A | BB51: Contaminated (E. coli detected in 100 mL) | BC51: N/A | BD51: N/A | BE51: N/A | BF51: N/A | BG51: N/A | BH51: N/A | BI51: N/A | BJ51: N/A | BK51: N/A | BL51: N/A | BM51: N/A | BN51: N/A | BO51: N/A | BP51: N/A | BQ51: N/A | BR51: N/A | BS51: N/A | BT51: N/A | BU51: N/A | BV51: N/A
B52: Highly contaminated (>100 CFU/100 mL) | C52: N/A | D52: N/A | E52: N/A | F52: N/A | G52: N/A | H52: N/A | I52: N/A | J52: N/A | K52: N/A | L52: N/A | M52: N/A | N52: N/A | O52: N/A | P52: N/A | Q52: N/A | R52: N/A | S52: N/A | T52: N/A | U52: N/A | V52: N/A | BB52: Highly contaminated (>100 CFU/100 mL) | BC52: N/A | BD52: N/A | BE52: N/A | BF52: N/A | BG52: N/A | BH52: N/A | BI52: N/A | BJ52: N/A | BK52: N/A | BL52: N/A | BM52: N/A | BN52: N/A | BO52: N/A | BP52: N/A | BQ52: N/A | BR52: N/A | BS52: N/A | BT52: N/A | BU52: N/A | BV52: N/A
A53: Microbiological quality of piped on premises at point of collection | B53: Not contaminated (No E. coli in 100 mL) | C53: N/A | D53: N/A | E53: N/A | F53: N/A | G53: N/A | H53: N/A | I53: N/A | J53: N/A | K53: N/A | L53: N/A | M53: N/A | N53: N/A | O53: N/A | P53: N/A | Q53: N/A | R53: N/A | S53: N/A | T53: N/A | U53: N/A | V53: N/A | BA53: Microbiological quality of piped on premises at point of collection | BB53: Not contaminated (No E. coli in 100 mL) | BC53: N/A | BD53: N/A | BE53: N/A | BF53: N/A | BG53: N/A | BH53: N/A | BI53: N/A | BJ53: N/A | BK53: N/A | BL53: N/A | BM53: N/A | BN53: N/A | BO53: N/A | BP53: N/A | BQ53: N/A | BR53: N/A | BS53: N/A | BT53: N/A | BU53: N/A | BV53: N/A
B54: Contaminated (E. coli detected in 100 mL) | C54: N/A | D54: N/A | E54: N/A | F54: N/A | G54: N/A | H54: N/A | I54: N/A | J54: N/A | K54: N/A | L54: N/A | M54: N/A | N54: N/A | O54: N/A | P54: N/A | Q54: N/A | R54: N/A | S54: N/A | T54: N/A | U54: N/A | V54: N/A | BB54: Contaminated (E. coli detected in 100 mL) | BC54: N/A | BD54: N/A | BE54: N/A | BF54: N/A | BG54: N/A | BH54: N/A | BI54: N/A | BJ54: N/A | BK54: N/A | BL54: N/A | BM54: N/A | BN54: N/A | BO54: N/A | BP54: N/A | BQ54: N/A | BR54: N/A | BS54: N/A | BT54: N/A | BU54: N/A | BV54: N/A
B55: Highly contaminated (>100 CFU/100 mL) | C55: N/A | D55: N/A | E55: N/A | F55: N/A | G55: N/A | H55: N/A | I55: N/A | J55: N/A | K55: N/A | L55: N/A | M55: N/A | N55: N/A | O55: N/A | P55: N/A | Q55: N/A | R55: N/A | S55: N/A | T55: N/A | U55: N/A | V55: N/A | BB55: Highly contaminated (>100 CFU/100 mL) | BC55: N/A | BD55: N/A | BE55: N/A | BF55: N/A | BG55: N/A | BH55: N/A | BI55: N/A | BJ55: N/A | BK55: N/A | BL55: N/A | BM55: N/A | BN55: N/A | BO55: N/A | BP55: N/A | BQ55: N/A | BR55: N/A | BS55: N/A | BT55: N/A | BU55: N/A | BV55: N/A
C56: NATIONAL wealth index quintile | H56: URBAN wealth index quintile | M56: RURAL wealth index quintile | R56: SUB-REGIONS: | BA56: Raw numbers of respondents: | BB56: Use of drinking water sources | BC56: NATIONAL wealth index quintile | BH56: URBAN wealth index quintile | BM56: RURAL wealth index quintile | BR56: SUB-REGIONS:
A57: Percentage based on weighted population | C57: Poorest | D57: Poor | E57: Middle | F57: Rich | G57: Richest | H57: Poorest | I57: Poor | J57: Middle | K57: Rich | L57: Richest | M57: Poorest | N57: Poor | O57: Middle | P57: Rich | Q57: Richest | R57: Central | S57: East | T57: North | U57: South | V57: West | BA57: Water data, raw numbers (weighted) | BC57: Poorest | BD57: Poor | BE57: Middle | BF57: Rich | BG57: Richest | BH57: Poorest | BI57: Poor | BJ57: Middle | BK57: Rich | BL57: Richest | BM57: Poorest | BN57: Poor | BO57: Middle | BP57: Rich | BQ57: Richest | BR57: Central | BS57: East | BT57: North | BU57: South | BV57: West
A58: Source of drinking water | B58: Piped water in house/garden | C58: 31.91421272 | D58: 53.11886426 | E58: 63.60221156 | F58: 62.17851293 | G58: 43.78878954 | H58: 84.53769835 | I58: 80.16979188 | J58: 72.05319747 | K58: 64.37819893 | L58: 40.08664547 | M58: 6.028492515 | N58: 8.487432907 | O58: 12.49129882 | P58: 17.35084517 | Q58: 30.22682226 | R58: 49.2591329 | S58: 53.39090003 | T58: 42.48649515 | U58: 65.90046131 | V58: 47.06117602
B59: Public piped water outside house/garden | C59: 0.6015133454 | D59: 0.1549020963 | E59: 0.4097151578 | F59: 0.221959846 | G59: 0.5073508032 | H59: 0.9109381573 | I59: 0.4226527945 | J59: 0.3975078022 | K59: 0.1512167224 | L59: 0.7009864243 | M59: 0.2723955335 | N59: 0 | O59: 0 | P59: 0 | Q59: 0.1939573561 | R59: 0.1236400426 | S59: 0.3778858292 | T59: 0.0309734249 | U59: 0.1477025114 | V59: 0.680416568
B60: Public well | C60: 2.676256293 | D60: 0.8802631134 | E60: 0.7272746462 | F60: 0.2812708024 | G60: 0.6574604705 | H60: 0.7178645397 | I60: 0.6575372167 | J60: 0.2834697675 | K60: 0.5177781033 | L60: 0.482210432 | M60: 5.038741268 | N60: 2.295789298 | O60: 1.191687218 | P60: 0.7980935497 | Q60: 1.22321975 | R60: 0.877784303 | S60: 2.090418579 | T60: 0.6253946761 | U60: 1.446643902 | V60: 0.5415626349
B61: Well in house/garden | C61: 5.857904981 | D61: 4.200493963 | E61: 1.987482882 | F61: 1.435986982 | G61: 0.7251637364 | H61: 1.967306532 | I61: 1.049769842 | J61: 0.6648018533 | K61: 0.1734577669 | L61: 0.4018932891 | M61: 7.826453187 | N61: 7.4072353 | O61: 6.980819907 | P61: 7.020556107 | Q61: 5.640481727 | R61: 0.6645633578 | S61: 5.904936909 | T61: 1.514393181 | U61: 3.746032569 | V61: 2.462008574
B62: Piped surface water in house/garden | C62: 45.20016249 | D62: 30.95757757 | E62: 17.48424774 | F62: 10.4355375 | G62: 5.366466629 | H62: 3.819402051 | I62: 3.858218416 | J62: 2.370197013 | K62: 2.143697082 | L62: 1.38000425 | M62: 63.4271436 | N62: 66.73964883 | O62: 65.70579111 | P62: 63.96200074 | Q62: 48.80643388 | R62: 29.75654159 | S62: 28.20778311 | T62: 36.02455739 | U62: 15.44129504 | V62: 13.41367113
B63: Spring/public fountain | C63: 11.47654588 | D63: 6.32308947 | E63: 4.852854088 | F63: 5.569901 | G63: 6.195180523 | H63: 3.082661697 | I63: 3.445871373 | J63: 5.312898434 | K63: 5.649307605 | L63: 5.819576443 | M63: 16.32490972 | N63: 14.22058769 | O63: 11.79901827 | P63: 8.081790206 | Q63: 7.080635286 | R63: 8.165761391 | S63: 7.893051742 | T63: 10.3482129 | U63: 5.963211947 | V63: 5.23055252
B64: River/stream/pond/lake/dam | C64: 0.08207174398 | D64: 0.1466140627 | E64: 0.03464205564 | F64: 0 | G64: 0.1330033179 | H64: 0.02651101953 | I64: 0 | J64: 0 | K64: 0.06718395301 | L64: 0.1297833579 | M64: 0.07488018955 | N64: 0.1776380378 | O64: 0.3966343263 | P64: 0.106570349 | Q64: 0 | R64: 0.01641195241 | S64: 0.05664169676 | T64: 0.2529171013 | U64: 0.1397409731 | V64: 0.07062180617
B65: Rainwater | C65: 0.1338061335 | D65: 0.02437237072 | E65: 0.04865121724 | F65: 0 | G65: 0 | H65: 0 | I65: 0 | J65: 0 | K65: 0 | L65: 0 | M65: 0.07488018955 | N65: 0.3367904681 | O65: 0.07512255679 | P65: 0 | Q65: 0.149808364 | R65: 0 | S65: 0 | T65: 0.5374488403 | U65: 0 | V65: 0
B66: Tanker truck | C66: 0.6261036997 | D66: 0.2698004483 | E66: 0.4018041225 | F66: 0.2237435229 | G66: 0.1240664069 | H66: 0.8196177507 | I66: 0.462564408 | J66: 0.2921627737 | K66: 0.316343006 | L66: 0.07960026651 | M66: 0.4013537475 | N66: 0 | O66: 0.2852850626 | P66: 0.2841875973 | Q66: 0 | R66: 0.6975079775 | S66: 0.6195308999 | T66: 0 | U66: 0.2794819462 | V66: 0.04931703134
B67: Bottled water | C67: 1.273587122 | D67: 3.726318391 | E67: 10.10641726 | F67: 19.40550641 | G67: 42.03322594 | H67: 3.947831444 | I67: 9.82986728 | J67: 18.26628307 | K67: 26.24404586 | L67: 50.47928652 | M67: 0.3869167858 | N67: 0.1546884563 | O67: 0.8358318046 | P67: 1.96322596 | Q67: 6.287514702 | R67: 10.34324981 | S67: 1.368983928 | T67: 7.863137661 | U67: 6.37794061 | V67: 30.1006025
B68: Water station | C68: 0 | D68: 0.05784774911 | E68: 0.1966918914 | F68: 0.1687668831 | G68: 0.3025321626 | H68: 0 | I68: 0.103726794 | J68: 0.210332746 | K68: 0.3587709756 | L68: 0.1930358034 | M68: 0 | N68: 0 | O68: 0 | P68: 0.2928259546 | Q68: 0.1422278818 | R68: 0 | S68: 0.0330921824 | T68: 0 | U68: 0.2064427652 | V68: 0.2958020975
B69: Other | C69: 0.1578355921 | D69: 0.1398565057 | E69: 0.1480073795 | F69: 0.07881413032 | G69: 0.1667604636 | H69: 0.1701684585 | I69: 0 | J69: 0.1491490719 | K69: 0 | L69: 0.246977735 | M69: 0.1438332621 | N69: 0.1801890151 | O69: 0.2385109281 | P69: 0.1399043592 | Q69: 0.2488987932 | R69: 0.09540667314 | S69: 0.05677509562 | T69: 0.3164696777 | U69: 0.351046429 | V69: 0.09426911868
A108: =A1026 -> Turkey
A109: =A1034 -> 2003
A110: Use of sanitation facilities
A111: by wealth quintile and sub-national region
A112: Notes:
A113: WHO/UNICEF JMP customised wealth index excludes water,
A114: sanitation and hygiene assets.
A115: Survey used for analysis: | B115: =A1025 -> DHS03
A116: =B1030 -> 
A117: =B1029 -> 
A120: Use of sanitation facilities | C120: NATIONAL wealth index quintile | H120: URBAN wealth index quintile | M120: RURAL wealth index quintile | R120: SUB-REGIONS: | BA120: Raw numbers of respondents: | BB120: Use of sanitation facilities | BC120: NATIONAL wealth index quintile | BH120: URBAN wealth index quintile | BM120: RURAL wealth index quintile | BR120: SUB-REGIONS:
A121: Weighted percentage (used in graphs) | C121: Poorest | D121: Poor | E121: Middle | F121: Rich | G121: Richest | H121: Poorest | I121: Poor | J121: Middle | K121: Rich | L121: Richest | M121: Poorest | N121: Poor | O121: Middle | P121: Rich | Q121: Richest | R121: Central | S121: East | T121: North | U121: South | V121: West | BA121: Sanitation data, raw numbers (weighted) | BC121: Poorest | BD121: Poor | BE121: Middle | BF121: Rich | BG121: Richest | BH121: Poorest | BI121: Poor | BJ121: Middle | BK121: Rich | BL121: Richest | BM121: Poorest | BN121: Poor | BO121: Middle | BP121: Rich | BQ121: Richest | BR121: Central | BS121: East | BT121: North | BU121: South | BV121: West
A122: Sanitation | B122: Improved | C122: 60.76787699 | D122: 87.28831631 | E122: 94.7664183 | F122: 96.3221841 | G122: 98.89808094 | H122: 91.52670404 | I122: 96.79109428 | J122: 97.98401916 | K122: 98.63432633 | L122: 99.67582859 | M122: 41.64858651 | N122: 53.27798857 | O122: 72.82549375 | P122: 83.52641209 | Q122: 90.0135966 | R122: 90.11364144 | S122: 67.13084244 | T122: 77.23505928 | U122: 88.94763944 | V122: 98.46245376 | BA122: Sanitation | BB122: Improved | BC122: 5538.705841 | BD122: 7945.236827 | BE122: 8649.901928 | BF122: 8779.434683 | BG122: 9012.480722 | BH122: 5632.511448 | BI122: 5957.18189 | BJ122: 6030.503945 | BK122: 6066.138634 | BL122: 6135.189148 | BM122: 1233.334557 | BN122: 1578.512812 | BO122: 2152.681076 | BP122: 2474.99854 | BQ122: 2664.707951 | BR122: 8968.84084 | BS122: 5991.504208 | BT122: 2708.593603 | BU122: 5363.771177 | BV122: 16893.05017
B123: Not Improved | C123: 39.23212301 | D123: 12.71168369 | E123: 5.2335817 | F123: 3.677815905 | G123: 1.101919058 | H123: 8.473295965 | I123: 3.208905722 | J123: 2.015980839 | K123: 1.365673671 | L123: 0.3241714136 | M123: 58.35141349 | N123: 46.72201143 | O123: 27.17450625 | P123: 16.47358791 | Q123: 9.986403404 | R123: 9.886358564 | S123: 32.86915756 | T123: 22.76494072 | U123: 11.05236056 | V123: 1.53754624 | BB123: Not Improved | BC123: 3575.823274 | BD123: 1157.054479 | BE123: 477.700532 | BF123: 335.220228 | BG123: 100.416754 | BH123: 521.442753 | BI123: 197.497871 | BJ123: 124.075135 | BK123: 83.990697 | BL123: 19.953212 | BM123: 1727.953353 | BN123: 1384.273236 | BO123: 803.263285 | BP123: 488.134292 | BQ123: 295.631433 | BR123: 983.970629 | BS123: 2933.609779 | BT123: 798.354703 | BU123: 666.485737 | BV123: 263.794419
A124: Sanitation ladder | B124: Basic | C124: =C122*C129/100 -> 55.95218924 | D124: =D122*D129/100 -> 85.5030055 | E124: =E122*E129/100 -> 93.19342853 | F124: 96.05719314 | G124: 98.71600311 | H124: 86.87189339 | I124: 94.82101065 | J124: 97.6921225 | K124: 98.36347548 | L124: 99.64948403 | M124: 37.42362616 | N124: 51.42309662 | O124: 70.63497732 | P124: 81.27193466 | Q124: 88.99388338 | R124: 88.50782928 | S124: 65.5336863 | T124: 76.38355163 | U124: 85.95066822 | V124: 96.87172333 | BA124: Sanitation ladder | BB124: Basic | BC124: 5099.778579 | BD124: 7782.732636 | BE124: 8504.38059 | BF124: 8750.293877 | BG124: 8994.672931 | BH124: 5346.056533 | BI124: 5833.991894 | BJ124: 6012.538934 | BK124: 6043.279013 | BL124: 6133.567603 | BM124: 1108.221317 | BN124: 1523.556332 | BO124: 2087.930629 | BP124: 2408.195379 | BQ124: 2634.520979 | BR124: 8809.017384 | BS124: 5846.054477 | BT124: 2675.520887 | BU124: 5181.13484 | BV124: 16620.13102
B125: Limited | C125: =C122*C128/100 -> 4.815687749 | D125: =D122*D128/100 -> 1.785310814 | E125: =E122*E128/100 -> 1.572989767 | F125: 0.264990951 | G125: 0.182077835 | H125: 4.654810641 | I125: 1.97008363 | J125: 0.2918966637 | K125: 0.2708508488 | L125: 0.0263445572 | M125: 4.224960348 | N125: 1.854891953 | O125: 2.190516434 | P125: 2.254477433 | Q125: 1.019713218 | R125: 1.605812152 | S125: 1.597156134 | T125: 0.8515076506 | U125: 2.99697122 | V125: 1.590730431 | BB125: Limited | BC125: 438.927262 | BD125: 162.504191 | BE125: 143.543422 | BF125: 24.139251 | BG125: 16.590325 | BH125: 286.454915 | BI125: 121.21208 | BJ125: 17.965011 | BK125: 16.6406 | BL125: 1.621545 | BM125: 125.11324 | BN125: 54.95648 | BO125: 64.750447 | BP125: 66.803161 | BQ125: 30.186972 | BR125: 159.823456 | BS125: 142.477286 | BT125: 29.82614 | BU125: 180.658421 | BV125: 272.919148
B126: Unimproved | C126: =100-C124-C125-C127 -> 37.06770121 | D126: =100-D124-D125-D127 -> 12.49877293 | E126: =100-E124-E125-E127 -> 5.04324813 | F126: 3.359306266 | G126: 1.101919058 | H126: 8.324986151 | I126: 2.992119953 | J126: 1.712486534 | K126: 1.13182794 | L126: 0.3241714136 | M126: 53.34015422 | N126: 45.25990599 | O126: 26.63955629 | P126: 16.47358791 | Q126: 9.986403404 | R126: 9.822157207 | S126: 30.50074868 | T126: 22.67227941 | U126: 10.94759365 | V126: 1.329022978 | BB126: Unimproved | BC126: 3378.546419 | BD126: 1137.674722 | BE126: 460.331405 | BF126: 306.205104 | BG126: 100.416754 | BH126: 512.315835 | BI126: 184.159689 | BJ126: 105.396338 | BK126: 69.623425 | BL126: 19.953212 | BM126: 1579.555538 | BN126: 1340.95418 | BO126: 787.450462 | BP126: 488.134292 | BQ126: 295.631433 | BR126: 977.580789 | BS126: 2722.296986 | BT126: 795.108127 | BU126: 660.170095 | BV126: 228.018407
B127: Open defecation | C127: 2.164421799 | D127: 0.2129107534 | E127: 0.1903335702 | F127: 0.3185096388 | G127: 0 | H127: 0.1483098135 | I127: 0.2167857689 | J127: 0.3034943049 | K127: 0.2338457314 | L127: 0 | M127: 5.011259273 | N127: 1.462105441 | O127: 0.534949954 | P127: 0 | Q127: 0 | R127: 0.06420135677 | S127: 2.368408885 | T127: 0.09266131224 | U127: 0.1047669161 | V127: 0.208523262 | BB127: Open defecation | BC127: 197.276855 | BD127: 19.379757 | BE127: 17.369127 | BF127: 29.015124 | BG127: 0 | BH127: 9.126918 | BI127: 13.338182 | BJ127: 18.678797 | BK127: 14.367272 | BL127: 0 | BM127: 148.397815 | BN127: 43.319056 | BO127: 15.812823 | BP127: 0 | BQ127: 0 | BR127: 6.38984 | BS127: 211.312793 | BT127: 3.246576 | BU127: 6.315642 | BV127: 35.776012
A128: Shared among Improved Sanitation | B128: Yes | C128: 7.924726003 | D128: 2.0453033 | E128: 1.65985989 | F128: 0.2751089517 | G128: 0.1841065401 | H128: 5.085740484 | I128: 2.035397621 | J128: 0.2979023173 | K128: 0.2746010024 | L128: 0.02643023647 | M128: 10.14430669 | N128: 3.481535252 | O128: 3.007897813 | P128: 2.699119208 | Q128: 1.132843544 | R128: 1.781985642 | S128: 2.379168912 | T128: 1.102488505 | U128: 3.369365662 | V128: 1.615570576 | BA128: Shared among improved sanitation facilities | BB128: Yes | BC128: N/A | BD128: N/A | BE128: N/A | BF128: N/A | BG128: N/A | BH128: N/A | BI128: N/A | BJ128: N/A | BK128: N/A | BL128: N/A | BM128: N/A | BN128: N/A | BO128: N/A | BP128: N/A | BQ128: N/A | BR128: N/A | BS128: N/A | BT128: N/A | BU128: N/A | BV128: N/A
B129: No | C129: 92.075274 | D129: 97.9546967 | E129: 98.34014011 | F129: 99.72489105 | G129: 99.81589346 | H129: 94.91425952 | I129: 97.96460238 | J129: 99.70209768 | K129: 99.725399 | L129: 99.97356976 | M129: 89.85569331 | N129: 96.51846475 | O129: 96.99210219 | P129: 97.30088079 | Q129: 98.86715646 | R129: 98.21801436 | S129: 97.62083109 | T129: 98.89751149 | U129: 96.63063434 | V129: 98.38442942 | BB129: No | BC129: N/A | BD129: N/A | BE129: N/A | BF129: N/A | BG129: N/A | BH129: N/A | BI129: N/A | BJ129: N/A | BK129: N/A | BL129: N/A | BM129: N/A | BN129: N/A | BO129: N/A | BP129: N/A | BQ129: N/A | BR129: N/A | BS129: N/A | BT129: N/A | BU129: N/A | BV129: N/A
A130: Manually calculated ratios | B130: Improved latrines
B131: Other
B132: Other
C133: NATIONAL wealth index quintile | H133: URBAN wealth index quintile | M133: RURAL wealth index quintile | R133: SUB-REGIONS: | BA133: Raw numbers of respondents: | BB133: Use of sanitation facilities | BC133: NATIONAL wealth index quintile | BH133: URBAN wealth index quintile | BM133: RURAL wealth index quintile | BR133: SUB-REGIONS:
A134: Percentage based on weighted population | C134: Poorest | D134: Poor | E134: Middle | F134: Rich | G134: Richest | H134: Poorest | I134: Poor | J134: Middle | K134: Rich | L134: Richest | M134: Poorest | N134: Poor | O134: Middle | P134: Rich | Q134: Richest | R134: Central | S134: East | T134: North | U134: South | V134: West | BA134: Sanitation data, raw numbers (weighted) | BC134: Poorest | BD134: Poor | BE134: Middle | BF134: Rich | BG134: Richest | BH134: Poorest | BI134: Poor | BJ134: Middle | BK134: Rich | BL134: Richest | BM134: Poorest | BN134: Poor | BO134: Middle | BP134: Rich | BQ134: Richest | BR134: Central | BS134: East | BT134: North | BU134: South | BV134: West
A135: Sanitation type | B135: Sewer connection | C135: N/A | D135: N/A | E135: N/A | F135: N/A | G135: N/A | H135: N/A | I135: N/A | J135: N/A | K135: N/A | L135: N/A | M135: N/A | N135: N/A | O135: N/A | P135: N/A | Q135: N/A | R135: N/A | S135: N/A | T135: N/A | U135: N/A | V135: N/A | BA135: Sanitation type | BB135: Sewer connection | BC135: N/A | BD135: N/A | BE135: N/A | BF135: N/A | BG135: N/A | BH135: N/A | BI135: N/A | BJ135: N/A | BK135: N/A | BL135: N/A | BM135: N/A | BN135: N/A | BO135: N/A | BP135: N/A | BQ135: N/A | BR135: N/A | BS135: N/A | BT135: N/A | BU135: N/A | BV135: N/A
B136: Septic tank connection | C136: N/A | D136: N/A | E136: N/A | F136: N/A | G136: N/A | H136: N/A | I136: N/A | J136: N/A | K136: N/A | L136: N/A | M136: N/A | N136: N/A | O136: N/A | P136: N/A | Q136: N/A | R136: N/A | S136: N/A | T136: N/A | U136: N/A | V136: N/A | BB136: Septic tank connection | BC136: N/A | BD136: N/A | BE136: N/A | BF136: N/A | BG136: N/A | BH136: N/A | BI136: N/A | BJ136: N/A | BK136: N/A | BL136: N/A | BM136: N/A | BN136: N/A | BO136: N/A | BP136: N/A | BQ136: N/A | BR136: N/A | BS136: N/A | BT136: N/A | BU136: N/A | BV136: N/A
B137: Improved latrines | C137: N/A | D137: N/A | E137: N/A | F137: N/A | G137: N/A | H137: N/A | I137: N/A | J137: N/A | K137: N/A | L137: N/A | M137: N/A | N137: N/A | O137: N/A | P137: N/A | Q137: N/A | R137: N/A | S137: N/A | T137: N/A | U137: N/A | V137: N/A | BB137: Improved latrines | BC137: N/A | BD137: N/A | BE137: N/A | BF137: N/A | BG137: N/A | BH137: N/A | BI137: N/A | BJ137: N/A | BK137: N/A | BL137: N/A | BM137: N/A | BN137: N/A | BO137: N/A | BP137: N/A | BQ137: N/A | BR137: N/A | BS137: N/A | BT137: N/A | BU137: N/A | BV137: N/A
B138: Unimproved facilities | C138: N/A | D138: N/A | E138: N/A | F138: N/A | G138: N/A | H138: N/A | I138: N/A | J138: N/A | K138: N/A | L138: N/A | M138: N/A | N138: N/A | O138: N/A | P138: N/A | Q138: N/A | R138: N/A | S138: N/A | T138: N/A | U138: N/A | V138: N/A | BB138: Unimproved facilities | BC138: N/A | BD138: N/A | BE138: N/A | BF138: N/A | BG138: N/A | BH138: N/A | BI138: N/A | BJ138: N/A | BK138: N/A | BL138: N/A | BM138: N/A | BN138: N/A | BO138: N/A | BP138: N/A | BQ138: N/A | BR138: N/A | BS138: N/A | BT138: N/A | BU138: N/A | BV138: N/A
B139: Open defecation | C139: 2.164421799 | D139: 0.2129107534 | E139: 0.1902923257 | F139: 0.3183348605 | G139: 0 | H139: 0.1483098135 | I139: 0.2167161009 | J139: 0.3034943049 | K139: 0.2336092662 | L139: 0 | M139: 5.011259273 | N139: 1.462105441 | O139: 0.534949954 | P139: 0 | Q139: 0 | R139: 0.06420135677 | S139: 2.367620103 | T139: 0.09257553054 | U139: 0.1047325527 | V139: 0.208523262 | BB139: Open defecation | BC139: N/A | BD139: N/A | BE139: N/A | BF139: N/A | BG139: N/A | BH139: N/A | BI139: N/A | BJ139: N/A | BK139: N/A | BL139: N/A | BM139: N/A | BN139: N/A | BO139: N/A | BP139: N/A | BQ139: N/A | BR139: N/A | BS139: N/A | BT139: N/A | BU139: N/A | BV139: N/A
A140: Septic tank emptying practices | B140: Not emptied/treated and disposed in situ | C140: N/A | D140: N/A | E140: N/A | F140: N/A | G140: N/A | H140: N/A | I140: N/A | J140: N/A | K140: N/A | L140: N/A | M140: N/A | N140: N/A | O140: N/A | P140: N/A | Q140: N/A | R140: N/A | S140: N/A | T140: N/A | U140: N/A | V140: N/A | BA140: Septic tank emptying practices | BB140: Not emptied/treated and disposed in situ | BC140: N/A | BD140: N/A | BE140: N/A | BF140: N/A | BG140: N/A | BH140: N/A | BI140: N/A | BJ140: N/A | BK140: N/A | BL140: N/A | BM140: N/A | BN140: N/A | BO140: N/A | BP140: N/A | BQ140: N/A | BR140: N/A | BS140: N/A | BT140: N/A | BU140: N/A | BV140: N/A
B141: Emptied and buried on site | C141: N/A | D141: N/A | E141: N/A | F141: N/A | G141: N/A | H141: N/A | I141: N/A | J141: N/A | K141: N/A | L141: N/A | M141: N/A | N141: N/A | O141: N/A | P141: N/A | Q141: N/A | R141: N/A | S141: N/A | T141: N/A | U141: N/A | V141: N/A | BB141: Emptied and buried on site | BC141: N/A | BD141: N/A | BE141: N/A | BF141: N/A | BG141: N/A | BH141: N/A | BI141: N/A | BJ141: N/A | BK141: N/A | BL141: N/A | BM141: N/A | BN141: N/A | BO141: N/A | BP141: N/A | BQ141: N/A | BR141: N/A | BS141: N/A | BT141: N/A | BU141: N/A | BV141: N/A
B142: Emptied and discharged locally | C142: N/A | D142: N/A | E142: N/A | F142: N/A | G142: N/A | H142: N/A | I142: N/A | J142: N/A | K142: N/A | L142: N/A | M142: N/A | N142: N/A | O142: N/A | P142: N/A | Q142: N/A | R142: N/A | S142: N/A | T142: N/A | U142: N/A | V142: N/A | BB142: Emptied and discharged locally | BC142: N/A | BD142: N/A | BE142: N/A | BF142: N/A | BG142: N/A | BH142: N/A | BI142: N/A | BJ142: N/A | BK142: N/A | BL142: N/A | BM142: N/A | BN142: N/A | BO142: N/A | BP142: N/A | BQ142: N/A | BR142: N/A | BS142: N/A | BT142: N/A | BU142: N/A | BV142: N/A
B143: Emptied and removed offsite | C143: N/A | D143: N/A | E143: N/A | F143: N/A | G143: N/A | H143: N/A | I143: N/A | J143: N/A | K143: N/A | L143: N/A | M143: N/A | N143: N/A | O143: N/A | P143: N/A | Q143: N/A | R143: N/A | S143: N/A | T143: N/A | U143: N/A | V143: N/A | BB143: Emptied and removed offsite | BC143: N/A | BD143: N/A | BE143: N/A | BF143: N/A | BG143: N/A | BH143: N/A | BI143: N/A | BJ143: N/A | BK143: N/A | BL143: N/A | BM143: N/A | BN143: N/A | BO143: N/A | BP143: N/A | BQ143: N/A | BR143: N/A | BS143: N/A | BT143: N/A | BU143: N/A | BV143: N/A
A144: Latrine emptying practices | B144: Not emptied/treated and disposed in situ | C144: N/A | D144: N/A | E144: N/A | F144: N/A | G144: N/A | H144: N/A | I144: N/A | J144: N/A | K144: N/A | L144: N/A | M144: N/A | N144: N/A | O144: N/A | P144: N/A | Q144: N/A | R144: N/A | S144: N/A | T144: N/A | U144: N/A | V144: N/A | BA144: Latrine emptying practices | BB144: Not emptied/treated and disposed in situ | BC144: N/A | BD144: N/A | BE144: N/A | BF144: N/A | BG144: N/A | BH144: N/A | BI144: N/A | BJ144: N/A | BK144: N/A | BL144: N/A | BM144: N/A | BN144: N/A | BO144: N/A | BP144: N/A | BQ144: N/A | BR144: N/A | BS144: N/A | BT144: N/A | BU144: N/A | BV144: N/A
B145: Emptied and buried on site | C145: N/A | D145: N/A | E145: N/A | F145: N/A | G145: N/A | H145: N/A | I145: N/A | J145: N/A | K145: N/A | L145: N/A | M145: N/A | N145: N/A | O145: N/A | P145: N/A | Q145: N/A | R145: N/A | S145: N/A | T145: N/A | U145: N/A | V145: N/A | BB145: Emptied and buried on site | BC145: N/A | BD145: N/A | BE145: N/A | BF145: N/A | BG145: N/A | BH145: N/A | BI145: N/A | BJ145: N/A | BK145: N/A | BL145: N/A | BM145: N/A | BN145: N/A | BO145: N/A | BP145: N/A | BQ145: N/A | BR145: N/A | BS145: N/A | BT145: N/A | BU145: N/A | BV145: N/A
B146: Emptied and discharged locally | C146: N/A | D146: N/A | E146: N/A | F146: N/A | G146: N/A | H146: N/A | I146: N/A | J146: N/A | K146: N/A | L146: N/A | M146: N/A | N146: N/A | O146: N/A | P146: N/A | Q146: N/A | R146: N/A | S146: N/A | T146: N/A | U146: N/A | V146: N/A | BB146: Emptied and discharged locally | BC146: N/A | BD146: N/A | BE146: N/A | BF146: N/A | BG146: N/A | BH146: N/A | BI146: N/A | BJ146: N/A | BK146: N/A | BL146: N/A | BM146: N/A | BN146: N/A | BO146: N/A | BP146: N/A | BQ146: N/A | BR146: N/A | BS146: N/A | BT146: N/A | BU146: N/A | BV146: N/A
B147: Emptied and removed offsite | C147: N/A | D147: N/A | E147: N/A | F147: N/A | G147: N/A | H147: N/A | I147: N/A | J147: N/A | K147: N/A | L147: N/A | M147: N/A | N147: N/A | O147: N/A | P147: N/A | Q147: N/A | R147: N/A | S147: N/A | T147: N/A | U147: N/A | V147: N/A | BB147: Emptied and removed offsite | BC147: N/A | BD147: N/A | BE147: N/A | BF147: N/A | BG147: N/A | BH147: N/A | BI147: N/A | BJ147: N/A | BK147: N/A | BL147: N/A | BM147: N/A | BN147: N/A | BO147: N/A | BP147: N/A | BQ147: N/A | BR147: N/A | BS147: N/A | BT147: N/A | BU147: N/A | BV147: N/A
A148: Shared among improved sanitation facilities | B148: Yes | C148: 4.815687749 | D148: 1.785310814 | E148: 1.572630081 | F148: 0.2648399883 | G148: 0.1820532388 | H148: 4.654810641 | I148: 1.969429519 | J148: 0.2918966637 | K148: 0.2705731718 | L148: 0.0263445572 | M148: 4.224960348 | N148: 1.854891953 | O148: 2.190516434 | P148: 2.254477433 | Q148: 1.019713218 | R148: 1.605812152 | S148: 1.596363769 | T148: 0.850487016 | U148: 2.995866073 | V148: 1.590730431 | BA148: Shared among improved sanitation facilities | BB148: Yes | BC148: N/A | BD148: N/A | BE148: N/A | BF148: N/A | BG148: N/A | BH148: N/A | BI148: N/A | BJ148: N/A | BK148: N/A | BL148: N/A | BM148: N/A | BN148: N/A | BO148: N/A | BP148: N/A | BQ148: N/A | BR148: N/A | BS148: N/A | BT148: N/A | BU148: N/A | BV148: N/A
B149: No | C149: 55.95218924 | D149: 85.5030055 | E149: 93.17211861 | F149: 96.00247033 | G149: 98.70266789 | H149: 86.87189339 | I149: 94.78952798 | J149: 97.6921225 | K149: 98.26263299 | L149: 99.64948403 | M149: 37.42362616 | N149: 51.42309662 | O149: 70.63497732 | P149: 81.27193466 | Q149: 88.99388338 | R149: 88.50782928 | S149: 65.50117439 | T149: 76.29199673 | U149: 85.9189735 | V149: 96.87172333 | BB149: No | BC149: N/A | BD149: N/A | BE149: N/A | BF149: N/A | BG149: N/A | BH149: N/A | BI149: N/A | BJ149: N/A | BK149: N/A | BL149: N/A | BM149: N/A | BN149: N/A | BO149: N/A | BP149: N/A | BQ149: N/A | BR149: N/A | BS149: N/A | BT149: N/A | BU149: N/A | BV149: N/A
B150: DK/missing | C150: 39.23212301 | D150: 12.71168369 | E150: 5.255251312 | F150: 3.732689677 | G150: 1.11527887 | H150: 8.473295965 | I150: 3.241042503 | J150: 2.015980839 | K150: 1.466793837 | L150: 0.3241714136 | M150: 58.35141349 | N150: 46.72201143 | O150: 27.17450625 | P150: 16.47358791 | Q150: 9.986403404 | R150: 9.886358564 | S150: 32.90246184 | T150: 22.85751625 | U150: 11.08516043 | V150: 1.53754624 | BB150: DK/missing | BC150: N/A | BD150: N/A | BE150: N/A | BF150: N/A | BG150: N/A | BH150: N/A | BI150: N/A | BJ150: N/A | BK150: N/A | BL150: N/A | BM150: N/A | BN150: N/A | BO150: N/A | BP150: N/A | BQ150: N/A | BR150: N/A | BS150: N/A | BT150: N/A | BU150: N/A | BV150: N/A
A151: Shared among all sanitation facilities | B151: Yes | C151: 7.637422057 | D151: 2.206046651 | E151: 1.725672244 | F151: 0.2656857587 | G151: 0.1820532388 | H151: 5.004763451 | I151: 1.973706859 | J151: 0.2927852503 | K151: 0.2712067359 | L151: 0.0263445572 | M151: 9.844267129 | N151: 4.254306671 | O151: 2.875542706 | P151: 3.325780402 | Q151: 1.019713218 | R151: 1.926528194 | S151: 3.753683768 | T151: 2.338539902 | U151: 3.226165449 | V151: 1.660976163 | BA151: Shared among all sanitation facilities | BB151: Yes | BC151: N/A | BD151: N/A | BE151: N/A | BF151: N/A | BG151: N/A | BH151: N/A | BI151: N/A | BJ151: N/A | BK151: N/A | BL151: N/A | BM151: N/A | BN151: N/A | BO151: N/A | BP151: N/A | BQ151: N/A | BR151: N/A | BS151: N/A | BT151: N/A | BU151: N/A | BV151: N/A
B152: No | C152: 92.36257794 | D152: 97.79395335 | E152: 98.05430755 | F152: 99.67926523 | G152: 99.80458695 | H152: 94.99523655 | I152: 97.99408656 | J152: 99.51112333 | K152: 99.62743632 | L152: 99.97365544 | M152: 90.15573287 | N152: 95.74569333 | O152: 97.12445729 | P152: 96.47056811 | Q152: 98.98028678 | R152: 97.95250394 | S152: 96.21220431 | T152: 97.39656769 | U152: 96.7410003 | V152: 98.33902384 | BB152: No | BC152: N/A | BD152: N/A | BE152: N/A | BF152: N/A | BG152: N/A | BH152: N/A | BI152: N/A | BJ152: N/A | BK152: N/A | BL152: N/A | BM152: N/A | BN152: N/A | BO152: N/A | BP152: N/A | BQ152: N/A | BR152: N/A | BS152: N/A | BT152: N/A | BU152: N/A | BV152: N/A
A153: Type of toilet facility | B153: Flush toilet | C153: 37.30867033 | D153: 64.51764321 | E153: 80.09020977 | F153: 86.63071362 | G153: 93.01122241 | H153: 80.43004024 | I153: 89.89055359 | J153: 93.50242883 | K153: 94.97090529 | L153: 97.80055282 | M153: 16.15741497 | N153: 20.79673314 | O153: 34.90257644 | P153: 41.70102118 | Q153: 50.53150899 | R153: 74.74910554 | S153: 58.48360891 | T153: 57.72131755 | U153: 57.11968446 | V153: 86.39578989 | BA153: Type of toilet facility | BB153: Flush toilet | BC153: 3400.50962 | BD153: 5872.583829 | BE153: 7298.775014 | BF153: 7887.681071 | BG153: 8474.177656 | BH153: 4949.62784 | BI153: 5530.338151 | BJ153: 5743.430736 | BK153: 5838.015835 | BL153: 6017.828842 | BM153: 478.467576 | BN153: 616.162708 | BO153: 1031.70074 | BP153: 1235.65665 | BQ153: 1492.498112 | BR153: 7430.643756 | BS153: 5214.395987 | BT153: 2024.256768 | BU153: 3441.639273 | BV153: 14822.79141
B154: Open pit | C154: 35.30098755 | D154: 11.16586909 | E154: 4.446002119 | F154: 3.008905546 | G154: 0.8353984085 | H154: 7.620241534 | I154: 2.556176647 | J154: 1.238059305 | K154: 0.9745183801 | L154: 0.2921309216 | M154: 51.52424115 | N154: 42.32470103 | O154: 24.37683725 | P154: 15.27661653 | Q154: 8.666402736 | R154: 9.65558473 | S154: 28.62584492 | T154: 19.00700355 | U154: 10.01795968 | V154: 1.205435049 | BB154: Open pit | BC154: 3217.518788 | BD154: 1016.349931 | BE154: 405.172733 | BF154: 273.959273 | BG154: 76.112477 | BH154: 468.946174 | BI154: 157.263702 | BJ154: 76.048376 | BK154: 59.905228 | BL154: 17.975296 | BM154: 1525.781124 | BN154: 1253.990337 | BO154: 720.565746 | BP154: 452.66644 | BQ154: 255.970779 | BR154: 959.840387 | BS154: 2552.279069 | BT154: 666.565789 | BU154: 603.613339 | BV154: 206.814618
B155: Closed pit | C155: 23.45920666 | D155: 22.7706731 | E155: 14.82605475 | F155: 9.794165241 | G155: 5.908328599 | H155: 11.0966638 | I155: 6.937951884 | J155: 4.673520675 | K155: 3.711026032 | L155: 1.907316261 | M155: 25.49117154 | N155: 32.48125543 | O155: 37.92291732 | P155: 41.8253909 | Q155: 39.68750885 | R155: 15.47360632 | S155: 8.715888358 | T155: 19.51374173 | U155: 31.90095159 | V155: 12.06666387 | BB155: Closed pit | BC155: 2138.196221 | BD155: 2072.652998 | BE155: 1351.126914 | BF155: 891.753612 | BG155: 538.303066 | BH155: 682.883608 | BI155: 426.843739 | BJ155: 287.073209 | BK155: 228.122799 | BL155: 117.360306 | BM155: 754.866981 | BN155: 962.350104 | BO155: 1120.980336 | BP155: 1239.34189 | BQ155: 1172.209839 | BR155: 1538.197084 | BS155: 777.108221 | BT155: 684.336835 | BU155: 1922.131904 | BV155: 2070.258767
B156: No facility, bush/field/public toilet | C156: 2.164421799 | D156: 0.2129107534 | E156: 0.190593219 | F156: 0.3186742561 | G156: 0 | H156: 0.1483098135 | I156: 0.2167998649 | J156: 0.3040887872 | K156: 0.2337220157 | L156: 0 | M156: 5.011259273 | N156: 1.462105441 | O156: 0.534949954 | P156: 0 | Q156: 0 | R156: 0.06427906386 | S156: 2.370041472 | T156: 0.09257553054 | U156: 0.1048185035 | V156: 0.208523262 | BB156: No facility, bush/field/public toilet | BC156: 197.276855 | BD156: 19.379757 | BE156: 17.369127 | BF156: 29.015124 | BG156: 0 | BH156: 9.126918 | BI156: 13.338182 | BJ156: 18.678797 | BK156: 14.367272 | BL156: 0 | BM156: 148.397815 | BN156: 43.319056 | BO156: 15.812823 | BP156: 0 | BQ156: 0 | BR156: 6.38984 | BS156: 211.312793 | BT156: 3.246576 | BU156: 6.315642 | BV156: 35.776012
B157: OTHER | C157: 1.766713661 | D157: 1.332903847 | E157: 0.4471401418 | F157: 0.2475413371 | G157: 0.2450505775 | H157: 0.7047446176 | I157: 0.3985180145 | J157: 0.2819024047 | K157: 0.1098282833 | L157: 0 | M157: 1.815913063 | N157: 2.935204959 | O157: 2.262719044 | P157: 1.196971382 | Q157: 1.114579424 | R157: 0.0574243499 | S157: 1.804616338 | T157: 3.665361642 | U157: 0.8565857658 | V157: 0.1235879295 | BB157: OTHER | BC157: 161.027631 | BD157: 121.324791 | BE157: 40.748742 | BF157: 22.538509 | BG157: 22.326361 | BH157: 43.369661 | BI157: 24.518031 | BJ157: 17.315988 | BK157: 6.751323 | BL157: 0 | BM157: 53.774414 | BN157: 86.963843 | BO157: 66.884716 | BP157: 35.467852 | BQ157: 32.920206 | BR157: 5.708428 | BS157: 160.899513 | BT157: 128.542338 | BU157: 51.611966 | BV157: 21.203789
BB158: Total | BC158: 9114.529115 | BD158: 9102.291306 | BE158: 9113.19253 | BF158: 9104.947589 | BG158: 9110.91956 | BH158: 6153.954201 | BI158: 6152.301805 | BJ158: 6142.547106 | BK158: 6147.162457 | BL158: 6153.164444 | BM158: 2961.28791 | BN158: 2962.786048 | BO158: 2955.944361 | BP158: 2963.132832 | BQ158: 2953.598936 | BR158: 9940.779495 | BS158: 8915.995583 | BT158: 3506.948306 | BU158: 6025.312124 | BV158: 17156.84459
A208: =A1026 -> Turkey
A209: =A1034 -> 2003
A210: Access to hygiene facilities
A211: by wealth quintile and sub-national region
A212: Notes:
A213: WHO/UNICEF JMP customised wealth index excludes water,
A214: sanitation and hygiene assets.
A215: Survey used for analysis: | B215: =A1025 -> DHS03
A220: Access to handwashing | C220: NATIONAL wealth index quintile | H220: URBAN wealth index quintile | M220: RURAL wealth index quintile | R220: SUB-REGIONS: | BA220: Raw numbers of respondents: | BB220: Access to handwashing | BC220: NATIONAL wealth index quintile | BH220: URBAN wealth index quintile | BM220: RURAL wealth index quintile | BR220: SUB-REGIONS:
A221: Weighted percentage (used in graphs) | C221: Poorest | D221: Poor | E221: Middle | F221: Rich | G221: Richest | H221: Poorest | I221: Poor | J221: Middle | K221: Rich | L221: Richest | M221: Poorest | N221: Poor | O221: Middle | P221: Rich | Q221: Richest | R221: Central | S221: East | T221: North | U221: South | V221: West | BA221: Hygiene data, raw numbers (weighted) | BC221: Poorest | BD221: Poor | BE221: Middle | BF221: Rich | BG221: Richest | BH221: Poorest | BI221: Poor | BJ221: Middle | BK221: Rich | BL221: Richest | BM221: Poorest | BN221: Poor | BO221: Middle | BP221: Rich | BQ221: Richest | BR221: Central | BS221: East | BT221: North | BU221: South | BV221: West
A222: Hygiene ladder | B222: Basic | C222: N/A | D222: N/A | E222: N/A | F222: N/A | G222: N/A | H222: N/A | I222: N/A | J222: N/A | K222: N/A | L222: N/A | M222: N/A | N222: N/A | O222: N/A | P222: N/A | Q222: N/A | R222: N/A | S222: N/A | T222: N/A | U222: N/A | V222: N/A | BA222: Hygiene ladder | BB222: Basic | BC222: N/A | BD222: N/A | BE222: N/A | BF222: N/A | BG222: N/A | BH222: N/A | BI222: N/A | BJ222: N/A | BK222: N/A | BL222: N/A | BM222: N/A | BN222: N/A | BO222: N/A | BP222: N/A | BQ222: N/A | BR222: N/A | BS222: N/A | BT222: N/A | BU222: N/A | BV222: N/A
B223: Limited | C223: N/A | D223: N/A | E223: N/A | F223: N/A | G223: N/A | H223: N/A | I223: N/A | J223: N/A | K223: N/A | L223: N/A | M223: N/A | N223: N/A | O223: N/A | P223: N/A | Q223: N/A | R223: N/A | S223: N/A | T223: N/A | U223: N/A | V223: N/A | BB223: Limited | BC223: N/A | BD223: N/A | BE223: N/A | BF223: N/A | BG223: N/A | BH223: N/A | BI223: N/A | BJ223: N/A | BK223: N/A | BL223: N/A | BM223: N/A | BN223: N/A | BO223: N/A | BP223: N/A | BQ223: N/A | BR223: N/A | BS223: N/A | BT223: N/A | BU223: N/A | BV223: N/A
B224: No facility | C224: N/A | D224: N/A | E224: N/A | F224: N/A | G224: N/A | H224: N/A | I224: N/A | J224: N/A | K224: N/A | L224: N/A | M224: N/A | N224: N/A | O224: N/A | P224: N/A | Q224: N/A | R224: N/A | S224: N/A | T224: N/A | U224: N/A | V224: N/A | BB224: No facility | BC224: N/A | BD224: N/A | BE224: N/A | BF224: N/A | BG224: N/A | BH224: N/A | BI224: N/A | BJ224: N/A | BK224: N/A | BL224: N/A | BM224: N/A | BN224: N/A | BO224: N/A | BP224: N/A | BQ224: N/A | BR224: N/A | BS224: N/A | BT224: N/A | BU224: N/A | BV224: N/A
BA225: Observed handwashing place | BB225: Fixed | BC225: N/A | BD225: N/A | BE225: N/A | BF225: N/A | BG225: N/A | BH225: N/A | BI225: N/A | BJ225: N/A | BK225: N/A | BL225: N/A | BM225: N/A | BN225: N/A | BO225: N/A | BP225: N/A | BQ225: N/A | BR225: N/A | BS225: N/A | BT225: N/A | BU225: N/A | BV225: N/A
BB226: Mobile | BC226: N/A | BD226: N/A | BE226: N/A | BF226: N/A | BG226: N/A | BH226: N/A | BI226: N/A | BJ226: N/A | BK226: N/A | BL226: N/A | BM226: N/A | BN226: N/A | BO226: N/A | BP226: N/A | BQ226: N/A | BR226: N/A | BS226: N/A | BT226: N/A | BU226: N/A | BV226: N/A
BA227: Water / Soap | BB227: Water and soap | BC227: N/A | BD227: N/A | BE227: N/A | BF227: N/A | BG227: N/A | BH227: N/A | BI227: N/A | BJ227: N/A | BK227: N/A | BL227: N/A | BM227: N/A | BN227: N/A | BO227: N/A | BP227: N/A | BQ227: N/A | BR227: N/A | BS227: N/A | BT227: N/A | BU227: N/A | BV227: N/A
BB228: Water only | BC228: N/A | BD228: N/A | BE228: N/A | BF228: N/A | BG228: N/A | BH228: N/A | BI228: N/A | BJ228: N/A | BK228: N/A | BL228: N/A | BM228: N/A | BN228: N/A | BO228: N/A | BP228: N/A | BQ228: N/A | BR228: N/A | BS228: N/A | BT228: N/A | BU228: N/A | BV228: N/A
BB229: Soap only | BC229: N/A | BD229: N/A | BE229: N/A | BF229: N/A | BG229: N/A | BH229: N/A | BI229: N/A | BJ229: N/A | BK229: N/A | BL229: N/A | BM229: N/A | BN229: N/A | BO229: N/A | BP229: N/A | BQ229: N/A | BR229: N/A | BS229: N/A | BT229: N/A | BU229: N/A | BV229: N/A
BB230: Neither | BC230: N/A | BD230: N/A | BE230: N/A | BF230: N/A | BG230: N/A | BH230: N/A | BI230: N/A | BJ230: N/A | BK230: N/A | BL230: N/A | BM230: N/A | BN230: N/A | BO230: N/A | BP230: N/A | BQ230: N/A | BR230: N/A | BS230: N/A | BT230: N/A | BU230: N/A | BV230: N/A
BA259: Raw numbers of respondents: | BB259: Menstrual health and hygiene | BC259: NATIONAL wealth index quintile | BH259: URBAN wealth index quintile | BM259: RURAL wealth index quintile | BR259: SUB-REGIONS:
BA260: MHH data, raw numbers (weighted) | BC260: Poorest | BD260: Poor | BE260: Middle | BF260: Rich | BG260: Richest | BH260: Poorest | BI260: Poor | BJ260: Middle | BK260: Rich | BL260: Richest | BM260: Poorest | BN260: Poor | BO260: Middle | BP260: Rich | BQ260: Richest | BR260: Central | BS260: East | BT260: North | BU260: South | BV260: West
BA261: Private place to wash and change | BB261: Yes | BC261: N/A | BD261: N/A | BE261: N/A | BF261: N/A | BG261: N/A | BH261: N/A | BI261: N/A | BJ261: N/A | BK261: N/A | BL261: N/A | BM261: N/A | BN261: N/A | BO261: N/A | BP261: N/A | BQ261: N/A | BR261: N/A | BS261: N/A | BT261: N/A | BU261: N/A | BV261: N/A
BB262: No | BC262: N/A | BD262: N/A | BE262: N/A | BF262: N/A | BG262: N/A | BH262: N/A | BI262: N/A | BJ262: N/A | BK262: N/A | BL262: N/A | BM262: N/A | BN262: N/A | BO262: N/A | BP262: N/A | BQ262: N/A | BR262: N/A | BS262: N/A | BT262: N/A | BU262: N/A | BV262: N/A
BB263: DK/not sure/missing | BC263: N/A | BD263: N/A | BE263: N/A | BF263: N/A | BG263: N/A | BH263: N/A | BI263: N/A | BJ263: N/A | BK263: N/A | BL263: N/A | BM263: N/A | BN263: N/A | BO263: N/A | BP263: N/A | BQ263: N/A | BR263: N/A | BS263: N/A | BT263: N/A | BU263: N/A | BV263: N/A
BA264: Use of menstrual materials | BB264: Materials reusable | BC264: N/A | BD264: N/A | BE264: N/A | BF264: N/A | BG264: N/A | BH264: N/A | BI264: N/A | BJ264: N/A | BK264: N/A | BL264: N/A | BM264: N/A | BN264: N/A | BO264: N/A | BP264: N/A | BQ264: N/A | BR264: N/A | BS264: N/A | BT264: N/A | BU264: N/A | BV264: N/A
BB265: Materials not reusable | BC265: N/A | BD265: N/A | BE265: N/A | BF265: N/A | BG265: N/A | BH265: N/A | BI265: N/A | BJ265: N/A | BK265: N/A | BL265: N/A | BM265: N/A | BN265: N/A | BO265: N/A | BP265: N/A | BQ265: N/A | BR265: N/A | BS265: N/A | BT265: N/A | BU265: N/A | BV265: N/A
BB266: No materials used | BC266: N/A | BD266: N/A | BE266: N/A | BF266: N/A | BG266: N/A | BH266: N/A | BI266: N/A | BJ266: N/A | BK266: N/A | BL266: N/A | BM266: N/A | BN266: N/A | BO266: N/A | BP266: N/A | BQ266: N/A | BR266: N/A | BS266: N/A | BT266: N/A | BU266: N/A | BV266: N/A
BB267: DK/not sure/missing | BC267: N/A | BD267: N/A | BE267: N/A | BF267: N/A | BG267: N/A | BH267: N/A | BI267: N/A | BJ267: N/A | BK267: N/A | BL267: N/A | BM267: N/A | BN267: N/A | BO267: N/A | BP267: N/A | BQ267: N/A | BR267: N/A | BS267: N/A | BT267: N/A | BU267: N/A | BV267: N/A
BA268: Use of menstrual materials with private place to wash and change | BB268: Materials reusable | BC268: N/A | BD268: N/A | BE268: N/A | BF268: N/A | BG268: N/A | BH268: N/A | BI268: N/A | BJ268: N/A | BK268: N/A | BL268: N/A | BM268: N/A | BN268: N/A | BO268: N/A | BP268: N/A | BQ268: N/A | BR268: N/A | BS268: N/A | BT268: N/A | BU268: N/A | BV268: N/A
BB269: Materials not reusable | BC269: N/A | BD269: N/A | BE269: N/A | BF269: N/A | BG269: N/A | BH269: N/A | BI269: N/A | BJ269: N/A | BK269: N/A | BL269: N/A | BM269: N/A | BN269: N/A | BO269: N/A | BP269: N/A | BQ269: N/A | BR269: N/A | BS269: N/A | BT269: N/A | BU269: N/A | BV269: N/A
BB270: No materials used | BC270: N/A | BD270: N/A | BE270: N/A | BF270: N/A | BG270: N/A | BH270: N/A | BI270: N/A | BJ270: N/A | BK270: N/A | BL270: N/A | BM270: N/A | BN270: N/A | BO270: N/A | BP270: N/A | BQ270: N/A | BR270: N/A | BS270: N/A | BT270: N/A | BU270: N/A | BV270: N/A
BA271: Awareness of menstruation before menarche | BB271: Yes | BC271: N/A | BD271: N/A | BE271: N/A | BF271: N/A | BG271: N/A | BH271: N/A | BI271: N/A | BJ271: N/A | BK271: N/A | BL271: N/A | BM271: N/A | BN271: N/A | BO271: N/A | BP271: N/A | BQ271: N/A | BR271: N/A | BS271: N/A | BT271: N/A | BU271: N/A | BV271: N/A
BB272: No | BC272: N/A | BD272: N/A | BE272: N/A | BF272: N/A | BG272: N/A | BH272: N/A | BI272: N/A | BJ272: N/A | BK272: N/A | BL272: N/A | BM272: N/A | BN272: N/A | BO272: N/A | BP272: N/A | BQ272: N/A | BR272: N/A | BS272: N/A | BT272: N/A | BU272: N/A | BV272: N/A
BB273: DK/not sure/missing | BC273: N/A | BD273: N/A | BE273: N/A | BF273: N/A | BG273: N/A | BH273: N/A | BI273: N/A | BJ273: N/A | BK273: N/A | BL273: N/A | BM273: N/A | BN273: N/A | BO273: N/A | BP273: N/A | BQ273: N/A | BR273: N/A | BS273: N/A | BT273: N/A | BU273: N/A | BV273: N/A
BA274: Participation in (all) activities during menstruation | BB274: Yes | BC274: N/A | BD274: N/A | BE274: N/A | BF274: N/A | BG274: N/A | BH274: N/A | BI274: N/A | BJ274: N/A | BK274: N/A | BL274: N/A | BM274: N/A | BN274: N/A | BO274: N/A | BP274: N/A | BQ274: N/A | BR274: N/A | BS274: N/A | BT274: N/A | BU274: N/A | BV274: N/A
BB275: No | BC275: N/A | BD275: N/A | BE275: N/A | BF275: N/A | BG275: N/A | BH275: N/A | BI275: N/A | BJ275: N/A | BK275: N/A | BL275: N/A | BM275: N/A | BN275: N/A | BO275: N/A | BP275: N/A | BQ275: N/A | BR275: N/A | BS275: N/A | BT275: N/A | BU275: N/A | BV275: N/A
BB276: DK/not sure/missing/no such activity | BC276: N/A | BD276: N/A | BE276: N/A | BF276: N/A | BG276: N/A | BH276: N/A | BI276: N/A | BJ276: N/A | BK276: N/A | BL276: N/A | BM276: N/A | BN276: N/A | BO276: N/A | BP276: N/A | BQ276: N/A | BR276: N/A | BS276: N/A | BT276: N/A | BU276: N/A | BV276: N/A
BA277: Participation in specific activities during menstruation | BB277: Did not go to school (amongst those usually attending school) | BC277: N/A | BD277: N/A | BE277: N/A | BF277: N/A | BG277: N/A | BH277: N/A | BI277: N/A | BJ277: N/A | BK277: N/A | BL277: N/A | BM277: N/A | BN277: N/A | BO277: N/A | BP277: N/A | BQ277: N/A | BR277: N/A | BS277: N/A | BT277: N/A | BU277: N/A | BV277: N/A
BB278: Did not go to work (amongst those who usually work) | BC278: N/A | BD278: N/A | BE278: N/A | BF278: N/A | BG278: N/A | BH278: N/A | BI278: N/A | BJ278: N/A | BK278: N/A | BL278: N/A | BM278: N/A | BN278: N/A | BO278: N/A | BP278: N/A | BQ278: N/A | BR278: N/A | BS278: N/A | BT278: N/A | BU278: N/A | BV278: N/A
BB279: Did not participate in social activities | BC279: N/A | BD279: N/A | BE279: N/A | BF279: N/A | BG279: N/A | BH279: N/A | BI279: N/A | BJ279: N/A | BK279: N/A | BL279: N/A | BM279: N/A | BN279: N/A | BO279: N/A | BP279: N/A | BQ279: N/A | BR279: N/A | BS279: N/A | BT279: N/A | BU279: N/A | BV279: N/A
BB280: Did not cook food | BC280: N/A | BD280: N/A | BE280: N/A | BF280: N/A | BG280: N/A | BH280: N/A | BI280: N/A | BJ280: N/A | BK280: N/A | BL280: N/A | BM280: N/A | BN280: N/A | BO280: N/A | BP280: N/A | BQ280: N/A | BR280: N/A | BS280: N/A | BT280: N/A | BU280: N/A | BV280: N/A
BB281: Did not eat with others | BC281: N/A | BD281: N/A | BE281: N/A | BF281: N/A | BG281: N/A | BH281: N/A | BI281: N/A | BJ281: N/A | BK281: N/A | BL281: N/A | BM281: N/A | BN281: N/A | BO281: N/A | BP281: N/A | BQ281: N/A | BR281: N/A | BS281: N/A | BT281: N/A | BU281: N/A | BV281: N/A
BB282: Did not bathe in regular place | BC282: N/A | BD282: N/A | BE282: N/A | BF282: N/A | BG282: N/A | BH282: N/A | BI282: N/A | BJ282: N/A | BK282: N/A | BL282: N/A | BM282: N/A | BN282: N/A | BO282: N/A | BP282: N/A | BQ282: N/A | BR282: N/A | BS282: N/A | BT282: N/A | BU282: N/A | BV282: N/A
BB283: Did not participate in other activities | BC283: N/A | BD283: N/A | BE283: N/A | BF283: N/A | BG283: N/A | BH283: N/A | BI283: N/A | BJ283: N/A | BK283: N/A | BL283: N/A | BM283: N/A | BN283: N/A | BO283: N/A | BP283: N/A | BQ283: N/A | BR283: N/A | BS283: N/A | BT283: N/A | BU283: N/A | BV283: N/A
BB284: DK/not sure/missing/no such activity | BC284: N/A | BD284: N/A | BE284: N/A | BF284: N/A | BG284: N/A | BH284: N/A | BI284: N/A | BJ284: N/A | BK284: N/A | BL284: N/A | BM284: N/A | BN284: N/A | BO284: N/A | BP284: N/A | BQ284: N/A | BR284: N/A | BS284: N/A | BT284: N/A | BU284: N/A | BV284: N/A
BA339: Raw numbers of respondents: | BB339: Basic water, sanitation and hygiene | BC339: NATIONAL wealth index quintile | BH339: URBAN wealth index quintile | BM339: RURAL wealth index quintile | BR339: SUB-REGIONS:
BA340: WatSan data, raw numbers (weighted) | BC340: Poorest | BD340: Poor | BE340: Middle | BF340: Rich | BG340: Richest | BH340: Poorest | BI340: Poor | BJ340: Middle | BK340: Rich | BL340: Richest | BM340: Poorest | BN340: Poor | BO340: Middle | BP340: Rich | BQ340: Richest | BR340: Central | BS340: East | BT340: North | BU340: South | BV340: West
BA341: Use of Basic Water Sanitation and Hygiene | BB341: Yes | BC341: N/A | BD341: N/A | BE341: N/A | BF341: N/A | BG341: N/A | BH341: N/A | BI341: N/A | BJ341: N/A | BK341: N/A | BL341: N/A | BM341: N/A | BN341: N/A | BO341: N/A | BP341: N/A | BQ341: N/A | BR341: N/A | BS341: N/A | BT341: N/A | BU341: N/A | BV341: N/A
BB342: No | BC342: N/A | BD342: N/A | BE342: N/A | BF342: N/A | BG342: N/A | BH342: N/A | BI342: N/A | BJ342: N/A | BK342: N/A | BL342: N/A | BM342: N/A | BN342: N/A | BO342: N/A | BP342: N/A | BQ342: N/A | BR342: N/A | BS342: N/A | BT342: N/A | BU342: N/A | BV342: N/A
BA343: Use of Basic Water and Sanitation | BB343: Yes | BC343: N/A | BD343: N/A | BE343: N/A | BF343: N/A | BG343: N/A | BH343: N/A | BI343: N/A | BJ343: N/A | BK343: N/A | BL343: N/A | BM343: N/A | BN343: N/A | BO343: N/A | BP343: N/A | BQ343: N/A | BR343: N/A | BS343: N/A | BT343: N/A | BU343: N/A | BV343: N/A
BB344: No | BC344: N/A | BD344: N/A | BE344: N/A | BF344: N/A | BG344: N/A | BH344: N/A | BI344: N/A | BJ344: N/A | BK344: N/A | BL344: N/A | BM344: N/A | BN344: N/A | BO344: N/A | BP344: N/A | BQ344: N/A | BR344: N/A | BS344: N/A | BT344: N/A | BU344: N/A | BV344: N/A
BA345: Use of Basic Water and Hygiene | BB345: Yes | BC345: N/A | BD345: N/A | BE345: N/A | BF345: N/A | BG345: N/A | BH345: N/A | BI345: N/A | BJ345: N/A | BK345: N/A | BL345: N/A | BM345: N/A | BN345: N/A | BO345: N/A | BP345: N/A | BQ345: N/A | BR345: N/A | BS345: N/A | BT345: N/A | BU345: N/A | BV345: N/A
BB346: No | BC346: N/A | BD346: N/A | BE346: N/A | BF346: N/A | BG346: N/A | BH346: N/A | BI346: N/A | BJ346: N/A | BK346: N/A | BL346: N/A | BM346: N/A | BN346: N/A | BO346: N/A | BP346: N/A | BQ346: N/A | BR346: N/A | BS346: N/A | BT346: N/A | BU346: N/A | BV346: N/A
BA347: Use of Basic Sanitation and Hygiene | BB347: Yes | BC347: N/A | BD347: N/A | BE347: N/A | BF347: N/A | BG347: N/A | BH347: N/A | BI347: N/A | BJ347: N/A | BK347: N/A | BL347: N/A | BM347: N/A | BN347: N/A | BO347: N/A | BP347: N/A | BQ347: N/A | BR347: N/A | BS347: N/A | BT347: N/A | BU347: N/A | BV347: N/A
BB348: No | BC348: N/A | BD348: N/A | BE348: N/A | BF348: N/A | BG348: N/A | BH348: N/A | BI348: N/A | BJ348: N/A | BK348: N/A | BL348: N/A | BM348: N/A | BN348: N/A | BO348: N/A | BP348: N/A | BQ348: N/A | BR348: N/A | BS348: N/A | BT348: N/A | BU348: N/A | BV348: N/A
BA349: Use of Basic Water | BB349: Yes | BC349: N/A | BD349: N/A | BE349: N/A | BF349: N/A | BG349: N/A | BH349: N/A | BI349: N/A | BJ349: N/A | BK349: N/A | BL349: N/A | BM349: N/A | BN349: N/A | BO349: N/A | BP349: N/A | BQ349: N/A | BR349: N/A | BS349: N/A | BT349: N/A | BU349: N/A | BV349: N/A
BB350: No | BC350: N/A | BD350: N/A | BE350: N/A | BF350: N/A | BG350: N/A | BH350: N/A | BI350: N/A | BJ350: N/A | BK350: N/A | BL350: N/A | BM350: N/A | BN350: N/A | BO350: N/A | BP350: N/A | BQ350: N/A | BR350: N/A | BS350: N/A | BT350: N/A | BU350: N/A | BV350: N/A
BA351: Use of Basic Sanitation | BB351: Yes | BC351: N/A | BD351: N/A | BE351: N/A | BF351: N/A | BG351: N/A | BH351: N/A | BI351: N/A | BJ351: N/A | BK351: N/A | BL351: N/A | BM351: N/A | BN351: N/A | BO351: N/A | BP351: N/A | BQ351: N/A | BR351: N/A | BS351: N/A | BT351: N/A | BU351: N/A | BV351: N/A
BB352: No | BC352: N/A | BD352: N/A | BE352: N/A | BF352: N/A | BG352: N/A | BH352: N/A | BI352: N/A | BJ352: N/A | BK352: N/A | BL352: N/A | BM352: N/A | BN352: N/A | BO352: N/A | BP352: N/A | BQ352: N/A | BR352: N/A | BS352: N/A | BT352: N/A | BU352: N/A | BV352: N/A
BA353: Access to Basic Hygiene | BB353: Yes | BC353: N/A | BD353: N/A | BE353: N/A | BF353: N/A | BG353: N/A | BH353: N/A | BI353: N/A | BJ353: N/A | BK353: N/A | BL353: N/A | BM353: N/A | BN353: N/A | BO353: N/A | BP353: N/A | BQ353: N/A | BR353: N/A | BS353: N/A | BT353: N/A | BU353: N/A | BV353: N/A
BB354: No | BC354: N/A | BD354: N/A | BE354: N/A | BF354: N/A | BG354: N/A | BH354: N/A | BI354: N/A | BJ354: N/A | BK354: N/A | BL354: N/A | BM354: N/A | BN354: N/A | BO354: N/A | BP354: N/A | BQ354: N/A | BR354: N/A | BS354: N/A | BT354: N/A | BU354: N/A | BV354: N/A
C399: INITIAL (national) Wealth Index | H399: URBAN Wealth Index | M399: RURAL Wealth Index
C400: Component Matrix | H400: Component Matrix | M400: Component Matrix
E401: Component | J401: Component | O401: Component
B402: Note: The INITIAL (national) Wealth Index is based on the first component of the Principal Component Analysis (PCA) which has been obtained at national level. The final national-level (NATIONAL) Wealth Index is based on the URBAN and RURAL specific wealth indexes. Regression procedures are used to establish the relationships between the two sets of scores (urban and rural) and the initial (national) wealth factors. This allows best use of the available information for each area and a better precision of the FINAL (NATIONAL) Wealth Index. For dependency reasons, all WASH variables (contained in the generic MICS and DHS scripts) have been excluded from the sets of asset variables used in the PCAs. The PCA can extracts as many components as there are asset variables in the input. Only the first of the components is used to represent the Wealth Index. The scores represent the weights of the asset variables on the Wealth Index (correlations between the variables and the component). The communalities are the proportion of each variable's variance that can be explained by the component. Proportion of explained variance is the part of the model's total variance that is explained by the component. For more information on the procedure used: The DHS Wealth Index, DHS Comparative Reports No. 6, Shea Oscar Rutstein, Kiersten Johnson, ORC Macro International Inc., 2004. The DHS Wealth Index: Approaches for Rural and Urban Areas, Shea O. Rutstein, ORC Macro International Inc., 2008. MICS Methodological Paper No. 4, Review of options for reporting water, sanitation and hygiene coverage by wealth quintile, UNICEF, 2016. | E402: 1 | J402: 1 | O402: 1
C403: Blender/mixer | E403: 0.6546780317 | H403: Television | J403: 0.6412934641 | M403: Vacuum cleaner | O403: 0.6716150095
C404: Television | E404: 0.6487606774 | H404: Dishwasher | J404: 0.6283823492 | M404: Washing machine | O404: 0.6388876974
C405: Vacuum cleaner | E405: 0.6420280407 | H405: Blender/mixer | J405: 0.622919455 | M405: Blender/mixer | O405: 0.632747343
C406: Has credit card | E406: 0.6223283623 | H406: Has credit card | J406: 0.6024212711 | M406: Television | O406: 0.6087045803
C407: Dishwasher | E407: 0.61872919 | H407: Camera | J407: 0.5904356838 | M407: Gas or electric oven | O407: 0.5914517941
C408: Washing machine | E408: 0.6154716477 | H408: Has car | J408: 0.5854395119 | M408: Has car/truck | O408: 0.5825966792
C409: Camera | E409: 0.602650254 | H409: Has car/truck | J409: 0.5851158797 | M409: Has car | O409: 0.5818951052
C410: Gas or electric oven | E410: 0.5808274519 | H410: Vacuum cleaner | J410: 0.5522378647 | M410: Iron | O410: 0.5655543286
C411: Has car | E411: 0.5530205772 | H411: Washing machine | J411: 0.5274502291 | M411: Camera | O411: 0.5451218796
C412: Has car/truck | E412: 0.5529459888 | H412: Computer | J412: 0.5272548743 | M412: Has credit card | O412: 0.5414313369
C413: Iron | E413: 0.533613062 | H413: Gas or electric oven | J413: 0.5134377518 | M413: Separate bathroom | O413: 0.5050354664
C414: Computer | E414: 0.5098724395 | H414: Internet | J414: 0.4749450474 | M414: DVD/VCD player | O414: 0.4994157261
C415: DVD/VCD player | E415: 0.5082418505 | H415: CD player | J415: 0.4648734512 | M415: Dishwasher | O415: 0.4929185365
C416: Separate bathroom | E416: 0.4938657768 | H416: DVD/VCD player | J416: 0.4564081324 | M416: Separate kitchen | O416: 0.4520133046
C417: CD player | E417: 0.4704197692 | H417: Concrete, cement floor | J417: -0.4558336927 | M417: Has television | O417: 0.3953854125
C418: Internet | E418: 0.4456315281 | H418: Iron | J418: 0.4432037765 | M418: Has refrigerator | O418: 0.3840725923
C419: Separate kitchen | E419: 0.4358886744 | H419: Parquet, wood tile floor | J419: 0.4194706283 | M419: Computer | O419: 0.3828354615
C420: Parquet, wood tile floor | E420: 0.4267158227 | H420: Separate bathroom | J420: 0.3789376528 | M420: CD player | O420: 0.369347459
C421: Concrete, cement floor | E421: -0.4202517411 | H421: Cable TV | J421: 0.375108727 | M421: Has bicycle | O421: 0.3655682344
C422: Number of members per sleeping room | E422: -0.3830224864 | H422: Number of members per sleeping room | J422: -0.372981397 | M422: Digiturk, CINE 5, satellite antenna etc. | O422: 0.3526658293
... 161 more rows

Sheet DHS08
A2: =A1026 -> Turkey
A3: =A1034 -> 2008
A4: Use of drinking water sources
A5: by wealth quintile and sub-national region
A6: Notes:
A7: WHO/UNICEF JMP customised wealth index excludes water,
A8: sanitation and hygiene assets.
A9: Survey used for analysis: | B9: =A1025 -> DHS08
A10: Improved wells + springs based on : | B10: DHS13
A11: =B1027 -> 
A14: Use of drinking water sources | C14: NATIONAL wealth index quintile | H14: URBAN wealth index quintile | M14: RURAL wealth index quintile | R14: SUB-REGIONS: | BA14: Raw numbers of respondents: | BB14: Use of drinking water sources | BC14: NATIONAL wealth index quintile | BH14: URBAN wealth index quintile | BM14: RURAL wealth index quintile | BR14: SUB-REGIONS:
A15: Weighted percentage (used in graphs) | C15: Poorest | D15: Poor | E15: Middle | F15: Rich | G15: Richest | H15: Poorest | I15: Poor | J15: Middle | K15: Rich | L15: Richest | M15: Poorest | N15: Poor | O15: Middle | P15: Rich | Q15: Richest | R15: Central | S15: East | T15: North | U15: South | V15: West | BA15: Water data, raw numbers (weighted) | BC15: Poorest | BD15: Poor | BE15: Middle | BF15: Rich | BG15: Richest | BH15: Poorest | BI15: Poor | BJ15: Middle | BK15: Rich | BL15: Richest | BM15: Poorest | BN15: Poor | BO15: Middle | BP15: Rich | BQ15: Richest | BR15: Central | BS15: East | BT15: North | BU15: South | BV15: West
A16: Water | B16: Improved | C16: =C58+C59+C62+C65+C66+C63*'DHS13'!C25/100+('DHS08'!C60+'DHS08'!C61)*'DHS13'!C24/100 -> 96.19354624 | D16: =D58+D59+D62+D65+D66+D63*'DHS13'!D25/100+('DHS08'!D60+'DHS08'!D61)*'DHS13'!D24/100 -> 96.61675919 | E16: =E58+E59+E62+E65+E66+E63*'DHS13'!E25/100+('DHS08'!E60+'DHS08'!E61)*'DHS13'!E24/100 -> 97.35620315 | F16: =F58+F59+F62+F65+F66+F63*'DHS13'!F25/100+('DHS08'!F60+'DHS08'!F61)*'DHS13'!F24/100 -> 97.44327517 | G16: =G58+G59+G62+G65+G66+G63*'DHS13'!G25/100+('DHS08'!G60+'DHS08'!G61)*'DHS13'!G24/100 -> 98.15152601 | H16: =H58+H59+H62+H65+H66+H63*'DHS13'!H25/100+('DHS08'!H60+'DHS08'!H61)*'DHS13'!H24/100 -> 98.42670719 | I16: =I58+I59+I62+I65+I66+I63*'DHS13'!I25/100+('DHS08'!I60+'DHS08'!I61)*'DHS13'!I24/100 -> 98.53453144 | J16: =J58+J59+J62+J65+J66+J63*'DHS13'!J25/100+('DHS08'!J60+'DHS08'!J61)*'DHS13'!J24/100 -> 98.11023045 | K16: =K58+K59+K62+K65+K66+K63*'DHS13'!K25/100+('DHS08'!K60+'DHS08'!K61)*'DHS13'!K24/100 -> 97.85293517 | L16: =L58+L59+L62+L65+L66+L63*'DHS13'!L25/100+('DHS08'!L60+'DHS08'!L61)*'DHS13'!L24/100 -> 98.65808368 | M16: =M58+M59+M62+M65+M66+M63*'DHS13'!M25/100+('DHS08'!M60+'DHS08'!M61)*'DHS13'!M24/100 -> 92.43826531 | N16: =N58+N59+N62+N65+N66+N63*'DHS13'!N25/100+('DHS08'!N60+'DHS08'!N61)*'DHS13'!N24/100 -> 93.00417041 | O16: =O58+O59+O62+O65+O66+O63*'DHS13'!O25/100+('DHS08'!O60+'DHS08'!O61)*'DHS13'!O24/100 -> 96.00236723 | P16: =P58+P59+P62+P65+P66+P63*'DHS13'!P25/100+('DHS08'!P60+'DHS08'!P61)*'DHS13'!P24/100 -> 93.74690612 | Q16: =Q58+Q59+Q62+Q65+Q66+Q63*'DHS13'!Q25/100+('DHS08'!Q60+'DHS08'!Q61)*'DHS13'!Q24/100 -> 93.43209202 | R16: =R58+R59+R62+R65+R66+R63*'DHS13'!R25/100+('DHS08'!R60+'DHS08'!R61)*'DHS13'!R24/100 -> 95.33100844 | S16: =S58+S59+S62+S65+S66+S63*'DHS13'!S25/100+('DHS08'!S60+'DHS08'!S61)*'DHS13'!S24/100 -> 96.86287328 | T16: =T58+T59+T62+T65+T66+T63*'DHS13'!T25/100+('DHS08'!T60+'DHS08'!T61)*'DHS13'!T24/100 -> 99.15739396 | U16: =U58+U59+U62+U65+U66+U63*'DHS13'!U25/100+('DHS08'!U60+'DHS08'!U61)*'DHS13'!U24/100 -> 97.56341357 | V16: =V58+V59+V62+V65+V66+V63*'DHS13'!V25/100+('DHS08'!V60+'DHS08'!V61)*'DHS13'!V24/100 -> 97.65798251 | BA16: Water | BB16: Improved | BC16: N/A | BD16: N/A | BE16: N/A | BF16: N/A | BG16: N/A | BH16: N/A | BI16: N/A | BJ16: N/A | BK16: N/A | BL16: N/A | BM16: N/A | BN16: N/A | BO16: N/A | BP16: N/A | BQ16: N/A | BR16: N/A | BS16: N/A | BT16: N/A | BU16: N/A | BV16: N/A
B17: Not Improved | C17: =100-C16 -> 3.806453761 | D17: =100-D16 -> 3.383240811 | E17: 2.643796851 | F17: 2.556724833 | G17: 1.848473988 | H17: 1.573292813 | I17: 1.465468556 | J17: 1.889769555 | K17: 2.147064828 | L17: 1.341916322 | M17: 7.561734686 | N17: 6.995829591 | O17: 3.997632771 | P17: 6.253093881 | Q17: 6.567907979 | R17: 4.668991556 | S17: 3.137126723 | T17: 0.8426060431 | U17: 2.436586426 | V17: 2.342017487 | BB17: Not Improved | BC17: N/A | BD17: N/A | BE17: N/A | BF17: N/A | BG17: N/A | BH17: N/A | BI17: N/A | BJ17: N/A | BK17: N/A | BL17: N/A | BM17: N/A | BN17: N/A | BO17: N/A | BP17: N/A | BQ17: N/A | BR17: N/A | BS17: N/A | BT17: N/A | BU17: N/A | BV17: N/A
A18: Water ladder | B18: Basic | C18: =C16*'DHS13'!C23/100 -> 94.76825377 | D18: =D16*'DHS13'!D23/100 -> 95.60638054 | E18: =E16*'DHS13'!E23/100 -> 95.9868062 | F18: =F16*'DHS13'!F23/100 -> 95.73766459 | G18: =G16*'DHS13'!G23/100 -> 97.62283299 | H18: =H16*'DHS13'!H23/100 -> 97.59823762 | I18: =I16*'DHS13'!I23/100 -> 97.43216323 | J18: =J16*'DHS13'!J23/100 -> 97.1594554 | K18: =K16*'DHS13'!K23/100 -> 96.18820254 | L18: =L16*'DHS13'!L23/100 -> 98.32322329 | M18: =M16*'DHS13'!M23/100 -> 89.82847569 | N18: =N16*'DHS13'!N23/100 -> 91.19255052 | O18: =O16*'DHS13'!O23/100 -> 94.96467185 | P18: =P16*'DHS13'!P23/100 -> 91.01667622 | Q18: =Q16*'DHS13'!Q23/100 -> 91.59475426 | R18: =R16*'DHS13'!R23/100 -> 93.45128404 | S18: =S16*'DHS13'!S23/100 -> 95.82876813 | T18: =T16*'DHS13'!T23/100 -> 97.16339327 | U18: =U16*'DHS13'!U23/100 -> 97.08868448 | V18: =V16*'DHS13'!V23/100 -> 96.62044165 | BA18: Water ladder | BB18: Basic | BC18: N/A | BD18: N/A | BE18: N/A | BF18: N/A | BG18: N/A | BH18: N/A | BI18: N/A | BJ18: N/A | BK18: N/A | BL18: N/A | BM18: N/A | BN18: N/A | BO18: N/A | BP18: N/A | BQ18: N/A | BR18: N/A | BS18: N/A | BT18: N/A | BU18: N/A | BV18: N/A
B19: Limited | C19: =C16*'DHS13'!C22/100 -> 1.425292469 | D19: =D16*'DHS13'!D22/100 -> 1.010378646 | E19: =E16*'DHS13'!E22/100 -> 1.369396949 | F19: =F16*'DHS13'!F22/100 -> 1.705610572 | G19: =G16*'DHS13'!G22/100 -> 0.5286930174 | H19: =H16*'DHS13'!H22/100 -> 0.8284695682 | I19: =I16*'DHS13'!I22/100 -> 1.10236821 | J19: =J16*'DHS13'!J22/100 -> 0.9507750464 | K19: =K16*'DHS13'!K22/100 -> 1.664732627 | L19: =L16*'DHS13'!L22/100 -> 0.3348603887 | M19: =M16*'DHS13'!M22/100 -> 2.609789627 | N19: =N16*'DHS13'!N22/100 -> 1.811619887 | O19: =O16*'DHS13'!O22/100 -> 1.037695382 | P19: =P16*'DHS13'!P22/100 -> 2.730229896 | Q19: =Q16*'DHS13'!Q22/100 -> 1.837337763 | R19: =R16*'DHS13'!R22/100 -> 1.879724406 | S19: =S16*'DHS13'!S22/100 -> 1.034105142 | T19: =T16*'DHS13'!T22/100 -> 1.994000682 | U19: =U16*'DHS13'!U22/100 -> 0.4747290908 | V19: =V16*'DHS13'!V22/100 -> 1.037540864 | BB19: Limited | BC19: N/A | BD19: N/A | BE19: N/A | BF19: N/A | BG19: N/A | BH19: N/A | BI19: N/A | BJ19: N/A | BK19: N/A | BL19: N/A | BM19: N/A | BN19: N/A | BO19: N/A | BP19: N/A | BQ19: N/A | BR19: N/A | BS19: N/A | BT19: N/A | BU19: N/A | BV19: N/A
B20: Unimproved | C20: =100-C18-C19-C21 -> 3.380109277 | D20: =100-D18-D19-D21 -> 2.767218714 | E20: 2.4343116 | F20: 2.24062425 | G20: 1.559953844 | H20: 1.187877152 | I20: 1.27374871 | J20: 1.453807966 | K20: 1.623428935 | L20: 1.288023639 | M20: 6.961972099 | N20: 5.487469089 | O20: 3.997632771 | P20: 6.027070091 | Q20: 6.338967098 | R20: 4.300951874 | S20: 2.861393582 | T20: 0.6611061363 | U20: 2.122349602 | V20: 1.87675563 | BB20: Unimproved | BC20: N/A | BD20: N/A | BE20: N/A | BF20: N/A | BG20: N/A | BH20: N/A | BI20: N/A | BJ20: N/A | BK20: N/A | BL20: N/A | BM20: N/A | BN20: N/A | BO20: N/A | BP20: N/A | BQ20: N/A | BR20: N/A | BS20: N/A | BT20: N/A | BU20: N/A | BV20: N/A
B21: Surface water | C21: =C64 -> 0.4263444838 | D21: 0.6160220966 | E21: 0.2094852513 | F21: 0.3161005826 | G21: 0.2885201439 | H21: 0.3854156607 | I21: 0.1917198459 | J21: 0.4359615891 | K21: 0.5236358925 | L21: 0.05389268329 | M21: 0.5997625868 | N21: 1.508360502 | O21: 0 | P21: 0.2260237899 | Q21: 0.2289408817 | R21: 0.368039682 | S21: 0.2757331416 | T21: 0.1814999069 | U21: 0.3142368243 | V21: 0.4652618576 | BB21: Surface water | BC21: N/A | BD21: N/A | BE21: N/A | BF21: N/A | BG21: N/A | BH21: N/A | BI21: N/A | BJ21: N/A | BK21: N/A | BL21: N/A | BM21: N/A | BN21: N/A | BO21: N/A | BP21: N/A | BQ21: N/A | BR21: N/A | BS21: N/A | BT21: N/A | BU21: N/A | BV21: N/A
A22: Improved water point at more than 30 minutes | B22: Yes | C22: N/A | D22: N/A | E22: N/A | F22: N/A | G22: N/A | H22: N/A | I22: N/A | J22: N/A | K22: N/A | L22: N/A | M22: N/A | N22: N/A | O22: N/A | P22: N/A | Q22: N/A | R22: N/A | S22: N/A | T22: N/A | U22: N/A | V22: N/A | BA22: Improved water point at more than 30 minutes | BB22: Yes | BC22: N/A | BD22: N/A | BE22: N/A | BF22: N/A | BG22: N/A | BH22: N/A | BI22: N/A | BJ22: N/A | BK22: N/A | BL22: N/A | BM22: N/A | BN22: N/A | BO22: N/A | BP22: N/A | BQ22: N/A | BR22: N/A | BS22: N/A | BT22: N/A | BU22: N/A | BV22: N/A
B23: No | C23: N/A | D23: N/A | E23: N/A | F23: N/A | G23: N/A | H23: N/A | I23: N/A | J23: N/A | K23: N/A | L23: N/A | M23: N/A | N23: N/A | O23: N/A | P23: N/A | Q23: N/A | R23: N/A | S23: N/A | T23: N/A | U23: N/A | V23: N/A | BB23: No | BC23: N/A | BD23: N/A | BE23: N/A | BF23: N/A | BG23: N/A | BH23: N/A | BI23: N/A | BJ23: N/A | BK23: N/A | BL23: N/A | BM23: N/A | BN23: N/A | BO23: N/A | BP23: N/A | BQ23: N/A | BR23: N/A | BS23: N/A | BT23: N/A | BU23: N/A | BV23: N/A
A24: Manually calculated ratios | B24: Improved wells
B25: Improved springs
B26: Other
C27: NATIONAL wealth index quintile | H27: URBAN wealth index quintile | M27: RURAL wealth index quintile | R27: SUB-REGIONS: | BA27: Raw numbers of respondents: | BB27: Use of drinking water sources | BC27: NATIONAL wealth index quintile | BH27: URBAN wealth index quintile | BM27: RURAL wealth index quintile | BR27: SUB-REGIONS:
A28: Percentage based on weighted population | C28: Poorest | D28: Poor | E28: Middle | F28: Rich | G28: Richest | H28: Poorest | I28: Poor | J28: Middle | K28: Rich | L28: Richest | M28: Poorest | N28: Poor | O28: Middle | P28: Rich | Q28: Richest | R28: Central | S28: East | T28: North | U28: South | V28: West | BA28: Water data, raw numbers (weighted) | BC28: Poorest | BD28: Poor | BE28: Middle | BF28: Rich | BG28: Richest | BH28: Poorest | BI28: Poor | BJ28: Middle | BK28: Rich | BL28: Richest | BM28: Poorest | BN28: Poor | BO28: Middle | BP28: Rich | BQ28: Richest | BR28: Central | BS28: East | BT28: North | BU28: South | BV28: West
A29: Piped water | B29: Yes | C29: 40.11585011 | D29: 42.36654778 | E29: 49.63801903 | F29: 37.99081806 | G29: 24.6403115 | H29: 62.34509403 | I29: 64.18729677 | J29: 48.09629721 | K29: 36.15961914 | L29: 22.45479637 | M29: 10.91162672 | N29: 17.34046763 | O29: 17.18859681 | P29: 20.67060038 | Q29: 26.20964277 | R29: 33.46433337 | S29: 57.76809387 | T29: 30.63710685 | U29: 50.14106594 | V29: 31.15879897 | BA29: Piped water | BB29: Yes | BC29: N/A | BD29: N/A | BE29: N/A | BF29: N/A | BG29: N/A | BH29: N/A | BI29: N/A | BJ29: N/A | BK29: N/A | BL29: N/A | BM29: N/A | BN29: N/A | BO29: N/A | BP29: N/A | BQ29: N/A | BR29: N/A | BS29: N/A | BT29: N/A | BU29: N/A | BV29: N/A
B30: No | C30: 59.88414989 | D30: 57.63345222 | E30: 50.36198097 | F30: 62.00918194 | G30: 75.3596885 | H30: 37.65490597 | I30: 35.81270323 | J30: 51.90370279 | K30: 63.84038086 | L30: 77.54520363 | M30: 89.08837328 | N30: 82.65953237 | O30: 82.81140319 | P30: 79.32939962 | Q30: 73.79035723 | R30: 66.53566663 | S30: 42.23190613 | T30: 69.36289315 | U30: 49.85893406 | V30: 68.84120103 | BB30: No | BC30: N/A | BD30: N/A | BE30: N/A | BF30: N/A | BG30: N/A | BH30: N/A | BI30: N/A | BJ30: N/A | BK30: N/A | BL30: N/A | BM30: N/A | BN30: N/A | BO30: N/A | BP30: N/A | BQ30: N/A | BR30: N/A | BS30: N/A | BT30: N/A | BU30: N/A | BV30: N/A
A31: Piped water on premises | B31: Yes | C31: 39.88689424 | D31: 42.19698319 | E31: 49.39692643 | F31: 37.96498301 | G31: 24.6196241 | H31: 62.0349351 | I31: 63.99917326 | J31: 48.06786029 | K31: 36.12404409 | L31: 22.42633799 | M31: 10.81396851 | N31: 17.08279506 | O31: 17.18859681 | P31: 20.38861329 | Q31: 25.90720283 | R31: 33.34712218 | S31: 57.59048938 | T31: 30.12138513 | U31: 50.01571172 | V31: 31.08919141 | BA31: Piped water on premises | BB31: Yes | BC31: N/A | BD31: N/A | BE31: N/A | BF31: N/A | BG31: N/A | BH31: N/A | BI31: N/A | BJ31: N/A | BK31: N/A | BL31: N/A | BM31: N/A | BN31: N/A | BO31: N/A | BP31: N/A | BQ31: N/A | BR31: N/A | BS31: N/A | BT31: N/A | BU31: N/A | BV31: N/A
B32: No | C32: 60.11310576 | D32: 57.80301681 | E32: 50.60307357 | F32: 62.03501699 | G32: 75.3803759 | H32: 37.9650649 | I32: 36.00082674 | J32: 51.93213971 | K32: 63.87595591 | L32: 77.57366201 | M32: 89.18603149 | N32: 82.91720494 | O32: 82.81140319 | P32: 79.61138671 | Q32: 74.09279717 | R32: 66.65287782 | S32: 42.40951062 | T32: 69.87861487 | U32: 49.98428828 | V32: 68.91080859 | BB32: No | BC32: N/A | BD32: N/A | BE32: N/A | BF32: N/A | BG32: N/A | BH32: N/A | BI32: N/A | BJ32: N/A | BK32: N/A | BL32: N/A | BM32: N/A | BN32: N/A | BO32: N/A | BP32: N/A | BQ32: N/A | BR32: N/A | BS32: N/A | BT32: N/A | BU32: N/A | BV32: N/A
A33: Piped water into dwelling | B33: Yes | C33: N/A | D33: N/A | E33: N/A | F33: N/A | G33: N/A | H33: N/A | I33: N/A | J33: N/A | K33: N/A | L33: N/A | M33: N/A | N33: N/A | O33: N/A | P33: N/A | Q33: N/A | R33: N/A | S33: N/A | T33: N/A | U33: N/A | V33: N/A | BA33: Piped water into dwelling | BB33: Yes | BC33: N/A | BD33: N/A | BE33: N/A | BF33: N/A | BG33: N/A | BH33: N/A | BI33: N/A | BJ33: N/A | BK33: N/A | BL33: N/A | BM33: N/A | BN33: N/A | BO33: N/A | BP33: N/A | BQ33: N/A | BR33: N/A | BS33: N/A | BT33: N/A | BU33: N/A | BV33: N/A
B34: No | C34: N/A | D34: N/A | E34: N/A | F34: N/A | G34: N/A | H34: N/A | I34: N/A | J34: N/A | K34: N/A | L34: N/A | M34: N/A | N34: N/A | O34: N/A | P34: N/A | Q34: N/A | R34: N/A | S34: N/A | T34: N/A | U34: N/A | V34: N/A | BB34: No | BC34: N/A | BD34: N/A | BE34: N/A | BF34: N/A | BG34: N/A | BH34: N/A | BI34: N/A | BJ34: N/A | BK34: N/A | BL34: N/A | BM34: N/A | BN34: N/A | BO34: N/A | BP34: N/A | BQ34: N/A | BR34: N/A | BS34: N/A | BT34: N/A | BU34: N/A | BV34: N/A
A35: Water source on premises | B35: Yes | C35: 90.34430694 | D35: 91.58977785 | E35: 90.34991431 | F35: 91.29088084 | G35: 93.98656272 | H35: 93.98428413 | I35: 92.20369663 | J35: 92.73951797 | K35: 92.41807347 | L35: 95.0927187 | M35: 84.00050128 | N35: 88.22263802 | O35: 90.16228635 | P35: 85.7031223 | Q35: 85.85303661 | R35: 83.74267714 | S35: 93.52721711 | T35: 93.75774142 | U35: 94.96495268 | V35: 93.16769618 | BA35: Water source on premises | BB35: Yes | BC35: N/A | BD35: N/A | BE35: N/A | BF35: N/A | BG35: N/A | BH35: N/A | BI35: N/A | BJ35: N/A | BK35: N/A | BL35: N/A | BM35: N/A | BN35: N/A | BO35: N/A | BP35: N/A | BQ35: N/A | BR35: N/A | BS35: N/A | BT35: N/A | BU35: N/A | BV35: N/A
B36: No | C36: 9.655693064 | D36: 8.41022215 | E36: 9.650085694 | F36: 8.709119162 | G36: 6.013437276 | H36: 6.015715874 | I36: 7.79630337 | J36: 7.260482032 | K36: 7.581926534 | L36: 4.907281303 | M36: 15.99949872 | N36: 11.77736198 | O36: 9.837713654 | P36: 14.2968777 | Q36: 14.14696339 | R36: 16.25732286 | S36: 6.472782889 | T36: 6.242258581 | U36: 5.035047321 | V36: 6.83230382 | BB36: No | BC36: N/A | BD36: N/A | BE36: N/A | BF36: N/A | BG36: N/A | BH36: N/A | BI36: N/A | BJ36: N/A | BK36: N/A | BL36: N/A | BM36: N/A | BN36: N/A | BO36: N/A | BP36: N/A | BQ36: N/A | BR36: N/A | BS36: N/A | BT36: N/A | BU36: N/A | BV36: N/A
A37: Improved Water source on premises | B37: Yes | C37: N/A | D37: N/A | E37: N/A | F37: N/A | G37: N/A | H37: N/A | I37: N/A | J37: N/A | K37: N/A | L37: N/A | M37: N/A | N37: N/A | O37: N/A | P37: N/A | Q37: N/A | R37: N/A | S37: N/A | T37: N/A | U37: N/A | V37: N/A | BA37: Improved water source on premises | BB37: Yes | BC37: N/A | BD37: N/A | BE37: N/A | BF37: N/A | BG37: N/A | BH37: N/A | BI37: N/A | BJ37: N/A | BK37: N/A | BL37: N/A | BM37: N/A | BN37: N/A | BO37: N/A | BP37: N/A | BQ37: N/A | BR37: N/A | BS37: N/A | BT37: N/A | BU37: N/A | BV37: N/A
B38: No | C38: N/A | D38: N/A | E38: N/A | F38: N/A | G38: N/A | H38: N/A | I38: N/A | J38: N/A | K38: N/A | L38: N/A | M38: N/A | N38: N/A | O38: N/A | P38: N/A | Q38: N/A | R38: N/A | S38: N/A | T38: N/A | U38: N/A | V38: N/A | BB38: No | BC38: N/A | BD38: N/A | BE38: N/A | BF38: N/A | BG38: N/A | BH38: N/A | BI38: N/A | BJ38: N/A | BK38: N/A | BL38: N/A | BM38: N/A | BN38: N/A | BO38: N/A | BP38: N/A | BQ38: N/A | BR38: N/A | BS38: N/A | BT38: N/A | BU38: N/A | BV38: N/A
A39: Piped water on premises available when needed | B39: Yes | C39: N/A | D39: N/A | E39: N/A | F39: N/A | G39: N/A | H39: N/A | I39: N/A | J39: N/A | K39: N/A | L39: N/A | M39: N/A | N39: N/A | O39: N/A | P39: N/A | Q39: N/A | R39: N/A | S39: N/A | T39: N/A | U39: N/A | V39: N/A | BA39: Piped water on premises available when needed | BB39: Yes | BC39: N/A | BD39: N/A | BE39: N/A | BF39: N/A | BG39: N/A | BH39: N/A | BI39: N/A | BJ39: N/A | BK39: N/A | BL39: N/A | BM39: N/A | BN39: N/A | BO39: N/A | BP39: N/A | BQ39: N/A | BR39: N/A | BS39: N/A | BT39: N/A | BU39: N/A | BV39: N/A
B40: No | C40: N/A | D40: N/A | E40: N/A | F40: N/A | G40: N/A | H40: N/A | I40: N/A | J40: N/A | K40: N/A | L40: N/A | M40: N/A | N40: N/A | O40: N/A | P40: N/A | Q40: N/A | R40: N/A | S40: N/A | T40: N/A | U40: N/A | V40: N/A | BB40: No | BC40: N/A | BD40: N/A | BE40: N/A | BF40: N/A | BG40: N/A | BH40: N/A | BI40: N/A | BJ40: N/A | BK40: N/A | BL40: N/A | BM40: N/A | BN40: N/A | BO40: N/A | BP40: N/A | BQ40: N/A | BR40: N/A | BS40: N/A | BT40: N/A | BU40: N/A | BV40: N/A
A41: Water point at more than 30 minutes | B41: Yes | C41: 1.944174725 | D41: 1.85321179 | E41: 2.968002038 | F41: 2.313706476 | G41: 1.86660874 | H41: 1.798352541 | I41: 2.813013542 | J41: 2.183398693 | K41: 2.523958004 | L41: 2.13301685 | M41: 4.16421908 | N41: 0.4555937595 | O41: 1.964123346 | P41: 1.194964533 | Q41: 1.740224747 | R41: 3.618249316 | S41: 1.565628251 | T41: 2.360760205 | U41: 1.678339069 | V41: 1.886023206 | BA41: Water point at more than 30 minutes | BB41: Yes | BC41: N/A | BD41: N/A | BE41: N/A | BF41: N/A | BG41: N/A | BH41: N/A | BI41: N/A | BJ41: N/A | BK41: N/A | BL41: N/A | BM41: N/A | BN41: N/A | BO41: N/A | BP41: N/A | BQ41: N/A | BR41: N/A | BS41: N/A | BT41: N/A | BU41: N/A | BV41: N/A
B42: No | C42: 98.05582527 | D42: 98.14678821 | E42: 97.03199796 | F42: 97.68629352 | G42: 98.13339126 | H42: 98.20164746 | I42: 97.18698646 | J42: 97.81660131 | K42: 97.476042 | L42: 97.86698315 | M42: 95.83578092 | N42: 99.54440624 | O42: 98.03587665 | P42: 98.80503547 | Q42: 98.25977525 | R42: 96.38175068 | S42: 98.43437175 | T42: 97.63923979 | U42: 98.32166093 | V42: 98.11397679 | BB42: No | BC42: N/A | BD42: N/A | BE42: N/A | BF42: N/A | BG42: N/A | BH42: N/A | BI42: N/A | BJ42: N/A | BK42: N/A | BL42: N/A | BM42: N/A | BN42: N/A | BO42: N/A | BP42: N/A | BQ42: N/A | BR42: N/A | BS42: N/A | BT42: N/A | BU42: N/A | BV42: N/A
A43: Water source available when needed | B43: Yes | C43: N/A | D43: N/A | E43: N/A | F43: N/A | G43: N/A | H43: N/A | I43: N/A | J43: N/A | K43: N/A | L43: N/A | M43: N/A | N43: N/A | O43: N/A | P43: N/A | Q43: N/A | R43: N/A | S43: N/A | T43: N/A | U43: N/A | V43: N/A | BA43: Water source available when needed | BB43: Yes | BC43: N/A | BD43: N/A | BE43: N/A | BF43: N/A | BG43: N/A | BH43: N/A | BI43: N/A | BJ43: N/A | BK43: N/A | BL43: N/A | BM43: N/A | BN43: N/A | BO43: N/A | BP43: N/A | BQ43: N/A | BR43: N/A | BS43: N/A | BT43: N/A | BU43: N/A | BV43: N/A
B44: No | C44: N/A | D44: N/A | E44: N/A | F44: N/A | G44: N/A | H44: N/A | I44: N/A | J44: N/A | K44: N/A | L44: N/A | M44: N/A | N44: N/A | O44: N/A | P44: N/A | Q44: N/A | R44: N/A | S44: N/A | T44: N/A | U44: N/A | V44: N/A | BB44: No | BC44: N/A | BD44: N/A | BE44: N/A | BF44: N/A | BG44: N/A | BH44: N/A | BI44: N/A | BJ44: N/A | BK44: N/A | BL44: N/A | BM44: N/A | BN44: N/A | BO44: N/A | BP44: N/A | BQ44: N/A | BR44: N/A | BS44: N/A | BT44: N/A | BU44: N/A | BV44: N/A
A45: Improved water source available when needed | B45: Yes | C45: N/A | D45: N/A | E45: N/A | F45: N/A | G45: N/A | H45: N/A | I45: N/A | J45: N/A | K45: N/A | L45: N/A | M45: N/A | N45: N/A | O45: N/A | P45: N/A | Q45: N/A | R45: N/A | S45: N/A | T45: N/A | U45: N/A | V45: N/A | BA45: Improved water source available when needed | BB45: Yes | BC45: N/A | BD45: N/A | BE45: N/A | BF45: N/A | BG45: N/A | BH45: N/A | BI45: N/A | BJ45: N/A | BK45: N/A | BL45: N/A | BM45: N/A | BN45: N/A | BO45: N/A | BP45: N/A | BQ45: N/A | BR45: N/A | BS45: N/A | BT45: N/A | BU45: N/A | BV45: N/A
B46: No | C46: N/A | D46: N/A | E46: N/A | F46: N/A | G46: N/A | H46: N/A | I46: N/A | J46: N/A | K46: N/A | L46: N/A | M46: N/A | N46: N/A | O46: N/A | P46: N/A | Q46: N/A | R46: N/A | S46: N/A | T46: N/A | U46: N/A | V46: N/A | BB46: No | BC46: N/A | BD46: N/A | BE46: N/A | BF46: N/A | BG46: N/A | BH46: N/A | BI46: N/A | BJ46: N/A | BK46: N/A | BL46: N/A | BM46: N/A | BN46: N/A | BO46: N/A | BP46: N/A | BQ46: N/A | BR46: N/A | BS46: N/A | BT46: N/A | BU46: N/A | BV46: N/A
A47: Microbiological quality at point of collection | B47: Not contaminated (No E. coli in 100 mL) | C47: N/A | D47: N/A | E47: N/A | F47: N/A | G47: N/A | H47: N/A | I47: N/A | J47: N/A | K47: N/A | L47: N/A | M47: N/A | N47: N/A | O47: N/A | P47: N/A | Q47: N/A | R47: N/A | S47: N/A | T47: N/A | U47: N/A | V47: N/A | BA47: Microbiological quality at point of collection | BB47: Not contaminated (No E. coli in 100 mL) | BC47: N/A | BD47: N/A | BE47: N/A | BF47: N/A | BG47: N/A | BH47: N/A | BI47: N/A | BJ47: N/A | BK47: N/A | BL47: N/A | BM47: N/A | BN47: N/A | BO47: N/A | BP47: N/A | BQ47: N/A | BR47: N/A | BS47: N/A | BT47: N/A | BU47: N/A | BV47: N/A
B48: Contaminated (E. coli detected in 100 mL) | C48: N/A | D48: N/A | E48: N/A | F48: N/A | G48: N/A | H48: N/A | I48: N/A | J48: N/A | K48: N/A | L48: N/A | M48: N/A | N48: N/A | O48: N/A | P48: N/A | Q48: N/A | R48: N/A | S48: N/A | T48: N/A | U48: N/A | V48: N/A | BB48: Contaminated (E. coli detected in 100 mL) | BC48: N/A | BD48: N/A | BE48: N/A | BF48: N/A | BG48: N/A | BH48: N/A | BI48: N/A | BJ48: N/A | BK48: N/A | BL48: N/A | BM48: N/A | BN48: N/A | BO48: N/A | BP48: N/A | BQ48: N/A | BR48: N/A | BS48: N/A | BT48: N/A | BU48: N/A | BV48: N/A
B49: Highly contaminated (>100 CFU/100 mL) | C49: N/A | D49: N/A | E49: N/A | F49: N/A | G49: N/A | H49: N/A | I49: N/A | J49: N/A | K49: N/A | L49: N/A | M49: N/A | N49: N/A | O49: N/A | P49: N/A | Q49: N/A | R49: N/A | S49: N/A | T49: N/A | U49: N/A | V49: N/A | BB49: Highly contaminated (>100 CFU/100 mL) | BC49: N/A | BD49: N/A | BE49: N/A | BF49: N/A | BG49: N/A | BH49: N/A | BI49: N/A | BJ49: N/A | BK49: N/A | BL49: N/A | BM49: N/A | BN49: N/A | BO49: N/A | BP49: N/A | BQ49: N/A | BR49: N/A | BS49: N/A | BT49: N/A | BU49: N/A | BV49: N/A
A50: Microbiological quality of improved water sources at point of collection | B50: Not contaminated (No E. coli in 100 mL) | C50: N/A | D50: N/A | E50: N/A | F50: N/A | G50: N/A | H50: N/A | I50: N/A | J50: N/A | K50: N/A | L50: N/A | M50: N/A | N50: N/A | O50: N/A | P50: N/A | Q50: N/A | R50: N/A | S50: N/A | T50: N/A | U50: N/A | V50: N/A | BA50: Microbiological quality of improved water sources at point of collection | BB50: Not contaminated (No E. coli in 100 mL) | BC50: N/A | BD50: N/A | BE50: N/A | BF50: N/A | BG50: N/A | BH50: N/A | BI50: N/A | BJ50: N/A | BK50: N/A | BL50: N/A | BM50: N/A | BN50: N/A | BO50: N/A | BP50: N/A | BQ50: N/A | BR50: N/A | BS50: N/A | BT50: N/A | BU50: N/A | BV50: N/A
B51: Contaminated (E. coli detected in 100 mL) | C51: N/A | D51: N/A | E51: N/A | F51: N/A | G51: N/A | H51: N/A | I51: N/A | J51: N/A | K51: N/A | L51: N/A | M51: N/A | N51: N/A | O51: N/A | P51: N/A | Q51: N/A | R51: N/A | S51: N/A | T51: N/A | U51: N/A | V51: N/A | BB51: Contaminated (E. coli detected in 100 mL) | BC51: N/A | BD51: N/A | BE51: N/A | BF51: N/A | BG51: N/A | BH51: N/A | BI51: N/A | BJ51: N/A | BK51: N/A | BL51: N/A | BM51: N/A | BN51: N/A | BO51: N/A | BP51: N/A | BQ51: N/A | BR51: N/A | BS51: N/A | BT51: N/A | BU51: N/A | BV51: N/A
B52: Highly contaminated (>100 CFU/100 mL) | C52: N/A | D52: N/A | E52: N/A | F52: N/A | G52: N/A | H52: N/A | I52: N/A | J52: N/A | K52: N/A | L52: N/A | M52: N/A | N52: N/A | O52: N/A | P52: N/A | Q52: N/A | R52: N/A | S52: N/A | T52: N/A | U52: N/A | V52: N/A | BB52: Highly contaminated (>100 CFU/100 mL) | BC52: N/A | BD52: N/A | BE52: N/A | BF52: N/A | BG52: N/A | BH52: N/A | BI52: N/A | BJ52: N/A | BK52: N/A | BL52: N/A | BM52: N/A | BN52: N/A | BO52: N/A | BP52: N/A | BQ52: N/A | BR52: N/A | BS52: N/A | BT52: N/A | BU52: N/A | BV52: N/A
A53: Microbiological quality of piped on premises at point of collection | B53: Not contaminated (No E. coli in 100 mL) | C53: N/A | D53: N/A | E53: N/A | F53: N/A | G53: N/A | H53: N/A | I53: N/A | J53: N/A | K53: N/A | L53: N/A | M53: N/A | N53: N/A | O53: N/A | P53: N/A | Q53: N/A | R53: N/A | S53: N/A | T53: N/A | U53: N/A | V53: N/A | BA53: Microbiological quality of piped on premises at point of collection | BB53: Not contaminated (No E. coli in 100 mL) | BC53: N/A | BD53: N/A | BE53: N/A | BF53: N/A | BG53: N/A | BH53: N/A | BI53: N/A | BJ53: N/A | BK53: N/A | BL53: N/A | BM53: N/A | BN53: N/A | BO53: N/A | BP53: N/A | BQ53: N/A | BR53: N/A | BS53: N/A | BT53: N/A | BU53: N/A | BV53: N/A
B54: Contaminated (E. coli detected in 100 mL) | C54: N/A | D54: N/A | E54: N/A | F54: N/A | G54: N/A | H54: N/A | I54: N/A | J54: N/A | K54: N/A | L54: N/A | M54: N/A | N54: N/A | O54: N/A | P54: N/A | Q54: N/A | R54: N/A | S54: N/A | T54: N/A | U54: N/A | V54: N/A | BB54: Contaminated (E. coli detected in 100 mL) | BC54: N/A | BD54: N/A | BE54: N/A | BF54: N/A | BG54: N/A | BH54: N/A | BI54: N/A | BJ54: N/A | BK54: N/A | BL54: N/A | BM54: N/A | BN54: N/A | BO54: N/A | BP54: N/A | BQ54: N/A | BR54: N/A | BS54: N/A | BT54: N/A | BU54: N/A | BV54: N/A
B55: Highly contaminated (>100 CFU/100 mL) | C55: N/A | D55: N/A | E55: N/A | F55: N/A | G55: N/A | H55: N/A | I55: N/A | J55: N/A | K55: N/A | L55: N/A | M55: N/A | N55: N/A | O55: N/A | P55: N/A | Q55: N/A | R55: N/A | S55: N/A | T55: N/A | U55: N/A | V55: N/A | BB55: Highly contaminated (>100 CFU/100 mL) | BC55: N/A | BD55: N/A | BE55: N/A | BF55: N/A | BG55: N/A | BH55: N/A | BI55: N/A | BJ55: N/A | BK55: N/A | BL55: N/A | BM55: N/A | BN55: N/A | BO55: N/A | BP55: N/A | BQ55: N/A | BR55: N/A | BS55: N/A | BT55: N/A | BU55: N/A | BV55: N/A
C56: NATIONAL wealth index quintile | H56: URBAN wealth index quintile | M56: RURAL wealth index quintile | R56: SUB-REGIONS: | BA56: Raw numbers of respondents: | BB56: Use of drinking water sources | BC56: NATIONAL wealth index quintile | BH56: URBAN wealth index quintile | BM56: RURAL wealth index quintile | BR56: SUB-REGIONS:
A57: Percentage based on weighted population | C57: Poorest | D57: Poor | E57: Middle | F57: Rich | G57: Richest | H57: Poorest | I57: Poor | J57: Middle | K57: Rich | L57: Richest | M57: Poorest | N57: Poor | O57: Middle | P57: Rich | Q57: Richest | R57: Central | S57: East | T57: North | U57: South | V57: West | BA57: Water data, raw numbers (weighted) | BC57: Poorest | BD57: Poor | BE57: Middle | BF57: Rich | BG57: Richest | BH57: Poorest | BI57: Poor | BJ57: Middle | BK57: Rich | BL57: Richest | BM57: Poorest | BN57: Poor | BO57: Middle | BP57: Rich | BQ57: Richest | BR57: Central | BS57: East | BT57: North | BU57: South | BV57: West
A58: Source of drinking water | B58: Piped into residence | C58: 39.90611256 | D58: 42.25837359 | E58: 49.40712791 | F58: 37.96498301 | G58: 24.63728641 | H58: 62.04553573 | I58: 64.02285599 | J58: 48.08149692 | K58: 36.12404409 | L58: 22.44847637 | M58: 10.81778314 | N58: 17.10693858 | O58: 17.20680533 | P58: 20.44626913 | Q58: 25.90720283 | R58: 33.35365963 | S58: 57.60694641 | T58: 30.12138513 | U58: 50.15157447 | V58: 31.10005943
B59: Public tap | C59: 0.2290661794 | D59: 0.1698112868 | E59: 0.2411423873 | F59: 0.02583504341 | G59: 0.02070223622 | H59: 0.3102119319 | I59: 0.1881931222 | J59: 0.02844497938 | K59: 0.03557504278 | L59: 0.02848648008 | M59: 0.09769266237 | N59: 0.2580367449 | O59: 0 | P59: 0.282784501 | Q59: 0.3024399352 | R59: 0.1172341722 | S59: 0.1776552499 | T59: 0.5157217192 | U59: 0.1256947297 | V59: 0.0696318931
B60: Well in residence | C60: 5.423714261 | D60: 4.869557175 | E60: 1.014676048 | F60: 0.9805297393 | G60: 0.2972050674 | H60: 0.8350657237 | I60: 0.4818841825 | J60: 0.34581234 | K60: 0.2310264457 | L60: 0.2455939188 | M60: 10.34118595 | N60: 9.161281399 | O60: 10.02844664 | P60: 7.352645964 | Q60: 3.515030431 | R60: 1.762605892 | S60: 6.22273017 | T60: 3.667722477 | U60: 2.2499333 | V60: 1.092422992
B61: Public well | C61: 2.012756199 | D61: 0.9825095431 | E61: 0.5301492796 | F61: 0.08786025893 | G61: 0.1131469854 | H61: 1.132232671 | I61: 0.4451083159 | J61: 0.2221515112 | K61: 0 | L61: 0.02961729244 | M61: 4.188003253 | N61: 1.218731073 | O61: 2.058699971 | P61: 0.6516761778 | Q61: 0.6572698383 | R61: 0.3028118034 | S61: 1.796855085 | T61: 0.218726066 | U61: 0.7723237587 | V61: 0.5691911165
B62: Piped surface water in house/garden | C62: 34.14522637 | D62: 28.35693737 | E62: 12.97570509 | F62: 5.387469614 | G62: 3.847847904 | H62: 7.181357983 | I62: 4.709909604 | J62: 2.818782601 | K62: 1.265319125 | L62: 0.8149731249 | M62: 59.90347792 | N62: 56.50934239 | O62: 59.22300982 | P62: 52.10965368 | Q62: 37.80001229 | R62: 15.65153165 | S62: 25.23902461 | T62: 41.66449952 | U62: 28.10179073 | V62: 6.347716806
B63: Spring/public fountain | C63: 6.474240299 | D63: 5.033214423 | E63: 6.341266902 | F63: 6.245077393 | G63: 4.173956369 | H63: 3.645821713 | I63: 5.862704533 | J63: 4.872470435 | K63: 5.836249379 | L63: 3.543863731 | M63: 11.17471242 | N63: 7.898820244 | O63: 5.677831216 | P63: 8.340736315 | Q63: 7.180503427 | R63: 11.75408025 | S63: 4.057936316 | T63: 4.388591257 | U63: 3.077065528 | V63: 4.235748569
B64: River/stream/pond/lake/dam | C64: 0.4263444838 | D64: 0.6160220966 | E64: 0.2094852513 | F64: 0.3161005826 | G64: 0.2885201439 | H64: 0.3854156607 | I64: 0.1917198459 | J64: 0.4359615891 | K64: 0.5236358925 | L64: 0.05389268329 | M64: 0.5997625868 | N64: 1.508360502 | O64: 0 | P64: 0.2260237899 | Q64: 0.2289408817 | R64: 0.368039682 | S64: 0.2757331416 | T64: 0.1814999069 | U64: 0.3142368243 | V64: 0.4652618576
B65: Tanker truck | C65: 0.2365934445 | D65: 0.1600313208 | E65: 0.3986497067 | F65: 0.1528501687 | G65: 0.03895806398 | H65: 0.1497034651 | I65: 0.1603522849 | J65: 0.3314110147 | K65: 0.08561331953 | L65: 0.05360667813 | M65: 0.5245806633 | N65: 0 | O65: 0.3013202203 | P65: 0.3042253755 | Q65: 0.4053626921 | R65: 0.3673022118 | S65: 0.3323766422 | T65: 0.8435310274 | U65: 0 | V65: 0
B66: Bottled water | C66: 9.446125988 | D66: 15.61866995 | E66: 26.72132972 | F66: 46.86568461 | G66: 65.19670567 | H66: 23.56177433 | I66: 22.96267502 | J66: 41.4770684 | K66: 54.73341551 | L66: 71.57442285 | M66: 0.1763752933 | N66: 3.33622119 | O66: 2.421287216 | P66: 5.630711966 | Q66: 17.99648748 | R66: 32.77273346 | S66: 2.973525869 | T66: 17.90921711 | U66: 13.98116058 | V66: 54.53208331
B67: Other | C67: 1.699820214 | D67: 1.934873243 | E67: 2.160467705 | F67: 1.97360958 | G67: 1.38567115 | H67: 0.7528807882 | I67: 0.9745971054 | J67: 1.386400203 | K67: 1.165121194 | L67: 1.207066877 | M67: 2.176426107 | N67: 3.002267878 | O67: 3.082599594 | P67: 4.655273094 | Q67: 6.006750194 | R67: 3.550001252 | S67: 1.317216506 | T67: 0.4891057984 | U67: 1.226220081 | V67: 1.58788403
A108: =A1026 -> Turkey
A109: =A1034 -> 2008
A110: Use of sanitation facilities
A111: by wealth quintile and sub-national region
A112: Notes:
A113: WHO/UNICEF JMP customised wealth index excludes water,
A114: sanitation and hygiene assets.
A115: Survey used for analysis: | B115: =A1025 -> DHS08
A116: =B1030 -> 
A117: =B1029 -> 
A120: Use of sanitation facilities | C120: NATIONAL wealth index quintile | H120: URBAN wealth index quintile | M120: RURAL wealth index quintile | R120: SUB-REGIONS: | BA120: Raw numbers of respondents: | BB120: Use of sanitation facilities | BC120: NATIONAL wealth index quintile | BH120: URBAN wealth index quintile | BM120: RURAL wealth index quintile | BR120: SUB-REGIONS:
A121: Weighted percentage (used in graphs) | C121: Poorest | D121: Poor | E121: Middle | F121: Rich | G121: Richest | H121: Poorest | I121: Poor | J121: Middle | K121: Rich | L121: Richest | M121: Poorest | N121: Poor | O121: Middle | P121: Rich | Q121: Richest | R121: Central | S121: East | T121: North | U121: South | V121: West | BA121: Sanitation data, raw numbers (weighted) | BC121: Poorest | BD121: Poor | BE121: Middle | BF121: Rich | BG121: Richest | BH121: Poorest | BI121: Poor | BJ121: Middle | BK121: Rich | BL121: Richest | BM121: Poorest | BN121: Poor | BO121: Middle | BP121: Rich | BQ121: Richest | BR121: Central | BS121: East | BT121: North | BU121: South | BV121: West
A122: Sanitation | B122: Improved | C122: =C153+C155 -> 82.86660352 | D122: =D153+D155 -> 88.83922107 | E122: 96.99349549 | F122: 99.69415019 | G122: 99.76326851 | H122: 97.35773631 | I122: 98.82024673 | J122: 99.487952 | K122: 99.97800576 | L122: 99.9180014 | M122: 62.30364661 | N122: 77.21021362 | O122: 74.65272659 | P122: 86.05692243 | Q122: 94.90963572 | R122: 97.07702946 | S122: 80.58170906 | T122: 85.599321 | U122: 97.3686092 | V122: 98.06752976 | BA122: Sanitation | BB122: Improved | BC122: 8189.904982 | BD122: 8347.922902 | BE122: 8359.629959 | BF122: 8414.66986 | BG122: 8412.700393 | BH122: 6091.848401 | BI122: 6103.94169 | BJ122: 6120.344308 | BK122: 6123.056586 | BL122: 6112.508466 | BM122: 2131.697414 | BN122: 2255.633889 | BO122: 2256.44339 | BP122: 2265.083298 | BQ122: 2264.270654 | BR122: 8815.419354 | BS122: 7692.522681 | BT122: 2825.263705 | BU122: 5160.742447 | BV122: 17230.87991
B123: Not Improved | C123: =100-C122 -> 17.13339648 | D123: =100-D122 -> 11.16077893 | E123: 3.006504509 | F123: 0.3058498147 | G123: 0.2367314865 | H123: 2.642263689 | I123: 1.179753274 | J123: 0.5120479979 | K123: 0.02199424391 | L123: 0.08199859724 | M123: 37.69635339 | N123: 22.78978638 | O123: 25.34727341 | P123: 13.94307757 | Q123: 5.090364284 | R123: 2.922970539 | S123: 19.41829094 | T123: 14.400679 | U123: 2.631390804 | V123: 1.932470237 | BB123: Not Improved | BC123: 235.39179 | BD123: 74.935643 | BE123: 57.742982 | BF123: 16.823616 | BG123: 10.902511 | BH123: 30.001745 | BI123: 15.727855 | BJ123: 7.69098 | BK123: 0 | BL123: 10.902511 | BM123: 169.620542 | BN123: 44.340065 | BO123: 44.140912 | BP123: 37.163982 | BQ123: 36.20795 | BR123: 51.761043 | BS123: 231.539593 | BT123: 44.379641 | BU123: 18.213745 | BV123: 49.90252
A124: Sanitation ladder | B124: Basic | C124: =C122*C129/100 -> 80.17740104 | D124: =D122*D129/100 -> 86.6218407 | E124: =E122*E129/100 -> 96.36709871 | F124: 99.23188413 | G124: 99.72736387 | H124: 95.76860982 | I124: 98.41854629 | J124: 99.23492168 | K124: 99.90395785 | L124: 99.86849058 | M124: 58.02937338 | N124: 75.03075614 | O124: 69.54620673 | P124: 84.9643525 | Q124: 93.63540831 | R124: 95.93840483 | S124: 77.81550038 | T124: 85.21714348 | U124: 95.28650828 | V124: 97.61157176 | BA124: Sanitation ladder | BB124: Basic | BC124: 7832.844436 | BD124: 8089.375181 | BE124: 8271.455781 | BF124: 8355.632059 | BG124: 8386.603026 | BH124: 5939.784579 | BI124: 6061.524873 | BJ124: 6101.579319 | BK124: 6110.596028 | BL124: 6090.468624 | BM124: 1961.506397 | BN124: 2166.989005 | BO124: 2086.704304 | BP124: 2207.077215 | BQ124: 2209.680139 | BR124: 8685.772229 | BS124: 7331.780364 | BT124: 2783.504798 | BU124: 5000.449862 | BV124: 17134.40323
B125: Limited | C125: =C122*C128/100 -> 2.689202477 | D125: =D122*D128/100 -> 2.21738037 | E125: =E122*E128/100 -> 0.6263967835 | F125: 0.4622660561 | G125: 0.03590464438 | H125: 1.589126489 | I125: 0.4017004312 | J125: 0.2530303263 | K125: 0.07404790166 | L125: 0.0495108238 | M125: 4.274273233 | N125: 2.179457477 | O125: 5.106519865 | P125: 1.092569932 | Q125: 1.274227404 | R125: 1.138624626 | S125: 2.766208679 | T125: 0.3821775186 | U125: 2.08210092 | V125: 0.4559579992 | BB125: Limited | BC125: 262.718726 | BD125: 207.075047 | BE125: 53.765376 | BF125: 38.924234 | BG125: 3.019412 | BH125: 98.561199 | BI125: 24.74043 | BJ125: 15.557876 | BK125: 4.529118 | BL125: 3.019412 | BM125: 144.478801 | BN125: 62.945659 | BO125: 153.218953 | BP125: 28.381152 | BQ125: 30.070195 | BR125: 103.085247 | BS125: 260.632321 | BT125: 12.483321 | BU125: 109.26459 | BV125: 80.037316
B126: Unimproved | C126: =100-C124-C125-C127 -> 15.60237222 | D126: =100-D124-D125-D127 -> 10.83754781 | E126: =100-E124-E125-E127 -> 3.000618739 | F126: 0.2871824258 | G126: 0.2166922627 | H126: 2.47190278 | I126: 1.150170645 | J126: 0.4864116052 | K126: 0.02199424391 | L126: 0.05442172471 | M126: 32.43718846 | N126: 22.62094917 | O126: 24.49614303 | P126: 13.94307757 | Q126: 5.090364284 | R126: 2.908133025 | S126: 17.64122346 | T126: 14.32955863 | U126: 2.473138784 | V126: 1.886878685 | BB126: Unimproved | BC126: 107.842849 | BD126: 47.876719 | BE126: 57.24958 | BF126: 15.253431 | BG126: 9.219111 | BH126: 19.663653 | BI126: 13.922725 | BJ126: 6.120795 | BK126: 0 | BL126: 9.219111 | BM126: 49.942683 | BN126: 40.500243 | BO126: 24.700548 | BP126: 37.163982 | BQ126: 36.20795 | BR126: 50.449315 | BS126: 92.502681 | BT126: 42.359561 | BU126: 10.098695 | BV126: 42.031438
B127: Open defecation | C127: 1.531024255 | D127: 0.3232311163 | E127: 0.005885770138 | F127: 0.01866738891 | G127: 0.02003922386 | H127: 0.170360909 | I127: 0.02958262904 | J127: 0.02563639265 | K127: 0 | L127: 0.02757687253 | M127: 5.259164929 | N127: 0.16883721 | O127: 0.8511303782 | P127: 0 | Q127: 0 | R127: 0.01483751388 | S127: 1.777067485 | T127: 0.07112036788 | U127: 0.1582520209 | V127: 0.04559155231 | BB127: Open defecation | BC127: 127.548941 | BD127: 27.058924 | BE127: 0.493402 | BF127: 1.570185 | BG127: 1.6834 | BH127: 10.338092 | BI127: 1.80513 | BJ127: 1.570185 | BK127: 0 | BL127: 1.6834 | BM127: 119.677859 | BN127: 3.839822 | BO127: 19.440364 | BP127: 0 | BQ127: 0 | BR127: 1.311728 | BS127: 139.036912 | BT127: 2.02008 | BU127: 8.11505 | BV127: 7.871082
A128: Shared among Improved Sanitation | B128: Yes | C128: 3.245218655 | D128: 2.49594756 | E128: 0.6458131861 | F128: 0.4636842335 | G128: 0.03598984367 | H128: 1.632254969 | I128: 0.4064960821 | J128: 0.2543326315 | K128: 0.07406419152 | L128: 0.04955145529 | M128: 6.860390146 | N128: 2.822757994 | O128: 6.840366183 | P128: 1.269589826 | Q128: 1.34256906 | R128: 1.172908393 | S128: 3.432799715 | T128: 0.4464726053 | U128: 2.138369786 | V128: 0.464942882 | BA128: Shared among improved sanitation facilities | BB128: Yes | BC128: N/A | BD128: N/A | BE128: N/A | BF128: N/A | BG128: N/A | BH128: N/A | BI128: N/A | BJ128: N/A | BK128: N/A | BL128: N/A | BM128: N/A | BN128: N/A | BO128: N/A | BP128: N/A | BQ128: N/A | BR128: N/A | BS128: N/A | BT128: N/A | BU128: N/A | BV128: N/A
B129: No | C129: 96.75478134 | D129: 97.50405244 | E129: 99.35418681 | F129: 99.53631577 | G129: 99.96401016 | H129: 98.36774503 | I129: 99.59350392 | J129: 99.74566737 | K129: 99.92593581 | L129: 99.95044854 | M129: 93.13960985 | N129: 97.17724201 | O129: 93.15963382 | P129: 98.73041017 | Q129: 98.65743094 | R129: 98.82709161 | S129: 96.56720029 | T129: 99.55352739 | U129: 97.86163021 | V129: 99.53505712 | BB129: No | BC129: N/A | BD129: N/A | BE129: N/A | BF129: N/A | BG129: N/A | BH129: N/A | BI129: N/A | BJ129: N/A | BK129: N/A | BL129: N/A | BM129: N/A | BN129: N/A | BO129: N/A | BP129: N/A | BQ129: N/A | BR129: N/A | BS129: N/A | BT129: N/A | BU129: N/A | BV129: N/A
A130: Manually calculated ratios | B130: Improved latrines
B131: Other
B132: Other
C133: NATIONAL wealth index quintile | H133: URBAN wealth index quintile | M133: RURAL wealth index quintile | R133: SUB-REGIONS: | BA133: Raw numbers of respondents: | BB133: Use of sanitation facilities | BC133: NATIONAL wealth index quintile | BH133: URBAN wealth index quintile | BM133: RURAL wealth index quintile | BR133: SUB-REGIONS:
A134: Percentage based on weighted population | C134: Poorest | D134: Poor | E134: Middle | F134: Rich | G134: Richest | H134: Poorest | I134: Poor | J134: Middle | K134: Rich | L134: Richest | M134: Poorest | N134: Poor | O134: Middle | P134: Rich | Q134: Richest | R134: Central | S134: East | T134: North | U134: South | V134: West | BA134: Sanitation data, raw numbers (weighted) | BC134: Poorest | BD134: Poor | BE134: Middle | BF134: Rich | BG134: Richest | BH134: Poorest | BI134: Poor | BJ134: Middle | BK134: Rich | BL134: Richest | BM134: Poorest | BN134: Poor | BO134: Middle | BP134: Rich | BQ134: Richest | BR134: Central | BS134: East | BT134: North | BU134: South | BV134: West
A135: Sanitation type | B135: Sewer connection | C135: N/A | D135: N/A | E135: N/A | F135: N/A | G135: N/A | H135: N/A | I135: N/A | J135: N/A | K135: N/A | L135: N/A | M135: N/A | N135: N/A | O135: N/A | P135: N/A | Q135: N/A | R135: N/A | S135: N/A | T135: N/A | U135: N/A | V135: N/A | BA135: Sanitation type | BB135: Sewer connection | BC135: N/A | BD135: N/A | BE135: N/A | BF135: N/A | BG135: N/A | BH135: N/A | BI135: N/A | BJ135: N/A | BK135: N/A | BL135: N/A | BM135: N/A | BN135: N/A | BO135: N/A | BP135: N/A | BQ135: N/A | BR135: N/A | BS135: N/A | BT135: N/A | BU135: N/A | BV135: N/A
B136: Septic tank connection | C136: N/A | D136: N/A | E136: N/A | F136: N/A | G136: N/A | H136: N/A | I136: N/A | J136: N/A | K136: N/A | L136: N/A | M136: N/A | N136: N/A | O136: N/A | P136: N/A | Q136: N/A | R136: N/A | S136: N/A | T136: N/A | U136: N/A | V136: N/A | BB136: Septic tank connection | BC136: N/A | BD136: N/A | BE136: N/A | BF136: N/A | BG136: N/A | BH136: N/A | BI136: N/A | BJ136: N/A | BK136: N/A | BL136: N/A | BM136: N/A | BN136: N/A | BO136: N/A | BP136: N/A | BQ136: N/A | BR136: N/A | BS136: N/A | BT136: N/A | BU136: N/A | BV136: N/A
B137: Improved latrines | C137: N/A | D137: N/A | E137: N/A | F137: N/A | G137: N/A | H137: N/A | I137: N/A | J137: N/A | K137: N/A | L137: N/A | M137: N/A | N137: N/A | O137: N/A | P137: N/A | Q137: N/A | R137: N/A | S137: N/A | T137: N/A | U137: N/A | V137: N/A | BB137: Improved latrines | BC137: N/A | BD137: N/A | BE137: N/A | BF137: N/A | BG137: N/A | BH137: N/A | BI137: N/A | BJ137: N/A | BK137: N/A | BL137: N/A | BM137: N/A | BN137: N/A | BO137: N/A | BP137: N/A | BQ137: N/A | BR137: N/A | BS137: N/A | BT137: N/A | BU137: N/A | BV137: N/A
B138: Unimproved facilities | C138: N/A | D138: N/A | E138: N/A | F138: N/A | G138: N/A | H138: N/A | I138: N/A | J138: N/A | K138: N/A | L138: N/A | M138: N/A | N138: N/A | O138: N/A | P138: N/A | Q138: N/A | R138: N/A | S138: N/A | T138: N/A | U138: N/A | V138: N/A | BB138: Unimproved facilities | BC138: N/A | BD138: N/A | BE138: N/A | BF138: N/A | BG138: N/A | BH138: N/A | BI138: N/A | BJ138: N/A | BK138: N/A | BL138: N/A | BM138: N/A | BN138: N/A | BO138: N/A | BP138: N/A | BQ138: N/A | BR138: N/A | BS138: N/A | BT138: N/A | BU138: N/A | BV138: N/A
B139: Open defecation | C139: 1.513880691 | D139: 0.3212558285 | E139: 0.005861710102 | F139: 0.01862285732 | G139: 0.01998432285 | H139: 0.16887202 | I139: 0.02949718096 | J139: 0.02562297582 | K139: 0 | L139: 0.02749121374 | M139: 5.200405215 | N139: 0.1669506732 | O139: 0.8450185452 | P139: 0 | Q139: 0 | R139: 0.01479306771 | S139: 1.754616599 | T139: 0.07039481066 | U139: 0.1566927717 | V139: 0.04554818066 | BB139: Open defecation | BC139: N/A | BD139: N/A | BE139: N/A | BF139: N/A | BG139: N/A | BH139: N/A | BI139: N/A | BJ139: N/A | BK139: N/A | BL139: N/A | BM139: N/A | BN139: N/A | BO139: N/A | BP139: N/A | BQ139: N/A | BR139: N/A | BS139: N/A | BT139: N/A | BU139: N/A | BV139: N/A
A140: Septic tank emptying practices | B140: Not emptied/treated and disposed in situ | C140: N/A | D140: N/A | E140: N/A | F140: N/A | G140: N/A | H140: N/A | I140: N/A | J140: N/A | K140: N/A | L140: N/A | M140: N/A | N140: N/A | O140: N/A | P140: N/A | Q140: N/A | R140: N/A | S140: N/A | T140: N/A | U140: N/A | V140: N/A | BA140: Septic tank emptying practices | BB140: Not emptied/treated and disposed in situ | BC140: N/A | BD140: N/A | BE140: N/A | BF140: N/A | BG140: N/A | BH140: N/A | BI140: N/A | BJ140: N/A | BK140: N/A | BL140: N/A | BM140: N/A | BN140: N/A | BO140: N/A | BP140: N/A | BQ140: N/A | BR140: N/A | BS140: N/A | BT140: N/A | BU140: N/A | BV140: N/A
B141: Emptied and buried on site | C141: N/A | D141: N/A | E141: N/A | F141: N/A | G141: N/A | H141: N/A | I141: N/A | J141: N/A | K141: N/A | L141: N/A | M141: N/A | N141: N/A | O141: N/A | P141: N/A | Q141: N/A | R141: N/A | S141: N/A | T141: N/A | U141: N/A | V141: N/A | BB141: Emptied and buried on site | BC141: N/A | BD141: N/A | BE141: N/A | BF141: N/A | BG141: N/A | BH141: N/A | BI141: N/A | BJ141: N/A | BK141: N/A | BL141: N/A | BM141: N/A | BN141: N/A | BO141: N/A | BP141: N/A | BQ141: N/A | BR141: N/A | BS141: N/A | BT141: N/A | BU141: N/A | BV141: N/A
B142: Emptied and discharged locally | C142: N/A | D142: N/A | E142: N/A | F142: N/A | G142: N/A | H142: N/A | I142: N/A | J142: N/A | K142: N/A | L142: N/A | M142: N/A | N142: N/A | O142: N/A | P142: N/A | Q142: N/A | R142: N/A | S142: N/A | T142: N/A | U142: N/A | V142: N/A | BB142: Emptied and discharged locally | BC142: N/A | BD142: N/A | BE142: N/A | BF142: N/A | BG142: N/A | BH142: N/A | BI142: N/A | BJ142: N/A | BK142: N/A | BL142: N/A | BM142: N/A | BN142: N/A | BO142: N/A | BP142: N/A | BQ142: N/A | BR142: N/A | BS142: N/A | BT142: N/A | BU142: N/A | BV142: N/A
B143: Emptied and removed offsite | C143: N/A | D143: N/A | E143: N/A | F143: N/A | G143: N/A | H143: N/A | I143: N/A | J143: N/A | K143: N/A | L143: N/A | M143: N/A | N143: N/A | O143: N/A | P143: N/A | Q143: N/A | R143: N/A | S143: N/A | T143: N/A | U143: N/A | V143: N/A | BB143: Emptied and removed offsite | BC143: N/A | BD143: N/A | BE143: N/A | BF143: N/A | BG143: N/A | BH143: N/A | BI143: N/A | BJ143: N/A | BK143: N/A | BL143: N/A | BM143: N/A | BN143: N/A | BO143: N/A | BP143: N/A | BQ143: N/A | BR143: N/A | BS143: N/A | BT143: N/A | BU143: N/A | BV143: N/A
A144: Latrine emptying practices | B144: Not emptied/treated and disposed in situ | C144: N/A | D144: N/A | E144: N/A | F144: N/A | G144: N/A | H144: N/A | I144: N/A | J144: N/A | K144: N/A | L144: N/A | M144: N/A | N144: N/A | O144: N/A | P144: N/A | Q144: N/A | R144: N/A | S144: N/A | T144: N/A | U144: N/A | V144: N/A | BA144: Latrine emptying practices | BB144: Not emptied/treated and disposed in situ | BC144: N/A | BD144: N/A | BE144: N/A | BF144: N/A | BG144: N/A | BH144: N/A | BI144: N/A | BJ144: N/A | BK144: N/A | BL144: N/A | BM144: N/A | BN144: N/A | BO144: N/A | BP144: N/A | BQ144: N/A | BR144: N/A | BS144: N/A | BT144: N/A | BU144: N/A | BV144: N/A
B145: Emptied and buried on site | C145: N/A | D145: N/A | E145: N/A | F145: N/A | G145: N/A | H145: N/A | I145: N/A | J145: N/A | K145: N/A | L145: N/A | M145: N/A | N145: N/A | O145: N/A | P145: N/A | Q145: N/A | R145: N/A | S145: N/A | T145: N/A | U145: N/A | V145: N/A | BB145: Emptied and buried on site | BC145: N/A | BD145: N/A | BE145: N/A | BF145: N/A | BG145: N/A | BH145: N/A | BI145: N/A | BJ145: N/A | BK145: N/A | BL145: N/A | BM145: N/A | BN145: N/A | BO145: N/A | BP145: N/A | BQ145: N/A | BR145: N/A | BS145: N/A | BT145: N/A | BU145: N/A | BV145: N/A
B146: Emptied and discharged locally | C146: N/A | D146: N/A | E146: N/A | F146: N/A | G146: N/A | H146: N/A | I146: N/A | J146: N/A | K146: N/A | L146: N/A | M146: N/A | N146: N/A | O146: N/A | P146: N/A | Q146: N/A | R146: N/A | S146: N/A | T146: N/A | U146: N/A | V146: N/A | BB146: Emptied and discharged locally | BC146: N/A | BD146: N/A | BE146: N/A | BF146: N/A | BG146: N/A | BH146: N/A | BI146: N/A | BJ146: N/A | BK146: N/A | BL146: N/A | BM146: N/A | BN146: N/A | BO146: N/A | BP146: N/A | BQ146: N/A | BR146: N/A | BS146: N/A | BT146: N/A | BU146: N/A | BV146: N/A
B147: Emptied and removed offsite | C147: N/A | D147: N/A | E147: N/A | F147: N/A | G147: N/A | H147: N/A | I147: N/A | J147: N/A | K147: N/A | L147: N/A | M147: N/A | N147: N/A | O147: N/A | P147: N/A | Q147: N/A | R147: N/A | S147: N/A | T147: N/A | U147: N/A | V147: N/A | BB147: Emptied and removed offsite | BC147: N/A | BD147: N/A | BE147: N/A | BF147: N/A | BG147: N/A | BH147: N/A | BI147: N/A | BJ147: N/A | BK147: N/A | BL147: N/A | BM147: N/A | BN147: N/A | BO147: N/A | BP147: N/A | BQ147: N/A | BR147: N/A | BS147: N/A | BT147: N/A | BU147: N/A | BV147: N/A
A148: Shared among improved sanitation facilities | B148: Yes | C148: 3.118213318 | D148: 2.458488955 | E148: 0.6387429472 | F148: 0.4616528983 | G148: 0.03584466213 | H148: 1.609990389 | I148: 0.4042772215 | J148: 0.2538803265 | K148: 0.07396825321 | L148: 0.04930931488 | M148: 6.278089502 | N148: 2.736798775 | O148: 6.660001673 | P148: 1.232758629 | Q148: 1.307127784 | R148: 1.16254821 | S148: 3.289125098 | T148: 0.4350129788 | U148: 2.109780155 | V148: 0.4631579405 | BA148: Shared among improved sanitation facilities | BB148: Yes | BC148: N/A | BD148: N/A | BE148: N/A | BF148: N/A | BG148: N/A | BH148: N/A | BI148: N/A | BJ148: N/A | BK148: N/A | BL148: N/A | BM148: N/A | BN148: N/A | BO148: N/A | BP148: N/A | BQ148: N/A | BR148: N/A | BS148: N/A | BT148: N/A | BU148: N/A | BV148: N/A
B149: No | C149: 92.96817249 | D149: 96.04073413 | E149: 98.26647624 | F149: 99.10026121 | G149: 99.56075947 | H149: 97.02597152 | I149: 99.04987236 | J149: 99.56827975 | K149: 99.79649775 | L149: 99.4620261 | M149: 85.23404564 | N149: 94.21798022 | O149: 90.70323144 | P149: 95.86621012 | Q149: 96.05306197 | R149: 97.95416175 | S149: 92.52552681 | T149: 96.99828384 | U149: 96.55323731 | V149: 99.15293651 | BB149: No | BC149: N/A | BD149: N/A | BE149: N/A | BF149: N/A | BG149: N/A | BH149: N/A | BI149: N/A | BJ149: N/A | BK149: N/A | BL149: N/A | BM149: N/A | BN149: N/A | BO149: N/A | BP149: N/A | BQ149: N/A | BR149: N/A | BS149: N/A | BT149: N/A | BU149: N/A | BV149: N/A
B150: DK/missing | C150: 3.91361419 | D150: 1.500776919 | E150: 1.094780814 | F150: 0.4380858872 | G150: 0.4033958674 | H150: 1.364038093 | I150: 0.5458504214 | J150: 0.1778399191 | K150: 0.1295339981 | L150: 0.4886645876 | M150: 8.487864855 | N150: 3.045221007 | O150: 2.636766883 | P150: 2.901031248 | Q150: 2.639810251 | R150: 0.8832900369 | S150: 4.18534809 | T150: 2.566703179 | U150: 1.336982539 | V150: 0.383905551 | BB150: DK/missing | BC150: N/A | BD150: N/A | BE150: N/A | BF150: N/A | BG150: N/A | BH150: N/A | BI150: N/A | BJ150: N/A | BK150: N/A | BL150: N/A | BM150: N/A | BN150: N/A | BO150: N/A | BP150: N/A | BQ150: N/A | BR150: N/A | BS150: N/A | BT150: N/A | BU150: N/A | BV150: N/A
A151: Shared among all sanitation facilities | B151: Yes | C151: 3.229170089 | D151: 2.477202368 | E151: 0.6387803907 | F151: 0.4617388873 | G151: 0.03585182687 | H151: 1.698284534 | I151: 0.4192039617 | J151: 0.2539453949 | K151: 0.07396825321 | L151: 0.04932287434 | M151: 6.622485588 | N151: 2.74137552 | O151: 6.716759537 | P151: 1.232758629 | Q151: 1.307127784 | R151: 1.162720212 | S151: 3.359503776 | T151: 0.4353194211 | U151: 2.214228824 | V151: 0.4633689966 | BA151: Shared among all sanitation facilities | BB151: Yes | BC151: N/A | BD151: N/A | BE151: N/A | BF151: N/A | BG151: N/A | BH151: N/A | BI151: N/A | BJ151: N/A | BK151: N/A | BL151: N/A | BM151: N/A | BN151: N/A | BO151: N/A | BP151: N/A | BQ151: N/A | BR151: N/A | BS151: N/A | BT151: N/A | BU151: N/A | BV151: N/A
B152: No | C152: 95.57413281 | D152: 96.88275849 | E152: 98.9524125 | F152: 99.29966384 | G152: 99.69012567 | H152: 97.42627544 | I152: 99.2548634 | J152: 99.6937061 | K152: 99.79649775 | L152: 99.63997349 | M152: 91.97172324 | N152: 96.13938564 | O152: 92.55903658 | P152: 97.48045818 | Q152: 97.62699314 | R152: 98.53768277 | S152: 95.26181332 | T152: 98.54377988 | U152: 96.79892989 | V152: 99.44145676 | BB152: No | BC152: N/A | BD152: N/A | BE152: N/A | BF152: N/A | BG152: N/A | BH152: N/A | BI152: N/A | BJ152: N/A | BK152: N/A | BL152: N/A | BM152: N/A | BN152: N/A | BO152: N/A | BP152: N/A | BQ152: N/A | BR152: N/A | BS152: N/A | BT152: N/A | BU152: N/A | BV152: N/A
A153: Type of toilet facility | B153: 11 | C153: 55.81390587 | D153: 63.19498037 | E153: 85.052211 | F153: 92.89318053 | G153: 95.59667552 | H153: 88.62235117 | I153: 91.88511943 | J153: 95.47227811 | K153: 97.77814724 | L153: 98.48368994 | M153: 19.14717438 | N153: 31.62239193 | O153: 23.31903106 | P153: 44.36937717 | Q153: 61.68437802 | R153: 84.60736548 | S153: 64.62090377 | T153: 60.55405072 | U153: 59.15248101 | V153: 90.5482684 | BA153: Type of toilet facility | BB153: 11 | BC153: 4695.180267 | BD153: 5320.820757 | BE153: 7151.830596 | BF153: 7819.887526 | BG153: 8045.802301 | BH153: 5422.892155 | BI153: 5620.153252 | BJ153: 5850.574893 | BK153: 5987.011284 | BL153: 6023.471209 | BM153: 438.65686 | BN153: 727.306778 | BO153: 536.473968 | BP153: 1021.492779 | BQ153: 1405.488269 | BR153: 7473.483632 | BS153: 5118.552413 | BT153: 1737.073667 | BU153: 3063.481078 | BV153: 15640.93066
B154: 21 | C154: 14.49080551 | D154: 10.30841949 | E154: 2.422311642 | F154: 0.2645057203 | G154: 0.19272837 | H154: 2.1968764 | I154: 0.9744360963 | J154: 0.3865431723 | K154: 0.02199424391 | L154: 0.02144673879 | M154: 30.74398546 | N154: 20.86193564 | O154: 23.42859075 | P154: 12.32882951 | Q154: 4.465172337 | R154: 2.722400616 | S154: 16.53515677 | T154: 12.88882313 | U154: 2.279703238 | V154: 1.685251764 | BB154: 21 | BC154: 1218.996288 | BD154: 867.936853 | BE154: 203.68621 | BF154: 22.266489 | BG154: 16.220798 | BH154: 134.42911 | BI154: 59.601383 | BJ154: 23.687502 | BK154: 1.34672 | BL154: 1.311728 | BM154: 704.336831 | BN154: 479.819086 | BO154: 538.994481 | BP154: 283.840142 | BQ154: 101.739655 | BR154: 240.473348 | BS154: 1309.732016 | BT154: 369.733073 | BU154: 118.064832 | BV154: 291.103369
B155: 22 | C155: 27.05269766 | D155: 25.64424071 | E155: 11.94128449 | F155: 6.800969652 | G155: 4.166592993 | H155: 8.735385142 | I155: 6.935127293 | J155: 4.01567389 | K155: 2.19985852 | L155: 1.434311462 | M155: 43.15647223 | N155: 45.58782169 | O155: 51.33369553 | P155: 41.68754527 | Q155: 33.2252577 | R155: 12.46966398 | S155: 15.96080529 | T155: 25.04527029 | U155: 38.21612819 | V155: 7.519261366 | BB155: 22 | BC155: 2275.728427 | BD155: 2159.165292 | BE155: 1004.113153 | BF155: 572.515845 | BG155: 350.677294 | BH155: 534.527136 | BI155: 424.187055 | BJ155: 246.081913 | BK155: 134.698582 | BL155: 87.725529 | BM155: 988.703723 | BN155: 1048.508025 | BO155: 1180.974941 | BP155: 959.750377 | BQ155: 757.04273 | BR155: 1101.462374 | BS155: 1264.238252 | BT155: 718.456965 | BU155: 1979.196537 | BV155: 1298.845883
B156: 31 | C156: 1.51623669 | D156: 0.3213767667 | E156: 0.005867718824 | F156: 0.01865237552 | G156: 0.02000141658 | H156: 0.1689478591 | I156: 0.02951246669 | J156: 0.02562297582 | K156: 0 | L156: 0.02752357202 | M156: 5.223884647 | N156: 0.1669506732 | O156: 0.8450185452 | P156: 0 | Q156: 0 | R156: 0.01485008274 | S156: 1.755318728 | T156: 0.07041959653 | U156: 0.1566927717 | V156: 0.04556716356 | BB156: 31 | BC156: 127.548941 | BD156: 27.058924 | BE156: 0.493402 | BF156: 1.570185 | BG156: 1.6834 | BH156: 10.338092 | BI156: 1.80513 | BJ156: 1.570185 | BK156: 0 | BL156: 1.6834 | BM156: 119.677859 | BN156: 3.839822 | BO156: 19.440364 | BP156: 0 | BQ156: 0 | BR156: 1.311728 | BS156: 139.036912 | BT156: 2.02008 | BU156: 8.11505 | BV156: 7.871082
B157: OTHER | C157: 1.126354282 | D157: 0.5309826699 | E157: 0.5783251487 | F157: 0.02269171895 | G157: 0.0240016999 | H157: 0.2764394304 | I157: 0.175804711 | J157: 0.09988184977 | K157: 0 | L157: 0.03302828643 | M157: 1.728483274 | N157: 1.760900071 | O157: 1.073664111 | P157: 1.614248058 | Q157: 0.6251919476 | R157: 0.1857198401 | S157: 1.12781545 | T157: 1.441436273 | U157: 0.1949947948 | V157: 0.2016513088 | BB157: OTHER | BC157: 94.751233 | BD157: 44.707089 | BE157: 48.629935 | BF157: 1.910223 | BG157: 2.02008 | BH157: 16.915611 | BI157: 10.753095 | BJ157: 6.120795 | BK157: 0 | BL157: 2.02008 | BM157: 39.599109 | BN157: 40.500243 | BO157: 24.700548 | BP157: 37.163982 | BQ157: 14.245097 | BR157: 16.404886 | BS157: 89.333051 | BT157: 41.349521 | BU157: 10.098695 | BV157: 34.832407
BB158: Total | BC158: 8412.205156 | BD158: 8419.688915 | BE158: 8408.753296 | BF158: 8418.150268 | BG158: 8416.403873 | BH158: 6119.102104 | BI158: 6116.499915 | BJ158: 6128.035288 | BK158: 6123.056586 | BL158: 6116.211946 | BM158: 2290.974382 | BN158: 2299.973954 | BO158: 2300.584302 | BP158: 2302.24728 | BQ158: 2278.515751 | BR158: 8833.135968 | BS158: 7920.892644 | BT158: 2868.633306 | BU158: 5178.956192 | BV158: 17273.5834
A208: =A1026 -> Turkey
A209: =A1034 -> 2008
A210: Access to hygiene facilities
A211: by wealth quintile and sub-national region
A212: Notes:
A213: WHO/UNICEF JMP customised wealth index excludes water,
A214: sanitation and hygiene assets.
A215: Survey used for analysis: | B215: =A1025 -> DHS08
A220: Access to handwashing | C220: NATIONAL wealth index quintile | H220: URBAN wealth index quintile | M220: RURAL wealth index quintile | R220: SUB-REGIONS: | BA220: Raw numbers of respondents: | BB220: Access to handwashing | BC220: NATIONAL wealth index quintile | BH220: URBAN wealth index quintile | BM220: RURAL wealth index quintile | BR220: SUB-REGIONS:
A221: Weighted percentage (used in graphs) | C221: Poorest | D221: Poor | E221: Middle | F221: Rich | G221: Richest | H221: Poorest | I221: Poor | J221: Middle | K221: Rich | L221: Richest | M221: Poorest | N221: Poor | O221: Middle | P221: Rich | Q221: Richest | R221: Central | S221: East | T221: North | U221: South | V221: West | BA221: Hygiene data, raw numbers (weighted) | BC221: Poorest | BD221: Poor | BE221: Middle | BF221: Rich | BG221: Richest | BH221: Poorest | BI221: Poor | BJ221: Middle | BK221: Rich | BL221: Richest | BM221: Poorest | BN221: Poor | BO221: Middle | BP221: Rich | BQ221: Richest | BR221: Central | BS221: East | BT221: North | BU221: South | BV221: West
A222: Hygiene ladder | B222: Basic | C222: N/A | D222: N/A | E222: N/A | F222: N/A | G222: N/A | H222: N/A | I222: N/A | J222: N/A | K222: N/A | L222: N/A | M222: N/A | N222: N/A | O222: N/A | P222: N/A | Q222: N/A | R222: N/A | S222: N/A | T222: N/A | U222: N/A | V222: N/A | BA222: Hygiene ladder | BB222: Basic | BC222: N/A | BD222: N/A | BE222: N/A | BF222: N/A | BG222: N/A | BH222: N/A | BI222: N/A | BJ222: N/A | BK222: N/A | BL222: N/A | BM222: N/A | BN222: N/A | BO222: N/A | BP222: N/A | BQ222: N/A | BR222: N/A | BS222: N/A | BT222: N/A | BU222: N/A | BV222: N/A
B223: Limited | C223: N/A | D223: N/A | E223: N/A | F223: N/A | G223: N/A | H223: N/A | I223: N/A | J223: N/A | K223: N/A | L223: N/A | M223: N/A | N223: N/A | O223: N/A | P223: N/A | Q223: N/A | R223: N/A | S223: N/A | T223: N/A | U223: N/A | V223: N/A | BB223: Limited | BC223: N/A | BD223: N/A | BE223: N/A | BF223: N/A | BG223: N/A | BH223: N/A | BI223: N/A | BJ223: N/A | BK223: N/A | BL223: N/A | BM223: N/A | BN223: N/A | BO223: N/A | BP223: N/A | BQ223: N/A | BR223: N/A | BS223: N/A | BT223: N/A | BU223: N/A | BV223: N/A
B224: No facility | C224: N/A | D224: N/A | E224: N/A | F224: N/A | G224: N/A | H224: N/A | I224: N/A | J224: N/A | K224: N/A | L224: N/A | M224: N/A | N224: N/A | O224: N/A | P224: N/A | Q224: N/A | R224: N/A | S224: N/A | T224: N/A | U224: N/A | V224: N/A | BB224: No facility | BC224: N/A | BD224: N/A | BE224: N/A | BF224: N/A | BG224: N/A | BH224: N/A | BI224: N/A | BJ224: N/A | BK224: N/A | BL224: N/A | BM224: N/A | BN224: N/A | BO224: N/A | BP224: N/A | BQ224: N/A | BR224: N/A | BS224: N/A | BT224: N/A | BU224: N/A | BV224: N/A
BA225: Observed handwashing place | BB225: Fixed | BC225: N/A | BD225: N/A | BE225: N/A | BF225: N/A | BG225: N/A | BH225: N/A | BI225: N/A | BJ225: N/A | BK225: N/A | BL225: N/A | BM225: N/A | BN225: N/A | BO225: N/A | BP225: N/A | BQ225: N/A | BR225: N/A | BS225: N/A | BT225: N/A | BU225: N/A | BV225: N/A
BB226: Mobile | BC226: N/A | BD226: N/A | BE226: N/A | BF226: N/A | BG226: N/A | BH226: N/A | BI226: N/A | BJ226: N/A | BK226: N/A | BL226: N/A | BM226: N/A | BN226: N/A | BO226: N/A | BP226: N/A | BQ226: N/A | BR226: N/A | BS226: N/A | BT226: N/A | BU226: N/A | BV226: N/A
BA227: Water / Soap | BB227: Water and soap | BC227: N/A | BD227: N/A | BE227: N/A | BF227: N/A | BG227: N/A | BH227: N/A | BI227: N/A | BJ227: N/A | BK227: N/A | BL227: N/A | BM227: N/A | BN227: N/A | BO227: N/A | BP227: N/A | BQ227: N/A | BR227: N/A | BS227: N/A | BT227: N/A | BU227: N/A | BV227: N/A
BB228: Water only | BC228: N/A | BD228: N/A | BE228: N/A | BF228: N/A | BG228: N/A | BH228: N/A | BI228: N/A | BJ228: N/A | BK228: N/A | BL228: N/A | BM228: N/A | BN228: N/A | BO228: N/A | BP228: N/A | BQ228: N/A | BR228: N/A | BS228: N/A | BT228: N/A | BU228: N/A | BV228: N/A
BB229: Soap only | BC229: N/A | BD229: N/A | BE229: N/A | BF229: N/A | BG229: N/A | BH229: N/A | BI229: N/A | BJ229: N/A | BK229: N/A | BL229: N/A | BM229: N/A | BN229: N/A | BO229: N/A | BP229: N/A | BQ229: N/A | BR229: N/A | BS229: N/A | BT229: N/A | BU229: N/A | BV229: N/A
BB230: Neither | BC230: N/A | BD230: N/A | BE230: N/A | BF230: N/A | BG230: N/A | BH230: N/A | BI230: N/A | BJ230: N/A | BK230: N/A | BL230: N/A | BM230: N/A | BN230: N/A | BO230: N/A | BP230: N/A | BQ230: N/A | BR230: N/A | BS230: N/A | BT230: N/A | BU230: N/A | BV230: N/A
BA259: Raw numbers of respondents: | BB259: Menstrual health and hygiene | BC259: NATIONAL wealth index quintile | BH259: URBAN wealth index quintile | BM259: RURAL wealth index quintile | BR259: SUB-REGIONS:
BA260: MHH data, raw numbers (weighted) | BC260: Poorest | BD260: Poor | BE260: Middle | BF260: Rich | BG260: Richest | BH260: Poorest | BI260: Poor | BJ260: Middle | BK260: Rich | BL260: Richest | BM260: Poorest | BN260: Poor | BO260: Middle | BP260: Rich | BQ260: Richest | BR260: Central | BS260: East | BT260: North | BU260: South | BV260: West
BA261: Private place to wash and change | BB261: Yes | BC261: N/A | BD261: N/A | BE261: N/A | BF261: N/A | BG261: N/A | BH261: N/A | BI261: N/A | BJ261: N/A | BK261: N/A | BL261: N/A | BM261: N/A | BN261: N/A | BO261: N/A | BP261: N/A | BQ261: N/A | BR261: N/A | BS261: N/A | BT261: N/A | BU261: N/A | BV261: N/A
BB262: No | BC262: N/A | BD262: N/A | BE262: N/A | BF262: N/A | BG262: N/A | BH262: N/A | BI262: N/A | BJ262: N/A | BK262: N/A | BL262: N/A | BM262: N/A | BN262: N/A | BO262: N/A | BP262: N/A | BQ262: N/A | BR262: N/A | BS262: N/A | BT262: N/A | BU262: N/A | BV262: N/A
BB263: DK/not sure/missing | BC263: N/A | BD263: N/A | BE263: N/A | BF263: N/A | BG263: N/A | BH263: N/A | BI263: N/A | BJ263: N/A | BK263: N/A | BL263: N/A | BM263: N/A | BN263: N/A | BO263: N/A | BP263: N/A | BQ263: N/A | BR263: N/A | BS263: N/A | BT263: N/A | BU263: N/A | BV263: N/A
BA264: Use of menstrual materials | BB264: Materials reusable | BC264: N/A | BD264: N/A | BE264: N/A | BF264: N/A | BG264: N/A | BH264: N/A | BI264: N/A | BJ264: N/A | BK264: N/A | BL264: N/A | BM264: N/A | BN264: N/A | BO264: N/A | BP264: N/A | BQ264: N/A | BR264: N/A | BS264: N/A | BT264: N/A | BU264: N/A | BV264: N/A
BB265: Materials not reusable | BC265: N/A | BD265: N/A | BE265: N/A | BF265: N/A | BG265: N/A | BH265: N/A | BI265: N/A | BJ265: N/A | BK265: N/A | BL265: N/A | BM265: N/A | BN265: N/A | BO265: N/A | BP265: N/A | BQ265: N/A | BR265: N/A | BS265: N/A | BT265: N/A | BU265: N/A | BV265: N/A
BB266: No materials used | BC266: N/A | BD266: N/A | BE266: N/A | BF266: N/A | BG266: N/A | BH266: N/A | BI266: N/A | BJ266: N/A | BK266: N/A | BL266: N/A | BM266: N/A | BN266: N/A | BO266: N/A | BP266: N/A | BQ266: N/A | BR266: N/A | BS266: N/A | BT266: N/A | BU266: N/A | BV266: N/A
BB267: DK/not sure/missing | BC267: N/A | BD267: N/A | BE267: N/A | BF267: N/A | BG267: N/A | BH267: N/A | BI267: N/A | BJ267: N/A | BK267: N/A | BL267: N/A | BM267: N/A | BN267: N/A | BO267: N/A | BP267: N/A | BQ267: N/A | BR267: N/A | BS267: N/A | BT267: N/A | BU267: N/A | BV267: N/A
BA268: Use of menstrual materials with private place to wash and change | BB268: Materials reusable | BC268: N/A | BD268: N/A | BE268: N/A | BF268: N/A | BG268: N/A | BH268: N/A | BI268: N/A | BJ268: N/A | BK268: N/A | BL268: N/A | BM268: N/A | BN268: N/A | BO268: N/A | BP268: N/A | BQ268: N/A | BR268: N/A | BS268: N/A | BT268: N/A | BU268: N/A | BV268: N/A
BB269: Materials not reusable | BC269: N/A | BD269: N/A | BE269: N/A | BF269: N/A | BG269: N/A | BH269: N/A | BI269: N/A | BJ269: N/A | BK269: N/A | BL269: N/A | BM269: N/A | BN269: N/A | BO269: N/A | BP269: N/A | BQ269: N/A | BR269: N/A | BS269: N/A | BT269: N/A | BU269: N/A | BV269: N/A
BB270: No materials used | BC270: N/A | BD270: N/A | BE270: N/A | BF270: N/A | BG270: N/A | BH270: N/A | BI270: N/A | BJ270: N/A | BK270: N/A | BL270: N/A | BM270: N/A | BN270: N/A | BO270: N/A | BP270: N/A | BQ270: N/A | BR270: N/A | BS270: N/A | BT270: N/A | BU270: N/A | BV270: N/A
BA271: Awareness of menstruation before menarche | BB271: Yes | BC271: N/A | BD271: N/A | BE271: N/A | BF271: N/A | BG271: N/A | BH271: N/A | BI271: N/A | BJ271: N/A | BK271: N/A | BL271: N/A | BM271: N/A | BN271: N/A | BO271: N/A | BP271: N/A | BQ271: N/A | BR271: N/A | BS271: N/A | BT271: N/A | BU271: N/A | BV271: N/A
BB272: No | BC272: N/A | BD272: N/A | BE272: N/A | BF272: N/A | BG272: N/A | BH272: N/A | BI272: N/A | BJ272: N/A | BK272: N/A | BL272: N/A | BM272: N/A | BN272: N/A | BO272: N/A | BP272: N/A | BQ272: N/A | BR272: N/A | BS272: N/A | BT272: N/A | BU272: N/A | BV272: N/A
BB273: DK/not sure/missing | BC273: N/A | BD273: N/A | BE273: N/A | BF273: N/A | BG273: N/A | BH273: N/A | BI273: N/A | BJ273: N/A | BK273: N/A | BL273: N/A | BM273: N/A | BN273: N/A | BO273: N/A | BP273: N/A | BQ273: N/A | BR273: N/A | BS273: N/A | BT273: N/A | BU273: N/A | BV273: N/A
BA274: Participation in (all) activities during menstruation | BB274: Yes | BC274: N/A | BD274: N/A | BE274: N/A | BF274: N/A | BG274: N/A | BH274: N/A | BI274: N/A | BJ274: N/A | BK274: N/A | BL274: N/A | BM274: N/A | BN274: N/A | BO274: N/A | BP274: N/A | BQ274: N/A | BR274: N/A | BS274: N/A | BT274: N/A | BU274: N/A | BV274: N/A
BB275: No | BC275: N/A | BD275: N/A | BE275: N/A | BF275: N/A | BG275: N/A | BH275: N/A | BI275: N/A | BJ275: N/A | BK275: N/A | BL275: N/A | BM275: N/A | BN275: N/A | BO275: N/A | BP275: N/A | BQ275: N/A | BR275: N/A | BS275: N/A | BT275: N/A | BU275: N/A | BV275: N/A
BB276: DK/not sure/missing/no such activity | BC276: N/A | BD276: N/A | BE276: N/A | BF276: N/A | BG276: N/A | BH276: N/A | BI276: N/A | BJ276: N/A | BK276: N/A | BL276: N/A | BM276: N/A | BN276: N/A | BO276: N/A | BP276: N/A | BQ276: N/A | BR276: N/A | BS276: N/A | BT276: N/A | BU276: N/A | BV276: N/A
BA277: Participation in specific activities during menstruation | BB277: Did not go to school (amongst those usually attending school) | BC277: N/A | BD277: N/A | BE277: N/A | BF277: N/A | BG277: N/A | BH277: N/A | BI277: N/A | BJ277: N/A | BK277: N/A | BL277: N/A | BM277: N/A | BN277: N/A | BO277: N/A | BP277: N/A | BQ277: N/A | BR277: N/A | BS277: N/A | BT277: N/A | BU277: N/A | BV277: N/A
BB278: Did not go to work (amongst those who usually work) | BC278: N/A | BD278: N/A | BE278: N/A | BF278: N/A | BG278: N/A | BH278: N/A | BI278: N/A | BJ278: N/A | BK278: N/A | BL278: N/A | BM278: N/A | BN278: N/A | BO278: N/A | BP278: N/A | BQ278: N/A | BR278: N/A | BS278: N/A | BT278: N/A | BU278: N/A | BV278: N/A
BB279: Did not participate in social activities | BC279: N/A | BD279: N/A | BE279: N/A | BF279: N/A | BG279: N/A | BH279: N/A | BI279: N/A | BJ279: N/A | BK279: N/A | BL279: N/A | BM279: N/A | BN279: N/A | BO279: N/A | BP279: N/A | BQ279: N/A | BR279: N/A | BS279: N/A | BT279: N/A | BU279: N/A | BV279: N/A
BB280: Did not cook food | BC280: N/A | BD280: N/A | BE280: N/A | BF280: N/A | BG280: N/A | BH280: N/A | BI280: N/A | BJ280: N/A | BK280: N/A | BL280: N/A | BM280: N/A | BN280: N/A | BO280: N/A | BP280: N/A | BQ280: N/A | BR280: N/A | BS280: N/A | BT280: N/A | BU280: N/A | BV280: N/A
BB281: Did not eat with others | BC281: N/A | BD281: N/A | BE281: N/A | BF281: N/A | BG281: N/A | BH281: N/A | BI281: N/A | BJ281: N/A | BK281: N/A | BL281: N/A | BM281: N/A | BN281: N/A | BO281: N/A | BP281: N/A | BQ281: N/A | BR281: N/A | BS281: N/A | BT281: N/A | BU281: N/A | BV281: N/A
BB282: Did not bathe in regular place | BC282: N/A | BD282: N/A | BE282: N/A | BF282: N/A | BG282: N/A | BH282: N/A | BI282: N/A | BJ282: N/A | BK282: N/A | BL282: N/A | BM282: N/A | BN282: N/A | BO282: N/A | BP282: N/A | BQ282: N/A | BR282: N/A | BS282: N/A | BT282: N/A | BU282: N/A | BV282: N/A
BB283: Did not participate in other activities | BC283: N/A | BD283: N/A | BE283: N/A | BF283: N/A | BG283: N/A | BH283: N/A | BI283: N/A | BJ283: N/A | BK283: N/A | BL283: N/A | BM283: N/A | BN283: N/A | BO283: N/A | BP283: N/A | BQ283: N/A | BR283: N/A | BS283: N/A | BT283: N/A | BU283: N/A | BV283: N/A
BB284: DK/not sure/missing/no such activity | BC284: N/A | BD284: N/A | BE284: N/A | BF284: N/A | BG284: N/A | BH284: N/A | BI284: N/A | BJ284: N/A | BK284: N/A | BL284: N/A | BM284: N/A | BN284: N/A | BO284: N/A | BP284: N/A | BQ284: N/A | BR284: N/A | BS284: N/A | BT284: N/A | BU284: N/A | BV284: N/A
BA339: Raw numbers of respondents: | BB339: Basic water, sanitation and hygiene | BC339: NATIONAL wealth index quintile | BH339: URBAN wealth index quintile | BM339: RURAL wealth index quintile | BR339: SUB-REGIONS:
BA340: WatSan data, raw numbers (weighted) | BC340: Poorest | BD340: Poor | BE340: Middle | BF340: Rich | BG340: Richest | BH340: Poorest | BI340: Poor | BJ340: Middle | BK340: Rich | BL340: Richest | BM340: Poorest | BN340: Poor | BO340: Middle | BP340: Rich | BQ340: Richest | BR340: Central | BS340: East | BT340: North | BU340: South | BV340: West
BA341: Use of Basic Water Sanitation and Hygiene | BB341: Yes | BC341: N/A | BD341: N/A | BE341: N/A | BF341: N/A | BG341: N/A | BH341: N/A | BI341: N/A | BJ341: N/A | BK341: N/A | BL341: N/A | BM341: N/A | BN341: N/A | BO341: N/A | BP341: N/A | BQ341: N/A | BR341: N/A | BS341: N/A | BT341: N/A | BU341: N/A | BV341: N/A
BB342: No | BC342: N/A | BD342: N/A | BE342: N/A | BF342: N/A | BG342: N/A | BH342: N/A | BI342: N/A | BJ342: N/A | BK342: N/A | BL342: N/A | BM342: N/A | BN342: N/A | BO342: N/A | BP342: N/A | BQ342: N/A | BR342: N/A | BS342: N/A | BT342: N/A | BU342: N/A | BV342: N/A
BA343: Use of Basic Water and Sanitation | BB343: Yes | BC343: N/A | BD343: N/A | BE343: N/A | BF343: N/A | BG343: N/A | BH343: N/A | BI343: N/A | BJ343: N/A | BK343: N/A | BL343: N/A | BM343: N/A | BN343: N/A | BO343: N/A | BP343: N/A | BQ343: N/A | BR343: N/A | BS343: N/A | BT343: N/A | BU343: N/A | BV343: N/A
BB344: No | BC344: N/A | BD344: N/A | BE344: N/A | BF344: N/A | BG344: N/A | BH344: N/A | BI344: N/A | BJ344: N/A | BK344: N/A | BL344: N/A | BM344: N/A | BN344: N/A | BO344: N/A | BP344: N/A | BQ344: N/A | BR344: N/A | BS344: N/A | BT344: N/A | BU344: N/A | BV344: N/A
BA345: Use of Basic Water and Hygiene | BB345: Yes | BC345: N/A | BD345: N/A | BE345: N/A | BF345: N/A | BG345: N/A | BH345: N/A | BI345: N/A | BJ345: N/A | BK345: N/A | BL345: N/A | BM345: N/A | BN345: N/A | BO345: N/A | BP345: N/A | BQ345: N/A | BR345: N/A | BS345: N/A | BT345: N/A | BU345: N/A | BV345: N/A
BB346: No | BC346: N/A | BD346: N/A | BE346: N/A | BF346: N/A | BG346: N/A | BH346: N/A | BI346: N/A | BJ346: N/A | BK346: N/A | BL346: N/A | BM346: N/A | BN346: N/A | BO346: N/A | BP346: N/A | BQ346: N/A | BR346: N/A | BS346: N/A | BT346: N/A | BU346: N/A | BV346: N/A
BA347: Use of Basic Sanitation and Hygiene | BB347: Yes | BC347: N/A | BD347: N/A | BE347: N/A | BF347: N/A | BG347: N/A | BH347: N/A | BI347: N/A | BJ347: N/A | BK347: N/A | BL347: N/A | BM347: N/A | BN347: N/A | BO347: N/A | BP347: N/A | BQ347: N/A | BR347: N/A | BS347: N/A | BT347: N/A | BU347: N/A | BV347: N/A
BB348: No | BC348: N/A | BD348: N/A | BE348: N/A | BF348: N/A | BG348: N/A | BH348: N/A | BI348: N/A | BJ348: N/A | BK348: N/A | BL348: N/A | BM348: N/A | BN348: N/A | BO348: N/A | BP348: N/A | BQ348: N/A | BR348: N/A | BS348: N/A | BT348: N/A | BU348: N/A | BV348: N/A
BA349: Use of Basic Water | BB349: Yes | BC349: N/A | BD349: N/A | BE349: N/A | BF349: N/A | BG349: N/A | BH349: N/A | BI349: N/A | BJ349: N/A | BK349: N/A | BL349: N/A | BM349: N/A | BN349: N/A | BO349: N/A | BP349: N/A | BQ349: N/A | BR349: N/A | BS349: N/A | BT349: N/A | BU349: N/A | BV349: N/A
BB350: No | BC350: N/A | BD350: N/A | BE350: N/A | BF350: N/A | BG350: N/A | BH350: N/A | BI350: N/A | BJ350: N/A | BK350: N/A | BL350: N/A | BM350: N/A | BN350: N/A | BO350: N/A | BP350: N/A | BQ350: N/A | BR350: N/A | BS350: N/A | BT350: N/A | BU350: N/A | BV350: N/A
BA351: Use of Basic Sanitation | BB351: Yes | BC351: N/A | BD351: N/A | BE351: N/A | BF351: N/A | BG351: N/A | BH351: N/A | BI351: N/A | BJ351: N/A | BK351: N/A | BL351: N/A | BM351: N/A | BN351: N/A | BO351: N/A | BP351: N/A | BQ351: N/A | BR351: N/A | BS351: N/A | BT351: N/A | BU351: N/A | BV351: N/A
BB352: No | BC352: N/A | BD352: N/A | BE352: N/A | BF352: N/A | BG352: N/A | BH352: N/A | BI352: N/A | BJ352: N/A | BK352: N/A | BL352: N/A | BM352: N/A | BN352: N/A | BO352: N/A | BP352: N/A | BQ352: N/A | BR352: N/A | BS352: N/A | BT352: N/A | BU352: N/A | BV352: N/A
BA353: Access to Basic Hygiene | BB353: Yes | BC353: N/A | BD353: N/A | BE353: N/A | BF353: N/A | BG353: N/A | BH353: N/A | BI353: N/A | BJ353: N/A | BK353: N/A | BL353: N/A | BM353: N/A | BN353: N/A | BO353: N/A | BP353: N/A | BQ353: N/A | BR353: N/A | BS353: N/A | BT353: N/A | BU353: N/A | BV353: N/A
BB354: No | BC354: N/A | BD354: N/A | BE354: N/A | BF354: N/A | BG354: N/A | BH354: N/A | BI354: N/A | BJ354: N/A | BK354: N/A | BL354: N/A | BM354: N/A | BN354: N/A | BO354: N/A | BP354: N/A | BQ354: N/A | BR354: N/A | BS354: N/A | BT354: N/A | BU354: N/A | BV354: N/A
C399: INITIAL (national) Wealth Index | H399: URBAN Wealth Index | M399: RURAL Wealth Index
C400: Component Matrix | H400: Component Matrix | M400: Component Matrix
E401: Component | J401: Component | O401: Component
B402: Note: The INITIAL (national) Wealth Index is based on the first component of the Principal Component Analysis (PCA) which has been obtained at national level. The final national-level (NATIONAL) Wealth Index is based on the URBAN and RURAL specific wealth indexes. Regression procedures are used to establish the relationships between the two sets of scores (urban and rural) and the initial (national) wealth factors. This allows best use of the available information for each area and a better precision of the FINAL (NATIONAL) Wealth Index. For dependency reasons, all WASH variables (contained in the generic MICS and DHS scripts) have been excluded from the sets of asset variables used in the PCAs. The PCA can extracts as many components as there are asset variables in the input. Only the first of the components is used to represent the Wealth Index. The scores represent the weights of the asset variables on the Wealth Index (correlations between the variables and the component). The communalities are the proportion of each variable's variance that can be explained by the component. Proportion of explained variance is the part of the model's total variance that is explained by the component. For more information on the procedure used: The DHS Wealth Index, DHS Comparative Reports No. 6, Shea Oscar Rutstein, Kiersten Johnson, ORC Macro International Inc., 2004. The DHS Wealth Index: Approaches for Rural and Urban Areas, Shea O. Rutstein, ORC Macro International Inc., 2008. MICS Methodological Paper No. 4, Review of options for reporting water, sanitation and hygiene coverage by wealth quintile, UNICEF, 2016. | E402: 1 | J402: 1 | O402: 1
C403: Gas or electric oven | E403: 0.9254878729 | H403: Gas or electric oven | J403: 0.9369329469 | M403: Gas or electric oven | O403: 0.938025132
C404: Blender/mixer | E404: 0.5759417242 | H404: Blender/mixer | J404: 0.5305284191 | M404: Vacuum cleaner | O404: 0.538003861
C405: Vacuum cleaner | E405: 0.5539069761 | H405: Vacuum cleaner | J405: 0.4775361018 | M405: Iron | O405: 0.5377645899
C406: Iron | E406: 0.5373282922 | H406: Iron | J406: 0.4651144805 | M406: Blender/mixer | O406: 0.5105667514
C407: Dishwasher | E407: 0.4807147659 | H407: Dishwasher | J407: 0.4509775192 | M407: Cellular phone | O407: 0.443929449
C408: Washing machine | E408: 0.4683987323 | H408: Camera | J408: 0.4152483441 | M408: Washing machine | O408: 0.4427698202
C409: Camera | E409: 0.4562202833 | H409: Washing machine | J409: 0.4092082405 | M409: Separate bathroom | O409: 0.4056125013
C410: Cellular phone | E410: 0.4244998026 | H410: Internet | J410: 0.3805718902 | M410: Camera | O410: 0.4041040918
C411: Internet | E411: 0.4187309117 | H411: Car | J411: 0.36028439 | M411: DVD/VCD player | O411: 0.3735533792
C412: Separate bathroom | E412: 0.4102192085 | H412: Computer | J412: 0.3559819221 | M412: Car | O412: 0.3674175458
C413: DVD/VCD player | E413: 0.4068450099 | H413: Concrete, cement floor | J413: -0.3539450164 | M413: Has a mobile telephone | O413: 0.3525452688
C414: Computer | E414: 0.4016659321 | H414: Cellular phone | J414: 0.3492068837 | M414: Dishwasher | O414: 0.3321932789
C415: Car | E415: 0.3758408183 | H415: DVD/VCD player | J415: 0.3484706934 | M415: Internet | O415: 0.3128931346
C416: Concrete, cement floor | E416: -0.3444190673 | H416: Has refrigerator | J416: 0.3088968039 | M416: Computer | O416: 0.30772632
C417: Has a mobile telephone | E417: 0.3432719797 | H417: Separate bathroom | J417: 0.3038905886 | M417: Earth, sand floor | O417: -0.3013606858
C418: Has refrigerator | E418: 0.3118330551 | H418: Video camera | J418: 0.2796546958 | M418: Has refrigerator | O418: 0.286205391
C419: Video camera | E419: 0.2995614836 | H419: Has a mobile telephone | J419: 0.2730425124 | M419: Satellite antenna | O419: 0.259511535
C420: Earth, sand floor | E420: -0.2874460218 | H420: Number of members per sleeping room | J420: -0.2509444115 | M420: Microwave oven | O420: 0.2472904006
C421: Parquet, wood tile floor | E421: 0.2814374059 | H421: Parquet, wood tile floor | J421: 0.2480223063 | M421: Video camera | O421: 0.234676099
C422: Number of members per sleeping room | E422: -0.2752794297 | H422: Microwave oven | J422: 0.2412204893 | M422: Has television | O422: 0.228180935
C423: Microwave oven | E423: 0.2702784516 | H423: Laptop | J423: 0.2334816041 | M423: Laptop | O423: 0.2117577381
C424: Laptop | E424: 0.2645165477 | H424: Cable TV/Digiturk etc. | J424: 0.2138522448 | M424: Parquet, wood tile floor | O424: 0.1770169525
... 171 more rows

Sheet DHS13
A2: =A1026 -> Turkey
A3: =A1034 -> 2013
A4: Use of drinking water sources
A5: by wealth quintile and sub-national region
A6: Notes:
A7: WHO/UNICEF JMP customised wealth index excludes water,
A8: sanitation and hygiene assets.
A9: Survey used for analysis: | B9: =A1025 -> DHS13
A10: =B1028 -> 
A11: =B1027 -> 
A14: Use of drinking water sources | C14: NATIONAL wealth index quintile | H14: URBAN wealth index quintile | M14: RURAL wealth index quintile | R14: SUB-REGIONS: | BA14: Raw numbers of respondents: | BB14: Use of drinking water sources | BC14: NATIONAL wealth index quintile | BH14: URBAN wealth index quintile | BM14: RURAL wealth index quintile | BR14: SUB-REGIONS:
A15: Weighted percentage (used in graphs) | C15: Poorest | D15: Poor | E15: Middle | F15: Rich | G15: Richest | H15: Poorest | I15: Poor | J15: Middle | K15: Rich | L15: Richest | M15: Poorest | N15: Poor | O15: Middle | P15: Rich | Q15: Richest | R15: Central | S15: East | T15: North | U15: South | V15: West | BA15: Water data, raw numbers (weighted) | BC15: Poorest | BD15: Poor | BE15: Middle | BF15: Rich | BG15: Richest | BH15: Poorest | BI15: Poor | BJ15: Middle | BK15: Rich | BL15: Richest | BM15: Poorest | BN15: Poor | BO15: Middle | BP15: Rich | BQ15: Richest | BR15: Central | BS15: East | BT15: North | BU15: South | BV15: West
A16: Water | B16: Improved | C16: 97.96887895 | D16: 98.63330698 | E16: 99.41540429 | F16: 99.49865082 | G16: 99.80779316 | H16: 99.62826432 | I16: 99.40677625 | J16: 99.75004319 | K16: 99.40627391 | L16: 99.91491647 | M16: 94.2638219 | N16: 97.22167815 | O16: 98.25115463 | P16: 96.74929746 | Q16: 99.25668553 | R16: 99.01558755 | S16: 98.06098358 | T16: 99.38752025 | U16: 98.52177599 | V16: 99.66340988 | BA16: Water | BB16: Improved | BC16: N/A | BD16: N/A | BE16: N/A | BF16: N/A | BG16: N/A | BH16: N/A | BI16: N/A | BJ16: N/A | BK16: N/A | BL16: N/A | BM16: N/A | BN16: N/A | BO16: N/A | BP16: N/A | BQ16: N/A | BR16: N/A | BS16: N/A | BT16: N/A | BU16: N/A | BV16: N/A
B17: Not Improved | C17: 2.031121052 | D17: 1.366693025 | E17: 0.5845957129 | F17: 0.5013491762 | G17: 0.1922068422 | H17: 0.3717356756 | I17: 0.5932237481 | J17: 0.2499568122 | K17: 0.5937260934 | L17: 0.08508353253 | M17: 5.736178097 | N17: 2.778321846 | O17: 1.748845371 | P17: 3.250702539 | Q17: 0.7433144661 | R17: 0.9844124528 | S17: 1.939016423 | T17: 0.6124797474 | U17: 1.478224012 | V17: 0.3365901184 | BB17: Not Improved | BC17: N/A | BD17: N/A | BE17: N/A | BF17: N/A | BG17: N/A | BH17: N/A | BI17: N/A | BJ17: N/A | BK17: N/A | BL17: N/A | BM17: N/A | BN17: N/A | BO17: N/A | BP17: N/A | BQ17: N/A | BR17: N/A | BS17: N/A | BT17: N/A | BU17: N/A | BV17: N/A
A18: Water ladder | B18: Basic | C18: 96.4998318 | D18: 97.59720214 | E18: 98.01609464 | F18: 97.75691034 | G18: 99.26981202 | H18: 98.78921636 | I18: 98.29432774 | J18: 98.7833769 | K18: 97.71500122 | L18: 99.57572335 | M18: 91.50898397 | N18: 95.28539906 | O18: 97.17008799 | P18: 93.90053234 | Q18: 97.2984202 | R18: 97.06168774 | S18: 96.99655396 | T18: 97.38376455 | U18: 98.04152385 | V18: 98.60420838 | BA18: Water ladder | BB18: Basic | BC18: N/A | BD18: N/A | BE18: N/A | BF18: N/A | BG18: N/A | BH18: N/A | BI18: N/A | BJ18: N/A | BK18: N/A | BL18: N/A | BM18: N/A | BN18: N/A | BO18: N/A | BP18: N/A | BQ18: N/A | BR18: N/A | BS18: N/A | BT18: N/A | BU18: N/A | BV18: N/A
B19: Limited | C19: 1.451335 | D19: 1.031417866 | E19: 1.398347818 | F19: 1.741584365 | G19: 0.5376125118 | H19: 0.8385792758 | I19: 1.112122922 | J19: 0.9666662845 | K19: 1.691156986 | L19: 0.3391260408 | M19: 2.658613489 | N19: 1.892927908 | O19: 1.061794345 | P19: 2.816737012 | Q19: 1.95175 | R19: 1.952345815 | S19: 1.046706925 | T19: 1.998523172 | U19: 0.479388136 | V19: 1.058843179 | BB19: Limited | BC19: N/A | BD19: N/A | BE19: N/A | BF19: N/A | BG19: N/A | BH19: N/A | BI19: N/A | BJ19: N/A | BK19: N/A | BL19: N/A | BM19: N/A | BN19: N/A | BO19: N/A | BP19: N/A | BQ19: N/A | BR19: N/A | BS19: N/A | BT19: N/A | BU19: N/A | BV19: N/A
B20: Unimproved | C20: 1.705334795 | D20: 1.271310028 | E20: 0.5561167246 | F20: 0.3634210233 | G20: 0.1925754666 | H20: 0.3475369914 | I20: 0.4268419028 | J20: 0.2499568122 | K20: 0.4504579737 | L20: 0.08515061175 | M20: 4.991931846 | N20: 2.331714753 | O20: 1.647455686 | P20: 3.282730646 | Q20: 0.6293235891 | R20: 0.9244425564 | S20: 1.727319793 | T20: 0.4431059493 | U20: 1.215855968 | V20: 0.2878429786 | BB20: Unimproved | BC20: N/A | BD20: N/A | BE20: N/A | BF20: N/A | BG20: N/A | BH20: N/A | BI20: N/A | BJ20: N/A | BK20: N/A | BL20: N/A | BM20: N/A | BN20: N/A | BO20: N/A | BP20: N/A | BQ20: N/A | BR20: N/A | BS20: N/A | BT20: N/A | BU20: N/A | BV20: N/A
B21: Surface water | C21: 0.3434984041 | D21: 0.1000699676 | E21: 0.02944082034 | F21: 0.1380842725 | G21: 0 | H21: 0.02466736893 | I21: 0.1667074303 | J21: 0 | K21: 0.143383821 | L21: 0 | M21: 0.8404706905 | N21: 0.489958284 | O21: 0.1206619809 | P21: 0 | Q21: 0.1205062106 | R21: 0.06152389044 | S21: 0.2294193204 | T21: 0.1746063268 | U21: 0.2632320469 | V21: 0.04910545801 | BB21: Surface water | BC21: N/A | BD21: N/A | BE21: N/A | BF21: N/A | BG21: N/A | BH21: N/A | BI21: N/A | BJ21: N/A | BK21: N/A | BL21: N/A | BM21: N/A | BN21: N/A | BO21: N/A | BP21: N/A | BQ21: N/A | BR21: N/A | BS21: N/A | BT21: N/A | BU21: N/A | BV21: N/A
A22: Improved water point at more than 30 minutes | B22: Yes | C22: 1.481692406 | D22: 1.045759198 | E22: 1.406584177 | F22: 1.750362525 | G22: 0.5386498192 | H22: 0.8417121652 | I22: 1.118763334 | J22: 0.9690885875 | K22: 1.701259778 | L22: 0.3394150547 | M22: 2.823278453 | N22: 1.947891024 | O22: 1.080906036 | P22: 2.912341334 | Q22: 1.966495369 | R22: 1.971786973 | S22: 1.067597013 | T22: 2.010945027 | U22: 0.4865851588 | V22: 1.062422997 | BA22: Improved water point at more than 30 minutes | BB22: Yes | BC22: N/A | BD22: N/A | BE22: N/A | BF22: N/A | BG22: N/A | BH22: N/A | BI22: N/A | BJ22: N/A | BK22: N/A | BL22: N/A | BM22: N/A | BN22: N/A | BO22: N/A | BP22: N/A | BQ22: N/A | BR22: N/A | BS22: N/A | BT22: N/A | BU22: N/A | BV22: N/A
B23: No | C23: 98.51830759 | D23: 98.9542408 | E23: 98.59341582 | F23: 98.24963747 | G23: 99.46135018 | H23: 99.15828783 | I23: 98.88123667 | J23: 99.03091141 | K23: 98.29874022 | L23: 99.66058495 | M23: 97.17672155 | N23: 98.05210898 | O23: 98.91909396 | P23: 97.08765867 | Q23: 98.03350463 | R23: 98.02821303 | S23: 98.93240299 | T23: 97.98905497 | U23: 99.51341484 | V23: 98.937577 | BB23: No | BC23: N/A | BD23: N/A | BE23: N/A | BF23: N/A | BG23: N/A | BH23: N/A | BI23: N/A | BJ23: N/A | BK23: N/A | BL23: N/A | BM23: N/A | BN23: N/A | BO23: N/A | BP23: N/A | BQ23: N/A | BR23: N/A | BS23: N/A | BT23: N/A | BU23: N/A | BV23: N/A
A24: Manually calculated ratios | B24: Improved wells | C24: =C62/(C62+C63)*100 -> 83.34587224 | D24: 93.82474847 | E24: 90.56808427 | F24: 97.73301934 | G24: 92.4422095 | H24: 91.10377044 | I24: 100 | J24: 94.8802695 | K24: 100 | L24: 91.27725342 | M24: 78.09879041 | N24: 77.9757415 | O24: 94.05414126 | P24: 92.10547741 | Q24: 94.5326634 | R24: 97.14565284 | S24: 85.63086383 | T24: 96.58154895 | U24: 88.20971025 | V24: 92.3454147
B25: Improved springs | C25: =C64/(C64+C65)*100 -> 93.1758824 | D25: 90.64284586 | E25: 97.97931116 | F25: 96.11222631 | G25: 96.56754569 | H25: 92.86907032 | I25: 94.8973788 | J25: 99.21334475 | K25: 92.14722141 | L25: 98.39297473 | M25: 85.65083599 | N25: 97.47961814 | O25: 96.54183952 | P25: 91.12915276 | Q25: 98.5501963 | R25: 94.11271307 | S25: 90.34405868 | T25: 99.10805098 | U25: 82.45742083 | V25: 96.18291956
B26: Other
C27: NATIONAL wealth index quintile | H27: URBAN wealth index quintile | M27: RURAL wealth index quintile | R27: SUB-REGIONS: | BA27: Raw numbers of respondents: | BB27: Use of drinking water sources | BC27: NATIONAL wealth index quintile | BH27: URBAN wealth index quintile | BM27: RURAL wealth index quintile | BR27: SUB-REGIONS:
A28: Percentage based on weighted population | C28: Poorest | D28: Poor | E28: Middle | F28: Rich | G28: Richest | H28: Poorest | I28: Poor | J28: Middle | K28: Rich | L28: Richest | M28: Poorest | N28: Poor | O28: Middle | P28: Rich | Q28: Richest | R28: Central | S28: East | T28: North | U28: South | V28: West | BA28: Water data, raw numbers (weighted) | BC28: Poorest | BD28: Poor | BE28: Middle | BF28: Rich | BG28: Richest | BH28: Poorest | BI28: Poor | BJ28: Middle | BK28: Rich | BL28: Richest | BM28: Poorest | BN28: Poor | BO28: Middle | BP28: Rich | BQ28: Richest | BR28: Central | BS28: East | BT28: North | BU28: South | BV28: West
A29: Piped water | B29: Yes | C29: 73.40395269 | D29: 83.9137478 | E29: 89.40550013 | F29: 91.31879414 | G29: 94.05782879 | H29: 95.19076152 | I29: 94.03609822 | J29: 93.85867277 | K29: 94.26985435 | L29: 95.77743124 | M29: 55.39834478 | N29: 51.04031021 | O29: 59.36665264 | P29: 56.67271368 | Q29: 68.21999334 | R29: 81.8489804 | S29: 78.94462721 | T29: 69.63757317 | U29: 90.41399252 | V29: 93.95241659 | BA29: Piped water | BB29: Yes | BC29: N/A | BD29: N/A | BE29: N/A | BF29: N/A | BG29: N/A | BH29: N/A | BI29: N/A | BJ29: N/A | BK29: N/A | BL29: N/A | BM29: N/A | BN29: N/A | BO29: N/A | BP29: N/A | BQ29: N/A | BR29: N/A | BS29: N/A | BT29: N/A | BU29: N/A | BV29: N/A
B30: No | C30: 26.59604731 | D30: 16.0862522 | E30: 10.59449987 | F30: 8.681205864 | G30: 5.942171206 | H30: 4.809238475 | I30: 5.963901779 | J30: 6.141327228 | K30: 5.73014565 | L30: 4.222568764 | M30: 44.60165522 | N30: 48.95968979 | O30: 40.63334736 | P30: 43.32728632 | Q30: 31.78000666 | R30: 18.1510196 | S30: 21.05537279 | T30: 30.36242683 | U30: 9.586007481 | V30: 6.047583415 | BB30: No | BC30: N/A | BD30: N/A | BE30: N/A | BF30: N/A | BG30: N/A | BH30: N/A | BI30: N/A | BJ30: N/A | BK30: N/A | BL30: N/A | BM30: N/A | BN30: N/A | BO30: N/A | BP30: N/A | BQ30: N/A | BR30: N/A | BS30: N/A | BT30: N/A | BU30: N/A | BV30: N/A
A31: Piped water on premises | B31: Yes | C31: 68.01447526 | D31: 82.10693941 | E31: 88.03226081 | F31: 90.53236077 | G31: 92.8996475 | H31: 93.91688527 | I31: 93.47022422 | J31: 93.1194948 | K31: 93.77290461 | L31: 94.94604691 | M31: 44.49152574 | N31: 44.38100472 | O31: 52.48953173 | P31: 52.34993875 | Q31: 63.71645856 | R31: 80.94372557 | S31: 73.7169401 | T31: 66.36168873 | U31: 89.81286123 | V31: 92.48168838 | BA31: Piped water on premises | BB31: Yes | BC31: N/A | BD31: N/A | BE31: N/A | BF31: N/A | BG31: N/A | BH31: N/A | BI31: N/A | BJ31: N/A | BK31: N/A | BL31: N/A | BM31: N/A | BN31: N/A | BO31: N/A | BP31: N/A | BQ31: N/A | BR31: N/A | BS31: N/A | BT31: N/A | BU31: N/A | BV31: N/A
B32: No | C32: 31.98552474 | D32: 17.89306059 | E32: 11.96773919 | F32: 9.467639227 | G32: 7.100352495 | H32: 6.083114731 | I32: 6.52977578 | J32: 6.880505203 | K32: 6.227095386 | L32: 5.053953093 | M32: 55.50847426 | N32: 55.61899528 | O32: 47.51046827 | P32: 47.65006125 | Q32: 36.28354144 | R32: 19.05627443 | S32: 26.2830599 | T32: 33.63831127 | U32: 10.18713877 | V32: 7.518311616 | BB32: No | BC32: N/A | BD32: N/A | BE32: N/A | BF32: N/A | BG32: N/A | BH32: N/A | BI32: N/A | BJ32: N/A | BK32: N/A | BL32: N/A | BM32: N/A | BN32: N/A | BO32: N/A | BP32: N/A | BQ32: N/A | BR32: N/A | BS32: N/A | BT32: N/A | BU32: N/A | BV32: N/A
A33: Piped water into dwelling | B33: Yes | C33: N/A | D33: N/A | E33: N/A | F33: N/A | G33: N/A | H33: N/A | I33: N/A | J33: N/A | K33: N/A | L33: N/A | M33: N/A | N33: N/A | O33: N/A | P33: N/A | Q33: N/A | R33: N/A | S33: N/A | T33: N/A | U33: N/A | V33: N/A | BA33: Piped water into dwelling | BB33: Yes | BC33: N/A | BD33: N/A | BE33: N/A | BF33: N/A | BG33: N/A | BH33: N/A | BI33: N/A | BJ33: N/A | BK33: N/A | BL33: N/A | BM33: N/A | BN33: N/A | BO33: N/A | BP33: N/A | BQ33: N/A | BR33: N/A | BS33: N/A | BT33: N/A | BU33: N/A | BV33: N/A
B34: No | C34: N/A | D34: N/A | E34: N/A | F34: N/A | G34: N/A | H34: N/A | I34: N/A | J34: N/A | K34: N/A | L34: N/A | M34: N/A | N34: N/A | O34: N/A | P34: N/A | Q34: N/A | R34: N/A | S34: N/A | T34: N/A | U34: N/A | V34: N/A | BB34: No | BC34: N/A | BD34: N/A | BE34: N/A | BF34: N/A | BG34: N/A | BH34: N/A | BI34: N/A | BJ34: N/A | BK34: N/A | BL34: N/A | BM34: N/A | BN34: N/A | BO34: N/A | BP34: N/A | BQ34: N/A | BR34: N/A | BS34: N/A | BT34: N/A | BU34: N/A | BV34: N/A
A35: Water source on premises | B35: Yes | C35: 90.33117613 | D35: 93.04766202 | E35: 92.62098961 | F35: 93.68891382 | G35: 95.32475184 | H35: 95.60618376 | I35: 94.15330365 | J35: 93.96492942 | K35: 94.3405089 | L35: 95.99774796 | M35: 82.21703184 | N35: 86.61382325 | O35: 88.81778463 | P35: 87.62146168 | Q35: 88.57426396 | R35: 88.96277669 | S35: 91.90033721 | T35: 92.86464239 | U35: 96.25953472 | V35: 94.51569792 | BA35: Water source on premises | BB35: Yes | BC35: N/A | BD35: N/A | BE35: N/A | BF35: N/A | BG35: N/A | BH35: N/A | BI35: N/A | BJ35: N/A | BK35: N/A | BL35: N/A | BM35: N/A | BN35: N/A | BO35: N/A | BP35: N/A | BQ35: N/A | BR35: N/A | BS35: N/A | BT35: N/A | BU35: N/A | BV35: N/A
B36: No | C36: 9.668823875 | D36: 6.952337979 | E36: 7.379010385 | F36: 6.311086177 | G36: 4.675248158 | H36: 4.393816243 | I36: 5.846696352 | J36: 6.035070583 | K36: 5.659491099 | L36: 4.002252041 | M36: 17.78296816 | N36: 13.38617675 | O36: 11.18221537 | P36: 12.37853832 | Q36: 11.42573604 | R36: 11.03722331 | S36: 8.099662786 | T36: 7.135357609 | U36: 3.740465279 | V36: 5.484302085 | BB36: No | BC36: N/A | BD36: N/A | BE36: N/A | BF36: N/A | BG36: N/A | BH36: N/A | BI36: N/A | BJ36: N/A | BK36: N/A | BL36: N/A | BM36: N/A | BN36: N/A | BO36: N/A | BP36: N/A | BQ36: N/A | BR36: N/A | BS36: N/A | BT36: N/A | BU36: N/A | BV36: N/A
A37: Improved Water source on premises | B37: Yes | C37: 91.1353951 | D37: 93.83121702 | E37: 93.05943184 | F37: 94.10567033 | G37: 95.46997382 | H37: 95.84066152 | I37: 94.63649542 | J37: 94.20038971 | K37: 94.90397859 | L37: 96.07949579 | M37: 84.54206603 | N37: 87.10917503 | O37: 89.58454309 | P37: 89.1158715 | Q37: 88.81952228 | R37: 89.75348078 | S37: 92.81645612 | T37: 93.14459607 | U37: 96.66774571 | V37: 94.80439874 | BA37: Improved water source on premises | BB37: Yes | BC37: N/A | BD37: N/A | BE37: N/A | BF37: N/A | BG37: N/A | BH37: N/A | BI37: N/A | BJ37: N/A | BK37: N/A | BL37: N/A | BM37: N/A | BN37: N/A | BO37: N/A | BP37: N/A | BQ37: N/A | BR37: N/A | BS37: N/A | BT37: N/A | BU37: N/A | BV37: N/A
B38: No | C38: 8.864604904 | D38: 6.168782981 | E38: 6.94056816 | F38: 5.894329672 | G38: 4.530026177 | H38: 4.159338481 | I38: 5.363504575 | J38: 5.799610292 | K38: 5.096021414 | L38: 3.920504212 | M38: 15.45793397 | N38: 12.89082497 | O38: 10.41545691 | P38: 10.8841285 | Q38: 11.18047772 | R38: 10.24651922 | S38: 7.183543877 | T38: 6.855403928 | U38: 3.332254294 | V38: 5.195601256 | BB38: No | BC38: N/A | BD38: N/A | BE38: N/A | BF38: N/A | BG38: N/A | BH38: N/A | BI38: N/A | BJ38: N/A | BK38: N/A | BL38: N/A | BM38: N/A | BN38: N/A | BO38: N/A | BP38: N/A | BQ38: N/A | BR38: N/A | BS38: N/A | BT38: N/A | BU38: N/A | BV38: N/A
A39: Piped water on premises available when needed | B39: Yes | C39: N/A | D39: N/A | E39: N/A | F39: N/A | G39: N/A | H39: N/A | I39: N/A | J39: N/A | K39: N/A | L39: N/A | M39: N/A | N39: N/A | O39: N/A | P39: N/A | Q39: N/A | R39: N/A | S39: N/A | T39: N/A | U39: N/A | V39: N/A | BA39: Piped water on premises available when needed | BB39: Yes | BC39: N/A | BD39: N/A | BE39: N/A | BF39: N/A | BG39: N/A | BH39: N/A | BI39: N/A | BJ39: N/A | BK39: N/A | BL39: N/A | BM39: N/A | BN39: N/A | BO39: N/A | BP39: N/A | BQ39: N/A | BR39: N/A | BS39: N/A | BT39: N/A | BU39: N/A | BV39: N/A
B40: No | C40: N/A | D40: N/A | E40: N/A | F40: N/A | G40: N/A | H40: N/A | I40: N/A | J40: N/A | K40: N/A | L40: N/A | M40: N/A | N40: N/A | O40: N/A | P40: N/A | Q40: N/A | R40: N/A | S40: N/A | T40: N/A | U40: N/A | V40: N/A | BB40: No | BC40: N/A | BD40: N/A | BE40: N/A | BF40: N/A | BG40: N/A | BH40: N/A | BI40: N/A | BJ40: N/A | BK40: N/A | BL40: N/A | BM40: N/A | BN40: N/A | BO40: N/A | BP40: N/A | BQ40: N/A | BR40: N/A | BS40: N/A | BT40: N/A | BU40: N/A | BV40: N/A
A41: Water point at more than 30 minutes | B41: Yes | C41: 1.58870948 | D41: 1.317683756 | E41: 1.434471022 | F41: 1.929469102 | G41: 0.5874818762 | H41: 0.909699757 | I41: 1.354533143 | J41: 0.9788183173 | K41: 1.9803067 | L41: 0.3391260408 | M41: 2.93772395 | N41: 2.229302702 | O41: 1.061794345 | P41: 3.12594238 | Q41: 2.011934409 | R41: 2.226311517 | S41: 1.188215881 | T41: 2.155806004 | U41: 0.5815808667 | V41: 1.14047186 | BA41: Water point at more than 30 minutes | BB41: Yes | BC41: N/A | BD41: N/A | BE41: N/A | BF41: N/A | BG41: N/A | BH41: N/A | BI41: N/A | BJ41: N/A | BK41: N/A | BL41: N/A | BM41: N/A | BN41: N/A | BO41: N/A | BP41: N/A | BQ41: N/A | BR41: N/A | BS41: N/A | BT41: N/A | BU41: N/A | BV41: N/A
B42: No | C42: 98.41129052 | D42: 98.68231624 | E42: 98.56552898 | F42: 98.0705309 | G42: 99.41251812 | H42: 99.09030024 | I42: 98.64546686 | J42: 99.02118168 | K42: 98.0196933 | L42: 99.66087396 | M42: 97.06227605 | N42: 97.7706973 | O42: 98.93820566 | P42: 96.87405762 | Q42: 97.98806559 | R42: 97.77368848 | S42: 98.81178412 | T42: 97.844194 | U42: 99.41841913 | V42: 98.85952814 | BB42: No | BC42: N/A | BD42: N/A | BE42: N/A | BF42: N/A | BG42: N/A | BH42: N/A | BI42: N/A | BJ42: N/A | BK42: N/A | BL42: N/A | BM42: N/A | BN42: N/A | BO42: N/A | BP42: N/A | BQ42: N/A | BR42: N/A | BS42: N/A | BT42: N/A | BU42: N/A | BV42: N/A
A43: Water source available when needed | B43: Yes | C43: N/A | D43: N/A | E43: N/A | F43: N/A | G43: N/A | H43: N/A | I43: N/A | J43: N/A | K43: N/A | L43: N/A | M43: N/A | N43: N/A | O43: N/A | P43: N/A | Q43: N/A | R43: N/A | S43: N/A | T43: N/A | U43: N/A | V43: N/A | BA43: Water source available when needed | BB43: Yes | BC43: N/A | BD43: N/A | BE43: N/A | BF43: N/A | BG43: N/A | BH43: N/A | BI43: N/A | BJ43: N/A | BK43: N/A | BL43: N/A | BM43: N/A | BN43: N/A | BO43: N/A | BP43: N/A | BQ43: N/A | BR43: N/A | BS43: N/A | BT43: N/A | BU43: N/A | BV43: N/A
B44: No | C44: N/A | D44: N/A | E44: N/A | F44: N/A | G44: N/A | H44: N/A | I44: N/A | J44: N/A | K44: N/A | L44: N/A | M44: N/A | N44: N/A | O44: N/A | P44: N/A | Q44: N/A | R44: N/A | S44: N/A | T44: N/A | U44: N/A | V44: N/A | BB44: No | BC44: N/A | BD44: N/A | BE44: N/A | BF44: N/A | BG44: N/A | BH44: N/A | BI44: N/A | BJ44: N/A | BK44: N/A | BL44: N/A | BM44: N/A | BN44: N/A | BO44: N/A | BP44: N/A | BQ44: N/A | BR44: N/A | BS44: N/A | BT44: N/A | BU44: N/A | BV44: N/A
A45: Improved water source available when needed | B45: Yes | C45: N/A | D45: N/A | E45: N/A | F45: N/A | G45: N/A | H45: N/A | I45: N/A | J45: N/A | K45: N/A | L45: N/A | M45: N/A | N45: N/A | O45: N/A | P45: N/A | Q45: N/A | R45: N/A | S45: N/A | T45: N/A | U45: N/A | V45: N/A | BA45: Improved water source available when needed | BB45: Yes | BC45: N/A | BD45: N/A | BE45: N/A | BF45: N/A | BG45: N/A | BH45: N/A | BI45: N/A | BJ45: N/A | BK45: N/A | BL45: N/A | BM45: N/A | BN45: N/A | BO45: N/A | BP45: N/A | BQ45: N/A | BR45: N/A | BS45: N/A | BT45: N/A | BU45: N/A | BV45: N/A
B46: No | C46: N/A | D46: N/A | E46: N/A | F46: N/A | G46: N/A | H46: N/A | I46: N/A | J46: N/A | K46: N/A | L46: N/A | M46: N/A | N46: N/A | O46: N/A | P46: N/A | Q46: N/A | R46: N/A | S46: N/A | T46: N/A | U46: N/A | V46: N/A | BB46: No | BC46: N/A | BD46: N/A | BE46: N/A | BF46: N/A | BG46: N/A | BH46: N/A | BI46: N/A | BJ46: N/A | BK46: N/A | BL46: N/A | BM46: N/A | BN46: N/A | BO46: N/A | BP46: N/A | BQ46: N/A | BR46: N/A | BS46: N/A | BT46: N/A | BU46: N/A | BV46: N/A
A47: Microbiological quality at point of collection | B47: Not contaminated (No E. coli in 100 mL) | C47: N/A | D47: N/A | E47: N/A | F47: N/A | G47: N/A | H47: N/A | I47: N/A | J47: N/A | K47: N/A | L47: N/A | M47: N/A | N47: N/A | O47: N/A | P47: N/A | Q47: N/A | R47: N/A | S47: N/A | T47: N/A | U47: N/A | V47: N/A | BA47: Microbiological quality at point of collection | BB47: Not contaminated (No E. coli in 100 mL) | BC47: N/A | BD47: N/A | BE47: N/A | BF47: N/A | BG47: N/A | BH47: N/A | BI47: N/A | BJ47: N/A | BK47: N/A | BL47: N/A | BM47: N/A | BN47: N/A | BO47: N/A | BP47: N/A | BQ47: N/A | BR47: N/A | BS47: N/A | BT47: N/A | BU47: N/A | BV47: N/A
B48: Contaminated (E. coli detected in 100 mL) | C48: N/A | D48: N/A | E48: N/A | F48: N/A | G48: N/A | H48: N/A | I48: N/A | J48: N/A | K48: N/A | L48: N/A | M48: N/A | N48: N/A | O48: N/A | P48: N/A | Q48: N/A | R48: N/A | S48: N/A | T48: N/A | U48: N/A | V48: N/A | BB48: Contaminated (E. coli detected in 100 mL) | BC48: N/A | BD48: N/A | BE48: N/A | BF48: N/A | BG48: N/A | BH48: N/A | BI48: N/A | BJ48: N/A | BK48: N/A | BL48: N/A | BM48: N/A | BN48: N/A | BO48: N/A | BP48: N/A | BQ48: N/A | BR48: N/A | BS48: N/A | BT48: N/A | BU48: N/A | BV48: N/A
B49: Highly contaminated (>100 CFU/100 mL) | C49: N/A | D49: N/A | E49: N/A | F49: N/A | G49: N/A | H49: N/A | I49: N/A | J49: N/A | K49: N/A | L49: N/A | M49: N/A | N49: N/A | O49: N/A | P49: N/A | Q49: N/A | R49: N/A | S49: N/A | T49: N/A | U49: N/A | V49: N/A | BB49: Highly contaminated (>100 CFU/100 mL) | BC49: N/A | BD49: N/A | BE49: N/A | BF49: N/A | BG49: N/A | BH49: N/A | BI49: N/A | BJ49: N/A | BK49: N/A | BL49: N/A | BM49: N/A | BN49: N/A | BO49: N/A | BP49: N/A | BQ49: N/A | BR49: N/A | BS49: N/A | BT49: N/A | BU49: N/A | BV49: N/A
A50: Microbiological quality of improved water sources at point of collection | B50: Not contaminated (No E. coli in 100 mL) | C50: N/A | D50: N/A | E50: N/A | F50: N/A | G50: N/A | H50: N/A | I50: N/A | J50: N/A | K50: N/A | L50: N/A | M50: N/A | N50: N/A | O50: N/A | P50: N/A | Q50: N/A | R50: N/A | S50: N/A | T50: N/A | U50: N/A | V50: N/A | BA50: Microbiological quality of improved water sources at point of collection | BB50: Not contaminated (No E. coli in 100 mL) | BC50: N/A | BD50: N/A | BE50: N/A | BF50: N/A | BG50: N/A | BH50: N/A | BI50: N/A | BJ50: N/A | BK50: N/A | BL50: N/A | BM50: N/A | BN50: N/A | BO50: N/A | BP50: N/A | BQ50: N/A | BR50: N/A | BS50: N/A | BT50: N/A | BU50: N/A | BV50: N/A
B51: Contaminated (E. coli detected in 100 mL) | C51: N/A | D51: N/A | E51: N/A | F51: N/A | G51: N/A | H51: N/A | I51: N/A | J51: N/A | K51: N/A | L51: N/A | M51: N/A | N51: N/A | O51: N/A | P51: N/A | Q51: N/A | R51: N/A | S51: N/A | T51: N/A | U51: N/A | V51: N/A | BB51: Contaminated (E. coli detected in 100 mL) | BC51: N/A | BD51: N/A | BE51: N/A | BF51: N/A | BG51: N/A | BH51: N/A | BI51: N/A | BJ51: N/A | BK51: N/A | BL51: N/A | BM51: N/A | BN51: N/A | BO51: N/A | BP51: N/A | BQ51: N/A | BR51: N/A | BS51: N/A | BT51: N/A | BU51: N/A | BV51: N/A
B52: Highly contaminated (>100 CFU/100 mL) | C52: N/A | D52: N/A | E52: N/A | F52: N/A | G52: N/A | H52: N/A | I52: N/A | J52: N/A | K52: N/A | L52: N/A | M52: N/A | N52: N/A | O52: N/A | P52: N/A | Q52: N/A | R52: N/A | S52: N/A | T52: N/A | U52: N/A | V52: N/A | BB52: Highly contaminated (>100 CFU/100 mL) | BC52: N/A | BD52: N/A | BE52: N/A | BF52: N/A | BG52: N/A | BH52: N/A | BI52: N/A | BJ52: N/A | BK52: N/A | BL52: N/A | BM52: N/A | BN52: N/A | BO52: N/A | BP52: N/A | BQ52: N/A | BR52: N/A | BS52: N/A | BT52: N/A | BU52: N/A | BV52: N/A
A53: Microbiological quality of piped on premises at point of collection | B53: Not contaminated (No E. coli in 100 mL) | C53: N/A | D53: N/A | E53: N/A | F53: N/A | G53: N/A | H53: N/A | I53: N/A | J53: N/A | K53: N/A | L53: N/A | M53: N/A | N53: N/A | O53: N/A | P53: N/A | Q53: N/A | R53: N/A | S53: N/A | T53: N/A | U53: N/A | V53: N/A | BA53: Microbiological quality of piped on premises at point of collection | BB53: Not contaminated (No E. coli in 100 mL) | BC53: N/A | BD53: N/A | BE53: N/A | BF53: N/A | BG53: N/A | BH53: N/A | BI53: N/A | BJ53: N/A | BK53: N/A | BL53: N/A | BM53: N/A | BN53: N/A | BO53: N/A | BP53: N/A | BQ53: N/A | BR53: N/A | BS53: N/A | BT53: N/A | BU53: N/A | BV53: N/A
B54: Contaminated (E. coli detected in 100 mL) | C54: N/A | D54: N/A | E54: N/A | F54: N/A | G54: N/A | H54: N/A | I54: N/A | J54: N/A | K54: N/A | L54: N/A | M54: N/A | N54: N/A | O54: N/A | P54: N/A | Q54: N/A | R54: N/A | S54: N/A | T54: N/A | U54: N/A | V54: N/A | BB54: Contaminated (E. coli detected in 100 mL) | BC54: N/A | BD54: N/A | BE54: N/A | BF54: N/A | BG54: N/A | BH54: N/A | BI54: N/A | BJ54: N/A | BK54: N/A | BL54: N/A | BM54: N/A | BN54: N/A | BO54: N/A | BP54: N/A | BQ54: N/A | BR54: N/A | BS54: N/A | BT54: N/A | BU54: N/A | BV54: N/A
B55: Highly contaminated (>100 CFU/100 mL) | C55: N/A | D55: N/A | E55: N/A | F55: N/A | G55: N/A | H55: N/A | I55: N/A | J55: N/A | K55: N/A | L55: N/A | M55: N/A | N55: N/A | O55: N/A | P55: N/A | Q55: N/A | R55: N/A | S55: N/A | T55: N/A | U55: N/A | V55: N/A | BB55: Highly contaminated (>100 CFU/100 mL) | BC55: N/A | BD55: N/A | BE55: N/A | BF55: N/A | BG55: N/A | BH55: N/A | BI55: N/A | BJ55: N/A | BK55: N/A | BL55: N/A | BM55: N/A | BN55: N/A | BO55: N/A | BP55: N/A | BQ55: N/A | BR55: N/A | BS55: N/A | BT55: N/A | BU55: N/A | BV55: N/A
C56: NATIONAL wealth index quintile | H56: URBAN wealth index quintile | M56: RURAL wealth index quintile | R56: SUB-REGIONS: | BA56: Raw numbers of respondents: | BB56: Use of drinking water sources | BC56: NATIONAL wealth index quintile | BH56: URBAN wealth index quintile | BM56: RURAL wealth index quintile | BR56: SUB-REGIONS:
A57: Percentage based on weighted population | C57: Poorest | D57: Poor | E57: Middle | F57: Rich | G57: Richest | H57: Poorest | I57: Poor | J57: Middle | K57: Rich | L57: Richest | M57: Poorest | N57: Poor | O57: Middle | P57: Rich | Q57: Richest | R57: Central | S57: East | T57: North | U57: South | V57: West | BA57: Water data, raw numbers (weighted) | BC57: Poorest | BD57: Poor | BE57: Middle | BF57: Rich | BG57: Richest | BH57: Poorest | BI57: Poor | BJ57: Middle | BK57: Rich | BL57: Richest | BM57: Poorest | BN57: Poor | BO57: Middle | BP57: Rich | BQ57: Richest | BR57: Central | BS57: East | BT57: North | BU57: South | BV57: West
A58: Source of drinking water | B58: Piped into dwelling | C58: 58.68012384 | D58: 63.05562785 | E58: 57.4965642 | F58: 50.85164876 | G58: 37.97441816 | H58: 77.26559313 | I58: 62.39380599 | J58: 55.06244433 | K58: 48.9312691 | L58: 36.68019605 | M58: 40.00671963 | N58: 41.20337585 | O58: 48.87435438 | P58: 48.02892644 | Q58: 47.61947297 | R58: 53.77116595 | S58: 66.27490368 | T58: 50.56581065 | U58: 74.79092647 | V58: 41.74135163
B59: Piped to yard/plot | C59: 1.583678098 | D59: 0.3171043906 | E59: 0.06770094915 | F59: 0.04334312284 | G59: 0.0259970807 | H59: 0.4277742606 | I59: 0.09286708376 | J59: 0 | K59: 0.05587226472 | L59: 0.03355281499 | M59: 3.924502046 | N59: 1.60277462 | O59: 0.7248817864 | P59: 0.4777364069 | Q59: 0.2230540798 | R59: 0.3140190471 | S59: 1.243060962 | T59: 0 | U59: 0.1281466773 | V59: 0.222131103
B60: Public tap/standpipe | C60: 5.376390849 | D60: 1.807046655 | E60: 1.373953183 | F60: 0.7868365168 | G60: 1.158181289 | H60: 1.256997714 | I60: 0.565970331 | J60: 0.739673923 | K60: 0.4970650728 | L60: 0.8313843285 | M60: 10.90681904 | N60: 6.659305489 | O60: 6.877120914 | P60: 4.322774935 | Q60: 4.510201891 | R60: 0.9057265295 | S60: 5.214995423 | T60: 3.277048668 | U60: 0.6011312866 | V60: 1.470966608
B61: Tube well or borehole | C61: 8.904127871 | D61: 3.395719747 | E61: 1.056834877 | F61: 0.75170964 | G61: 0.6796658528 | H61: 0.5800480142 | I61: 0.04643282103 | J61: 0.29982468 | K61: 0.1075892668 | L61: 0.04135018408 | M61: 14.80914198 | N61: 20.07255418 | O61: 11.40979538 | P61: 8.227246981 | Q61: 7.543378627 | R61: 2.169224511 | S61: 9.813551429 | T61: 0.2487907136 | U61: 1.423941727 | V61: 1.100043965
B62: Protected well | C62: 2.29833898 | D62: 2.107393766 | E62: 1.029824712 | F62: 1.215415482 | G62: 0.4996043493 | H62: 0.9949866523 | I62: 1.068688169 | J62: 1.0382327 | K62: 0.5733553216 | L62: 0.3287743618 | M62: 3.245398567 | N62: 4.009784262 | O62: 2.699642821 | P62: 4.605073767 | Q62: 3.440276157 | R62: 1.480767068 | S62: 2.909244041 | T62: 1.255678996 | U62: 1.458903373 | V62: 0.7387559869
B63: Unprotected well | C63: 0.4592528698 | D63: 0.1387020672 | E63: 0.1072477129 | F63: 0.02819234905 | G63: 0.04084611375 | H63: 0.09715986095 | I63: 0 | J63: 0.05602293979 | K63: 0 | L63: 0.03141873064 | M63: 0.9101056985 | N63: 1.132564095 | O63: 0.1706644134 | P63: 0.3947089785 | Q63: 0.1989698279 | R63: 0.04350810511 | S63: 0.4881805685 | T63: 0.04444407066 | U63: 0.1949999999 | V63: 0.06123607471
B64: Protected spring | C64: 12.88608358 | D64: 8.81058124 | E64: 7.576095413 | F64: 6.157690957 | G64: 3.986559096 | H64: 2.751745031 | I64: 4.206067236 | J64: 4.525339584 | K64: 4.338731606 | L64: 3.285722763 | M64: 20.40700789 | N64: 20.98355331 | O64: 23.50393434 | P64: 25.62448087 | Q64: 18.88118933 | R64: 13.23383563 | S64: 6.182366975 | T64: 27.1192256 | U64: 4.138907948 | V64: 3.734482393
B65: Unprotected spring | C65: 0.9437651406 | D65: 0.9095253568 | E65: 0.1562465714 | F65: 0.2490807859 | G65: 0.141700629 | H65: 0.2112920937 | I65: 0.2261597539 | J65: 0.03588108165 | K65: 0.3697463486 | L65: 0.05366480189 | M65: 3.418804962 | N65: 0.5425397434 | O65: 0.841918666 | P65: 2.494381308 | Q65: 0.277767261 | R65: 0.8278518924 | S65: 0.6607692153 | T65: 0.2440666169 | U65: 0.8805407643 | V65: 0.1482053129
B66: River/dam/lake/ponds/stream/canal/irrigation channel | C66: 0.3405288631 | D66: 0.09974110892 | E66: 0.02940774028 | F66: 0.1381120514 | G66: 0 | H66: 0.02463630745 | I66: 0.1666443482 | J66: 0 | K66: 0.1433891563 | L66: 0 | M66: 0.8266043944 | N66: 0.4824307375 | O66: 0.119346778 | P66: 0 | Q66: 0.1196359716 | R66: 0.06145892927 | S66: 0.2273841702 | T66: 0.1731887967 | U66: 0.2630782812 | V66: 0.0490611898
B67: Tanker truck | C67: 0.3478888695 | D67: 0.2330807077 | E67: 0.1054426624 | F67: 0.02476218922 | G67: 0.02475381672 | H67: 0.03695446118 | I67: 0.03250549771 | J67: 0 | K67: 0 | L67: 0 | M67: 0.4039286885 | N67: 0.7735563781 | O67: 1.095435438 | P67: 0.5393852229 | Q67: 0.2204418859 | R67: 0.08573094496 | S67: 0.1517717819 | T67: 0.3555525653 | U67: 0.598748762 | V67: 0
B68: Cart with small tank | C68: 0 | D68: 0.09624895918 | E68: 0.01389333887 | F68: 0 | G68: 0 | H68: 0.0357919216 | I68: 0.0178985703 | J68: 0 | K68: 0 | L68: 0 | M68: 0 | N68: 0 | O68: 0 | P68: 0.304750805 | Q68: 0 | R68: 0.04177872133 | S68: 0 | T68: 0.1111101767 | U68: 0.04381088502 | V68: 0
B69: Bottled water | C69: 7.892246858 | D69: 18.82351023 | E69: 30.74677442 | F69: 39.71825067 | G69: 55.45861352 | H69: 16.27837314 | I69: 30.9994628 | J69: 38.15145483 | K69: 44.92546252 | L69: 58.71393596 | M69: 0.5603040605 | N69: 1.916774067 | O69: 3.06598957 | P69: 4.618922028 | Q69: 16.965612 | R69: 27.06493267 | S69: 6.289533168 | T69: 16.48962464 | U69: 15.33725886 | V69: 50.67183377
B70: Other | C70: 0.2875741784 | D70: 0.2057179203 | E70: 0.2400142169 | F70: 0.03495748155 | G70: 0.00966009947 | H70: 0.03864741357 | I70: 0.1834973998 | J70: 0.09112592936 | K70: 0.05751934075 | L70: 0 | M70: 0.5806630423 | N70: 0.6207872698 | O70: 0.6169155132 | P70: 0.3616122516 | Q70: 0 | R70: 0 | S70: 0.5442385898 | T70: 0.1154585016 | U70: 0.139604967 | V70: 0.06193196383
A108: =A1026 -> Turkey
A109: =A1034 -> 2013
A110: Use of sanitation facilities
A111: by wealth quintile and sub-national region
A112: Notes:
A113: WHO/UNICEF JMP customised wealth index excludes water,
A114: sanitation and hygiene assets.
A115: Survey used for analysis: | B115: =A1025 -> DHS13
A116: =B1030 -> 
A117: =B1029 -> 
A120: Use of sanitation facilities | C120: NATIONAL wealth index quintile | H120: URBAN wealth index quintile | M120: RURAL wealth index quintile | R120: SUB-REGIONS: | BA120: Raw numbers of respondents: | BB120: Use of sanitation facilities | BC120: NATIONAL wealth index quintile | BH120: URBAN wealth index quintile | BM120: RURAL wealth index quintile | BR120: SUB-REGIONS:
A121: Weighted percentage (used in graphs) | C121: Poorest | D121: Poor | E121: Middle | F121: Rich | G121: Richest | H121: Poorest | I121: Poor | J121: Middle | K121: Rich | L121: Richest | M121: Poorest | N121: Poor | O121: Middle | P121: Rich | Q121: Richest | R121: Central | S121: East | T121: North | U121: South | V121: West | BA121: Sanitation data, raw numbers (weighted) | BC121: Poorest | BD121: Poor | BE121: Middle | BF121: Rich | BG121: Richest | BH121: Poorest | BI121: Poor | BJ121: Middle | BK121: Rich | BL121: Richest | BM121: Poorest | BN121: Poor | BO121: Middle | BP121: Rich | BQ121: Richest | BR121: Central | BS121: East | BT121: North | BU121: South | BV121: West
A122: Sanitation | B122: Improved | C122: 88.64806548 | D122: 96.92847355 | E122: 98.32440901 | F122: 99.70807837 | G122: 99.49172437 | H122: 99.02661458 | I122: 98.48409243 | J122: 99.91841378 | K122: 99.79937597 | L122: 99.87541212 | M122: 76.32473379 | N122: 80.39375712 | O122: 90.23962908 | P122: 91.29449167 | Q122: 96.60471604 | R122: 97.47128561 | S122: 92.22488373 | T122: 94.6532043 | U122: 97.73999917 | V122: 98.27299483 | BA122: Sanitation | BB122: Improved | BC122: 7773.019361 | BD122: 8506.674552 | BE122: 8614.838684 | BF122: 8744.779973 | BG122: 8724.283859 | BH122: 6732.302839 | BI122: 6695.583048 | BJ122: 6783.814093 | BK122: 6788.104129 | BL122: 6785.737167 | BM122: 1508.441111 | BN122: 1581.683387 | BO122: 1781.432052 | BP122: 1801.206055 | BQ122: 1905.292548 | BR122: 8519.925024 | BS122: 7740.177872 | BT122: 3082.971794 | BU122: 5342.927986 | BV122: 17677.59375
B123: Not Improved | C123: 11.35193452 | D123: 3.071526451 | E123: 1.675590994 | F123: 0.2919216312 | G123: 0.5082756308 | H123: 0.9733854212 | I123: 1.515907567 | J123: 0.08158622449 | K123: 0.2006240284 | L123: 0.124587878 | M123: 23.67526621 | N123: 19.60624288 | O123: 9.760370925 | P123: 8.705508334 | Q123: 3.395283958 | R123: 2.528714393 | S123: 7.77511627 | T123: 5.346795697 | U123: 2.260000826 | V123: 1.727005173 | BB123: Not Improved | BC123: 995.383332 | BD123: 269.564504 | BE123: 146.809386 | BF123: 25.602644 | BG123: 44.569947 | BH123: 66.175396 | BI123: 103.061162 | BJ123: 5.539177 | BK123: 13.645945 | BL123: 8.464752 | BM123: 467.905266 | BN123: 385.737273 | BO123: 192.68073 | BP123: 171.756412 | BQ123: 66.9637 | BR123: 221.033886 | BS123: 652.543874 | BT123: 174.151741 | BU123: 123.542273 | BV123: 310.658039
A124: Sanitation ladder | B124: Basic | C124: 85.82326388 | D124: 96.32523371 | E124: 98.17963168 | F124: 99.6009416 | G124: 99.43703695 | H124: 97.48512562 | I124: 98.12826658 | J124: 99.91827253 | K124: 99.75021843 | L124: 99.80780665 | M124: 71.60266345 | N124: 77.59672192 | O124: 89.66370151 | P124: 90.28023142 | Q124: 96.1941556 | R124: 96.72688027 | S124: 90.54267453 | T124: 94.64753371 | U124: 97.06448262 | V124: 97.79813788 | BA124: Sanitation ladder | BB124: Basic | BC124: 7495.42235 | BD124: 8420.013432 | BE124: 8592.468885 | BF124: 8716.135179 | BG124: 8665.258093 | BH124: 6588.88749 | BI124: 6654.007509 | BJ124: 6772.080228 | BK124: 6773.571975 | BL124: 6726.711401 | BM124: 1415.116645 | BN124: 1522.273772 | BO124: 1764.367423 | BP124: 1775.086252 | BQ124: 1897.195244 | BR124: 8429.317236 | BS124: 7546.114334 | BT124: 3079.521079 | BU124: 5299.041381 | BV124: 17535.30391
B125: Limited | C125: 2.779506938 | D125: 0.5909394025 | E125: 0.1428887024 | F125: 0.1064920957 | G125: 0.05150644933 | H125: 1.535783931 | I125: 0.3518654018 | J125: 0 | K125: 0.0488261491 | L125: 0.06659730527 | M125: 4.722070336 | N125: 2.740620508 | O125: 0.544422242 | P125: 0.984300879 | Q125: 0.4105604436 | R125: 0.7367436958 | S125: 1.627724039 | T125: 0 | U125: 0.6725483017 | V125: 0.4692558327 | BB125: Limited | BC125: 242.74978 | BD125: 51.655392 | BE125: 12.50531 | BF125: 9.319184 | BG125: 4.488435 | BH125: 103.801554 | BI125: 23.859741 | BJ125: 0 | BK125: 3.315556 | BL125: 4.488435 | BM125: 93.324466 | BN125: 53.764832 | BO125: 10.712929 | BP125: 19.353284 | BQ125: 8.097304 | BR125: 64.203935 | BS125: 135.659696 | BT125: 0 | BU125: 36.71643 | BV125: 84.13804
B126: Unimproved | C126: 11.39722918 | D126: 3.083826891 | E126: 1.67747962 | F126: 0.2925663035 | G126: 0.5114566028 | H126: 0.9790904461 | I126: 1.519868014 | J126: 0.08172747198 | K126: 0.200955419 | L126: 0.1255960425 | M126: 23.67526621 | N126: 19.66265757 | O126: 9.791876248 | P126: 8.735467702 | Q126: 3.395283958 | R126: 2.536376035 | S126: 7.829601432 | T126: 5.352466294 | U126: 2.262969082 | V126: 1.732606283 | BB126: Unimproved | BC126: 995.383332 | BD126: 269.564504 | BE126: 146.809386 | BF126: 25.602644 | BG126: 44.569947 | BH126: 66.175396 | BI126: 103.061162 | BJ126: 5.539177 | BK126: 13.645945 | BL126: 8.464752 | BM126: 467.905266 | BN126: 385.737273 | BO126: 192.68073 | BP126: 171.756412 | BQ126: 66.9637 | BR126: 221.033886 | BS126: 652.543874 | BT126: 174.151741 | BU126: 123.542273 | BV126: 310.658039
B127: Open defecation | C127: 0 | D127: 0 | E127: 0 | F127: 0 | G127: 0 | H127: 0 | I127: 0 | J127: 0 | K127: 0 | L127: 0 | M127: 0 | N127: 0 | O127: 0 | P127: 0 | Q127: 0 | R127: 0 | S127: 0 | T127: 0 | U127: 0 | V127: 0 | BB127: Open defecation | BC127: 5197.955866 | BD127: 7154.457718 | BE127: 7964.875491 | BF127: 8308.855773 | BG127: 8454.515767 | BH127: 6237.108595 | BI127: 6503.96471 | BJ127: 6649.814206 | BK127: 6665.309843 | BL127: 6731.305118 | BM127: 506.966606 | BN127: 697.286877 | BO127: 877.661091 | BP127: 938.648051 | BQ127: 1272.595518 | BR127: 7810.63804 | BS127: 6044.846226 | BT127: 2215.18412 | BU127: 4182.79032 | BV127: 16827.20191
A128: Shared among Improved Sanitation | B128: Yes | C128: 3.137042908 | D128: 0.6097428154 | E128: 0.1453265253 | F128: 0.1068045699 | G128: 0.05177123674 | H128: 1.550969324 | I128: 0.3572958267 | J128: 0 | K128: 0.04892446547 | L128: 0.06668105404 | M128: 6.186815337 | N128: 3.41139055 | O128: 0.6035179753 | P128: 1.078514133 | Q128: 0.424990063 | R128: 0.7559165829 | S128: 1.765994358 | T128: 0 | U128: 0.6881202502 | V128: 0.4775295395 | BA128: Shared among improved sanitation facilities | BB128: Yes | BC128: N/A | BD128: N/A | BE128: N/A | BF128: N/A | BG128: N/A | BH128: N/A | BI128: N/A | BJ128: N/A | BK128: N/A | BL128: N/A | BM128: N/A | BN128: N/A | BO128: N/A | BP128: N/A | BQ128: N/A | BR128: N/A | BS128: N/A | BT128: N/A | BU128: N/A | BV128: N/A
B129: No | C129: 96.86295709 | D129: 99.39025718 | E129: 99.85467347 | F129: 99.89319543 | G129: 99.94822876 | H129: 98.44903068 | I129: 99.64270417 | J129: 100 | K129: 99.95107553 | L129: 99.93331895 | M129: 93.81318466 | N129: 96.58860945 | O129: 99.39648202 | P129: 98.92148587 | Q129: 99.57500994 | R129: 99.24408342 | S129: 98.23400564 | T129: 100 | U129: 99.31187975 | V129: 99.52247046 | BB129: No | BC129: N/A | BD129: N/A | BE129: N/A | BF129: N/A | BG129: N/A | BH129: N/A | BI129: N/A | BJ129: N/A | BK129: N/A | BL129: N/A | BM129: N/A | BN129: N/A | BO129: N/A | BP129: N/A | BQ129: N/A | BR129: N/A | BS129: N/A | BT129: N/A | BU129: N/A | BV129: N/A
A130: Manually calculated ratios | B130: Improved latrines
B131: Other
B132: Other
C133: NATIONAL wealth index quintile | H133: URBAN wealth index quintile | M133: RURAL wealth index quintile | R133: SUB-REGIONS: | BA133: Raw numbers of respondents: | BB133: Use of sanitation facilities | BC133: NATIONAL wealth index quintile | BH133: URBAN wealth index quintile | BM133: RURAL wealth index quintile | BR133: SUB-REGIONS:
A134: Percentage based on weighted population | C134: Poorest | D134: Poor | E134: Middle | F134: Rich | G134: Richest | H134: Poorest | I134: Poor | J134: Middle | K134: Rich | L134: Richest | M134: Poorest | N134: Poor | O134: Middle | P134: Rich | Q134: Richest | R134: Central | S134: East | T134: North | U134: South | V134: West | BA134: Sanitation data, raw numbers (weighted) | BC134: Poorest | BD134: Poor | BE134: Middle | BF134: Rich | BG134: Richest | BH134: Poorest | BI134: Poor | BJ134: Middle | BK134: Rich | BL134: Richest | BM134: Poorest | BN134: Poor | BO134: Middle | BP134: Rich | BQ134: Richest | BR134: Central | BS134: East | BT134: North | BU134: South | BV134: West
A135: Sanitation type | B135: Sewer connection | C135: N/A | D135: N/A | E135: N/A | F135: N/A | G135: N/A | H135: N/A | I135: N/A | J135: N/A | K135: N/A | L135: N/A | M135: N/A | N135: N/A | O135: N/A | P135: N/A | Q135: N/A | R135: N/A | S135: N/A | T135: N/A | U135: N/A | V135: N/A | BA135: Sanitation type | BB135: Sewer connection | BC135: N/A | BD135: N/A | BE135: N/A | BF135: N/A | BG135: N/A | BH135: N/A | BI135: N/A | BJ135: N/A | BK135: N/A | BL135: N/A | BM135: N/A | BN135: N/A | BO135: N/A | BP135: N/A | BQ135: N/A | BR135: N/A | BS135: N/A | BT135: N/A | BU135: N/A | BV135: N/A
B136: Septic tank connection | C136: N/A | D136: N/A | E136: N/A | F136: N/A | G136: N/A | H136: N/A | I136: N/A | J136: N/A | K136: N/A | L136: N/A | M136: N/A | N136: N/A | O136: N/A | P136: N/A | Q136: N/A | R136: N/A | S136: N/A | T136: N/A | U136: N/A | V136: N/A | BB136: Septic tank connection | BC136: N/A | BD136: N/A | BE136: N/A | BF136: N/A | BG136: N/A | BH136: N/A | BI136: N/A | BJ136: N/A | BK136: N/A | BL136: N/A | BM136: N/A | BN136: N/A | BO136: N/A | BP136: N/A | BQ136: N/A | BR136: N/A | BS136: N/A | BT136: N/A | BU136: N/A | BV136: N/A
B137: Improved latrines | C137: N/A | D137: N/A | E137: N/A | F137: N/A | G137: N/A | H137: N/A | I137: N/A | J137: N/A | K137: N/A | L137: N/A | M137: N/A | N137: N/A | O137: N/A | P137: N/A | Q137: N/A | R137: N/A | S137: N/A | T137: N/A | U137: N/A | V137: N/A | BB137: Improved latrines | BC137: N/A | BD137: N/A | BE137: N/A | BF137: N/A | BG137: N/A | BH137: N/A | BI137: N/A | BJ137: N/A | BK137: N/A | BL137: N/A | BM137: N/A | BN137: N/A | BO137: N/A | BP137: N/A | BQ137: N/A | BR137: N/A | BS137: N/A | BT137: N/A | BU137: N/A | BV137: N/A
B138: Unimproved facilities | C138: N/A | D138: N/A | E138: N/A | F138: N/A | G138: N/A | H138: N/A | I138: N/A | J138: N/A | K138: N/A | L138: N/A | M138: N/A | N138: N/A | O138: N/A | P138: N/A | Q138: N/A | R138: N/A | S138: N/A | T138: N/A | U138: N/A | V138: N/A | BB138: Unimproved facilities | BC138: N/A | BD138: N/A | BE138: N/A | BF138: N/A | BG138: N/A | BH138: N/A | BI138: N/A | BJ138: N/A | BK138: N/A | BL138: N/A | BM138: N/A | BN138: N/A | BO138: N/A | BP138: N/A | BQ138: N/A | BR138: N/A | BS138: N/A | BT138: N/A | BU138: N/A | BV138: N/A
B139: Open defecation | C139: 0 | D139: 0 | E139: 0 | F139: 0 | G139: 0 | H139: 0 | I139: 0 | J139: 0 | K139: 0 | L139: 0 | M139: 0 | N139: 0 | O139: 0 | P139: 0 | Q139: 0 | R139: 0 | S139: 0 | T139: 0 | U139: 0 | V139: 0 | BB139: Open defecation | BC139: N/A | BD139: N/A | BE139: N/A | BF139: N/A | BG139: N/A | BH139: N/A | BI139: N/A | BJ139: N/A | BK139: N/A | BL139: N/A | BM139: N/A | BN139: N/A | BO139: N/A | BP139: N/A | BQ139: N/A | BR139: N/A | BS139: N/A | BT139: N/A | BU139: N/A | BV139: N/A
